{"text_format":"1","workbook":"xlsx","n_sheets":4,"sheets":["UserInput","User's Guide","LU","DATASTRING"],"not_rendered":{"charts":0,"images":7,"macros":1,"external_links":0,"defined_names":202,"comments":0,"pivot_tables":0},"unopened":[],"bounds":{"document_bytes":16777216,"sheet_cells":100000,"rows_first":2000,"rows_last":500,"rows_between":2000,"halvings":0,"cell_chars":16384,"cell_head_chars":4096},"cells_cut":0,"cells_raw":0,"read":"whole","date_system":"1900"}

{"sheet":"UserInput","index":0,"n_rows":10111,"n_cols":47,"rows_kept":4500,"cut":true,"hidden":false,"merged":[[1,5,3,23]],"bounds":{"rows_first":2000,"rows_last":500,"rows_between":2000,"halvings":0}}
[]
[null,null,null,null,null,"Experience Rating Split Data - Data File Creator"]
[]
[]
[]
[]
[null,null,":Experience Rating Split Unit Filter"]
[null,"ER Split Unit 01"]
[null,"ER Split Unit 01",null,null,null,null,null,null,null,null,null,null,null,"ER Split Unit 01"]
[null,"ER Split Unit 01"]
[null,"ER Split Unit 01",null,null,null,null,null,null,null,null,null,null,null,null,null,null,null,null,null,null,null,null,null,"Bottom"]
[null,"ER Split Unit 01",null,null,null,null,null,null,"Report Type:"]
[null,"ER Split Unit 01",null,null,null,"Link Data Common to All Records for this Split Unit",null,null,null,null,null,null,null,null,null,"Exposure Record 4",null,null,null,null,"Loss Record 5"]
[null,"ER Split Unit 01",null,null,null,null,null,null,null,"Carrier Code:",null,null,null,"Class Code","Exposure Act","Exposure Amt","Mod Effective Date","Rate Effective Date","Manual Rate",null,"Claim Number","Accident Date","Type of Claim"]
[null,"ER Split Unit 01",null,null,null,null,null,null,null,"Policy Number:",null,"Row 1"]
[null,"ER Split Unit 01",null,null,null,null,null,null,null,"Policy Effective Date:",null,"Row 2"]
[null,"ER Split Unit 01",null,null,null,null,null,null,null,"Exposure State:",null,"Row 3"]
[null,"ER Split Unit 01",null,null,null,null,null,null,null,"FEIN:",null,"Row 4"]
[null,"ER Split Unit 01",null,null,null,null,null,null,null,"Type of Transaction:",null,"Row 5"]
[null,"ER Split Unit 01",null,null,null,{"$f":"IF(J12=\"Delete\",\"Header Record 1\",\"Header Record 1, Name Record 2, & Address Record 3\")","v":"Header Record 1, Name Record 2, & Address Record 3"},null,null,null,null,null,"Row 6"]
[null,"ER Split Unit 01",null,null,null,null,null,null,null,{"$f":"IF(uipU01LD_TT=\"01 PEO Client Information\",\"Client Termination Date\",\"Ownership Change Date:\")","v":"Ownership Change Date:"},null,"Row 7"]
[null,"ER Split Unit 01",null,null,null,null,null,null,null,"Name of Insured:",null,"Row 8"]
[null,"ER Split Unit 01",null,null,null,null,null,null,null,"Street Address:",null,"Row 9"]
[null,"ER Split Unit 01",null,null,null,null,null,null,null,"City:",null,"Row 10"]
[null,"ER Split Unit 01",null,null,null,null,null,null,null,"State:",null,"Row 11"]
[null,"ER Split Unit 01",null,null,null,null,null,null,null,"Zip Code:",null,"Row 12"]
[null,"ER Split Unit 01",null,null,{"$f":"IFERROR(INDEX(tblSTATE[St_Abbr],MATCH($K$25,tblSTATE[State],0)),\"\")","v":""},null,null,null,null,null,null,"Row 13"]
[null,"ER Split Unit 01",null,null,null,null,null,null,null,null,null,"Row 14"]
[null,"ER Split Unit 01",null,null,null,null,null,null,null,null,null,"Row 15"]
[null,"ER Split Unit 01",null,null,null,null,null,null,null,null,null,"Row 16"]
[null,"ER Split Unit 01",null,null,null,null,null,null,null,null,null,"Row 17"]
[null,"ER Split Unit 01",null,null,null,null,null,null,null,null,null,"Row 18"]
[null,"ER Split Unit 01",null,null,null,null,null,null,null,null,null,"Row 19"]
[null,"ER Split Unit 01",null,null,null,null,null,null,null,null,null,"Row 20"]
[null,"ER Split Unit 01",null,null,null,null,null,null,null,null,null,"Row 21"]
[null,"ER Split Unit 01",null,null,null,null,null,null,null,null,null,"Row 22"]
[null,"ER Split Unit 01",null,null,null,null,null,null,null,null,null,"Row 23"]
[null,"ER Split Unit 01",null,null,null,null,null,null,null,null,null,"Row 24"]
[null,"ER Split Unit 01",null,null,null,null,null,null,null,null,null,"Row 25"]
[null,"ER Split Unit 01",null,null,null,null,null,null,null,null,null,"Row 26"]
[null,"ER Split Unit 01",null,null,null,null,null,null,null,null,null,"Row 27"]
[null,"ER Split Unit 01",null,null,null,null,null,null,null,null,null,"Row 28"]
[null,"ER Split Unit 01",null,null,null,null,null,null,null,null,null,"Row 29"]
[null,"ER Split Unit 01",null,null,null,null,null,null,null,null,null,"Row 30"]
[null,"ER Split Unit 01",null,null,null,null,null,null,null,null,null,"Row 31"]
[null,"ER Split Unit 01",null,null,null,null,null,null,null,null,null,"Row 32"]
[null,"ER Split Unit 01",null,null,null,null,null,null,null,null,null,"Row 33"]
[null,"ER Split Unit 01",null,null,null,null,null,null,null,null,null,"Row 34"]
[null,"ER Split Unit 01",null,null,null,null,null,null,null,null,null,"Row 35"]
[null,"ER Split Unit 01",null,null,null,null,null,null,null,null,null,"Row 36"]
[null,"ER Split Unit 01",null,null,null,null,null,null,null,null,null,"Row 37"]
[null,"ER Split Unit 01",null,null,null,null,null,null,null,null,null,"Row 38"]
[null,"ER Split Unit 01",null,null,null,null,null,null,null,null,null,"Row 39"]
[null,"ER Split Unit 01",null,null,null,null,null,null,null,null,null,"Row 40"]
[null,"ER Split Unit 01",null,null,null,null,null,null,null,null,null,"Row 41"]
[null,"ER Split Unit 01",null,null,null,null,null,null,null,null,null,"Row 42"]
[null,"ER Split Unit 01",null,null,null,null,null,null,null,null,null,"Row 43"]
[null,"ER Split Unit 01",null,null,null,null,null,null,null,null,null,"Row 44"]
[null,"ER Split Unit 01",null,null,null,null,null,null,null,null,null,"Row 45"]
[null,"ER Split Unit 01",null,null,null,null,null,null,null,null,null,"Row 46"]
[null,"ER Split Unit 01",null,null,null,null,null,null,null,null,null,"Row 47"]
[null,"ER Split Unit 01",null,null,null,null,null,null,null,null,null,"Row 48"]
[null,"ER Split Unit 01",null,null,null,null,null,null,null,null,null,"Row 49"]
[null,"ER Split Unit 01",null,null,null,null,null,null,null,null,null,"Row 50"]
[null,"ER Split Unit 01",null,null,null,null,null,null,null,null,null,"Row 51"]
[null,"ER Split Unit 01",null,null,null,null,null,null,null,null,null,"Row 52"]
[null,"ER Split Unit 01",null,null,null,null,null,null,null,null,null,"Row 53"]
[null,"ER Split Unit 01",null,null,null,null,null,null,null,null,null,"Row 54"]
[null,"ER Split Unit 01",null,null,null,null,null,null,null,null,null,"Row 55"]
[null,"ER Split Unit 01",null,null,null,null,null,null,null,null,null,"Row 56"]
[null,"ER Split Unit 01",null,null,null,null,null,null,null,null,null,"Row 57"]
[null,"ER Split Unit 01",null,null,null,null,null,null,null,null,null,"Row 58"]
[null,"ER Split Unit 01",null,null,null,null,null,null,null,null,null,"Row 59"]
[null,"ER Split Unit 01",null,null,null,null,null,null,null,null,null,"Row 60"]
[null,"ER Split Unit 01",null,null,null,null,null,null,null,null,null,"Row 61"]
[null,"ER Split Unit 01",null,null,null,null,null,null,null,null,null,"Row 62"]
[null,"ER Split Unit 01",null,null,null,null,null,null,null,null,null,"Row 63"]
[null,"ER Split Unit 01",null,null,null,null,null,null,null,null,null,"Row 64"]
[null,"ER Split Unit 01",null,null,null,null,null,null,null,null,null,"Row 65"]
[null,"ER Split Unit 01",null,null,null,null,null,null,null,null,null,"Row 66"]
[null,"ER Split Unit 01",null,null,null,null,null,null,null,null,null,"Row 67"]
[null,"ER Split Unit 01",null,null,null,null,null,null,null,null,null,"Row 68"]
[null,"ER Split Unit 01",null,null,null,null,null,null,null,null,null,"Row 69"]
[null,"ER Split Unit 01",null,null,null,null,null,null,null,null,null,"Row 70"]
[null,"ER Split Unit 01",null,null,null,null,null,null,null,null,null,"Row 71"]
[null,"ER Split Unit 01",null,null,null,null,null,null,null,null,null,"Row 72"]
[null,"ER Split Unit 01",null,null,null,null,null,null,null,null,null,"Row 73"]
[null,"ER Split Unit 01",null,null,null,null,null,null,null,null,null,"Row 74"]
[null,"ER Split Unit 01",null,null,null,null,null,null,null,null,null,"Row 75"]
[null,"ER Split Unit 01",null,null,null,null,null,null,null,null,null,"Row 76"]
[null,"ER Split Unit 01",null,null,null,null,null,null,null,null,null,"Row 77"]
[null,"ER Split Unit 01",null,null,null,null,null,null,null,null,null,"Row 78"]
[null,"ER Split Unit 01",null,null,null,null,null,null,null,null,null,"Row 79"]
[null,"ER Split Unit 01",null,null,null,null,null,null,null,null,null,"Row 80"]
[null,"ER Split Unit 01",null,null,null,null,null,null,null,null,null,"Row 81"]
[null,"ER Split Unit 01",null,null,null,null,null,null,null,null,null,"Row 82"]
[null,"ER Split Unit 01",null,null,null,null,null,null,null,null,null,"Row 83"]
[null,"ER Split Unit 01",null,null,null,null,null,null,null,null,null,"Row 84"]
[null,"ER Split Unit 01",null,null,null,null,null,null,null,null,null,"Row 85"]
[null,"ER Split Unit 01",null,null,null,null,null,null,null,null,null,"Row 86"]
[null,"ER Split Unit 01",null,null,null,null,null,null,null,null,null,"Row 87"]
[null,"ER Split Unit 01",null,null,null,null,null,null,null,null,null,"Row 88"]
[null,"ER Split Unit 01",null,null,null,null,null,null,null,null,null,"Row 89"]
[null,"ER Split Unit 01",null,null,null,null,null,null,null,null,null,"Row 90"]
[null,"ER Split Unit 01",null,null,null,null,null,null,null,null,null,"Row 91"]
[null,"ER Split Unit 01",null,null,null,null,null,null,null,null,null,"Row 92"]
[null,"ER Split Unit 01",null,null,null,null,null,null,null,null,null,"Row 93"]
[null,"ER Split Unit 01",null,null,null,null,null,null,null,null,null,"Row 94"]
[null,"ER Split Unit 01",null,null,null,null,null,null,null,null,null,"Row 95"]
[null,"ER Split Unit 01",null,null,null,null,null,null,null,null,null,"Row 96"]
[null,"ER Split Unit 01",null,null,null,null,null,null,null,null,null,"Row 97"]
[null,"ER Split Unit 01",null,null,null,null,null,null,null,null,null,"Row 98"]
[null,"ER Split Unit 01",null,null,null,null,null,null,null,null,null,"Row 99"]
[null,"ER Split Unit 01",null,null,null,null,null,null,null,null,null,"Row 100"]
[null,"ER Split Unit 01",null,null,null,null,null,null,null,null,null,"Row 101"]
[null,"ER Split Unit 01",null,null,null,null,null,null,null,null,null,"Row 102"]
[null,"ER Split Unit 01",null,null,null,null,null,null,null,null,null,"Row 103"]
[null,"ER Split Unit 01",null,null,null,null,null,null,null,null,null,"Row 104"]
[null,"ER Split Unit 01",null,null,null,null,null,null,null,null,null,"Row 105"]
[null,"ER Split Unit 01",null,null,null,null,null,null,null,null,null,"Row 106"]
[null,"ER Split Unit 01",null,null,null,null,null,null,null,null,null,"Row 107"]
[null,"ER Split Unit 01",null,null,null,null,null,null,null,null,null,"Row 108"]
[null,"ER Split Unit 01",null,null,null,null,null,null,null,null,null,"Row 109"]
[null,"ER Split Unit 01",null,null,null,null,null,null,null,null,null,"Row 110"]
[null,"ER Split Unit 01",null,null,null,null,null,null,null,null,null,"Row 111"]
[null,"ER Split Unit 01",null,null,null,null,null,null,null,null,null,"Row 112"]
[null,"ER Split Unit 01",null,null,null,null,null,null,null,null,null,"Row 113"]
[null,"ER Split Unit 01",null,null,null,null,null,null,null,null,null,"Row 114"]
[null,"ER Split Unit 01",null,null,null,null,null,null,null,null,null,"Row 115"]
[null,"ER Split Unit 01",null,null,null,null,null,null,null,null,null,"Row 116"]
[null,"ER Split Unit 01",null,null,null,null,null,null,null,null,null,"Row 117"]
[null,"ER Split Unit 01",null,null,null,null,null,null,null,null,null,"Row 118"]
[null,"ER Split Unit 01",null,null,null,null,null,null,null,null,null,"Row 119"]
[null,"ER Split Unit 01",null,null,null,null,null,null,null,null,null,"Row 120"]
[null,"ER Split Unit 01",null,null,null,null,null,null,null,null,null,"Row 121"]
[null,"ER Split Unit 01",null,null,null,null,null,null,null,null,null,"Row 122"]
[null,"ER Split Unit 01",null,null,null,null,null,null,null,null,null,"Row 123"]
[null,"ER Split Unit 01",null,null,null,null,null,null,null,null,null,"Row 124"]
[null,"ER Split Unit 01",null,null,null,null,null,null,null,null,null,"Row 125"]
[null,"ER Split Unit 01",null,null,null,null,null,null,null,null,null,"Row 126"]
[null,"ER Split Unit 01",null,null,null,null,null,null,null,null,null,"Row 127"]
[null,"ER Split Unit 01",null,null,null,null,null,null,null,null,null,"Row 128"]
[null,"ER Split Unit 01",null,null,null,null,null,null,null,null,null,"Row 129"]
[null,"ER Split Unit 01",null,null,null,null,null,null,null,null,null,"Row 130"]
[null,"ER Split Unit 01",null,null,null,null,null,null,null,null,null,"Row 131"]
[null,"ER Split Unit 01",null,null,null,null,null,null,null,null,null,"Row 132"]
[null,"ER Split Unit 01",null,null,null,null,null,null,null,null,null,"Row 133"]
[null,"ER Split Unit 01",null,null,null,null,null,null,null,null,null,"Row 134"]
[null,"ER Split Unit 01",null,null,null,null,null,null,null,null,null,"Row 135"]
[null,"ER Split Unit 01",null,null,null,null,null,null,null,null,null,"Row 136"]
[null,"ER Split Unit 01",null,null,null,null,null,null,null,null,null,"Row 137"]
[null,"ER Split Unit 01",null,null,null,null,null,null,null,null,null,"Row 138"]
[null,"ER Split Unit 01",null,null,null,null,null,null,null,null,null,"Row 139"]
[null,"ER Split Unit 01",null,null,null,null,null,null,null,null,null,"Row 140"]
[null,"ER Split Unit 01",null,null,null,null,null,null,null,null,null,"Row 141"]
[null,"ER Split Unit 01",null,null,null,null,null,null,null,null,null,"Row 142"]
[null,"ER Split Unit 01",null,null,null,null,null,null,null,null,null,"Row 143"]
[null,"ER Split Unit 01",null,null,null,null,null,null,null,null,null,"Row 144"]
[null,"ER Split Unit 01",null,null,null,null,null,null,null,null,null,"Row 145"]
[null,"ER Split Unit 01",null,null,null,null,null,null,null,null,null,"Row 146"]
[null,"ER Split Unit 01",null,null,null,null,null,null,null,null,null,"Row 147"]
[null,"ER Split Unit 01",null,null,null,null,null,null,null,null,null,"Row 148"]
[null,"ER Split Unit 01",null,null,null,null,null,null,null,null,null,"Row 149"]
[null,"ER Split Unit 01",null,null,null,null,null,null,null,null,null,"Row 150"]
[null,"ER Split Unit 01",null,null,null,null,null,null,null,null,null,"Row 151"]
[null,"ER Split Unit 01",null,null,null,null,null,null,null,null,null,"Row 152"]
[null,"ER Split Unit 01",null,null,null,null,null,null,null,null,null,"Row 153"]
[null,"ER Split Unit 01",null,null,null,null,null,null,null,null,null,"Row 154"]
[null,"ER Split Unit 01",null,null,null,null,null,null,null,null,null,"Row 155"]
[null,"ER Split Unit 01",null,null,null,null,null,null,null,null,null,"Row 156"]
[null,"ER Split Unit 01",null,null,null,null,null,null,null,null,null,"Row 157"]
[null,"ER Split Unit 01",null,null,null,null,null,null,null,null,null,"Row 158"]
[null,"ER Split Unit 01",null,null,null,null,null,null,null,null,null,"Row 159"]
[null,"ER Split Unit 01",null,null,null,null,null,null,null,null,null,"Row 160"]
[null,"ER Split Unit 01",null,null,null,null,null,null,null,null,null,"Row 161"]
[null,"ER Split Unit 01",null,null,null,null,null,null,null,null,null,"Row 162"]
[null,"ER Split Unit 01",null,null,null,null,null,null,null,null,null,"Row 163"]
[null,"ER Split Unit 01",null,null,null,null,null,null,null,null,null,"Row 164"]
[null,"ER Split Unit 01",null,null,null,null,null,null,null,null,null,"Row 165"]
[null,"ER Split Unit 01",null,null,null,null,null,null,null,null,null,"Row 166"]
[null,"ER Split Unit 01",null,null,null,null,null,null,null,null,null,"Row 167"]
[null,"ER Split Unit 01",null,null,null,null,null,null,null,null,null,"Row 168"]
[null,"ER Split Unit 01",null,null,null,null,null,null,null,null,null,"Row 169"]
[null,"ER Split Unit 01",null,null,null,null,null,null,null,null,null,"Row 170"]
[null,"ER Split Unit 01",null,null,null,null,null,null,null,null,null,"Row 171"]
[null,"ER Split Unit 01",null,null,null,null,null,null,null,null,null,"Row 172"]
[null,"ER Split Unit 01",null,null,null,null,null,null,null,null,null,"Row 173"]
[null,"ER Split Unit 01",null,null,null,null,null,null,null,null,null,"Row 174"]
[null,"ER Split Unit 01",null,null,null,null,null,null,null,null,null,"Row 175"]
[null,"ER Split Unit 01",null,null,null,null,null,null,null,null,null,"Row 176"]
[null,"ER Split Unit 01",null,null,null,null,null,null,null,null,null,"Row 177"]
[null,"ER Split Unit 01",null,null,null,null,null,null,null,null,null,"Row 178"]
[null,"ER Split Unit 01",null,null,null,null,null,null,null,null,null,"Row 179"]
[null,"ER Split Unit 01",null,null,null,null,null,null,null,null,null,"Row 180"]
[null,"ER Split Unit 01",null,null,null,null,null,null,null,null,null,"Row 181"]
[null,"ER Split Unit 01",null,null,null,null,null,null,null,null,null,"Row 182"]
[null,"ER Split Unit 01",null,null,null,null,null,null,null,null,null,"Row 183"]
[null,"ER Split Unit 01",null,null,null,null,null,null,null,null,null,"Row 184"]
[null,"ER Split Unit 01",null,null,null,null,null,null,null,null,null,"Row 185"]
[null,"ER Split Unit 01",null,null,null,null,null,null,null,null,null,"Row 186"]
[null,"ER Split Unit 01",null,null,null,null,null,null,null,null,null,"Row 187"]
[null,"ER Split Unit 01",null,null,null,null,null,null,null,null,null,"Row 188"]
[null,"ER Split Unit 01",null,null,null,null,null,null,null,null,null,"Row 189"]
[null,"ER Split Unit 01",null,null,null,null,null,null,null,null,null,"Row 190"]
[null,"ER Split Unit 01",null,null,null,null,null,null,null,null,null,"Row 191"]
[null,"ER Split Unit 01",null,null,null,null,null,null,null,null,null,"Row 192"]
[null,"ER Split Unit 01",null,null,null,null,null,null,null,null,null,"Row 193"]
[null,"ER Split Unit 01",null,null,null,null,null,null,null,null,null,"Row 194"]
[null,"ER Split Unit 01",null,null,null,null,null,null,null,null,null,"Row 195"]
[null,"ER Split Unit 01",null,null,null,null,null,null,null,null,null,"Row 196"]
[null,"ER Split Unit 01",null,null,null,null,null,null,null,null,null,"Row 197"]
[null,"ER Split Unit 01",null,null,null,null,null,null,null,null,null,"Row 198"]
[null,"ER Split Unit 01",null,null,null,null,null,null,null,null,null,"Row 199"]
[null,"ER Split Unit 01",null,null,null,null,null,null,null,null,null,"Row 200"]
[null,"ER Split Unit 01",null,null,null,null,null,null,null,null,null,"Row 201"]
[null,"ER Split Unit 01",null,null,null,null,null,null,null,null,null,"Row 202"]
[null,"ER Split Unit 01",null,null,null,null,null,null,null,null,null,"Row 203"]
[null,"ER Split Unit 01",null,null,null,null,null,null,null,null,null,"Row 204"]
[null,"ER Split Unit 01",null,null,null,null,null,null,null,null,null,"Row 205"]
[null,"ER Split Unit 01",null,null,null,null,null,null,null,null,null,"Row 206"]
[null,"ER Split Unit 01",null,null,null,null,null,null,null,null,null,"Row 207"]
[null,"ER Split Unit 01",null,null,null,null,null,null,null,null,null,"Row 208"]
[null,"ER Split Unit 01",null,null,null,null,null,null,null,null,null,"Row 209"]
[null,"ER Split Unit 01",null,null,null,null,null,null,null,null,null,"Row 210"]
[null,"ER Split Unit 01",null,null,null,null,null,null,null,null,null,"Row 211"]
[null,"ER Split Unit 01",null,null,null,null,null,null,null,null,null,"Row 212"]
[null,"ER Split Unit 01",null,null,null,null,null,null,null,null,null,"Row 213"]
[null,"ER Split Unit 01",null,null,null,null,null,null,null,null,null,"Row 214"]
[null,"ER Split Unit 01",null,null,null,null,null,null,null,null,null,"Row 215"]
[null,"ER Split Unit 01",null,null,null,null,null,null,null,null,null,"Row 216"]
[null,"ER Split Unit 01",null,null,null,null,null,null,null,null,null,"Row 217"]
[null,"ER Split Unit 01",null,null,null,null,null,null,null,null,null,"Row 218"]
[null,"ER Split Unit 01",null,null,null,null,null,null,null,null,null,"Row 219"]
[null,"ER Split Unit 01",null,null,null,null,null,null,null,null,null,"Row 220"]
[null,"ER Split Unit 01",null,null,null,null,null,null,null,null,null,"Row 221"]
[null,"ER Split Unit 01",null,null,null,null,null,null,null,null,null,"Row 222"]
[null,"ER Split Unit 01",null,null,null,null,null,null,null,null,null,"Row 223"]
[null,"ER Split Unit 01",null,null,null,null,null,null,null,null,null,"Row 224"]
[null,"ER Split Unit 01",null,null,null,null,null,null,null,null,null,"Row 225"]
[null,"ER Split Unit 01",null,null,null,null,null,null,null,null,null,"Row 226"]
[null,"ER Split Unit 01",null,null,null,null,null,null,null,null,null,"Row 227"]
[null,"ER Split Unit 01",null,null,null,null,null,null,null,null,null,"Row 228"]
[null,"ER Split Unit 01",null,null,null,null,null,null,null,null,null,"Row 229"]
[null,"ER Split Unit 01",null,null,null,null,null,null,null,null,null,"Row 230"]
[null,"ER Split Unit 01",null,null,null,null,null,null,null,null,null,"Row 231"]
[null,"ER Split Unit 01",null,null,null,null,null,null,null,null,null,"Row 232"]
[null,"ER Split Unit 01",null,null,null,null,null,null,null,null,null,"Row 233"]
[null,"ER Split Unit 01",null,null,null,null,null,null,null,null,null,"Row 234"]
[null,"ER Split Unit 01",null,null,null,null,null,null,null,null,null,"Row 235"]
[null,"ER Split Unit 01",null,null,null,null,null,null,null,null,null,"Row 236"]
[null,"ER Split Unit 01",null,null,null,null,null,null,null,null,null,"Row 237"]
[null,"ER Split Unit 01",null,null,null,null,null,null,null,null,null,"Row 238"]
[null,"ER Split Unit 01",null,null,null,null,null,null,null,null,null,"Row 239"]
[null,"ER Split Unit 01",null,null,null,null,null,null,null,null,null,"Row 240"]
[null,"ER Split Unit 01",null,null,null,null,null,null,null,null,null,"Row 241"]
[null,"ER Split Unit 01",null,null,null,null,null,null,null,null,null,"Row 242"]
[null,"ER Split Unit 01",null,null,null,null,null,null,null,null,null,"Row 243"]
[null,"ER Split Unit 01",null,null,null,null,null,null,null,null,null,"Row 244"]
[null,"ER Split Unit 01",null,null,null,null,null,null,null,null,null,"Row 245"]
[null,"ER Split Unit 01",null,null,null,null,null,null,null,null,null,"Row 246"]
[null,"ER Split Unit 01",null,null,null,null,null,null,null,null,null,"Row 247"]
[null,"ER Split Unit 01",null,null,null,null,null,null,null,null,null,"Row 248"]
[null,"ER Split Unit 01",null,null,null,null,null,null,null,null,null,"Row 249"]
[null,"ER Split Unit 01",null,null,null,null,null,null,null,null,null,"Row 250"]
[null,"ER Split Unit 01",null,null,null,null,null,null,null,null,null,"Row 251"]
[null,"ER Split Unit 01",null,null,null,null,null,null,null,null,null,"Row 252"]
[null,"ER Split Unit 01",null,null,null,null,null,null,null,null,null,"Row 253"]
[null,"ER Split Unit 01",null,null,null,null,null,null,null,null,null,"Row 254"]
[null,"ER Split Unit 01",null,null,null,null,null,null,null,null,null,"Row 255"]
[null,"ER Split Unit 01",null,null,null,null,null,null,null,null,null,"Row 256"]
[null,"ER Split Unit 01",null,null,null,null,null,null,null,null,null,"Row 257"]
[null,"ER Split Unit 01",null,null,null,null,null,null,null,null,null,"Row 258"]
[null,"ER Split Unit 01",null,null,null,null,null,null,null,null,null,"Row 259"]
[null,"ER Split Unit 01",null,null,null,null,null,null,null,null,null,"Row 260"]
[null,"ER Split Unit 01",null,null,null,null,null,null,null,null,null,"Row 261"]
[null,"ER Split Unit 01",null,null,null,null,null,null,null,null,null,"Row 262"]
[null,"ER Split Unit 01",null,null,null,null,null,null,null,null,null,"Row 263"]
[null,"ER Split Unit 01",null,null,null,null,null,null,null,null,null,"Row 264"]
[null,"ER Split Unit 01",null,null,null,null,null,null,null,null,null,"Row 265"]
[null,"ER Split Unit 01",null,null,null,null,null,null,null,null,null,"Row 266"]
[null,"ER Split Unit 01",null,null,null,null,null,null,null,null,null,"Row 267"]
[null,"ER Split Unit 01",null,null,null,null,null,null,null,null,null,"Row 268"]
[null,"ER Split Unit 01",null,null,null,null,null,null,null,null,null,"Row 269"]
[null,"ER Split Unit 01",null,null,null,null,null,null,null,null,null,"Row 270"]
[null,"ER Split Unit 01",null,null,null,null,null,null,null,null,null,"Row 271"]
[null,"ER Split Unit 01",null,null,null,null,null,null,null,null,null,"Row 272"]
[null,"ER Split Unit 01",null,null,null,null,null,null,null,null,null,"Row 273"]
[null,"ER Split Unit 01",null,null,null,null,null,null,null,null,null,"Row 274"]
[null,"ER Split Unit 01",null,null,null,null,null,null,null,null,null,"Row 275"]
[null,"ER Split Unit 01",null,null,null,null,null,null,null,null,null,"Row 276"]
[null,"ER Split Unit 01",null,null,null,null,null,null,null,null,null,"Row 277"]
[null,"ER Split Unit 01",null,null,null,null,null,null,null,null,null,"Row 278"]
[null,"ER Split Unit 01",null,null,null,null,null,null,null,null,null,"Row 279"]
[null,"ER Split Unit 01",null,null,null,null,null,null,null,null,null,"Row 280"]
[null,"ER Split Unit 01",null,null,null,null,null,null,null,null,null,"Row 281"]
[null,"ER Split Unit 01",null,null,null,null,null,null,null,null,null,"Row 282"]
[null,"ER Split Unit 01",null,null,null,null,null,null,null,null,null,"Row 283"]
[null,"ER Split Unit 01",null,null,null,null,null,null,null,null,null,"Row 284"]
[null,"ER Split Unit 01",null,null,null,null,null,null,null,null,null,"Row 285"]
[null,"ER Split Unit 01",null,null,null,null,null,null,null,null,null,"Row 286"]
[null,"ER Split Unit 01",null,null,null,null,null,null,null,null,null,"Row 287"]
[null,"ER Split Unit 01",null,null,null,null,null,null,null,null,null,"Row 288"]
[null,"ER Split Unit 01",null,null,null,null,null,null,null,null,null,"Row 289"]
[null,"ER Split Unit 01",null,null,null,null,null,null,null,null,null,"Row 290"]
[null,"ER Split Unit 01",null,null,null,null,null,null,null,null,null,"Row 291"]
[null,"ER Split Unit 01",null,null,null,null,null,null,null,null,null,"Row 292"]
[null,"ER Split Unit 01",null,null,null,null,null,null,null,null,null,"Row 293"]
[null,"ER Split Unit 01",null,null,null,null,null,null,null,null,null,"Row 294"]
[null,"ER Split Unit 01",null,null,null,null,null,null,null,null,null,"Row 295"]
[null,"ER Split Unit 01",null,null,null,null,null,null,null,null,null,"Row 296"]
[null,"ER Split Unit 01",null,null,null,null,null,null,null,null,null,"Row 297"]
[null,"ER Split Unit 01",null,null,null,null,null,null,null,null,null,"Row 298"]
[null,"ER Split Unit 01",null,null,null,null,null,null,null,null,null,"Row 299"]
[null,"ER Split Unit 01",null,null,null,null,null,null,null,null,null,"Row 300"]
[null,"ER Split Unit 01",null,null,null,null,null,null,null,null,null,"Row 301"]
[null,"ER Split Unit 01",null,null,null,null,null,null,null,null,null,"Row 302"]
[null,"ER Split Unit 01",null,null,null,null,null,null,null,null,null,"Row 303"]
[null,"ER Split Unit 01",null,null,null,null,null,null,null,null,null,"Row 304"]
[null,"ER Split Unit 01",null,null,null,null,null,null,null,null,null,"Row 305"]
[null,"ER Split Unit 01",null,null,null,null,null,null,null,null,null,"Row 306"]
[null,"ER Split Unit 01",null,null,null,null,null,null,null,null,null,"Row 307"]
[null,"ER Split Unit 01",null,null,null,null,null,null,null,null,null,"Row 308"]
[null,"ER Split Unit 01",null,null,null,null,null,null,null,null,null,"Row 309"]
[null,"ER Split Unit 01",null,null,null,null,null,null,null,null,null,"Row 310"]
[null,"ER Split Unit 01",null,null,null,null,null,null,null,null,null,"Row 311"]
[null,"ER Split Unit 01",null,null,null,null,null,null,null,null,null,"Row 312"]
[null,"ER Split Unit 01",null,null,null,null,null,null,null,null,null,"Row 313"]
[null,"ER Split Unit 01",null,null,null,null,null,null,null,null,null,"Row 314"]
[null,"ER Split Unit 01",null,null,null,null,null,null,null,null,null,"Row 315"]
[null,"ER Split Unit 01",null,null,null,null,null,null,null,null,null,"Row 316"]
[null,"ER Split Unit 01",null,null,null,null,null,null,null,null,null,"Row 317"]
[null,"ER Split Unit 01",null,null,null,null,null,null,null,null,null,"Row 318"]
[null,"ER Split Unit 01",null,null,null,null,null,null,null,null,null,"Row 319"]
[null,"ER Split Unit 01",null,null,null,null,null,null,null,null,null,"Row 320"]
[null,"ER Split Unit 01",null,null,null,null,null,null,null,null,null,"Row 321"]
[null,"ER Split Unit 01",null,null,null,null,null,null,null,null,null,"Row 322"]
[null,"ER Split Unit 01",null,null,null,null,null,null,null,null,null,"Row 323"]
[null,"ER Split Unit 01",null,null,null,null,null,null,null,null,null,"Row 324"]
[null,"ER Split Unit 01",null,null,null,null,null,null,null,null,null,"Row 325"]
[null,"ER Split Unit 01",null,null,null,null,null,null,null,null,null,"Row 326"]
[null,"ER Split Unit 01",null,null,null,null,null,null,null,null,null,"Row 327"]
[null,"ER Split Unit 01",null,null,null,null,null,null,null,null,null,"Row 328"]
[null,"ER Split Unit 01",null,null,null,null,null,null,null,null,null,"Row 329"]
[null,"ER Split Unit 01",null,null,null,null,null,null,null,null,null,"Row 330"]
[null,"ER Split Unit 01",null,null,null,null,null,null,null,null,null,"Row 331"]
[null,"ER Split Unit 01",null,null,null,null,null,null,null,null,null,"Row 332"]
[null,"ER Split Unit 01",null,null,null,null,null,null,null,null,null,"Row 333"]
[null,"ER Split Unit 01",null,null,null,null,null,null,null,null,null,"Row 334"]
[null,"ER Split Unit 01",null,null,null,null,null,null,null,null,null,"Row 335"]
[null,"ER Split Unit 01",null,null,null,null,null,null,null,null,null,"Row 336"]
[null,"ER Split Unit 01",null,null,null,null,null,null,null,null,null,"Row 337"]
[null,"ER Split Unit 01",null,null,null,null,null,null,null,null,null,"Row 338"]
[null,"ER Split Unit 01",null,null,null,null,null,null,null,null,null,"Row 339"]
[null,"ER Split Unit 01",null,null,null,null,null,null,null,null,null,"Row 340"]
[null,"ER Split Unit 01",null,null,null,null,null,null,null,null,null,"Row 341"]
[null,"ER Split Unit 01",null,null,null,null,null,null,null,null,null,"Row 342"]
[null,"ER Split Unit 01",null,null,null,null,null,null,null,null,null,"Row 343"]
[null,"ER Split Unit 01",null,null,null,null,null,null,null,null,null,"Row 344"]
[null,"ER Split Unit 01",null,null,null,null,null,null,null,null,null,"Row 345"]
[null,"ER Split Unit 01",null,null,null,null,null,null,null,null,null,"Row 346"]
[null,"ER Split Unit 01",null,null,null,null,null,null,null,null,null,"Row 347"]
[null,"ER Split Unit 01",null,null,null,null,null,null,null,null,null,"Row 348"]
[null,"ER Split Unit 01",null,null,null,null,null,null,null,null,null,"Row 349"]
[null,"ER Split Unit 01",null,null,null,null,null,null,null,null,null,"Row 350"]
[null,"ER Split Unit 01",null,null,null,null,null,null,null,null,null,"Row 351"]
[null,"ER Split Unit 01",null,null,null,null,null,null,null,null,null,"Row 352"]
[null,"ER Split Unit 01",null,null,null,null,null,null,null,null,null,"Row 353"]
[null,"ER Split Unit 01",null,null,null,null,null,null,null,null,null,"Row 354"]
[null,"ER Split Unit 01",null,null,null,null,null,null,null,null,null,"Row 355"]
[null,"ER Split Unit 01",null,null,null,null,null,null,null,null,null,"Row 356"]
[null,"ER Split Unit 01",null,null,null,null,null,null,null,null,null,"Row 357"]
[null,"ER Split Unit 01",null,null,null,null,null,null,null,null,null,"Row 358"]
[null,"ER Split Unit 01",null,null,null,null,null,null,null,null,null,"Row 359"]
[null,"ER Split Unit 01",null,null,null,null,null,null,null,null,null,"Row 360"]
[null,"ER Split Unit 01",null,null,null,null,null,null,null,null,null,"Row 361"]
[null,"ER Split Unit 01",null,null,null,null,null,null,null,null,null,"Row 362"]
[null,"ER Split Unit 01",null,null,null,null,null,null,null,null,null,"Row 363"]
[null,"ER Split Unit 01",null,null,null,null,null,null,null,null,null,"Row 364"]
[null,"ER Split Unit 01",null,null,null,null,null,null,null,null,null,"Row 365"]
[null,"ER Split Unit 01",null,null,null,null,null,null,null,null,null,"Row 366"]
[null,"ER Split Unit 01",null,null,null,null,null,null,null,null,null,"Row 367"]
[null,"ER Split Unit 01",null,null,null,null,null,null,null,null,null,"Row 368"]
[null,"ER Split Unit 01",null,null,null,null,null,null,null,null,null,"Row 369"]
[null,"ER Split Unit 01",null,null,null,null,null,null,null,null,null,"Row 370"]
[null,"ER Split Unit 01",null,null,null,null,null,null,null,null,null,"Row 371"]
[null,"ER Split Unit 01",null,null,null,null,null,null,null,null,null,"Row 372"]
[null,"ER Split Unit 01",null,null,null,null,null,null,null,null,null,"Row 373"]
[null,"ER Split Unit 01",null,null,null,null,null,null,null,null,null,"Row 374"]
[null,"ER Split Unit 01",null,null,null,null,null,null,null,null,null,"Row 375"]
[null,"ER Split Unit 01",null,null,null,null,null,null,null,null,null,"Row 376"]
[null,"ER Split Unit 01",null,null,null,null,null,null,null,null,null,"Row 377"]
[null,"ER Split Unit 01",null,null,null,null,null,null,null,null,null,"Row 378"]
[null,"ER Split Unit 01",null,null,null,null,null,null,null,null,null,"Row 379"]
[null,"ER Split Unit 01",null,null,null,null,null,null,null,null,null,"Row 380"]
[null,"ER Split Unit 01",null,null,null,null,null,null,null,null,null,"Row 381"]
[null,"ER Split Unit 01",null,null,null,null,null,null,null,null,null,"Row 382"]
[null,"ER Split Unit 01",null,null,null,null,null,null,null,null,null,"Row 383"]
[null,"ER Split Unit 01",null,null,null,null,null,null,null,null,null,"Row 384"]
[null,"ER Split Unit 01",null,null,null,null,null,null,null,null,null,"Row 385"]
[null,"ER Split Unit 01",null,null,null,null,null,null,null,null,null,"Row 386"]
[null,"ER Split Unit 01",null,null,null,null,null,null,null,null,null,"Row 387"]
[null,"ER Split Unit 01",null,null,null,null,null,null,null,null,null,"Row 388"]
[null,"ER Split Unit 01",null,null,null,null,null,null,null,null,null,"Row 389"]
[null,"ER Split Unit 01",null,null,null,null,null,null,null,null,null,"Row 390"]
[null,"ER Split Unit 01",null,null,null,null,null,null,null,null,null,"Row 391"]
[null,"ER Split Unit 01",null,null,null,null,null,null,null,null,null,"Row 392"]
[null,"ER Split Unit 01",null,null,null,null,null,null,null,null,null,"Row 393"]
[null,"ER Split Unit 01",null,null,null,null,null,null,null,null,null,"Row 394"]
[null,"ER Split Unit 01",null,null,null,null,null,null,null,null,null,"Row 395"]
[null,"ER Split Unit 01",null,null,null,null,null,null,null,null,null,"Row 396"]
[null,"ER Split Unit 01",null,null,null,null,null,null,null,null,null,"Row 397"]
[null,"ER Split Unit 01",null,null,null,null,null,null,null,null,null,"Row 398"]
[null,"ER Split Unit 01",null,null,null,null,null,null,null,null,null,"Row 399"]
[null,"ER Split Unit 01",null,null,null,null,null,null,null,null,null,"Row 400"]
[null,"ER Split Unit 01",null,null,null,null,null,null,null,null,null,"Row 401"]
[null,"ER Split Unit 01",null,null,null,null,null,null,null,null,null,"Row 402"]
[null,"ER Split Unit 01",null,null,null,null,null,null,null,null,null,"Row 403"]
[null,"ER Split Unit 01",null,null,null,null,null,null,null,null,null,"Row 404"]
[null,"ER Split Unit 01",null,null,null,null,null,null,null,null,null,"Row 405"]
[null,"ER Split Unit 01",null,null,null,null,null,null,null,null,null,"Row 406"]
[null,"ER Split Unit 01",null,null,null,null,null,null,null,null,null,"Row 407"]
[null,"ER Split Unit 01",null,null,null,null,null,null,null,null,null,"Row 408"]
[null,"ER Split Unit 01",null,null,null,null,null,null,null,null,null,"Row 409"]
[null,"ER Split Unit 01",null,null,null,null,null,null,null,null,null,"Row 410"]
[null,"ER Split Unit 01",null,null,null,null,null,null,null,null,null,"Row 411"]
[null,"ER Split Unit 01",null,null,null,null,null,null,null,null,null,"Row 412"]
[null,"ER Split Unit 01",null,null,null,null,null,null,null,null,null,"Row 413"]
[null,"ER Split Unit 01",null,null,null,null,null,null,null,null,null,"Row 414"]
[null,"ER Split Unit 01",null,null,null,null,null,null,null,null,null,"Row 415"]
[null,"ER Split Unit 01",null,null,null,null,null,null,null,null,null,"Row 416"]
[null,"ER Split Unit 01",null,null,null,null,null,null,null,null,null,"Row 417"]
[null,"ER Split Unit 01",null,null,null,null,null,null,null,null,null,"Row 418"]
[null,"ER Split Unit 01",null,null,null,null,null,null,null,null,null,"Row 419"]
[null,"ER Split Unit 01",null,null,null,null,null,null,null,null,null,"Row 420"]
[null,"ER Split Unit 01",null,null,null,null,null,null,null,null,null,"Row 421"]
[null,"ER Split Unit 01",null,null,null,null,null,null,null,null,null,"Row 422"]
[null,"ER Split Unit 01",null,null,null,null,null,null,null,null,null,"Row 423"]
[null,"ER Split Unit 01",null,null,null,null,null,null,null,null,null,"Row 424"]
[null,"ER Split Unit 01",null,null,null,null,null,null,null,null,null,"Row 425"]
[null,"ER Split Unit 01",null,null,null,null,null,null,null,null,null,"Row 426"]
[null,"ER Split Unit 01",null,null,null,null,null,null,null,null,null,"Row 427"]
[null,"ER Split Unit 01",null,null,null,null,null,null,null,null,null,"Row 428"]
[null,"ER Split Unit 01",null,null,null,null,null,null,null,null,null,"Row 429"]
[null,"ER Split Unit 01",null,null,null,null,null,null,null,null,null,"Row 430"]
[null,"ER Split Unit 01",null,null,null,null,null,null,null,null,null,"Row 431"]
[null,"ER Split Unit 01",null,null,null,null,null,null,null,null,null,"Row 432"]
[null,"ER Split Unit 01",null,null,null,null,null,null,null,null,null,"Row 433"]
[null,"ER Split Unit 01",null,null,null,null,null,null,null,null,null,"Row 434"]
[null,"ER Split Unit 01",null,null,null,null,null,null,null,null,null,"Row 435"]
[null,"ER Split Unit 01",null,null,null,null,null,null,null,null,null,"Row 436"]
[null,"ER Split Unit 01",null,null,null,null,null,null,null,null,null,"Row 437"]
[null,"ER Split Unit 01",null,null,null,null,null,null,null,null,null,"Row 438"]
[null,"ER Split Unit 01",null,null,null,null,null,null,null,null,null,"Row 439"]
[null,"ER Split Unit 01",null,null,null,null,null,null,null,null,null,"Row 440"]
[null,"ER Split Unit 01",null,null,null,null,null,null,null,null,null,"Row 441"]
[null,"ER Split Unit 01",null,null,null,null,null,null,null,null,null,"Row 442"]
[null,"ER Split Unit 01",null,null,null,null,null,null,null,null,null,"Row 443"]
[null,"ER Split Unit 01",null,null,null,null,null,null,null,null,null,"Row 444"]
[null,"ER Split Unit 01",null,null,null,null,null,null,null,null,null,"Row 445"]
[null,"ER Split Unit 01",null,null,null,null,null,null,null,null,null,"Row 446"]
[null,"ER Split Unit 01",null,null,null,null,null,null,null,null,null,"Row 447"]
[null,"ER Split Unit 01",null,null,null,null,null,null,null,null,null,"Row 448"]
[null,"ER Split Unit 01",null,null,null,null,null,null,null,null,null,"Row 449"]
[null,"ER Split Unit 01",null,null,null,null,null,null,null,null,null,"Row 450"]
[null,"ER Split Unit 01",null,null,null,null,null,null,null,null,null,"Row 451"]
[null,"ER Split Unit 01",null,null,null,null,null,null,null,null,null,"Row 452"]
[null,"ER Split Unit 01",null,null,null,null,null,null,null,null,null,"Row 453"]
[null,"ER Split Unit 01",null,null,null,null,null,null,null,null,null,"Row 454"]
[null,"ER Split Unit 01",null,null,null,null,null,null,null,null,null,"Row 455"]
[null,"ER Split Unit 01",null,null,null,null,null,null,null,null,null,"Row 456"]
[null,"ER Split Unit 01",null,null,null,null,null,null,null,null,null,"Row 457"]
[null,"ER Split Unit 01",null,null,null,null,null,null,null,null,null,"Row 458"]
[null,"ER Split Unit 01",null,null,null,null,null,null,null,null,null,"Row 459"]
[null,"ER Split Unit 01",null,null,null,null,null,null,null,null,null,"Row 460"]
[null,"ER Split Unit 01",null,null,null,null,null,null,null,null,null,"Row 461"]
[null,"ER Split Unit 01",null,null,null,null,null,null,null,null,null,"Row 462"]
[null,"ER Split Unit 01",null,null,null,null,null,null,null,null,null,"Row 463"]
[null,"ER Split Unit 01",null,null,null,null,null,null,null,null,null,"Row 464"]
[null,"ER Split Unit 01",null,null,null,null,null,null,null,null,null,"Row 465"]
[null,"ER Split Unit 01",null,null,null,null,null,null,null,null,null,"Row 466"]
[null,"ER Split Unit 01",null,null,null,null,null,null,null,null,null,"Row 467"]
[null,"ER Split Unit 01",null,null,null,null,null,null,null,null,null,"Row 468"]
[null,"ER Split Unit 01",null,null,null,null,null,null,null,null,null,"Row 469"]
[null,"ER Split Unit 01",null,null,null,null,null,null,null,null,null,"Row 470"]
[null,"ER Split Unit 01",null,null,null,null,null,null,null,null,null,"Row 471"]
[null,"ER Split Unit 01",null,null,null,null,null,null,null,null,null,"Row 472"]
[null,"ER Split Unit 01",null,null,null,null,null,null,null,null,null,"Row 473"]
[null,"ER Split Unit 01",null,null,null,null,null,null,null,null,null,"Row 474"]
[null,"ER Split Unit 01",null,null,null,null,null,null,null,null,null,"Row 475"]
[null,"ER Split Unit 01",null,null,null,null,null,null,null,null,null,"Row 476"]
[null,"ER Split Unit 01",null,null,null,null,null,null,null,null,null,"Row 477"]
[null,"ER Split Unit 01",null,null,null,null,null,null,null,null,null,"Row 478"]
[null,"ER Split Unit 01",null,null,null,null,null,null,null,null,null,"Row 479"]
[null,"ER Split Unit 01",null,null,null,null,null,null,null,null,null,"Row 480"]
[null,"ER Split Unit 01",null,null,null,null,null,null,null,null,null,"Row 481"]
[null,"ER Split Unit 01",null,null,null,null,null,null,null,null,null,"Row 482"]
[null,"ER Split Unit 01",null,null,null,null,null,null,null,null,null,"Row 483"]
[null,"ER Split Unit 01",null,null,null,null,null,null,null,null,null,"Row 484"]
[null,"ER Split Unit 01",null,null,null,null,null,null,null,null,null,"Row 485"]
[null,"ER Split Unit 01",null,null,null,null,null,null,null,null,null,"Row 486"]
[null,"ER Split Unit 01",null,null,null,null,null,null,null,null,null,"Row 487"]
[null,"ER Split Unit 01",null,null,null,null,null,null,null,null,null,"Row 488"]
[null,"ER Split Unit 01",null,null,null,null,null,null,null,null,null,"Row 489"]
[null,"ER Split Unit 01",null,null,null,null,null,null,null,null,null,"Row 490"]
[null,"ER Split Unit 01",null,null,null,null,null,null,null,null,null,"Row 491"]
[null,"ER Split Unit 01",null,null,null,null,null,null,null,null,null,"Row 492"]
[null,"ER Split Unit 01",null,null,null,null,null,null,null,null,null,"Row 493"]
[null,"ER Split Unit 01",null,null,null,null,null,null,null,null,null,"Row 494"]
[null,"ER Split Unit 01",null,null,null,null,null,null,null,null,null,"Row 495"]
[null,"ER Split Unit 01",null,null,null,null,null,null,null,null,null,"Row 496"]
[null,"ER Split Unit 01",null,null,null,null,null,null,null,null,null,"Row 497"]
[null,"ER Split Unit 01",null,null,null,null,null,null,null,null,null,"Row 498"]
[null,"ER Split Unit 01",null,null,null,null,null,null,null,null,null,"Row 499"]
[null,"ER Split Unit 01",null,null,null,null,null,null,null,null,null,"Row 500"]
[null,"ER Split Unit 01",null,null,null,null,null,null,null,null,null,"Row 501"]
[null,"ER Split Unit 01",null,null,null,null,null,null,null,null,null,"Row 502"]
[null,"ER Split Unit 01",null,null,null,null,null,null,null,null,null,"Row 503"]
[null,"ER Split Unit 01",null,null,null,null,null,null,null,null,null,"Row 504"]
[null,"ER Split Unit 01",null,null,null,null,null,null,null,null,null,"Row 505"]
[null,"ER Split Unit 01",null,null,null,null,null,null,null,null,null,"Row 506"]
[null,"ER Split Unit 01",null,null,null,null,null,null,null,null,null,"Row 507"]
[null,"ER Split Unit 01",null,null,null,null,null,null,null,null,null,"Row 508"]
[null,"ER Split Unit 01",null,null,null,null,null,null,null,null,null,"Row 509"]
[null,"ER Split Unit 01",null,null,null,null,null,null,null,null,null,"Row 510"]
[null,"ER Split Unit 01",null,null,null,null,null,null,null,null,null,"Row 511"]
[null,"ER Split Unit 01",null,null,null,null,null,null,null,null,null,"Row 512"]
[null,"ER Split Unit 01",null,null,null,null,null,null,null,null,null,"Row 513"]
[null,"ER Split Unit 01",null,null,null,null,null,null,null,null,null,"Row 514"]
[null,"ER Split Unit 01",null,null,null,null,null,null,null,null,null,"Row 515"]
[null,"ER Split Unit 01",null,null,null,null,null,null,null,null,null,"Row 516"]
[null,"ER Split Unit 01",null,null,null,null,null,null,null,null,null,"Row 517"]
[null,"ER Split Unit 01",null,null,null,null,null,null,null,null,null,"Row 518"]
[null,"ER Split Unit 01",null,null,null,null,null,null,null,null,null,"Row 519"]
[null,"ER Split Unit 01",null,null,null,null,null,null,null,null,null,"Row 520"]
[null,"ER Split Unit 01",null,null,null,null,null,null,null,null,null,"Row 521"]
[null,"ER Split Unit 01",null,null,null,null,null,null,null,null,null,"Row 522"]
[null,"ER Split Unit 01",null,null,null,null,null,null,null,null,null,"Row 523"]
[null,"ER Split Unit 01",null,null,null,null,null,null,null,null,null,"Row 524"]
[null,"ER Split Unit 01",null,null,null,null,null,null,null,null,null,"Row 525"]
[null,"ER Split Unit 01",null,null,null,null,null,null,null,null,null,"Row 526"]
[null,"ER Split Unit 01",null,null,null,null,null,null,null,null,null,"Row 527"]
[null,"ER Split Unit 01",null,null,null,null,null,null,null,null,null,"Row 528"]
[null,"ER Split Unit 01",null,null,null,null,null,null,null,null,null,"Row 529"]
[null,"ER Split Unit 01",null,null,null,null,null,null,null,null,null,"Row 530"]
[null,"ER Split Unit 01",null,null,null,null,null,null,null,null,null,"Row 531"]
[null,"ER Split Unit 01",null,null,null,null,null,null,null,null,null,"Row 532"]
[null,"ER Split Unit 01",null,null,null,null,null,null,null,null,null,"Row 533"]
[null,"ER Split Unit 01",null,null,null,null,null,null,null,null,null,"Row 534"]
[null,"ER Split Unit 01",null,null,null,null,null,null,null,null,null,"Row 535"]
[null,"ER Split Unit 01",null,null,null,null,null,null,null,null,null,"Row 536"]
[null,"ER Split Unit 01",null,null,null,null,null,null,null,null,null,"Row 537"]
[null,"ER Split Unit 01",null,null,null,null,null,null,null,null,null,"Row 538"]
[null,"ER Split Unit 01",null,null,null,null,null,null,null,null,null,"Row 539"]
[null,"ER Split Unit 01",null,null,null,null,null,null,null,null,null,"Row 540"]
[null,"ER Split Unit 01",null,null,null,null,null,null,null,null,null,"Row 541"]
[null,"ER Split Unit 01",null,null,null,null,null,null,null,null,null,"Row 542"]
[null,"ER Split Unit 01",null,null,null,null,null,null,null,null,null,"Row 543"]
[null,"ER Split Unit 01",null,null,null,null,null,null,null,null,null,"Row 544"]
[null,"ER Split Unit 01",null,null,null,null,null,null,null,null,null,"Row 545"]
[null,"ER Split Unit 01",null,null,null,null,null,null,null,null,null,"Row 546"]
[null,"ER Split Unit 01",null,null,null,null,null,null,null,null,null,"Row 547"]
[null,"ER Split Unit 01",null,null,null,null,null,null,null,null,null,"Row 548"]
[null,"ER Split Unit 01",null,null,null,null,null,null,null,null,null,"Row 549"]
[null,"ER Split Unit 01",null,null,null,null,null,null,null,null,null,"Row 550"]
[null,"ER Split Unit 01",null,null,null,null,null,null,null,null,null,"Row 551"]
[null,"ER Split Unit 01",null,null,null,null,null,null,null,null,null,"Row 552"]
[null,"ER Split Unit 01",null,null,null,null,null,null,null,null,null,"Row 553"]
[null,"ER Split Unit 01",null,null,null,null,null,null,null,null,null,"Row 554"]
[null,"ER Split Unit 01",null,null,null,null,null,null,null,null,null,"Row 555"]
[null,"ER Split Unit 01",null,null,null,null,null,null,null,null,null,"Row 556"]
[null,"ER Split Unit 01",null,null,null,null,null,null,null,null,null,"Row 557"]
[null,"ER Split Unit 01",null,null,null,null,null,null,null,null,null,"Row 558"]
[null,"ER Split Unit 01",null,null,null,null,null,null,null,null,null,"Row 559"]
[null,"ER Split Unit 01",null,null,null,null,null,null,null,null,null,"Row 560"]
[null,"ER Split Unit 01",null,null,null,null,null,null,null,null,null,"Row 561"]
[null,"ER Split Unit 01",null,null,null,null,null,null,null,null,null,"Row 562"]
[null,"ER Split Unit 01",null,null,null,null,null,null,null,null,null,"Row 563"]
[null,"ER Split Unit 01",null,null,null,null,null,null,null,null,null,"Row 564"]
[null,"ER Split Unit 01",null,null,null,null,null,null,null,null,null,"Row 565"]
[null,"ER Split Unit 01",null,null,null,null,null,null,null,null,null,"Row 566"]
[null,"ER Split Unit 01",null,null,null,null,null,null,null,null,null,"Row 567"]
[null,"ER Split Unit 01",null,null,null,null,null,null,null,null,null,"Row 568"]
[null,"ER Split Unit 01",null,null,null,null,null,null,null,null,null,"Row 569"]
[null,"ER Split Unit 01",null,null,null,null,null,null,null,null,null,"Row 570"]
[null,"ER Split Unit 01",null,null,null,null,null,null,null,null,null,"Row 571"]
[null,"ER Split Unit 01",null,null,null,null,null,null,null,null,null,"Row 572"]
[null,"ER Split Unit 01",null,null,null,null,null,null,null,null,null,"Row 573"]
[null,"ER Split Unit 01",null,null,null,null,null,null,null,null,null,"Row 574"]
[null,"ER Split Unit 01",null,null,null,null,null,null,null,null,null,"Row 575"]
[null,"ER Split Unit 01",null,null,null,null,null,null,null,null,null,"Row 576"]
[null,"ER Split Unit 01",null,null,null,null,null,null,null,null,null,"Row 577"]
[null,"ER Split Unit 01",null,null,null,null,null,null,null,null,null,"Row 578"]
[null,"ER Split Unit 01",null,null,null,null,null,null,null,null,null,"Row 579"]
[null,"ER Split Unit 01",null,null,null,null,null,null,null,null,null,"Row 580"]
[null,"ER Split Unit 01",null,null,null,null,null,null,null,null,null,"Row 581"]
[null,"ER Split Unit 01",null,null,null,null,null,null,null,null,null,"Row 582"]
[null,"ER Split Unit 01",null,null,null,null,null,null,null,null,null,"Row 583"]
[null,"ER Split Unit 01",null,null,null,null,null,null,null,null,null,"Row 584"]
[null,"ER Split Unit 01",null,null,null,null,null,null,null,null,null,"Row 585"]
[null,"ER Split Unit 01",null,null,null,null,null,null,null,null,null,"Row 586"]
[null,"ER Split Unit 01",null,null,null,null,null,null,null,null,null,"Row 587"]
[null,"ER Split Unit 01",null,null,null,null,null,null,null,null,null,"Row 588"]
[null,"ER Split Unit 01",null,null,null,null,null,null,null,null,null,"Row 589"]
[null,"ER Split Unit 01",null,null,null,null,null,null,null,null,null,"Row 590"]
[null,"ER Split Unit 01",null,null,null,null,null,null,null,null,null,"Row 591"]
[null,"ER Split Unit 01",null,null,null,null,null,null,null,null,null,"Row 592"]
[null,"ER Split Unit 01",null,null,null,null,null,null,null,null,null,"Row 593"]
[null,"ER Split Unit 01",null,null,null,null,null,null,null,null,null,"Row 594"]
[null,"ER Split Unit 01",null,null,null,null,null,null,null,null,null,"Row 595"]
[null,"ER Split Unit 01",null,null,null,null,null,null,null,null,null,"Row 596"]
[null,"ER Split Unit 01",null,null,null,null,null,null,null,null,null,"Row 597"]
[null,"ER Split Unit 01",null,null,null,null,null,null,null,null,null,"Row 598"]
[null,"ER Split Unit 01",null,null,null,null,null,null,null,null,null,"Row 599"]
[null,"ER Split Unit 01",null,null,null,null,null,null,null,null,null,"Row 600"]
[null,"ER Split Unit 01",null,null,null,null,null,null,null,null,null,"Row 601"]
[null,"ER Split Unit 01",null,null,null,null,null,null,null,null,null,"Row 602"]
[null,"ER Split Unit 01",null,null,null,null,null,null,null,null,null,"Row 603"]
[null,"ER Split Unit 01",null,null,null,null,null,null,null,null,null,"Row 604"]
[null,"ER Split Unit 01",null,null,null,null,null,null,null,null,null,"Row 605"]
[null,"ER Split Unit 01",null,null,null,null,null,null,null,null,null,"Row 606"]
[null,"ER Split Unit 01",null,null,null,null,null,null,null,null,null,"Row 607"]
[null,"ER Split Unit 01",null,null,null,null,null,null,null,null,null,"Row 608"]
[null,"ER Split Unit 01",null,null,null,null,null,null,null,null,null,"Row 609"]
[null,"ER Split Unit 01",null,null,null,null,null,null,null,null,null,"Row 610"]
[null,"ER Split Unit 01",null,null,null,null,null,null,null,null,null,"Row 611"]
[null,"ER Split Unit 01",null,null,null,null,null,null,null,null,null,"Row 612"]
[null,"ER Split Unit 01",null,null,null,null,null,null,null,null,null,"Row 613"]
[null,"ER Split Unit 01",null,null,null,null,null,null,null,null,null,"Row 614"]
[null,"ER Split Unit 01",null,null,null,null,null,null,null,null,null,"Row 615"]
[null,"ER Split Unit 01",null,null,null,null,null,null,null,null,null,"Row 616"]
[null,"ER Split Unit 01",null,null,null,null,null,null,null,null,null,"Row 617"]
[null,"ER Split Unit 01",null,null,null,null,null,null,null,null,null,"Row 618"]
[null,"ER Split Unit 01",null,null,null,null,null,null,null,null,null,"Row 619"]
[null,"ER Split Unit 01",null,null,null,null,null,null,null,null,null,"Row 620"]
[null,"ER Split Unit 01",null,null,null,null,null,null,null,null,null,"Row 621"]
[null,"ER Split Unit 01",null,null,null,null,null,null,null,null,null,"Row 622"]
[null,"ER Split Unit 01",null,null,null,null,null,null,null,null,null,"Row 623"]
[null,"ER Split Unit 01",null,null,null,null,null,null,null,null,null,"Row 624"]
[null,"ER Split Unit 01",null,null,null,null,null,null,null,null,null,"Row 625"]
[null,"ER Split Unit 01",null,null,null,null,null,null,null,null,null,"Row 626"]
[null,"ER Split Unit 01",null,null,null,null,null,null,null,null,null,"Row 627"]
[null,"ER Split Unit 01",null,null,null,null,null,null,null,null,null,"Row 628"]
[null,"ER Split Unit 01",null,null,null,null,null,null,null,null,null,"Row 629"]
[null,"ER Split Unit 01",null,null,null,null,null,null,null,null,null,"Row 630"]
[null,"ER Split Unit 01",null,null,null,null,null,null,null,null,null,"Row 631"]
[null,"ER Split Unit 01",null,null,null,null,null,null,null,null,null,"Row 632"]
[null,"ER Split Unit 01",null,null,null,null,null,null,null,null,null,"Row 633"]
[null,"ER Split Unit 01",null,null,null,null,null,null,null,null,null,"Row 634"]
[null,"ER Split Unit 01",null,null,null,null,null,null,null,null,null,"Row 635"]
[null,"ER Split Unit 01",null,null,null,null,null,null,null,null,null,"Row 636"]
[null,"ER Split Unit 01",null,null,null,null,null,null,null,null,null,"Row 637"]
[null,"ER Split Unit 01",null,null,null,null,null,null,null,null,null,"Row 638"]
[null,"ER Split Unit 01",null,null,null,null,null,null,null,null,null,"Row 639"]
[null,"ER Split Unit 01",null,null,null,null,null,null,null,null,null,"Row 640"]
[null,"ER Split Unit 01",null,null,null,null,null,null,null,null,null,"Row 641"]
[null,"ER Split Unit 01",null,null,null,null,null,null,null,null,null,"Row 642"]
[null,"ER Split Unit 01",null,null,null,null,null,null,null,null,null,"Row 643"]
[null,"ER Split Unit 01",null,null,null,null,null,null,null,null,null,"Row 644"]
[null,"ER Split Unit 01",null,null,null,null,null,null,null,null,null,"Row 645"]
[null,"ER Split Unit 01",null,null,null,null,null,null,null,null,null,"Row 646"]
[null,"ER Split Unit 01",null,null,null,null,null,null,null,null,null,"Row 647"]
[null,"ER Split Unit 01",null,null,null,null,null,null,null,null,null,"Row 648"]
[null,"ER Split Unit 01",null,null,null,null,null,null,null,null,null,"Row 649"]
[null,"ER Split Unit 01",null,null,null,null,null,null,null,null,null,"Row 650"]
[null,"ER Split Unit 01",null,null,null,null,null,null,null,null,null,"Row 651"]
[null,"ER Split Unit 01",null,null,null,null,null,null,null,null,null,"Row 652"]
[null,"ER Split Unit 01",null,null,null,null,null,null,null,null,null,"Row 653"]
[null,"ER Split Unit 01",null,null,null,null,null,null,null,null,null,"Row 654"]
[null,"ER Split Unit 01",null,null,null,null,null,null,null,null,null,"Row 655"]
[null,"ER Split Unit 01",null,null,null,null,null,null,null,null,null,"Row 656"]
[null,"ER Split Unit 01",null,null,null,null,null,null,null,null,null,"Row 657"]
[null,"ER Split Unit 01",null,null,null,null,null,null,null,null,null,"Row 658"]
[null,"ER Split Unit 01",null,null,null,null,null,null,null,null,null,"Row 659"]
[null,"ER Split Unit 01",null,null,null,null,null,null,null,null,null,"Row 660"]
[null,"ER Split Unit 01",null,null,null,null,null,null,null,null,null,"Row 661"]
[null,"ER Split Unit 01",null,null,null,null,null,null,null,null,null,"Row 662"]
[null,"ER Split Unit 01",null,null,null,null,null,null,null,null,null,"Row 663"]
[null,"ER Split Unit 01",null,null,null,null,null,null,null,null,null,"Row 664"]
[null,"ER Split Unit 01",null,null,null,null,null,null,null,null,null,"Row 665"]
[null,"ER Split Unit 01",null,null,null,null,null,null,null,null,null,"Row 666"]
[null,"ER Split Unit 01",null,null,null,null,null,null,null,null,null,"Row 667"]
[null,"ER Split Unit 01",null,null,null,null,null,null,null,null,null,"Row 668"]
[null,"ER Split Unit 01",null,null,null,null,null,null,null,null,null,"Row 669"]
[null,"ER Split Unit 01",null,null,null,null,null,null,null,null,null,"Row 670"]
[null,"ER Split Unit 01",null,null,null,null,null,null,null,null,null,"Row 671"]
[null,"ER Split Unit 01",null,null,null,null,null,null,null,null,null,"Row 672"]
[null,"ER Split Unit 01",null,null,null,null,null,null,null,null,null,"Row 673"]
[null,"ER Split Unit 01",null,null,null,null,null,null,null,null,null,"Row 674"]
[null,"ER Split Unit 01",null,null,null,null,null,null,null,null,null,"Row 675"]
[null,"ER Split Unit 01",null,null,null,null,null,null,null,null,null,"Row 676"]
[null,"ER Split Unit 01",null,null,null,null,null,null,null,null,null,"Row 677"]
[null,"ER Split Unit 01",null,null,null,null,null,null,null,null,null,"Row 678"]
[null,"ER Split Unit 01",null,null,null,null,null,null,null,null,null,"Row 679"]
[null,"ER Split Unit 01",null,null,null,null,null,null,null,null,null,"Row 680"]
[null,"ER Split Unit 01",null,null,null,null,null,null,null,null,null,"Row 681"]
[null,"ER Split Unit 01",null,null,null,null,null,null,null,null,null,"Row 682"]
[null,"ER Split Unit 01",null,null,null,null,null,null,null,null,null,"Row 683"]
[null,"ER Split Unit 01",null,null,null,null,null,null,null,null,null,"Row 684"]
[null,"ER Split Unit 01",null,null,null,null,null,null,null,null,null,"Row 685"]
[null,"ER Split Unit 01",null,null,null,null,null,null,null,null,null,"Row 686"]
[null,"ER Split Unit 01",null,null,null,null,null,null,null,null,null,"Row 687"]
[null,"ER Split Unit 01",null,null,null,null,null,null,null,null,null,"Row 688"]
[null,"ER Split Unit 01",null,null,null,null,null,null,null,null,null,"Row 689"]
[null,"ER Split Unit 01",null,null,null,null,null,null,null,null,null,"Row 690"]
[null,"ER Split Unit 01",null,null,null,null,null,null,null,null,null,"Row 691"]
[null,"ER Split Unit 01",null,null,null,null,null,null,null,null,null,"Row 692"]
[null,"ER Split Unit 01",null,null,null,null,null,null,null,null,null,"Row 693"]
[null,"ER Split Unit 01",null,null,null,null,null,null,null,null,null,"Row 694"]
[null,"ER Split Unit 01",null,null,null,null,null,null,null,null,null,"Row 695"]
[null,"ER Split Unit 01",null,null,null,null,null,null,null,null,null,"Row 696"]
[null,"ER Split Unit 01",null,null,null,null,null,null,null,null,null,"Row 697"]
[null,"ER Split Unit 01",null,null,null,null,null,null,null,null,null,"Row 698"]
[null,"ER Split Unit 01",null,null,null,null,null,null,null,null,null,"Row 699"]
[null,"ER Split Unit 01",null,null,null,null,null,null,null,null,null,"Row 700"]
[null,"ER Split Unit 01",null,null,null,null,null,null,null,null,null,"Row 701"]
[null,"ER Split Unit 01",null,null,null,null,null,null,null,null,null,"Row 702"]
[null,"ER Split Unit 01",null,null,null,null,null,null,null,null,null,"Row 703"]
[null,"ER Split Unit 01",null,null,null,null,null,null,null,null,null,"Row 704"]
[null,"ER Split Unit 01",null,null,null,null,null,null,null,null,null,"Row 705"]
[null,"ER Split Unit 01",null,null,null,null,null,null,null,null,null,"Row 706"]
[null,"ER Split Unit 01",null,null,null,null,null,null,null,null,null,"Row 707"]
[null,"ER Split Unit 01",null,null,null,null,null,null,null,null,null,"Row 708"]
[null,"ER Split Unit 01",null,null,null,null,null,null,null,null,null,"Row 709"]
[null,"ER Split Unit 01",null,null,null,null,null,null,null,null,null,"Row 710"]
[null,"ER Split Unit 01",null,null,null,null,null,null,null,null,null,"Row 711"]
[null,"ER Split Unit 01",null,null,null,null,null,null,null,null,null,"Row 712"]
[null,"ER Split Unit 01",null,null,null,null,null,null,null,null,null,"Row 713"]
[null,"ER Split Unit 01",null,null,null,null,null,null,null,null,null,"Row 714"]
[null,"ER Split Unit 01",null,null,null,null,null,null,null,null,null,"Row 715"]
[null,"ER Split Unit 01",null,null,null,null,null,null,null,null,null,"Row 716"]
[null,"ER Split Unit 01",null,null,null,null,null,null,null,null,null,"Row 717"]
[null,"ER Split Unit 01",null,null,null,null,null,null,null,null,null,"Row 718"]
[null,"ER Split Unit 01",null,null,null,null,null,null,null,null,null,"Row 719"]
[null,"ER Split Unit 01",null,null,null,null,null,null,null,null,null,"Row 720"]
[null,"ER Split Unit 01",null,null,null,null,null,null,null,null,null,"Row 721"]
[null,"ER Split Unit 01",null,null,null,null,null,null,null,null,null,"Row 722"]
[null,"ER Split Unit 01",null,null,null,null,null,null,null,null,null,"Row 723"]
[null,"ER Split Unit 01",null,null,null,null,null,null,null,null,null,"Row 724"]
[null,"ER Split Unit 01",null,null,null,null,null,null,null,null,null,"Row 725"]
[null,"ER Split Unit 01",null,null,null,null,null,null,null,null,null,"Row 726"]
[null,"ER Split Unit 01",null,null,null,null,null,null,null,null,null,"Row 727"]
[null,"ER Split Unit 01",null,null,null,null,null,null,null,null,null,"Row 728"]
[null,"ER Split Unit 01",null,null,null,null,null,null,null,null,null,"Row 729"]
[null,"ER Split Unit 01",null,null,null,null,null,null,null,null,null,"Row 730"]
[null,"ER Split Unit 01",null,null,null,null,null,null,null,null,null,"Row 731"]
[null,"ER Split Unit 01",null,null,null,null,null,null,null,null,null,"Row 732"]
[null,"ER Split Unit 01",null,null,null,null,null,null,null,null,null,"Row 733"]
[null,"ER Split Unit 01",null,null,null,null,null,null,null,null,null,"Row 734"]
[null,"ER Split Unit 01",null,null,null,null,null,null,null,null,null,"Row 735"]
[null,"ER Split Unit 01",null,null,null,null,null,null,null,null,null,"Row 736"]
[null,"ER Split Unit 01",null,null,null,null,null,null,null,null,null,"Row 737"]
[null,"ER Split Unit 01",null,null,null,null,null,null,null,null,null,"Row 738"]
[null,"ER Split Unit 01",null,null,null,null,null,null,null,null,null,"Row 739"]
[null,"ER Split Unit 01",null,null,null,null,null,null,null,null,null,"Row 740"]
[null,"ER Split Unit 01",null,null,null,null,null,null,null,null,null,"Row 741"]
[null,"ER Split Unit 01",null,null,null,null,null,null,null,null,null,"Row 742"]
[null,"ER Split Unit 01",null,null,null,null,null,null,null,null,null,"Row 743"]
[null,"ER Split Unit 01",null,null,null,null,null,null,null,null,null,"Row 744"]
[null,"ER Split Unit 01",null,null,null,null,null,null,null,null,null,"Row 745"]
[null,"ER Split Unit 01",null,null,null,null,null,null,null,null,null,"Row 746"]
[null,"ER Split Unit 01",null,null,null,null,null,null,null,null,null,"Row 747"]
[null,"ER Split Unit 01",null,null,null,null,null,null,null,null,null,"Row 748"]
[null,"ER Split Unit 01",null,null,null,null,null,null,null,null,null,"Row 749"]
[null,"ER Split Unit 01",null,null,null,null,null,null,null,null,null,"Row 750"]
[null,"ER Split Unit 01",null,null,null,null,null,null,null,null,null,"Row 751"]
[null,"ER Split Unit 01",null,null,null,null,null,null,null,null,null,"Row 752"]
[null,"ER Split Unit 01",null,null,null,null,null,null,null,null,null,"Row 753"]
[null,"ER Split Unit 01",null,null,null,null,null,null,null,null,null,"Row 754"]
[null,"ER Split Unit 01",null,null,null,null,null,null,null,null,null,"Row 755"]
[null,"ER Split Unit 01",null,null,null,null,null,null,null,null,null,"Row 756"]
[null,"ER Split Unit 01",null,null,null,null,null,null,null,null,null,"Row 757"]
[null,"ER Split Unit 01",null,null,null,null,null,null,null,null,null,"Row 758"]
[null,"ER Split Unit 01",null,null,null,null,null,null,null,null,null,"Row 759"]
[null,"ER Split Unit 01",null,null,null,null,null,null,null,null,null,"Row 760"]
[null,"ER Split Unit 01",null,null,null,null,null,null,null,null,null,"Row 761"]
[null,"ER Split Unit 01",null,null,null,null,null,null,null,null,null,"Row 762"]
[null,"ER Split Unit 01",null,null,null,null,null,null,null,null,null,"Row 763"]
[null,"ER Split Unit 01",null,null,null,null,null,null,null,null,null,"Row 764"]
[null,"ER Split Unit 01",null,null,null,null,null,null,null,null,null,"Row 765"]
[null,"ER Split Unit 01",null,null,null,null,null,null,null,null,null,"Row 766"]
[null,"ER Split Unit 01",null,null,null,null,null,null,null,null,null,"Row 767"]
[null,"ER Split Unit 01",null,null,null,null,null,null,null,null,null,"Row 768"]
[null,"ER Split Unit 01",null,null,null,null,null,null,null,null,null,"Row 769"]
[null,"ER Split Unit 01",null,null,null,null,null,null,null,null,null,"Row 770"]
[null,"ER Split Unit 01",null,null,null,null,null,null,null,null,null,"Row 771"]
[null,"ER Split Unit 01",null,null,null,null,null,null,null,null,null,"Row 772"]
[null,"ER Split Unit 01",null,null,null,null,null,null,null,null,null,"Row 773"]
[null,"ER Split Unit 01",null,null,null,null,null,null,null,null,null,"Row 774"]
[null,"ER Split Unit 01",null,null,null,null,null,null,null,null,null,"Row 775"]
[null,"ER Split Unit 01",null,null,null,null,null,null,null,null,null,"Row 776"]
[null,"ER Split Unit 01",null,null,null,null,null,null,null,null,null,"Row 777"]
[null,"ER Split Unit 01",null,null,null,null,null,null,null,null,null,"Row 778"]
[null,"ER Split Unit 01",null,null,null,null,null,null,null,null,null,"Row 779"]
[null,"ER Split Unit 01",null,null,null,null,null,null,null,null,null,"Row 780"]
[null,"ER Split Unit 01",null,null,null,null,null,null,null,null,null,"Row 781"]
[null,"ER Split Unit 01",null,null,null,null,null,null,null,null,null,"Row 782"]
[null,"ER Split Unit 01",null,null,null,null,null,null,null,null,null,"Row 783"]
[null,"ER Split Unit 01",null,null,null,null,null,null,null,null,null,"Row 784"]
[null,"ER Split Unit 01",null,null,null,null,null,null,null,null,null,"Row 785"]
[null,"ER Split Unit 01",null,null,null,null,null,null,null,null,null,"Row 786"]
[null,"ER Split Unit 01",null,null,null,null,null,null,null,null,null,"Row 787"]
[null,"ER Split Unit 01",null,null,null,null,null,null,null,null,null,"Row 788"]
[null,"ER Split Unit 01",null,null,null,null,null,null,null,null,null,"Row 789"]
[null,"ER Split Unit 01",null,null,null,null,null,null,null,null,null,"Row 790"]
[null,"ER Split Unit 01",null,null,null,null,null,null,null,null,null,"Row 791"]
[null,"ER Split Unit 01",null,null,null,null,null,null,null,null,null,"Row 792"]
[null,"ER Split Unit 01",null,null,null,null,null,null,null,null,null,"Row 793"]
[null,"ER Split Unit 01",null,null,null,null,null,null,null,null,null,"Row 794"]
[null,"ER Split Unit 01",null,null,null,null,null,null,null,null,null,"Row 795"]
[null,"ER Split Unit 01",null,null,null,null,null,null,null,null,null,"Row 796"]
[null,"ER Split Unit 01",null,null,null,null,null,null,null,null,null,"Row 797"]
[null,"ER Split Unit 01",null,null,null,null,null,null,null,null,null,"Row 798"]
[null,"ER Split Unit 01",null,null,null,null,null,null,null,null,null,"Row 799"]
[null,"ER Split Unit 01",null,null,null,null,null,null,null,null,null,"Row 800"]
[null,"ER Split Unit 01",null,null,null,null,null,null,null,null,null,"Row 801"]
[null,"ER Split Unit 01",null,null,null,null,null,null,null,null,null,"Row 802"]
[null,"ER Split Unit 01",null,null,null,null,null,null,null,null,null,"Row 803"]
[null,"ER Split Unit 01",null,null,null,null,null,null,null,null,null,"Row 804"]
[null,"ER Split Unit 01",null,null,null,null,null,null,null,null,null,"Row 805"]
[null,"ER Split Unit 01",null,null,null,null,null,null,null,null,null,"Row 806"]
[null,"ER Split Unit 01",null,null,null,null,null,null,null,null,null,"Row 807"]
[null,"ER Split Unit 01",null,null,null,null,null,null,null,null,null,"Row 808"]
[null,"ER Split Unit 01",null,null,null,null,null,null,null,null,null,"Row 809"]
[null,"ER Split Unit 01",null,null,null,null,null,null,null,null,null,"Row 810"]
[null,"ER Split Unit 01",null,null,null,null,null,null,null,null,null,"Row 811"]
[null,"ER Split Unit 01",null,null,null,null,null,null,null,null,null,"Row 812"]
[null,"ER Split Unit 01",null,null,null,null,null,null,null,null,null,"Row 813"]
[null,"ER Split Unit 01",null,null,null,null,null,null,null,null,null,"Row 814"]
[null,"ER Split Unit 01",null,null,null,null,null,null,null,null,null,"Row 815"]
[null,"ER Split Unit 01",null,null,null,null,null,null,null,null,null,"Row 816"]
[null,"ER Split Unit 01",null,null,null,null,null,null,null,null,null,"Row 817"]
[null,"ER Split Unit 01",null,null,null,null,null,null,null,null,null,"Row 818"]
[null,"ER Split Unit 01",null,null,null,null,null,null,null,null,null,"Row 819"]
[null,"ER Split Unit 01",null,null,null,null,null,null,null,null,null,"Row 820"]
[null,"ER Split Unit 01",null,null,null,null,null,null,null,null,null,"Row 821"]
[null,"ER Split Unit 01",null,null,null,null,null,null,null,null,null,"Row 822"]
[null,"ER Split Unit 01",null,null,null,null,null,null,null,null,null,"Row 823"]
[null,"ER Split Unit 01",null,null,null,null,null,null,null,null,null,"Row 824"]
[null,"ER Split Unit 01",null,null,null,null,null,null,null,null,null,"Row 825"]
[null,"ER Split Unit 01",null,null,null,null,null,null,null,null,null,"Row 826"]
[null,"ER Split Unit 01",null,null,null,null,null,null,null,null,null,"Row 827"]
[null,"ER Split Unit 01",null,null,null,null,null,null,null,null,null,"Row 828"]
[null,"ER Split Unit 01",null,null,null,null,null,null,null,null,null,"Row 829"]
[null,"ER Split Unit 01",null,null,null,null,null,null,null,null,null,"Row 830"]
[null,"ER Split Unit 01",null,null,null,null,null,null,null,null,null,"Row 831"]
[null,"ER Split Unit 01",null,null,null,null,null,null,null,null,null,"Row 832"]
[null,"ER Split Unit 01",null,null,null,null,null,null,null,null,null,"Row 833"]
[null,"ER Split Unit 01",null,null,null,null,null,null,null,null,null,"Row 834"]
[null,"ER Split Unit 01",null,null,null,null,null,null,null,null,null,"Row 835"]
[null,"ER Split Unit 01",null,null,null,null,null,null,null,null,null,"Row 836"]
[null,"ER Split Unit 01",null,null,null,null,null,null,null,null,null,"Row 837"]
[null,"ER Split Unit 01",null,null,null,null,null,null,null,null,null,"Row 838"]
[null,"ER Split Unit 01",null,null,null,null,null,null,null,null,null,"Row 839"]
[null,"ER Split Unit 01",null,null,null,null,null,null,null,null,null,"Row 840"]
[null,"ER Split Unit 01",null,null,null,null,null,null,null,null,null,"Row 841"]
[null,"ER Split Unit 01",null,null,null,null,null,null,null,null,null,"Row 842"]
[null,"ER Split Unit 01",null,null,null,null,null,null,null,null,null,"Row 843"]
[null,"ER Split Unit 01",null,null,null,null,null,null,null,null,null,"Row 844"]
[null,"ER Split Unit 01",null,null,null,null,null,null,null,null,null,"Row 845"]
[null,"ER Split Unit 01",null,null,null,null,null,null,null,null,null,"Row 846"]
[null,"ER Split Unit 01",null,null,null,null,null,null,null,null,null,"Row 847"]
[null,"ER Split Unit 01",null,null,null,null,null,null,null,null,null,"Row 848"]
[null,"ER Split Unit 01",null,null,null,null,null,null,null,null,null,"Row 849"]
[null,"ER Split Unit 01",null,null,null,null,null,null,null,null,null,"Row 850"]
[null,"ER Split Unit 01",null,null,null,null,null,null,null,null,null,"Row 851"]
[null,"ER Split Unit 01",null,null,null,null,null,null,null,null,null,"Row 852"]
[null,"ER Split Unit 01",null,null,null,null,null,null,null,null,null,"Row 853"]
[null,"ER Split Unit 01",null,null,null,null,null,null,null,null,null,"Row 854"]
[null,"ER Split Unit 01",null,null,null,null,null,null,null,null,null,"Row 855"]
[null,"ER Split Unit 01",null,null,null,null,null,null,null,null,null,"Row 856"]
[null,"ER Split Unit 01",null,null,null,null,null,null,null,null,null,"Row 857"]
[null,"ER Split Unit 01",null,null,null,null,null,null,null,null,null,"Row 858"]
[null,"ER Split Unit 01",null,null,null,null,null,null,null,null,null,"Row 859"]
[null,"ER Split Unit 01",null,null,null,null,null,null,null,null,null,"Row 860"]
[null,"ER Split Unit 01",null,null,null,null,null,null,null,null,null,"Row 861"]
[null,"ER Split Unit 01",null,null,null,null,null,null,null,null,null,"Row 862"]
[null,"ER Split Unit 01",null,null,null,null,null,null,null,null,null,"Row 863"]
[null,"ER Split Unit 01",null,null,null,null,null,null,null,null,null,"Row 864"]
[null,"ER Split Unit 01",null,null,null,null,null,null,null,null,null,"Row 865"]
[null,"ER Split Unit 01",null,null,null,null,null,null,null,null,null,"Row 866"]
[null,"ER Split Unit 01",null,null,null,null,null,null,null,null,null,"Row 867"]
[null,"ER Split Unit 01",null,null,null,null,null,null,null,null,null,"Row 868"]
[null,"ER Split Unit 01",null,null,null,null,null,null,null,null,null,"Row 869"]
[null,"ER Split Unit 01",null,null,null,null,null,null,null,null,null,"Row 870"]
[null,"ER Split Unit 01",null,null,null,null,null,null,null,null,null,"Row 871"]
[null,"ER Split Unit 01",null,null,null,null,null,null,null,null,null,"Row 872"]
[null,"ER Split Unit 01",null,null,null,null,null,null,null,null,null,"Row 873"]
[null,"ER Split Unit 01",null,null,null,null,null,null,null,null,null,"Row 874"]
[null,"ER Split Unit 01",null,null,null,null,null,null,null,null,null,"Row 875"]
[null,"ER Split Unit 01",null,null,null,null,null,null,null,null,null,"Row 876"]
[null,"ER Split Unit 01",null,null,null,null,null,null,null,null,null,"Row 877"]
[null,"ER Split Unit 01",null,null,null,null,null,null,null,null,null,"Row 878"]
[null,"ER Split Unit 01",null,null,null,null,null,null,null,null,null,"Row 879"]
[null,"ER Split Unit 01",null,null,null,null,null,null,null,null,null,"Row 880"]
[null,"ER Split Unit 01",null,null,null,null,null,null,null,null,null,"Row 881"]
[null,"ER Split Unit 01",null,null,null,null,null,null,null,null,null,"Row 882"]
[null,"ER Split Unit 01",null,null,null,null,null,null,null,null,null,"Row 883"]
[null,"ER Split Unit 01",null,null,null,null,null,null,null,null,null,"Row 884"]
[null,"ER Split Unit 01",null,null,null,null,null,null,null,null,null,"Row 885"]
[null,"ER Split Unit 01",null,null,null,null,null,null,null,null,null,"Row 886"]
[null,"ER Split Unit 01",null,null,null,null,null,null,null,null,null,"Row 887"]
[null,"ER Split Unit 01",null,null,null,null,null,null,null,null,null,"Row 888"]
[null,"ER Split Unit 01",null,null,null,null,null,null,null,null,null,"Row 889"]
[null,"ER Split Unit 01",null,null,null,null,null,null,null,null,null,"Row 890"]
[null,"ER Split Unit 01",null,null,null,null,null,null,null,null,null,"Row 891"]
[null,"ER Split Unit 01",null,null,null,null,null,null,null,null,null,"Row 892"]
[null,"ER Split Unit 01",null,null,null,null,null,null,null,null,null,"Row 893"]
[null,"ER Split Unit 01",null,null,null,null,null,null,null,null,null,"Row 894"]
[null,"ER Split Unit 01",null,null,null,null,null,null,null,null,null,"Row 895"]
[null,"ER Split Unit 01",null,null,null,null,null,null,null,null,null,"Row 896"]
[null,"ER Split Unit 01",null,null,null,null,null,null,null,null,null,"Row 897"]
[null,"ER Split Unit 01",null,null,null,null,null,null,null,null,null,"Row 898"]
[null,"ER Split Unit 01",null,null,null,null,null,null,null,null,null,"Row 899"]
[null,"ER Split Unit 01",null,null,null,null,null,null,null,null,null,"Row 900"]
[null,"ER Split Unit 01",null,null,null,null,null,null,null,null,null,"Row 901"]
[null,"ER Split Unit 01",null,null,null,null,null,null,null,null,null,"Row 902"]
[null,"ER Split Unit 01",null,null,null,null,null,null,null,null,null,"Row 903"]
[null,"ER Split Unit 01",null,null,null,null,null,null,null,null,null,"Row 904"]
[null,"ER Split Unit 01",null,null,null,null,null,null,null,null,null,"Row 905"]
[null,"ER Split Unit 01",null,null,null,null,null,null,null,null,null,"Row 906"]
[null,"ER Split Unit 01",null,null,null,null,null,null,null,null,null,"Row 907"]
[null,"ER Split Unit 01",null,null,null,null,null,null,null,null,null,"Row 908"]
[null,"ER Split Unit 01",null,null,null,null,null,null,null,null,null,"Row 909"]
[null,"ER Split Unit 01",null,null,null,null,null,null,null,null,null,"Row 910"]
[null,"ER Split Unit 01",null,null,null,null,null,null,null,null,null,"Row 911"]
[null,"ER Split Unit 01",null,null,null,null,null,null,null,null,null,"Row 912"]
[null,"ER Split Unit 01",null,null,null,null,null,null,null,null,null,"Row 913"]
[null,"ER Split Unit 01",null,null,null,null,null,null,null,null,null,"Row 914"]
[null,"ER Split Unit 01",null,null,null,null,null,null,null,null,null,"Row 915"]
[null,"ER Split Unit 01",null,null,null,null,null,null,null,null,null,"Row 916"]
[null,"ER Split Unit 01",null,null,null,null,null,null,null,null,null,"Row 917"]
[null,"ER Split Unit 01",null,null,null,null,null,null,null,null,null,"Row 918"]
[null,"ER Split Unit 01",null,null,null,null,null,null,null,null,null,"Row 919"]
[null,"ER Split Unit 01",null,null,null,null,null,null,null,null,null,"Row 920"]
[null,"ER Split Unit 01",null,null,null,null,null,null,null,null,null,"Row 921"]
[null,"ER Split Unit 01",null,null,null,null,null,null,null,null,null,"Row 922"]
[null,"ER Split Unit 01",null,null,null,null,null,null,null,null,null,"Row 923"]
[null,"ER Split Unit 01",null,null,null,null,null,null,null,null,null,"Row 924"]
[null,"ER Split Unit 01",null,null,null,null,null,null,null,null,null,"Row 925"]
[null,"ER Split Unit 01",null,null,null,null,null,null,null,null,null,"Row 926"]
[null,"ER Split Unit 01",null,null,null,null,null,null,null,null,null,"Row 927"]
[null,"ER Split Unit 01",null,null,null,null,null,null,null,null,null,"Row 928"]
[null,"ER Split Unit 01",null,null,null,null,null,null,null,null,null,"Row 929"]
[null,"ER Split Unit 01",null,null,null,null,null,null,null,null,null,"Row 930"]
[null,"ER Split Unit 01",null,null,null,null,null,null,null,null,null,"Row 931"]
[null,"ER Split Unit 01",null,null,null,null,null,null,null,null,null,"Row 932"]
[null,"ER Split Unit 01",null,null,null,null,null,null,null,null,null,"Row 933"]
[null,"ER Split Unit 01",null,null,null,null,null,null,null,null,null,"Row 934"]
[null,"ER Split Unit 01",null,null,null,null,null,null,null,null,null,"Row 935"]
[null,"ER Split Unit 01",null,null,null,null,null,null,null,null,null,"Row 936"]
[null,"ER Split Unit 01",null,null,null,null,null,null,null,null,null,"Row 937"]
[null,"ER Split Unit 01",null,null,null,null,null,null,null,null,null,"Row 938"]
[null,"ER Split Unit 01",null,null,null,null,null,null,null,null,null,"Row 939"]
[null,"ER Split Unit 01",null,null,null,null,null,null,null,null,null,"Row 940"]
[null,"ER Split Unit 01",null,null,null,null,null,null,null,null,null,"Row 941"]
[null,"ER Split Unit 01",null,null,null,null,null,null,null,null,null,"Row 942"]
[null,"ER Split Unit 01",null,null,null,null,null,null,null,null,null,"Row 943"]
[null,"ER Split Unit 01",null,null,null,null,null,null,null,null,null,"Row 944"]
[null,"ER Split Unit 01",null,null,null,null,null,null,null,null,null,"Row 945"]
[null,"ER Split Unit 01",null,null,null,null,null,null,null,null,null,"Row 946"]
[null,"ER Split Unit 01",null,null,null,null,null,null,null,null,null,"Row 947"]
[null,"ER Split Unit 01",null,null,null,null,null,null,null,null,null,"Row 948"]
[null,"ER Split Unit 01",null,null,null,null,null,null,null,null,null,"Row 949"]
[null,"ER Split Unit 01",null,null,null,null,null,null,null,null,null,"Row 950"]
[null,"ER Split Unit 01",null,null,null,null,null,null,null,null,null,"Row 951"]
[null,"ER Split Unit 01",null,null,null,null,null,null,null,null,null,"Row 952"]
[null,"ER Split Unit 01",null,null,null,null,null,null,null,null,null,"Row 953"]
[null,"ER Split Unit 01",null,null,null,null,null,null,null,null,null,"Row 954"]
[null,"ER Split Unit 01",null,null,null,null,null,null,null,null,null,"Row 955"]
[null,"ER Split Unit 01",null,null,null,null,null,null,null,null,null,"Row 956"]
[null,"ER Split Unit 01",null,null,null,null,null,null,null,null,null,"Row 957"]
[null,"ER Split Unit 01",null,null,null,null,null,null,null,null,null,"Row 958"]
[null,"ER Split Unit 01",null,null,null,null,null,null,null,null,null,"Row 959"]
[null,"ER Split Unit 01",null,null,null,null,null,null,null,null,null,"Row 960"]
[null,"ER Split Unit 01",null,null,null,null,null,null,null,null,null,"Row 961"]
[null,"ER Split Unit 01",null,null,null,null,null,null,null,null,null,"Row 962"]
[null,"ER Split Unit 01",null,null,null,null,null,null,null,null,null,"Row 963"]
[null,"ER Split Unit 01",null,null,null,null,null,null,null,null,null,"Row 964"]
[null,"ER Split Unit 01",null,null,null,null,null,null,null,null,null,"Row 965"]
[null,"ER Split Unit 01",null,null,null,null,null,null,null,null,null,"Row 966"]
[null,"ER Split Unit 01",null,null,null,null,null,null,null,null,null,"Row 967"]
[null,"ER Split Unit 01",null,null,null,null,null,null,null,null,null,"Row 968"]
[null,"ER Split Unit 01",null,null,null,null,null,null,null,null,null,"Row 969"]
[null,"ER Split Unit 01",null,null,null,null,null,null,null,null,null,"Row 970"]
[null,"ER Split Unit 01",null,null,null,null,null,null,null,null,null,"Row 971"]
[null,"ER Split Unit 01",null,null,null,null,null,null,null,null,null,"Row 972"]
[null,"ER Split Unit 01",null,null,null,null,null,null,null,null,null,"Row 973"]
[null,"ER Split Unit 01",null,null,null,null,null,null,null,null,null,"Row 974"]
[null,"ER Split Unit 01",null,null,null,null,null,null,null,null,null,"Row 975"]
[null,"ER Split Unit 01",null,null,null,null,null,null,null,null,null,"Row 976"]
[null,"ER Split Unit 01",null,null,null,null,null,null,null,null,null,"Row 977"]
[null,"ER Split Unit 01",null,null,null,null,null,null,null,null,null,"Row 978"]
[null,"ER Split Unit 01",null,null,null,null,null,null,null,null,null,"Row 979"]
[null,"ER Split Unit 01",null,null,null,null,null,null,null,null,null,"Row 980"]
[null,"ER Split Unit 01",null,null,null,null,null,null,null,null,null,"Row 981"]
[null,"ER Split Unit 01",null,null,null,null,null,null,null,null,null,"Row 982"]
[null,"ER Split Unit 01",null,null,null,null,null,null,null,null,null,"Row 983"]
[null,"ER Split Unit 01",null,null,null,null,null,null,null,null,null,"Row 984"]
[null,"ER Split Unit 01",null,null,null,null,null,null,null,null,null,"Row 985"]
[null,"ER Split Unit 01",null,null,null,null,null,null,null,null,null,"Row 986"]
[null,"ER Split Unit 01",null,null,null,null,null,null,null,null,null,"Row 987"]
[null,"ER Split Unit 01",null,null,null,null,null,null,null,null,null,"Row 988"]
[null,"ER Split Unit 01",null,null,null,null,null,null,null,null,null,"Row 989"]
[null,"ER Split Unit 01",null,null,null,null,null,null,null,null,null,"Row 990"]
[null,"ER Split Unit 01",null,null,null,null,null,null,null,null,null,"Row 991"]
[null,"ER Split Unit 01",null,null,null,null,null,null,null,null,null,"Row 992"]
[null,"ER Split Unit 01",null,null,null,null,null,null,null,null,null,"Row 993"]
[null,"ER Split Unit 01",null,null,null,null,null,null,null,null,null,"Row 994"]
[null,"ER Split Unit 01",null,null,null,null,null,null,null,null,null,"Row 995"]
[null,"ER Split Unit 01",null,null,null,null,null,null,null,null,null,"Row 996"]
[null,"ER Split Unit 01",null,null,null,null,null,null,null,null,null,"Row 997"]
[null,"ER Split Unit 01",null,null,null,null,null,null,null,null,null,"Row 998"]
[null,"ER Split Unit 01",null,null,null,null,null,null,null,null,null,"Row 999"]
[null,"ER Split Unit 01",null,null,null,null,null,null,null,null,null,"Row 1000"]
[null,"ER Split Unit 01",null,null,null,null,null,null,null,null,null,null,null,"Total",{"$f":"IFERROR(SUBTOTAL(3,tblU01_Exp[Exposure Act]),0)","v":0},{"$f":"IFERROR(SUBTOTAL(9,tblU01_Exp[Exposure Amt]),0)","v":0},{"$f":"IFERROR(SUBTOTAL(3,tblU01_Exp[Mod Effective Date]),0)","v":0},{"$f":"IFERROR(SUBTOTAL(3,tblU01_Exp[Rate Effective Date]),0)","v":0},{"$f":"IFERROR(SUBTOTAL(3,tblU01_Exp[Manual Rate]),0)","v":0},null,"Total",{"$f":"IFERROR(SUBTOTAL(3,tblU01_Loss[Accident Date]),0)","v":0},{"$f":"IFERROR(SUBTOTAL(3,tblU01_Loss[Type of Claim]),0)","v":0}]
[null,"ER Split Unit 01"]
[null,"ER Split Unit 01"]
[null,"ER Split Unit 02"]
[null,"ER Split Unit 02",null,null,null,null,null,null,null,null,null,null,null,"ER Split Unit 02"]
[null,"ER Split Unit 02"]
[null,"ER Split Unit 02"]
[null,"ER Split Unit 02",null,null,null,null,null,null,"Report Type:",null,null,null,null,null,null,null,null,null,null,null,null,null,null,"Top"]
[null,"ER Split Unit 02",null,null,null,"Link Data Common to All Records for this Split Unit",null,null,null,null,null,null,null,null,null,"Exposure Record 4",null,null,null,null,"Loss Record 5"]
[null,"ER Split Unit 02",null,null,null,null,null,null,null,"Carrier Code:",null,null,null,"Class Code","Exposure Act","Exposure Amt","Mod Effective Date","Rate Effective Date","Manual Rate",null,"Claim Number","Accident Date","Type of Claim"]
[null,"ER Split Unit 02",null,null,null,null,null,null,null,"Policy Number:",null,"Row 1"]
[null,"ER Split Unit 02",null,null,null,null,null,null,null,"Policy Effective Date:",null,"Row 2"]
[null,"ER Split Unit 02",null,null,null,null,null,null,null,"Exposure State:",null,"Row 3"]
[null,"ER Split Unit 02",null,null,null,null,null,null,null,"FEIN:",null,"Row 4"]
[null,"ER Split Unit 02",null,null,null,null,null,null,null,"Type of Transaction:",null,"Row 5"]
[null,"ER Split Unit 02",null,null,null,{"$f":"IF(J1022=\"Delete\",\"Header Record 1\",\"Header Record 1, Name Record 2, & Address Record 3\")","v":"Header Record 1, Name Record 2, & Address Record 3"},null,null,null,null,null,"Row 6"]
[null,"ER Split Unit 02",null,null,null,null,null,null,null,{"$f":"IF(uipU02LD_TT=\"01 PEO Client Information\",\"Client Termination Date\",\"Ownership Change Date:\")","v":"Ownership Change Date:"},null,"Row 7"]
[null,"ER Split Unit 02",null,null,null,null,null,null,null,"Name of Insured:",null,"Row 8"]
[null,"ER Split Unit 02",null,null,null,null,null,null,null,"Street Address:",null,"Row 9"]
[null,"ER Split Unit 02",null,null,null,null,null,null,null,"City:",null,"Row 10"]
[null,"ER Split Unit 02",null,null,null,null,null,null,null,"State:",null,"Row 11"]
[null,"ER Split Unit 02",null,null,null,null,null,null,null,"Zip Code:",null,"Row 12"]
[null,"ER Split Unit 02",null,null,{"$f":"IFERROR(INDEX(tblSTATE[St_Abbr],MATCH($K$1035,tblSTATE[State],0)),\"\")","v":""},null,null,null,null,null,null,"Row 13"]
[null,"ER Split Unit 02",null,null,null,null,null,null,null,null,null,"Row 14"]
[null,"ER Split Unit 02",null,null,null,null,null,null,null,null,null,"Row 15"]
[null,"ER Split Unit 02",null,null,null,null,null,null,null,null,null,"Row 16"]
[null,"ER Split Unit 02",null,null,null,null,null,null,null,null,null,"Row 17"]
[null,"ER Split Unit 02",null,null,null,null,null,null,null,null,null,"Row 18"]
[null,"ER Split Unit 02",null,null,null,null,null,null,null,null,null,"Row 19"]
[null,"ER Split Unit 02",null,null,null,null,null,null,null,null,null,"Row 20"]
[null,"ER Split Unit 02",null,null,null,null,null,null,null,null,null,"Row 21"]
[null,"ER Split Unit 02",null,null,null,null,null,null,null,null,null,"Row 22"]
[null,"ER Split Unit 02",null,null,null,null,null,null,null,null,null,"Row 23"]
[null,"ER Split Unit 02",null,null,null,null,null,null,null,null,null,"Row 24"]
[null,"ER Split Unit 02",null,null,null,null,null,null,null,null,null,"Row 25"]
[null,"ER Split Unit 02",null,null,null,null,null,null,null,null,null,"Row 26"]
[null,"ER Split Unit 02",null,null,null,null,null,null,null,null,null,"Row 27"]
[null,"ER Split Unit 02",null,null,null,null,null,null,null,null,null,"Row 28"]
[null,"ER Split Unit 02",null,null,null,null,null,null,null,null,null,"Row 29"]
[null,"ER Split Unit 02",null,null,null,null,null,null,null,null,null,"Row 30"]
[null,"ER Split Unit 02",null,null,null,null,null,null,null,null,null,"Row 31"]
[null,"ER Split Unit 02",null,null,null,null,null,null,null,null,null,"Row 32"]
[null,"ER Split Unit 02",null,null,null,null,null,null,null,null,null,"Row 33"]
[null,"ER Split Unit 02",null,null,null,null,null,null,null,null,null,"Row 34"]
[null,"ER Split Unit 02",null,null,null,null,null,null,null,null,null,"Row 35"]
[null,"ER Split Unit 02",null,null,null,null,null,null,null,null,null,"Row 36"]
[null,"ER Split Unit 02",null,null,null,null,null,null,null,null,null,"Row 37"]
[null,"ER Split Unit 02",null,null,null,null,null,null,null,null,null,"Row 38"]
[null,"ER Split Unit 02",null,null,null,null,null,null,null,null,null,"Row 39"]
[null,"ER Split Unit 02",null,null,null,null,null,null,null,null,null,"Row 40"]
[null,"ER Split Unit 02",null,null,null,null,null,null,null,null,null,"Row 41"]
[null,"ER Split Unit 02",null,null,null,null,null,null,null,null,null,"Row 42"]
[null,"ER Split Unit 02",null,null,null,null,null,null,null,null,null,"Row 43"]
[null,"ER Split Unit 02",null,null,null,null,null,null,null,null,null,"Row 44"]
[null,"ER Split Unit 02",null,null,null,null,null,null,null,null,null,"Row 45"]
[null,"ER Split Unit 02",null,null,null,null,null,null,null,null,null,"Row 46"]
[null,"ER Split Unit 02",null,null,null,null,null,null,null,null,null,"Row 47"]
[null,"ER Split Unit 02",null,null,null,null,null,null,null,null,null,"Row 48"]
[null,"ER Split Unit 02",null,null,null,null,null,null,null,null,null,"Row 49"]
[null,"ER Split Unit 02",null,null,null,null,null,null,null,null,null,"Row 50"]
[null,"ER Split Unit 02",null,null,null,null,null,null,null,null,null,"Row 51"]
[null,"ER Split Unit 02",null,null,null,null,null,null,null,null,null,"Row 52"]
[null,"ER Split Unit 02",null,null,null,null,null,null,null,null,null,"Row 53"]
[null,"ER Split Unit 02",null,null,null,null,null,null,null,null,null,"Row 54"]
[null,"ER Split Unit 02",null,null,null,null,null,null,null,null,null,"Row 55"]
[null,"ER Split Unit 02",null,null,null,null,null,null,null,null,null,"Row 56"]
[null,"ER Split Unit 02",null,null,null,null,null,null,null,null,null,"Row 57"]
[null,"ER Split Unit 02",null,null,null,null,null,null,null,null,null,"Row 58"]
[null,"ER Split Unit 02",null,null,null,null,null,null,null,null,null,"Row 59"]
[null,"ER Split Unit 02",null,null,null,null,null,null,null,null,null,"Row 60"]
[null,"ER Split Unit 02",null,null,null,null,null,null,null,null,null,"Row 61"]
[null,"ER Split Unit 02",null,null,null,null,null,null,null,null,null,"Row 62"]
[null,"ER Split Unit 02",null,null,null,null,null,null,null,null,null,"Row 63"]
[null,"ER Split Unit 02",null,null,null,null,null,null,null,null,null,"Row 64"]
[null,"ER Split Unit 02",null,null,null,null,null,null,null,null,null,"Row 65"]
[null,"ER Split Unit 02",null,null,null,null,null,null,null,null,null,"Row 66"]
[null,"ER Split Unit 02",null,null,null,null,null,null,null,null,null,"Row 67"]
[null,"ER Split Unit 02",null,null,null,null,null,null,null,null,null,"Row 68"]
[null,"ER Split Unit 02",null,null,null,null,null,null,null,null,null,"Row 69"]
[null,"ER Split Unit 02",null,null,null,null,null,null,null,null,null,"Row 70"]
[null,"ER Split Unit 02",null,null,null,null,null,null,null,null,null,"Row 71"]
[null,"ER Split Unit 02",null,null,null,null,null,null,null,null,null,"Row 72"]
[null,"ER Split Unit 02",null,null,null,null,null,null,null,null,null,"Row 73"]
[null,"ER Split Unit 02",null,null,null,null,null,null,null,null,null,"Row 74"]
[null,"ER Split Unit 02",null,null,null,null,null,null,null,null,null,"Row 75"]
[null,"ER Split Unit 02",null,null,null,null,null,null,null,null,null,"Row 76"]
[null,"ER Split Unit 02",null,null,null,null,null,null,null,null,null,"Row 77"]
[null,"ER Split Unit 02",null,null,null,null,null,null,null,null,null,"Row 78"]
[null,"ER Split Unit 02",null,null,null,null,null,null,null,null,null,"Row 79"]
[null,"ER Split Unit 02",null,null,null,null,null,null,null,null,null,"Row 80"]
[null,"ER Split Unit 02",null,null,null,null,null,null,null,null,null,"Row 81"]
[null,"ER Split Unit 02",null,null,null,null,null,null,null,null,null,"Row 82"]
[null,"ER Split Unit 02",null,null,null,null,null,null,null,null,null,"Row 83"]
[null,"ER Split Unit 02",null,null,null,null,null,null,null,null,null,"Row 84"]
[null,"ER Split Unit 02",null,null,null,null,null,null,null,null,null,"Row 85"]
[null,"ER Split Unit 02",null,null,null,null,null,null,null,null,null,"Row 86"]
[null,"ER Split Unit 02",null,null,null,null,null,null,null,null,null,"Row 87"]
[null,"ER Split Unit 02",null,null,null,null,null,null,null,null,null,"Row 88"]
[null,"ER Split Unit 02",null,null,null,null,null,null,null,null,null,"Row 89"]
[null,"ER Split Unit 02",null,null,null,null,null,null,null,null,null,"Row 90"]
[null,"ER Split Unit 02",null,null,null,null,null,null,null,null,null,"Row 91"]
[null,"ER Split Unit 02",null,null,null,null,null,null,null,null,null,"Row 92"]
[null,"ER Split Unit 02",null,null,null,null,null,null,null,null,null,"Row 93"]
[null,"ER Split Unit 02",null,null,null,null,null,null,null,null,null,"Row 94"]
[null,"ER Split Unit 02",null,null,null,null,null,null,null,null,null,"Row 95"]
[null,"ER Split Unit 02",null,null,null,null,null,null,null,null,null,"Row 96"]
[null,"ER Split Unit 02",null,null,null,null,null,null,null,null,null,"Row 97"]
[null,"ER Split Unit 02",null,null,null,null,null,null,null,null,null,"Row 98"]
[null,"ER Split Unit 02",null,null,null,null,null,null,null,null,null,"Row 99"]
[null,"ER Split Unit 02",null,null,null,null,null,null,null,null,null,"Row 100"]
[null,"ER Split Unit 02",null,null,null,null,null,null,null,null,null,"Row 101"]
[null,"ER Split Unit 02",null,null,null,null,null,null,null,null,null,"Row 102"]
[null,"ER Split Unit 02",null,null,null,null,null,null,null,null,null,"Row 103"]
[null,"ER Split Unit 02",null,null,null,null,null,null,null,null,null,"Row 104"]
[null,"ER Split Unit 02",null,null,null,null,null,null,null,null,null,"Row 105"]
[null,"ER Split Unit 02",null,null,null,null,null,null,null,null,null,"Row 106"]
[null,"ER Split Unit 02",null,null,null,null,null,null,null,null,null,"Row 107"]
[null,"ER Split Unit 02",null,null,null,null,null,null,null,null,null,"Row 108"]
[null,"ER Split Unit 02",null,null,null,null,null,null,null,null,null,"Row 109"]
[null,"ER Split Unit 02",null,null,null,null,null,null,null,null,null,"Row 110"]
[null,"ER Split Unit 02",null,null,null,null,null,null,null,null,null,"Row 111"]
[null,"ER Split Unit 02",null,null,null,null,null,null,null,null,null,"Row 112"]
[null,"ER Split Unit 02",null,null,null,null,null,null,null,null,null,"Row 113"]
[null,"ER Split Unit 02",null,null,null,null,null,null,null,null,null,"Row 114"]
[null,"ER Split Unit 02",null,null,null,null,null,null,null,null,null,"Row 115"]
[null,"ER Split Unit 02",null,null,null,null,null,null,null,null,null,"Row 116"]
[null,"ER Split Unit 02",null,null,null,null,null,null,null,null,null,"Row 117"]
[null,"ER Split Unit 02",null,null,null,null,null,null,null,null,null,"Row 118"]
[null,"ER Split Unit 02",null,null,null,null,null,null,null,null,null,"Row 119"]
[null,"ER Split Unit 02",null,null,null,null,null,null,null,null,null,"Row 120"]
[null,"ER Split Unit 02",null,null,null,null,null,null,null,null,null,"Row 121"]
[null,"ER Split Unit 02",null,null,null,null,null,null,null,null,null,"Row 122"]
[null,"ER Split Unit 02",null,null,null,null,null,null,null,null,null,"Row 123"]
[null,"ER Split Unit 02",null,null,null,null,null,null,null,null,null,"Row 124"]
[null,"ER Split Unit 02",null,null,null,null,null,null,null,null,null,"Row 125"]
[null,"ER Split Unit 02",null,null,null,null,null,null,null,null,null,"Row 126"]
[null,"ER Split Unit 02",null,null,null,null,null,null,null,null,null,"Row 127"]
[null,"ER Split Unit 02",null,null,null,null,null,null,null,null,null,"Row 128"]
[null,"ER Split Unit 02",null,null,null,null,null,null,null,null,null,"Row 129"]
[null,"ER Split Unit 02",null,null,null,null,null,null,null,null,null,"Row 130"]
[null,"ER Split Unit 02",null,null,null,null,null,null,null,null,null,"Row 131"]
[null,"ER Split Unit 02",null,null,null,null,null,null,null,null,null,"Row 132"]
[null,"ER Split Unit 02",null,null,null,null,null,null,null,null,null,"Row 133"]
[null,"ER Split Unit 02",null,null,null,null,null,null,null,null,null,"Row 134"]
[null,"ER Split Unit 02",null,null,null,null,null,null,null,null,null,"Row 135"]
[null,"ER Split Unit 02",null,null,null,null,null,null,null,null,null,"Row 136"]
[null,"ER Split Unit 02",null,null,null,null,null,null,null,null,null,"Row 137"]
[null,"ER Split Unit 02",null,null,null,null,null,null,null,null,null,"Row 138"]
[null,"ER Split Unit 02",null,null,null,null,null,null,null,null,null,"Row 139"]
[null,"ER Split Unit 02",null,null,null,null,null,null,null,null,null,"Row 140"]
[null,"ER Split Unit 02",null,null,null,null,null,null,null,null,null,"Row 141"]
[null,"ER Split Unit 02",null,null,null,null,null,null,null,null,null,"Row 142"]
[null,"ER Split Unit 02",null,null,null,null,null,null,null,null,null,"Row 143"]
[null,"ER Split Unit 02",null,null,null,null,null,null,null,null,null,"Row 144"]
[null,"ER Split Unit 02",null,null,null,null,null,null,null,null,null,"Row 145"]
[null,"ER Split Unit 02",null,null,null,null,null,null,null,null,null,"Row 146"]
[null,"ER Split Unit 02",null,null,null,null,null,null,null,null,null,"Row 147"]
[null,"ER Split Unit 02",null,null,null,null,null,null,null,null,null,"Row 148"]
[null,"ER Split Unit 02",null,null,null,null,null,null,null,null,null,"Row 149"]
[null,"ER Split Unit 02",null,null,null,null,null,null,null,null,null,"Row 150"]
[null,"ER Split Unit 02",null,null,null,null,null,null,null,null,null,"Row 151"]
[null,"ER Split Unit 02",null,null,null,null,null,null,null,null,null,"Row 152"]
[null,"ER Split Unit 02",null,null,null,null,null,null,null,null,null,"Row 153"]
[null,"ER Split Unit 02",null,null,null,null,null,null,null,null,null,"Row 154"]
[null,"ER Split Unit 02",null,null,null,null,null,null,null,null,null,"Row 155"]
[null,"ER Split Unit 02",null,null,null,null,null,null,null,null,null,"Row 156"]
[null,"ER Split Unit 02",null,null,null,null,null,null,null,null,null,"Row 157"]
[null,"ER Split Unit 02",null,null,null,null,null,null,null,null,null,"Row 158"]
[null,"ER Split Unit 02",null,null,null,null,null,null,null,null,null,"Row 159"]
[null,"ER Split Unit 02",null,null,null,null,null,null,null,null,null,"Row 160"]
[null,"ER Split Unit 02",null,null,null,null,null,null,null,null,null,"Row 161"]
[null,"ER Split Unit 02",null,null,null,null,null,null,null,null,null,"Row 162"]
[null,"ER Split Unit 02",null,null,null,null,null,null,null,null,null,"Row 163"]
[null,"ER Split Unit 02",null,null,null,null,null,null,null,null,null,"Row 164"]
[null,"ER Split Unit 02",null,null,null,null,null,null,null,null,null,"Row 165"]
[null,"ER Split Unit 02",null,null,null,null,null,null,null,null,null,"Row 166"]
[null,"ER Split Unit 02",null,null,null,null,null,null,null,null,null,"Row 167"]
[null,"ER Split Unit 02",null,null,null,null,null,null,null,null,null,"Row 168"]
[null,"ER Split Unit 02",null,null,null,null,null,null,null,null,null,"Row 169"]
[null,"ER Split Unit 02",null,null,null,null,null,null,null,null,null,"Row 170"]
[null,"ER Split Unit 02",null,null,null,null,null,null,null,null,null,"Row 171"]
[null,"ER Split Unit 02",null,null,null,null,null,null,null,null,null,"Row 172"]
[null,"ER Split Unit 02",null,null,null,null,null,null,null,null,null,"Row 173"]
[null,"ER Split Unit 02",null,null,null,null,null,null,null,null,null,"Row 174"]
[null,"ER Split Unit 02",null,null,null,null,null,null,null,null,null,"Row 175"]
[null,"ER Split Unit 02",null,null,null,null,null,null,null,null,null,"Row 176"]
[null,"ER Split Unit 02",null,null,null,null,null,null,null,null,null,"Row 177"]
[null,"ER Split Unit 02",null,null,null,null,null,null,null,null,null,"Row 178"]
[null,"ER Split Unit 02",null,null,null,null,null,null,null,null,null,"Row 179"]
[null,"ER Split Unit 02",null,null,null,null,null,null,null,null,null,"Row 180"]
[null,"ER Split Unit 02",null,null,null,null,null,null,null,null,null,"Row 181"]
[null,"ER Split Unit 02",null,null,null,null,null,null,null,null,null,"Row 182"]
[null,"ER Split Unit 02",null,null,null,null,null,null,null,null,null,"Row 183"]
[null,"ER Split Unit 02",null,null,null,null,null,null,null,null,null,"Row 184"]
[null,"ER Split Unit 02",null,null,null,null,null,null,null,null,null,"Row 185"]
[null,"ER Split Unit 02",null,null,null,null,null,null,null,null,null,"Row 186"]
[null,"ER Split Unit 02",null,null,null,null,null,null,null,null,null,"Row 187"]
[null,"ER Split Unit 02",null,null,null,null,null,null,null,null,null,"Row 188"]
[null,"ER Split Unit 02",null,null,null,null,null,null,null,null,null,"Row 189"]
[null,"ER Split Unit 02",null,null,null,null,null,null,null,null,null,"Row 190"]
[null,"ER Split Unit 02",null,null,null,null,null,null,null,null,null,"Row 191"]
[null,"ER Split Unit 02",null,null,null,null,null,null,null,null,null,"Row 192"]
[null,"ER Split Unit 02",null,null,null,null,null,null,null,null,null,"Row 193"]
[null,"ER Split Unit 02",null,null,null,null,null,null,null,null,null,"Row 194"]
[null,"ER Split Unit 02",null,null,null,null,null,null,null,null,null,"Row 195"]
[null,"ER Split Unit 02",null,null,null,null,null,null,null,null,null,"Row 196"]
[null,"ER Split Unit 02",null,null,null,null,null,null,null,null,null,"Row 197"]
[null,"ER Split Unit 02",null,null,null,null,null,null,null,null,null,"Row 198"]
[null,"ER Split Unit 02",null,null,null,null,null,null,null,null,null,"Row 199"]
[null,"ER Split Unit 02",null,null,null,null,null,null,null,null,null,"Row 200"]
[null,"ER Split Unit 02",null,null,null,null,null,null,null,null,null,"Row 201"]
[null,"ER Split Unit 02",null,null,null,null,null,null,null,null,null,"Row 202"]
[null,"ER Split Unit 02",null,null,null,null,null,null,null,null,null,"Row 203"]
[null,"ER Split Unit 02",null,null,null,null,null,null,null,null,null,"Row 204"]
[null,"ER Split Unit 02",null,null,null,null,null,null,null,null,null,"Row 205"]
[null,"ER Split Unit 02",null,null,null,null,null,null,null,null,null,"Row 206"]
[null,"ER Split Unit 02",null,null,null,null,null,null,null,null,null,"Row 207"]
[null,"ER Split Unit 02",null,null,null,null,null,null,null,null,null,"Row 208"]
[null,"ER Split Unit 02",null,null,null,null,null,null,null,null,null,"Row 209"]
[null,"ER Split Unit 02",null,null,null,null,null,null,null,null,null,"Row 210"]
[null,"ER Split Unit 02",null,null,null,null,null,null,null,null,null,"Row 211"]
[null,"ER Split Unit 02",null,null,null,null,null,null,null,null,null,"Row 212"]
[null,"ER Split Unit 02",null,null,null,null,null,null,null,null,null,"Row 213"]
[null,"ER Split Unit 02",null,null,null,null,null,null,null,null,null,"Row 214"]
[null,"ER Split Unit 02",null,null,null,null,null,null,null,null,null,"Row 215"]
[null,"ER Split Unit 02",null,null,null,null,null,null,null,null,null,"Row 216"]
[null,"ER Split Unit 02",null,null,null,null,null,null,null,null,null,"Row 217"]
[null,"ER Split Unit 02",null,null,null,null,null,null,null,null,null,"Row 218"]
[null,"ER Split Unit 02",null,null,null,null,null,null,null,null,null,"Row 219"]
[null,"ER Split Unit 02",null,null,null,null,null,null,null,null,null,"Row 220"]
[null,"ER Split Unit 02",null,null,null,null,null,null,null,null,null,"Row 221"]
[null,"ER Split Unit 02",null,null,null,null,null,null,null,null,null,"Row 222"]
[null,"ER Split Unit 02",null,null,null,null,null,null,null,null,null,"Row 223"]
[null,"ER Split Unit 02",null,null,null,null,null,null,null,null,null,"Row 224"]
[null,"ER Split Unit 02",null,null,null,null,null,null,null,null,null,"Row 225"]
[null,"ER Split Unit 02",null,null,null,null,null,null,null,null,null,"Row 226"]
[null,"ER Split Unit 02",null,null,null,null,null,null,null,null,null,"Row 227"]
[null,"ER Split Unit 02",null,null,null,null,null,null,null,null,null,"Row 228"]
[null,"ER Split Unit 02",null,null,null,null,null,null,null,null,null,"Row 229"]
[null,"ER Split Unit 02",null,null,null,null,null,null,null,null,null,"Row 230"]
[null,"ER Split Unit 02",null,null,null,null,null,null,null,null,null,"Row 231"]
[null,"ER Split Unit 02",null,null,null,null,null,null,null,null,null,"Row 232"]
[null,"ER Split Unit 02",null,null,null,null,null,null,null,null,null,"Row 233"]
[null,"ER Split Unit 02",null,null,null,null,null,null,null,null,null,"Row 234"]
[null,"ER Split Unit 02",null,null,null,null,null,null,null,null,null,"Row 235"]
[null,"ER Split Unit 02",null,null,null,null,null,null,null,null,null,"Row 236"]
[null,"ER Split Unit 02",null,null,null,null,null,null,null,null,null,"Row 237"]
[null,"ER Split Unit 02",null,null,null,null,null,null,null,null,null,"Row 238"]
[null,"ER Split Unit 02",null,null,null,null,null,null,null,null,null,"Row 239"]
[null,"ER Split Unit 02",null,null,null,null,null,null,null,null,null,"Row 240"]
[null,"ER Split Unit 02",null,null,null,null,null,null,null,null,null,"Row 241"]
[null,"ER Split Unit 02",null,null,null,null,null,null,null,null,null,"Row 242"]
[null,"ER Split Unit 02",null,null,null,null,null,null,null,null,null,"Row 243"]
[null,"ER Split Unit 02",null,null,null,null,null,null,null,null,null,"Row 244"]
[null,"ER Split Unit 02",null,null,null,null,null,null,null,null,null,"Row 245"]
[null,"ER Split Unit 02",null,null,null,null,null,null,null,null,null,"Row 246"]
[null,"ER Split Unit 02",null,null,null,null,null,null,null,null,null,"Row 247"]
[null,"ER Split Unit 02",null,null,null,null,null,null,null,null,null,"Row 248"]
[null,"ER Split Unit 02",null,null,null,null,null,null,null,null,null,"Row 249"]
[null,"ER Split Unit 02",null,null,null,null,null,null,null,null,null,"Row 250"]
[null,"ER Split Unit 02",null,null,null,null,null,null,null,null,null,"Row 251"]
[null,"ER Split Unit 02",null,null,null,null,null,null,null,null,null,"Row 252"]
[null,"ER Split Unit 02",null,null,null,null,null,null,null,null,null,"Row 253"]
[null,"ER Split Unit 02",null,null,null,null,null,null,null,null,null,"Row 254"]
[null,"ER Split Unit 02",null,null,null,null,null,null,null,null,null,"Row 255"]
[null,"ER Split Unit 02",null,null,null,null,null,null,null,null,null,"Row 256"]
[null,"ER Split Unit 02",null,null,null,null,null,null,null,null,null,"Row 257"]
[null,"ER Split Unit 02",null,null,null,null,null,null,null,null,null,"Row 258"]
[null,"ER Split Unit 02",null,null,null,null,null,null,null,null,null,"Row 259"]
[null,"ER Split Unit 02",null,null,null,null,null,null,null,null,null,"Row 260"]
[null,"ER Split Unit 02",null,null,null,null,null,null,null,null,null,"Row 261"]
[null,"ER Split Unit 02",null,null,null,null,null,null,null,null,null,"Row 262"]
[null,"ER Split Unit 02",null,null,null,null,null,null,null,null,null,"Row 263"]
[null,"ER Split Unit 02",null,null,null,null,null,null,null,null,null,"Row 264"]
[null,"ER Split Unit 02",null,null,null,null,null,null,null,null,null,"Row 265"]
[null,"ER Split Unit 02",null,null,null,null,null,null,null,null,null,"Row 266"]
[null,"ER Split Unit 02",null,null,null,null,null,null,null,null,null,"Row 267"]
[null,"ER Split Unit 02",null,null,null,null,null,null,null,null,null,"Row 268"]
[null,"ER Split Unit 02",null,null,null,null,null,null,null,null,null,"Row 269"]
[null,"ER Split Unit 02",null,null,null,null,null,null,null,null,null,"Row 270"]
[null,"ER Split Unit 02",null,null,null,null,null,null,null,null,null,"Row 271"]
[null,"ER Split Unit 02",null,null,null,null,null,null,null,null,null,"Row 272"]
[null,"ER Split Unit 02",null,null,null,null,null,null,null,null,null,"Row 273"]
[null,"ER Split Unit 02",null,null,null,null,null,null,null,null,null,"Row 274"]
[null,"ER Split Unit 02",null,null,null,null,null,null,null,null,null,"Row 275"]
[null,"ER Split Unit 02",null,null,null,null,null,null,null,null,null,"Row 276"]
[null,"ER Split Unit 02",null,null,null,null,null,null,null,null,null,"Row 277"]
[null,"ER Split Unit 02",null,null,null,null,null,null,null,null,null,"Row 278"]
[null,"ER Split Unit 02",null,null,null,null,null,null,null,null,null,"Row 279"]
[null,"ER Split Unit 02",null,null,null,null,null,null,null,null,null,"Row 280"]
[null,"ER Split Unit 02",null,null,null,null,null,null,null,null,null,"Row 281"]
[null,"ER Split Unit 02",null,null,null,null,null,null,null,null,null,"Row 282"]
[null,"ER Split Unit 02",null,null,null,null,null,null,null,null,null,"Row 283"]
[null,"ER Split Unit 02",null,null,null,null,null,null,null,null,null,"Row 284"]
[null,"ER Split Unit 02",null,null,null,null,null,null,null,null,null,"Row 285"]
[null,"ER Split Unit 02",null,null,null,null,null,null,null,null,null,"Row 286"]
[null,"ER Split Unit 02",null,null,null,null,null,null,null,null,null,"Row 287"]
[null,"ER Split Unit 02",null,null,null,null,null,null,null,null,null,"Row 288"]
[null,"ER Split Unit 02",null,null,null,null,null,null,null,null,null,"Row 289"]
[null,"ER Split Unit 02",null,null,null,null,null,null,null,null,null,"Row 290"]
[null,"ER Split Unit 02",null,null,null,null,null,null,null,null,null,"Row 291"]
[null,"ER Split Unit 02",null,null,null,null,null,null,null,null,null,"Row 292"]
[null,"ER Split Unit 02",null,null,null,null,null,null,null,null,null,"Row 293"]
[null,"ER Split Unit 02",null,null,null,null,null,null,null,null,null,"Row 294"]
[null,"ER Split Unit 02",null,null,null,null,null,null,null,null,null,"Row 295"]
[null,"ER Split Unit 02",null,null,null,null,null,null,null,null,null,"Row 296"]
[null,"ER Split Unit 02",null,null,null,null,null,null,null,null,null,"Row 297"]
[null,"ER Split Unit 02",null,null,null,null,null,null,null,null,null,"Row 298"]
[null,"ER Split Unit 02",null,null,null,null,null,null,null,null,null,"Row 299"]
[null,"ER Split Unit 02",null,null,null,null,null,null,null,null,null,"Row 300"]
[null,"ER Split Unit 02",null,null,null,null,null,null,null,null,null,"Row 301"]
[null,"ER Split Unit 02",null,null,null,null,null,null,null,null,null,"Row 302"]
[null,"ER Split Unit 02",null,null,null,null,null,null,null,null,null,"Row 303"]
[null,"ER Split Unit 02",null,null,null,null,null,null,null,null,null,"Row 304"]
[null,"ER Split Unit 02",null,null,null,null,null,null,null,null,null,"Row 305"]
[null,"ER Split Unit 02",null,null,null,null,null,null,null,null,null,"Row 306"]
[null,"ER Split Unit 02",null,null,null,null,null,null,null,null,null,"Row 307"]
[null,"ER Split Unit 02",null,null,null,null,null,null,null,null,null,"Row 308"]
[null,"ER Split Unit 02",null,null,null,null,null,null,null,null,null,"Row 309"]
[null,"ER Split Unit 02",null,null,null,null,null,null,null,null,null,"Row 310"]
[null,"ER Split Unit 02",null,null,null,null,null,null,null,null,null,"Row 311"]
[null,"ER Split Unit 02",null,null,null,null,null,null,null,null,null,"Row 312"]
[null,"ER Split Unit 02",null,null,null,null,null,null,null,null,null,"Row 313"]
[null,"ER Split Unit 02",null,null,null,null,null,null,null,null,null,"Row 314"]
[null,"ER Split Unit 02",null,null,null,null,null,null,null,null,null,"Row 315"]
[null,"ER Split Unit 02",null,null,null,null,null,null,null,null,null,"Row 316"]
[null,"ER Split Unit 02",null,null,null,null,null,null,null,null,null,"Row 317"]
[null,"ER Split Unit 02",null,null,null,null,null,null,null,null,null,"Row 318"]
[null,"ER Split Unit 02",null,null,null,null,null,null,null,null,null,"Row 319"]
[null,"ER Split Unit 02",null,null,null,null,null,null,null,null,null,"Row 320"]
[null,"ER Split Unit 02",null,null,null,null,null,null,null,null,null,"Row 321"]
[null,"ER Split Unit 02",null,null,null,null,null,null,null,null,null,"Row 322"]
[null,"ER Split Unit 02",null,null,null,null,null,null,null,null,null,"Row 323"]
[null,"ER Split Unit 02",null,null,null,null,null,null,null,null,null,"Row 324"]
[null,"ER Split Unit 02",null,null,null,null,null,null,null,null,null,"Row 325"]
[null,"ER Split Unit 02",null,null,null,null,null,null,null,null,null,"Row 326"]
[null,"ER Split Unit 02",null,null,null,null,null,null,null,null,null,"Row 327"]
[null,"ER Split Unit 02",null,null,null,null,null,null,null,null,null,"Row 328"]
[null,"ER Split Unit 02",null,null,null,null,null,null,null,null,null,"Row 329"]
[null,"ER Split Unit 02",null,null,null,null,null,null,null,null,null,"Row 330"]
[null,"ER Split Unit 02",null,null,null,null,null,null,null,null,null,"Row 331"]
[null,"ER Split Unit 02",null,null,null,null,null,null,null,null,null,"Row 332"]
[null,"ER Split Unit 02",null,null,null,null,null,null,null,null,null,"Row 333"]
[null,"ER Split Unit 02",null,null,null,null,null,null,null,null,null,"Row 334"]
[null,"ER Split Unit 02",null,null,null,null,null,null,null,null,null,"Row 335"]
[null,"ER Split Unit 02",null,null,null,null,null,null,null,null,null,"Row 336"]
[null,"ER Split Unit 02",null,null,null,null,null,null,null,null,null,"Row 337"]
[null,"ER Split Unit 02",null,null,null,null,null,null,null,null,null,"Row 338"]
[null,"ER Split Unit 02",null,null,null,null,null,null,null,null,null,"Row 339"]
[null,"ER Split Unit 02",null,null,null,null,null,null,null,null,null,"Row 340"]
[null,"ER Split Unit 02",null,null,null,null,null,null,null,null,null,"Row 341"]
[null,"ER Split Unit 02",null,null,null,null,null,null,null,null,null,"Row 342"]
[null,"ER Split Unit 02",null,null,null,null,null,null,null,null,null,"Row 343"]
[null,"ER Split Unit 02",null,null,null,null,null,null,null,null,null,"Row 344"]
[null,"ER Split Unit 02",null,null,null,null,null,null,null,null,null,"Row 345"]
[null,"ER Split Unit 02",null,null,null,null,null,null,null,null,null,"Row 346"]
[null,"ER Split Unit 02",null,null,null,null,null,null,null,null,null,"Row 347"]
[null,"ER Split Unit 02",null,null,null,null,null,null,null,null,null,"Row 348"]
[null,"ER Split Unit 02",null,null,null,null,null,null,null,null,null,"Row 349"]
[null,"ER Split Unit 02",null,null,null,null,null,null,null,null,null,"Row 350"]
[null,"ER Split Unit 02",null,null,null,null,null,null,null,null,null,"Row 351"]
[null,"ER Split Unit 02",null,null,null,null,null,null,null,null,null,"Row 352"]
[null,"ER Split Unit 02",null,null,null,null,null,null,null,null,null,"Row 353"]
[null,"ER Split Unit 02",null,null,null,null,null,null,null,null,null,"Row 354"]
[null,"ER Split Unit 02",null,null,null,null,null,null,null,null,null,"Row 355"]
[null,"ER Split Unit 02",null,null,null,null,null,null,null,null,null,"Row 356"]
[null,"ER Split Unit 02",null,null,null,null,null,null,null,null,null,"Row 357"]
[null,"ER Split Unit 02",null,null,null,null,null,null,null,null,null,"Row 358"]
[null,"ER Split Unit 02",null,null,null,null,null,null,null,null,null,"Row 359"]
[null,"ER Split Unit 02",null,null,null,null,null,null,null,null,null,"Row 360"]
[null,"ER Split Unit 02",null,null,null,null,null,null,null,null,null,"Row 361"]
[null,"ER Split Unit 02",null,null,null,null,null,null,null,null,null,"Row 362"]
[null,"ER Split Unit 02",null,null,null,null,null,null,null,null,null,"Row 363"]
[null,"ER Split Unit 02",null,null,null,null,null,null,null,null,null,"Row 364"]
[null,"ER Split Unit 02",null,null,null,null,null,null,null,null,null,"Row 365"]
[null,"ER Split Unit 02",null,null,null,null,null,null,null,null,null,"Row 366"]
[null,"ER Split Unit 02",null,null,null,null,null,null,null,null,null,"Row 367"]
[null,"ER Split Unit 02",null,null,null,null,null,null,null,null,null,"Row 368"]
[null,"ER Split Unit 02",null,null,null,null,null,null,null,null,null,"Row 369"]
[null,"ER Split Unit 02",null,null,null,null,null,null,null,null,null,"Row 370"]
[null,"ER Split Unit 02",null,null,null,null,null,null,null,null,null,"Row 371"]
[null,"ER Split Unit 02",null,null,null,null,null,null,null,null,null,"Row 372"]
[null,"ER Split Unit 02",null,null,null,null,null,null,null,null,null,"Row 373"]
[null,"ER Split Unit 02",null,null,null,null,null,null,null,null,null,"Row 374"]
[null,"ER Split Unit 02",null,null,null,null,null,null,null,null,null,"Row 375"]
[null,"ER Split Unit 02",null,null,null,null,null,null,null,null,null,"Row 376"]
[null,"ER Split Unit 02",null,null,null,null,null,null,null,null,null,"Row 377"]
[null,"ER Split Unit 02",null,null,null,null,null,null,null,null,null,"Row 378"]
[null,"ER Split Unit 02",null,null,null,null,null,null,null,null,null,"Row 379"]
[null,"ER Split Unit 02",null,null,null,null,null,null,null,null,null,"Row 380"]
[null,"ER Split Unit 02",null,null,null,null,null,null,null,null,null,"Row 381"]
[null,"ER Split Unit 02",null,null,null,null,null,null,null,null,null,"Row 382"]
[null,"ER Split Unit 02",null,null,null,null,null,null,null,null,null,"Row 383"]
[null,"ER Split Unit 02",null,null,null,null,null,null,null,null,null,"Row 384"]
[null,"ER Split Unit 02",null,null,null,null,null,null,null,null,null,"Row 385"]
[null,"ER Split Unit 02",null,null,null,null,null,null,null,null,null,"Row 386"]
[null,"ER Split Unit 02",null,null,null,null,null,null,null,null,null,"Row 387"]
[null,"ER Split Unit 02",null,null,null,null,null,null,null,null,null,"Row 388"]
[null,"ER Split Unit 02",null,null,null,null,null,null,null,null,null,"Row 389"]
[null,"ER Split Unit 02",null,null,null,null,null,null,null,null,null,"Row 390"]
[null,"ER Split Unit 02",null,null,null,null,null,null,null,null,null,"Row 391"]
[null,"ER Split Unit 02",null,null,null,null,null,null,null,null,null,"Row 392"]
[null,"ER Split Unit 02",null,null,null,null,null,null,null,null,null,"Row 393"]
[null,"ER Split Unit 02",null,null,null,null,null,null,null,null,null,"Row 394"]
[null,"ER Split Unit 02",null,null,null,null,null,null,null,null,null,"Row 395"]
[null,"ER Split Unit 02",null,null,null,null,null,null,null,null,null,"Row 396"]
[null,"ER Split Unit 02",null,null,null,null,null,null,null,null,null,"Row 397"]
[null,"ER Split Unit 02",null,null,null,null,null,null,null,null,null,"Row 398"]
[null,"ER Split Unit 02",null,null,null,null,null,null,null,null,null,"Row 399"]
[null,"ER Split Unit 02",null,null,null,null,null,null,null,null,null,"Row 400"]
[null,"ER Split Unit 02",null,null,null,null,null,null,null,null,null,"Row 401"]
[null,"ER Split Unit 02",null,null,null,null,null,null,null,null,null,"Row 402"]
[null,"ER Split Unit 02",null,null,null,null,null,null,null,null,null,"Row 403"]
[null,"ER Split Unit 02",null,null,null,null,null,null,null,null,null,"Row 404"]
[null,"ER Split Unit 02",null,null,null,null,null,null,null,null,null,"Row 405"]
[null,"ER Split Unit 02",null,null,null,null,null,null,null,null,null,"Row 406"]
[null,"ER Split Unit 02",null,null,null,null,null,null,null,null,null,"Row 407"]
[null,"ER Split Unit 02",null,null,null,null,null,null,null,null,null,"Row 408"]
[null,"ER Split Unit 02",null,null,null,null,null,null,null,null,null,"Row 409"]
[null,"ER Split Unit 02",null,null,null,null,null,null,null,null,null,"Row 410"]
[null,"ER Split Unit 02",null,null,null,null,null,null,null,null,null,"Row 411"]
[null,"ER Split Unit 02",null,null,null,null,null,null,null,null,null,"Row 412"]
[null,"ER Split Unit 02",null,null,null,null,null,null,null,null,null,"Row 413"]
[null,"ER Split Unit 02",null,null,null,null,null,null,null,null,null,"Row 414"]
[null,"ER Split Unit 02",null,null,null,null,null,null,null,null,null,"Row 415"]
[null,"ER Split Unit 02",null,null,null,null,null,null,null,null,null,"Row 416"]
[null,"ER Split Unit 02",null,null,null,null,null,null,null,null,null,"Row 417"]
[null,"ER Split Unit 02",null,null,null,null,null,null,null,null,null,"Row 418"]
[null,"ER Split Unit 02",null,null,null,null,null,null,null,null,null,"Row 419"]
[null,"ER Split Unit 02",null,null,null,null,null,null,null,null,null,"Row 420"]
[null,"ER Split Unit 02",null,null,null,null,null,null,null,null,null,"Row 421"]
[null,"ER Split Unit 02",null,null,null,null,null,null,null,null,null,"Row 422"]
[null,"ER Split Unit 02",null,null,null,null,null,null,null,null,null,"Row 423"]
[null,"ER Split Unit 02",null,null,null,null,null,null,null,null,null,"Row 424"]
[null,"ER Split Unit 02",null,null,null,null,null,null,null,null,null,"Row 425"]
[null,"ER Split Unit 02",null,null,null,null,null,null,null,null,null,"Row 426"]
[null,"ER Split Unit 02",null,null,null,null,null,null,null,null,null,"Row 427"]
[null,"ER Split Unit 02",null,null,null,null,null,null,null,null,null,"Row 428"]
[null,"ER Split Unit 02",null,null,null,null,null,null,null,null,null,"Row 429"]
[null,"ER Split Unit 02",null,null,null,null,null,null,null,null,null,"Row 430"]
[null,"ER Split Unit 02",null,null,null,null,null,null,null,null,null,"Row 431"]
[null,"ER Split Unit 02",null,null,null,null,null,null,null,null,null,"Row 432"]
[null,"ER Split Unit 02",null,null,null,null,null,null,null,null,null,"Row 433"]
[null,"ER Split Unit 02",null,null,null,null,null,null,null,null,null,"Row 434"]
[null,"ER Split Unit 02",null,null,null,null,null,null,null,null,null,"Row 435"]
[null,"ER Split Unit 02",null,null,null,null,null,null,null,null,null,"Row 436"]
[null,"ER Split Unit 02",null,null,null,null,null,null,null,null,null,"Row 437"]
[null,"ER Split Unit 02",null,null,null,null,null,null,null,null,null,"Row 438"]
[null,"ER Split Unit 02",null,null,null,null,null,null,null,null,null,"Row 439"]
[null,"ER Split Unit 02",null,null,null,null,null,null,null,null,null,"Row 440"]
[null,"ER Split Unit 02",null,null,null,null,null,null,null,null,null,"Row 441"]
[null,"ER Split Unit 02",null,null,null,null,null,null,null,null,null,"Row 442"]
[null,"ER Split Unit 02",null,null,null,null,null,null,null,null,null,"Row 443"]
[null,"ER Split Unit 02",null,null,null,null,null,null,null,null,null,"Row 444"]
[null,"ER Split Unit 02",null,null,null,null,null,null,null,null,null,"Row 445"]
[null,"ER Split Unit 02",null,null,null,null,null,null,null,null,null,"Row 446"]
[null,"ER Split Unit 02",null,null,null,null,null,null,null,null,null,"Row 447"]
[null,"ER Split Unit 02",null,null,null,null,null,null,null,null,null,"Row 448"]
[null,"ER Split Unit 02",null,null,null,null,null,null,null,null,null,"Row 449"]
[null,"ER Split Unit 02",null,null,null,null,null,null,null,null,null,"Row 450"]
[null,"ER Split Unit 02",null,null,null,null,null,null,null,null,null,"Row 451"]
[null,"ER Split Unit 02",null,null,null,null,null,null,null,null,null,"Row 452"]
[null,"ER Split Unit 02",null,null,null,null,null,null,null,null,null,"Row 453"]
[null,"ER Split Unit 02",null,null,null,null,null,null,null,null,null,"Row 454"]
[null,"ER Split Unit 02",null,null,null,null,null,null,null,null,null,"Row 455"]
[null,"ER Split Unit 02",null,null,null,null,null,null,null,null,null,"Row 456"]
[null,"ER Split Unit 02",null,null,null,null,null,null,null,null,null,"Row 457"]
[null,"ER Split Unit 02",null,null,null,null,null,null,null,null,null,"Row 458"]
[null,"ER Split Unit 02",null,null,null,null,null,null,null,null,null,"Row 459"]
[null,"ER Split Unit 02",null,null,null,null,null,null,null,null,null,"Row 460"]
[null,"ER Split Unit 02",null,null,null,null,null,null,null,null,null,"Row 461"]
[null,"ER Split Unit 02",null,null,null,null,null,null,null,null,null,"Row 462"]
[null,"ER Split Unit 02",null,null,null,null,null,null,null,null,null,"Row 463"]
[null,"ER Split Unit 02",null,null,null,null,null,null,null,null,null,"Row 464"]
[null,"ER Split Unit 02",null,null,null,null,null,null,null,null,null,"Row 465"]
[null,"ER Split Unit 02",null,null,null,null,null,null,null,null,null,"Row 466"]
[null,"ER Split Unit 02",null,null,null,null,null,null,null,null,null,"Row 467"]
[null,"ER Split Unit 02",null,null,null,null,null,null,null,null,null,"Row 468"]
[null,"ER Split Unit 02",null,null,null,null,null,null,null,null,null,"Row 469"]
[null,"ER Split Unit 02",null,null,null,null,null,null,null,null,null,"Row 470"]
[null,"ER Split Unit 02",null,null,null,null,null,null,null,null,null,"Row 471"]
[null,"ER Split Unit 02",null,null,null,null,null,null,null,null,null,"Row 472"]
[null,"ER Split Unit 02",null,null,null,null,null,null,null,null,null,"Row 473"]
[null,"ER Split Unit 02",null,null,null,null,null,null,null,null,null,"Row 474"]
[null,"ER Split Unit 02",null,null,null,null,null,null,null,null,null,"Row 475"]
[null,"ER Split Unit 02",null,null,null,null,null,null,null,null,null,"Row 476"]
[null,"ER Split Unit 02",null,null,null,null,null,null,null,null,null,"Row 477"]
[null,"ER Split Unit 02",null,null,null,null,null,null,null,null,null,"Row 478"]
[null,"ER Split Unit 02",null,null,null,null,null,null,null,null,null,"Row 479"]
[null,"ER Split Unit 02",null,null,null,null,null,null,null,null,null,"Row 480"]
[null,"ER Split Unit 02",null,null,null,null,null,null,null,null,null,"Row 481"]
[null,"ER Split Unit 02",null,null,null,null,null,null,null,null,null,"Row 482"]
[null,"ER Split Unit 02",null,null,null,null,null,null,null,null,null,"Row 483"]
[null,"ER Split Unit 02",null,null,null,null,null,null,null,null,null,"Row 484"]
[null,"ER Split Unit 02",null,null,null,null,null,null,null,null,null,"Row 485"]
[null,"ER Split Unit 02",null,null,null,null,null,null,null,null,null,"Row 486"]
[null,"ER Split Unit 02",null,null,null,null,null,null,null,null,null,"Row 487"]
[null,"ER Split Unit 02",null,null,null,null,null,null,null,null,null,"Row 488"]
[null,"ER Split Unit 02",null,null,null,null,null,null,null,null,null,"Row 489"]
[null,"ER Split Unit 02",null,null,null,null,null,null,null,null,null,"Row 490"]
[null,"ER Split Unit 02",null,null,null,null,null,null,null,null,null,"Row 491"]
[null,"ER Split Unit 02",null,null,null,null,null,null,null,null,null,"Row 492"]
[null,"ER Split Unit 02",null,null,null,null,null,null,null,null,null,"Row 493"]
[null,"ER Split Unit 02",null,null,null,null,null,null,null,null,null,"Row 494"]
[null,"ER Split Unit 02",null,null,null,null,null,null,null,null,null,"Row 495"]
[null,"ER Split Unit 02",null,null,null,null,null,null,null,null,null,"Row 496"]
[null,"ER Split Unit 02",null,null,null,null,null,null,null,null,null,"Row 497"]
[null,"ER Split Unit 02",null,null,null,null,null,null,null,null,null,"Row 498"]
[null,"ER Split Unit 02",null,null,null,null,null,null,null,null,null,"Row 499"]
[null,"ER Split Unit 02",null,null,null,null,null,null,null,null,null,"Row 500"]
[null,"ER Split Unit 02",null,null,null,null,null,null,null,null,null,"Row 501"]
[null,"ER Split Unit 02",null,null,null,null,null,null,null,null,null,"Row 502"]
[null,"ER Split Unit 02",null,null,null,null,null,null,null,null,null,"Row 503"]
[null,"ER Split Unit 02",null,null,null,null,null,null,null,null,null,"Row 504"]
[null,"ER Split Unit 02",null,null,null,null,null,null,null,null,null,"Row 505"]
[null,"ER Split Unit 02",null,null,null,null,null,null,null,null,null,"Row 506"]
[null,"ER Split Unit 02",null,null,null,null,null,null,null,null,null,"Row 507"]
[null,"ER Split Unit 02",null,null,null,null,null,null,null,null,null,"Row 508"]
[null,"ER Split Unit 02",null,null,null,null,null,null,null,null,null,"Row 509"]
[null,"ER Split Unit 02",null,null,null,null,null,null,null,null,null,"Row 510"]
[null,"ER Split Unit 02",null,null,null,null,null,null,null,null,null,"Row 511"]
[null,"ER Split Unit 02",null,null,null,null,null,null,null,null,null,"Row 512"]
[null,"ER Split Unit 02",null,null,null,null,null,null,null,null,null,"Row 513"]
[null,"ER Split Unit 02",null,null,null,null,null,null,null,null,null,"Row 514"]
[null,"ER Split Unit 02",null,null,null,null,null,null,null,null,null,"Row 515"]
[null,"ER Split Unit 02",null,null,null,null,null,null,null,null,null,"Row 516"]
[null,"ER Split Unit 02",null,null,null,null,null,null,null,null,null,"Row 517"]
[null,"ER Split Unit 02",null,null,null,null,null,null,null,null,null,"Row 518"]
[null,"ER Split Unit 02",null,null,null,null,null,null,null,null,null,"Row 519"]
[null,"ER Split Unit 02",null,null,null,null,null,null,null,null,null,"Row 520"]
[null,"ER Split Unit 02",null,null,null,null,null,null,null,null,null,"Row 521"]
[null,"ER Split Unit 02",null,null,null,null,null,null,null,null,null,"Row 522"]
[null,"ER Split Unit 02",null,null,null,null,null,null,null,null,null,"Row 523"]
[null,"ER Split Unit 02",null,null,null,null,null,null,null,null,null,"Row 524"]
[null,"ER Split Unit 02",null,null,null,null,null,null,null,null,null,"Row 525"]
[null,"ER Split Unit 02",null,null,null,null,null,null,null,null,null,"Row 526"]
[null,"ER Split Unit 02",null,null,null,null,null,null,null,null,null,"Row 527"]
[null,"ER Split Unit 02",null,null,null,null,null,null,null,null,null,"Row 528"]
[null,"ER Split Unit 02",null,null,null,null,null,null,null,null,null,"Row 529"]
[null,"ER Split Unit 02",null,null,null,null,null,null,null,null,null,"Row 530"]
[null,"ER Split Unit 02",null,null,null,null,null,null,null,null,null,"Row 531"]
[null,"ER Split Unit 02",null,null,null,null,null,null,null,null,null,"Row 532"]
[null,"ER Split Unit 02",null,null,null,null,null,null,null,null,null,"Row 533"]
[null,"ER Split Unit 02",null,null,null,null,null,null,null,null,null,"Row 534"]
[null,"ER Split Unit 02",null,null,null,null,null,null,null,null,null,"Row 535"]
[null,"ER Split Unit 02",null,null,null,null,null,null,null,null,null,"Row 536"]
[null,"ER Split Unit 02",null,null,null,null,null,null,null,null,null,"Row 537"]
[null,"ER Split Unit 02",null,null,null,null,null,null,null,null,null,"Row 538"]
[null,"ER Split Unit 02",null,null,null,null,null,null,null,null,null,"Row 539"]
[null,"ER Split Unit 02",null,null,null,null,null,null,null,null,null,"Row 540"]
[null,"ER Split Unit 02",null,null,null,null,null,null,null,null,null,"Row 541"]
[null,"ER Split Unit 02",null,null,null,null,null,null,null,null,null,"Row 542"]
[null,"ER Split Unit 02",null,null,null,null,null,null,null,null,null,"Row 543"]
[null,"ER Split Unit 02",null,null,null,null,null,null,null,null,null,"Row 544"]
[null,"ER Split Unit 02",null,null,null,null,null,null,null,null,null,"Row 545"]
[null,"ER Split Unit 02",null,null,null,null,null,null,null,null,null,"Row 546"]
[null,"ER Split Unit 02",null,null,null,null,null,null,null,null,null,"Row 547"]
[null,"ER Split Unit 02",null,null,null,null,null,null,null,null,null,"Row 548"]
[null,"ER Split Unit 02",null,null,null,null,null,null,null,null,null,"Row 549"]
[null,"ER Split Unit 02",null,null,null,null,null,null,null,null,null,"Row 550"]
[null,"ER Split Unit 02",null,null,null,null,null,null,null,null,null,"Row 551"]
[null,"ER Split Unit 02",null,null,null,null,null,null,null,null,null,"Row 552"]
[null,"ER Split Unit 02",null,null,null,null,null,null,null,null,null,"Row 553"]
[null,"ER Split Unit 02",null,null,null,null,null,null,null,null,null,"Row 554"]
[null,"ER Split Unit 02",null,null,null,null,null,null,null,null,null,"Row 555"]
[null,"ER Split Unit 02",null,null,null,null,null,null,null,null,null,"Row 556"]
[null,"ER Split Unit 02",null,null,null,null,null,null,null,null,null,"Row 557"]
[null,"ER Split Unit 02",null,null,null,null,null,null,null,null,null,"Row 558"]
[null,"ER Split Unit 02",null,null,null,null,null,null,null,null,null,"Row 559"]
[null,"ER Split Unit 02",null,null,null,null,null,null,null,null,null,"Row 560"]
[null,"ER Split Unit 02",null,null,null,null,null,null,null,null,null,"Row 561"]
[null,"ER Split Unit 02",null,null,null,null,null,null,null,null,null,"Row 562"]
[null,"ER Split Unit 02",null,null,null,null,null,null,null,null,null,"Row 563"]
[null,"ER Split Unit 02",null,null,null,null,null,null,null,null,null,"Row 564"]
[null,"ER Split Unit 02",null,null,null,null,null,null,null,null,null,"Row 565"]
[null,"ER Split Unit 02",null,null,null,null,null,null,null,null,null,"Row 566"]
[null,"ER Split Unit 02",null,null,null,null,null,null,null,null,null,"Row 567"]
[null,"ER Split Unit 02",null,null,null,null,null,null,null,null,null,"Row 568"]
[null,"ER Split Unit 02",null,null,null,null,null,null,null,null,null,"Row 569"]
[null,"ER Split Unit 02",null,null,null,null,null,null,null,null,null,"Row 570"]
[null,"ER Split Unit 02",null,null,null,null,null,null,null,null,null,"Row 571"]
[null,"ER Split Unit 02",null,null,null,null,null,null,null,null,null,"Row 572"]
[null,"ER Split Unit 02",null,null,null,null,null,null,null,null,null,"Row 573"]
[null,"ER Split Unit 02",null,null,null,null,null,null,null,null,null,"Row 574"]
[null,"ER Split Unit 02",null,null,null,null,null,null,null,null,null,"Row 575"]
[null,"ER Split Unit 02",null,null,null,null,null,null,null,null,null,"Row 576"]
[null,"ER Split Unit 02",null,null,null,null,null,null,null,null,null,"Row 577"]
[null,"ER Split Unit 02",null,null,null,null,null,null,null,null,null,"Row 578"]
[null,"ER Split Unit 02",null,null,null,null,null,null,null,null,null,"Row 579"]
[null,"ER Split Unit 02",null,null,null,null,null,null,null,null,null,"Row 580"]
[null,"ER Split Unit 02",null,null,null,null,null,null,null,null,null,"Row 581"]
[null,"ER Split Unit 02",null,null,null,null,null,null,null,null,null,"Row 582"]
[null,"ER Split Unit 02",null,null,null,null,null,null,null,null,null,"Row 583"]
[null,"ER Split Unit 02",null,null,null,null,null,null,null,null,null,"Row 584"]
[null,"ER Split Unit 02",null,null,null,null,null,null,null,null,null,"Row 585"]
[null,"ER Split Unit 02",null,null,null,null,null,null,null,null,null,"Row 586"]
[null,"ER Split Unit 02",null,null,null,null,null,null,null,null,null,"Row 587"]
[null,"ER Split Unit 02",null,null,null,null,null,null,null,null,null,"Row 588"]
[null,"ER Split Unit 02",null,null,null,null,null,null,null,null,null,"Row 589"]
[null,"ER Split Unit 02",null,null,null,null,null,null,null,null,null,"Row 590"]
[null,"ER Split Unit 02",null,null,null,null,null,null,null,null,null,"Row 591"]
[null,"ER Split Unit 02",null,null,null,null,null,null,null,null,null,"Row 592"]
[null,"ER Split Unit 02",null,null,null,null,null,null,null,null,null,"Row 593"]
[null,"ER Split Unit 02",null,null,null,null,null,null,null,null,null,"Row 594"]
[null,"ER Split Unit 02",null,null,null,null,null,null,null,null,null,"Row 595"]
[null,"ER Split Unit 02",null,null,null,null,null,null,null,null,null,"Row 596"]
[null,"ER Split Unit 02",null,null,null,null,null,null,null,null,null,"Row 597"]
[null,"ER Split Unit 02",null,null,null,null,null,null,null,null,null,"Row 598"]
[null,"ER Split Unit 02",null,null,null,null,null,null,null,null,null,"Row 599"]
[null,"ER Split Unit 02",null,null,null,null,null,null,null,null,null,"Row 600"]
[null,"ER Split Unit 02",null,null,null,null,null,null,null,null,null,"Row 601"]
[null,"ER Split Unit 02",null,null,null,null,null,null,null,null,null,"Row 602"]
[null,"ER Split Unit 02",null,null,null,null,null,null,null,null,null,"Row 603"]
[null,"ER Split Unit 02",null,null,null,null,null,null,null,null,null,"Row 604"]
[null,"ER Split Unit 02",null,null,null,null,null,null,null,null,null,"Row 605"]
[null,"ER Split Unit 02",null,null,null,null,null,null,null,null,null,"Row 606"]
[null,"ER Split Unit 02",null,null,null,null,null,null,null,null,null,"Row 607"]
[null,"ER Split Unit 02",null,null,null,null,null,null,null,null,null,"Row 608"]
[null,"ER Split Unit 02",null,null,null,null,null,null,null,null,null,"Row 609"]
[null,"ER Split Unit 02",null,null,null,null,null,null,null,null,null,"Row 610"]
[null,"ER Split Unit 02",null,null,null,null,null,null,null,null,null,"Row 611"]
[null,"ER Split Unit 02",null,null,null,null,null,null,null,null,null,"Row 612"]
[null,"ER Split Unit 02",null,null,null,null,null,null,null,null,null,"Row 613"]
[null,"ER Split Unit 02",null,null,null,null,null,null,null,null,null,"Row 614"]
[null,"ER Split Unit 02",null,null,null,null,null,null,null,null,null,"Row 615"]
[null,"ER Split Unit 02",null,null,null,null,null,null,null,null,null,"Row 616"]
[null,"ER Split Unit 02",null,null,null,null,null,null,null,null,null,"Row 617"]
[null,"ER Split Unit 02",null,null,null,null,null,null,null,null,null,"Row 618"]
[null,"ER Split Unit 02",null,null,null,null,null,null,null,null,null,"Row 619"]
[null,"ER Split Unit 02",null,null,null,null,null,null,null,null,null,"Row 620"]
[null,"ER Split Unit 02",null,null,null,null,null,null,null,null,null,"Row 621"]
[null,"ER Split Unit 02",null,null,null,null,null,null,null,null,null,"Row 622"]
[null,"ER Split Unit 02",null,null,null,null,null,null,null,null,null,"Row 623"]
[null,"ER Split Unit 02",null,null,null,null,null,null,null,null,null,"Row 624"]
[null,"ER Split Unit 02",null,null,null,null,null,null,null,null,null,"Row 625"]
[null,"ER Split Unit 02",null,null,null,null,null,null,null,null,null,"Row 626"]
[null,"ER Split Unit 02",null,null,null,null,null,null,null,null,null,"Row 627"]
[null,"ER Split Unit 02",null,null,null,null,null,null,null,null,null,"Row 628"]
[null,"ER Split Unit 02",null,null,null,null,null,null,null,null,null,"Row 629"]
[null,"ER Split Unit 02",null,null,null,null,null,null,null,null,null,"Row 630"]
[null,"ER Split Unit 02",null,null,null,null,null,null,null,null,null,"Row 631"]
[null,"ER Split Unit 02",null,null,null,null,null,null,null,null,null,"Row 632"]
[null,"ER Split Unit 02",null,null,null,null,null,null,null,null,null,"Row 633"]
[null,"ER Split Unit 02",null,null,null,null,null,null,null,null,null,"Row 634"]
[null,"ER Split Unit 02",null,null,null,null,null,null,null,null,null,"Row 635"]
[null,"ER Split Unit 02",null,null,null,null,null,null,null,null,null,"Row 636"]
[null,"ER Split Unit 02",null,null,null,null,null,null,null,null,null,"Row 637"]
[null,"ER Split Unit 02",null,null,null,null,null,null,null,null,null,"Row 638"]
[null,"ER Split Unit 02",null,null,null,null,null,null,null,null,null,"Row 639"]
[null,"ER Split Unit 02",null,null,null,null,null,null,null,null,null,"Row 640"]
[null,"ER Split Unit 02",null,null,null,null,null,null,null,null,null,"Row 641"]
[null,"ER Split Unit 02",null,null,null,null,null,null,null,null,null,"Row 642"]
[null,"ER Split Unit 02",null,null,null,null,null,null,null,null,null,"Row 643"]
[null,"ER Split Unit 02",null,null,null,null,null,null,null,null,null,"Row 644"]
[null,"ER Split Unit 02",null,null,null,null,null,null,null,null,null,"Row 645"]
[null,"ER Split Unit 02",null,null,null,null,null,null,null,null,null,"Row 646"]
[null,"ER Split Unit 02",null,null,null,null,null,null,null,null,null,"Row 647"]
[null,"ER Split Unit 02",null,null,null,null,null,null,null,null,null,"Row 648"]
[null,"ER Split Unit 02",null,null,null,null,null,null,null,null,null,"Row 649"]
[null,"ER Split Unit 02",null,null,null,null,null,null,null,null,null,"Row 650"]
[null,"ER Split Unit 02",null,null,null,null,null,null,null,null,null,"Row 651"]
[null,"ER Split Unit 02",null,null,null,null,null,null,null,null,null,"Row 652"]
[null,"ER Split Unit 02",null,null,null,null,null,null,null,null,null,"Row 653"]
[null,"ER Split Unit 02",null,null,null,null,null,null,null,null,null,"Row 654"]
[null,"ER Split Unit 02",null,null,null,null,null,null,null,null,null,"Row 655"]
[null,"ER Split Unit 02",null,null,null,null,null,null,null,null,null,"Row 656"]
[null,"ER Split Unit 02",null,null,null,null,null,null,null,null,null,"Row 657"]
[null,"ER Split Unit 02",null,null,null,null,null,null,null,null,null,"Row 658"]
[null,"ER Split Unit 02",null,null,null,null,null,null,null,null,null,"Row 659"]
[null,"ER Split Unit 02",null,null,null,null,null,null,null,null,null,"Row 660"]
[null,"ER Split Unit 02",null,null,null,null,null,null,null,null,null,"Row 661"]
[null,"ER Split Unit 02",null,null,null,null,null,null,null,null,null,"Row 662"]
[null,"ER Split Unit 02",null,null,null,null,null,null,null,null,null,"Row 663"]
[null,"ER Split Unit 02",null,null,null,null,null,null,null,null,null,"Row 664"]
[null,"ER Split Unit 02",null,null,null,null,null,null,null,null,null,"Row 665"]
[null,"ER Split Unit 02",null,null,null,null,null,null,null,null,null,"Row 666"]
[null,"ER Split Unit 02",null,null,null,null,null,null,null,null,null,"Row 667"]
[null,"ER Split Unit 02",null,null,null,null,null,null,null,null,null,"Row 668"]
[null,"ER Split Unit 02",null,null,null,null,null,null,null,null,null,"Row 669"]
[null,"ER Split Unit 02",null,null,null,null,null,null,null,null,null,"Row 670"]
[null,"ER Split Unit 02",null,null,null,null,null,null,null,null,null,"Row 671"]
[null,"ER Split Unit 02",null,null,null,null,null,null,null,null,null,"Row 672"]
[null,"ER Split Unit 02",null,null,null,null,null,null,null,null,null,"Row 673"]
[null,"ER Split Unit 02",null,null,null,null,null,null,null,null,null,"Row 674"]
[null,"ER Split Unit 02",null,null,null,null,null,null,null,null,null,"Row 675"]
[null,"ER Split Unit 02",null,null,null,null,null,null,null,null,null,"Row 676"]
[null,"ER Split Unit 02",null,null,null,null,null,null,null,null,null,"Row 677"]
[null,"ER Split Unit 02",null,null,null,null,null,null,null,null,null,"Row 678"]
[null,"ER Split Unit 02",null,null,null,null,null,null,null,null,null,"Row 679"]
[null,"ER Split Unit 02",null,null,null,null,null,null,null,null,null,"Row 680"]
[null,"ER Split Unit 02",null,null,null,null,null,null,null,null,null,"Row 681"]
[null,"ER Split Unit 02",null,null,null,null,null,null,null,null,null,"Row 682"]
[null,"ER Split Unit 02",null,null,null,null,null,null,null,null,null,"Row 683"]
[null,"ER Split Unit 02",null,null,null,null,null,null,null,null,null,"Row 684"]
[null,"ER Split Unit 02",null,null,null,null,null,null,null,null,null,"Row 685"]
[null,"ER Split Unit 02",null,null,null,null,null,null,null,null,null,"Row 686"]
[null,"ER Split Unit 02",null,null,null,null,null,null,null,null,null,"Row 687"]
[null,"ER Split Unit 02",null,null,null,null,null,null,null,null,null,"Row 688"]
[null,"ER Split Unit 02",null,null,null,null,null,null,null,null,null,"Row 689"]
[null,"ER Split Unit 02",null,null,null,null,null,null,null,null,null,"Row 690"]
[null,"ER Split Unit 02",null,null,null,null,null,null,null,null,null,"Row 691"]
[null,"ER Split Unit 02",null,null,null,null,null,null,null,null,null,"Row 692"]
[null,"ER Split Unit 02",null,null,null,null,null,null,null,null,null,"Row 693"]
[null,"ER Split Unit 02",null,null,null,null,null,null,null,null,null,"Row 694"]
[null,"ER Split Unit 02",null,null,null,null,null,null,null,null,null,"Row 695"]
[null,"ER Split Unit 02",null,null,null,null,null,null,null,null,null,"Row 696"]
[null,"ER Split Unit 02",null,null,null,null,null,null,null,null,null,"Row 697"]
[null,"ER Split Unit 02",null,null,null,null,null,null,null,null,null,"Row 698"]
[null,"ER Split Unit 02",null,null,null,null,null,null,null,null,null,"Row 699"]
[null,"ER Split Unit 02",null,null,null,null,null,null,null,null,null,"Row 700"]
[null,"ER Split Unit 02",null,null,null,null,null,null,null,null,null,"Row 701"]
[null,"ER Split Unit 02",null,null,null,null,null,null,null,null,null,"Row 702"]
[null,"ER Split Unit 02",null,null,null,null,null,null,null,null,null,"Row 703"]
[null,"ER Split Unit 02",null,null,null,null,null,null,null,null,null,"Row 704"]
[null,"ER Split Unit 02",null,null,null,null,null,null,null,null,null,"Row 705"]
[null,"ER Split Unit 02",null,null,null,null,null,null,null,null,null,"Row 706"]
[null,"ER Split Unit 02",null,null,null,null,null,null,null,null,null,"Row 707"]
[null,"ER Split Unit 02",null,null,null,null,null,null,null,null,null,"Row 708"]
[null,"ER Split Unit 02",null,null,null,null,null,null,null,null,null,"Row 709"]
[null,"ER Split Unit 02",null,null,null,null,null,null,null,null,null,"Row 710"]
[null,"ER Split Unit 02",null,null,null,null,null,null,null,null,null,"Row 711"]
[null,"ER Split Unit 02",null,null,null,null,null,null,null,null,null,"Row 712"]
[null,"ER Split Unit 02",null,null,null,null,null,null,null,null,null,"Row 713"]
[null,"ER Split Unit 02",null,null,null,null,null,null,null,null,null,"Row 714"]
[null,"ER Split Unit 02",null,null,null,null,null,null,null,null,null,"Row 715"]
[null,"ER Split Unit 02",null,null,null,null,null,null,null,null,null,"Row 716"]
[null,"ER Split Unit 02",null,null,null,null,null,null,null,null,null,"Row 717"]
[null,"ER Split Unit 02",null,null,null,null,null,null,null,null,null,"Row 718"]
[null,"ER Split Unit 02",null,null,null,null,null,null,null,null,null,"Row 719"]
[null,"ER Split Unit 02",null,null,null,null,null,null,null,null,null,"Row 720"]
[null,"ER Split Unit 02",null,null,null,null,null,null,null,null,null,"Row 721"]
[null,"ER Split Unit 02",null,null,null,null,null,null,null,null,null,"Row 722"]
[null,"ER Split Unit 02",null,null,null,null,null,null,null,null,null,"Row 723"]
[null,"ER Split Unit 02",null,null,null,null,null,null,null,null,null,"Row 724"]
[null,"ER Split Unit 02",null,null,null,null,null,null,null,null,null,"Row 725"]
[null,"ER Split Unit 02",null,null,null,null,null,null,null,null,null,"Row 726"]
[null,"ER Split Unit 02",null,null,null,null,null,null,null,null,null,"Row 727"]
[null,"ER Split Unit 02",null,null,null,null,null,null,null,null,null,"Row 728"]
[null,"ER Split Unit 02",null,null,null,null,null,null,null,null,null,"Row 729"]
[null,"ER Split Unit 02",null,null,null,null,null,null,null,null,null,"Row 730"]
[null,"ER Split Unit 02",null,null,null,null,null,null,null,null,null,"Row 731"]
[null,"ER Split Unit 02",null,null,null,null,null,null,null,null,null,"Row 732"]
[null,"ER Split Unit 02",null,null,null,null,null,null,null,null,null,"Row 733"]
[null,"ER Split Unit 02",null,null,null,null,null,null,null,null,null,"Row 734"]
[null,"ER Split Unit 02",null,null,null,null,null,null,null,null,null,"Row 735"]
[null,"ER Split Unit 02",null,null,null,null,null,null,null,null,null,"Row 736"]
[null,"ER Split Unit 02",null,null,null,null,null,null,null,null,null,"Row 737"]
[null,"ER Split Unit 02",null,null,null,null,null,null,null,null,null,"Row 738"]
[null,"ER Split Unit 02",null,null,null,null,null,null,null,null,null,"Row 739"]
[null,"ER Split Unit 02",null,null,null,null,null,null,null,null,null,"Row 740"]
[null,"ER Split Unit 02",null,null,null,null,null,null,null,null,null,"Row 741"]
[null,"ER Split Unit 02",null,null,null,null,null,null,null,null,null,"Row 742"]
[null,"ER Split Unit 02",null,null,null,null,null,null,null,null,null,"Row 743"]
[null,"ER Split Unit 02",null,null,null,null,null,null,null,null,null,"Row 744"]
[null,"ER Split Unit 02",null,null,null,null,null,null,null,null,null,"Row 745"]
[null,"ER Split Unit 02",null,null,null,null,null,null,null,null,null,"Row 746"]
[null,"ER Split Unit 02",null,null,null,null,null,null,null,null,null,"Row 747"]
[null,"ER Split Unit 02",null,null,null,null,null,null,null,null,null,"Row 748"]
[null,"ER Split Unit 02",null,null,null,null,null,null,null,null,null,"Row 749"]
[null,"ER Split Unit 02",null,null,null,null,null,null,null,null,null,"Row 750"]
[null,"ER Split Unit 02",null,null,null,null,null,null,null,null,null,"Row 751"]
[null,"ER Split Unit 02",null,null,null,null,null,null,null,null,null,"Row 752"]
[null,"ER Split Unit 02",null,null,null,null,null,null,null,null,null,"Row 753"]
[null,"ER Split Unit 02",null,null,null,null,null,null,null,null,null,"Row 754"]
[null,"ER Split Unit 02",null,null,null,null,null,null,null,null,null,"Row 755"]
[null,"ER Split Unit 02",null,null,null,null,null,null,null,null,null,"Row 756"]
[null,"ER Split Unit 02",null,null,null,null,null,null,null,null,null,"Row 757"]
[null,"ER Split Unit 02",null,null,null,null,null,null,null,null,null,"Row 758"]
[null,"ER Split Unit 02",null,null,null,null,null,null,null,null,null,"Row 759"]
[null,"ER Split Unit 02",null,null,null,null,null,null,null,null,null,"Row 760"]
[null,"ER Split Unit 02",null,null,null,null,null,null,null,null,null,"Row 761"]
[null,"ER Split Unit 02",null,null,null,null,null,null,null,null,null,"Row 762"]
[null,"ER Split Unit 02",null,null,null,null,null,null,null,null,null,"Row 763"]
[null,"ER Split Unit 02",null,null,null,null,null,null,null,null,null,"Row 764"]
[null,"ER Split Unit 02",null,null,null,null,null,null,null,null,null,"Row 765"]
[null,"ER Split Unit 02",null,null,null,null,null,null,null,null,null,"Row 766"]
[null,"ER Split Unit 02",null,null,null,null,null,null,null,null,null,"Row 767"]
[null,"ER Split Unit 02",null,null,null,null,null,null,null,null,null,"Row 768"]
[null,"ER Split Unit 02",null,null,null,null,null,null,null,null,null,"Row 769"]
[null,"ER Split Unit 02",null,null,null,null,null,null,null,null,null,"Row 770"]
[null,"ER Split Unit 02",null,null,null,null,null,null,null,null,null,"Row 771"]
[null,"ER Split Unit 02",null,null,null,null,null,null,null,null,null,"Row 772"]
[null,"ER Split Unit 02",null,null,null,null,null,null,null,null,null,"Row 773"]
[null,"ER Split Unit 02",null,null,null,null,null,null,null,null,null,"Row 774"]
[null,"ER Split Unit 02",null,null,null,null,null,null,null,null,null,"Row 775"]
[null,"ER Split Unit 02",null,null,null,null,null,null,null,null,null,"Row 776"]
[null,"ER Split Unit 02",null,null,null,null,null,null,null,null,null,"Row 777"]
[null,"ER Split Unit 02",null,null,null,null,null,null,null,null,null,"Row 778"]
[null,"ER Split Unit 02",null,null,null,null,null,null,null,null,null,"Row 779"]
[null,"ER Split Unit 02",null,null,null,null,null,null,null,null,null,"Row 780"]
[null,"ER Split Unit 02",null,null,null,null,null,null,null,null,null,"Row 781"]
[null,"ER Split Unit 02",null,null,null,null,null,null,null,null,null,"Row 782"]
[null,"ER Split Unit 02",null,null,null,null,null,null,null,null,null,"Row 783"]
[null,"ER Split Unit 02",null,null,null,null,null,null,null,null,null,"Row 784"]
[null,"ER Split Unit 02",null,null,null,null,null,null,null,null,null,"Row 785"]
[null,"ER Split Unit 02",null,null,null,null,null,null,null,null,null,"Row 786"]
[null,"ER Split Unit 02",null,null,null,null,null,null,null,null,null,"Row 787"]
[null,"ER Split Unit 02",null,null,null,null,null,null,null,null,null,"Row 788"]
[null,"ER Split Unit 02",null,null,null,null,null,null,null,null,null,"Row 789"]
[null,"ER Split Unit 02",null,null,null,null,null,null,null,null,null,"Row 790"]
[null,"ER Split Unit 02",null,null,null,null,null,null,null,null,null,"Row 791"]
[null,"ER Split Unit 02",null,null,null,null,null,null,null,null,null,"Row 792"]
[null,"ER Split Unit 02",null,null,null,null,null,null,null,null,null,"Row 793"]
[null,"ER Split Unit 02",null,null,null,null,null,null,null,null,null,"Row 794"]
[null,"ER Split Unit 02",null,null,null,null,null,null,null,null,null,"Row 795"]
[null,"ER Split Unit 02",null,null,null,null,null,null,null,null,null,"Row 796"]
[null,"ER Split Unit 02",null,null,null,null,null,null,null,null,null,"Row 797"]
[null,"ER Split Unit 02",null,null,null,null,null,null,null,null,null,"Row 798"]
[null,"ER Split Unit 02",null,null,null,null,null,null,null,null,null,"Row 799"]
[null,"ER Split Unit 02",null,null,null,null,null,null,null,null,null,"Row 800"]
[null,"ER Split Unit 02",null,null,null,null,null,null,null,null,null,"Row 801"]
[null,"ER Split Unit 02",null,null,null,null,null,null,null,null,null,"Row 802"]
[null,"ER Split Unit 02",null,null,null,null,null,null,null,null,null,"Row 803"]
[null,"ER Split Unit 02",null,null,null,null,null,null,null,null,null,"Row 804"]
[null,"ER Split Unit 02",null,null,null,null,null,null,null,null,null,"Row 805"]
[null,"ER Split Unit 02",null,null,null,null,null,null,null,null,null,"Row 806"]
[null,"ER Split Unit 02",null,null,null,null,null,null,null,null,null,"Row 807"]
[null,"ER Split Unit 02",null,null,null,null,null,null,null,null,null,"Row 808"]
[null,"ER Split Unit 02",null,null,null,null,null,null,null,null,null,"Row 809"]
[null,"ER Split Unit 02",null,null,null,null,null,null,null,null,null,"Row 810"]
[null,"ER Split Unit 02",null,null,null,null,null,null,null,null,null,"Row 811"]
[null,"ER Split Unit 02",null,null,null,null,null,null,null,null,null,"Row 812"]
[null,"ER Split Unit 02",null,null,null,null,null,null,null,null,null,"Row 813"]
[null,"ER Split Unit 02",null,null,null,null,null,null,null,null,null,"Row 814"]
[null,"ER Split Unit 02",null,null,null,null,null,null,null,null,null,"Row 815"]
[null,"ER Split Unit 02",null,null,null,null,null,null,null,null,null,"Row 816"]
[null,"ER Split Unit 02",null,null,null,null,null,null,null,null,null,"Row 817"]
[null,"ER Split Unit 02",null,null,null,null,null,null,null,null,null,"Row 818"]
[null,"ER Split Unit 02",null,null,null,null,null,null,null,null,null,"Row 819"]
[null,"ER Split Unit 02",null,null,null,null,null,null,null,null,null,"Row 820"]
[null,"ER Split Unit 02",null,null,null,null,null,null,null,null,null,"Row 821"]
[null,"ER Split Unit 02",null,null,null,null,null,null,null,null,null,"Row 822"]
[null,"ER Split Unit 02",null,null,null,null,null,null,null,null,null,"Row 823"]
[null,"ER Split Unit 02",null,null,null,null,null,null,null,null,null,"Row 824"]
[null,"ER Split Unit 02",null,null,null,null,null,null,null,null,null,"Row 825"]
[null,"ER Split Unit 02",null,null,null,null,null,null,null,null,null,"Row 826"]
[null,"ER Split Unit 02",null,null,null,null,null,null,null,null,null,"Row 827"]
[null,"ER Split Unit 02",null,null,null,null,null,null,null,null,null,"Row 828"]
[null,"ER Split Unit 02",null,null,null,null,null,null,null,null,null,"Row 829"]
[null,"ER Split Unit 02",null,null,null,null,null,null,null,null,null,"Row 830"]
[null,"ER Split Unit 02",null,null,null,null,null,null,null,null,null,"Row 831"]
[null,"ER Split Unit 02",null,null,null,null,null,null,null,null,null,"Row 832"]
[null,"ER Split Unit 02",null,null,null,null,null,null,null,null,null,"Row 833"]
[null,"ER Split Unit 02",null,null,null,null,null,null,null,null,null,"Row 834"]
[null,"ER Split Unit 02",null,null,null,null,null,null,null,null,null,"Row 835"]
[null,"ER Split Unit 02",null,null,null,null,null,null,null,null,null,"Row 836"]
[null,"ER Split Unit 02",null,null,null,null,null,null,null,null,null,"Row 837"]
[null,"ER Split Unit 02",null,null,null,null,null,null,null,null,null,"Row 838"]
[null,"ER Split Unit 02",null,null,null,null,null,null,null,null,null,"Row 839"]
[null,"ER Split Unit 02",null,null,null,null,null,null,null,null,null,"Row 840"]
[null,"ER Split Unit 02",null,null,null,null,null,null,null,null,null,"Row 841"]
[null,"ER Split Unit 02",null,null,null,null,null,null,null,null,null,"Row 842"]
[null,"ER Split Unit 02",null,null,null,null,null,null,null,null,null,"Row 843"]
[null,"ER Split Unit 02",null,null,null,null,null,null,null,null,null,"Row 844"]
[null,"ER Split Unit 02",null,null,null,null,null,null,null,null,null,"Row 845"]
[null,"ER Split Unit 02",null,null,null,null,null,null,null,null,null,"Row 846"]
[null,"ER Split Unit 02",null,null,null,null,null,null,null,null,null,"Row 847"]
[null,"ER Split Unit 02",null,null,null,null,null,null,null,null,null,"Row 848"]
[null,"ER Split Unit 02",null,null,null,null,null,null,null,null,null,"Row 849"]
[null,"ER Split Unit 02",null,null,null,null,null,null,null,null,null,"Row 850"]
[null,"ER Split Unit 02",null,null,null,null,null,null,null,null,null,"Row 851"]
[null,"ER Split Unit 02",null,null,null,null,null,null,null,null,null,"Row 852"]
[null,"ER Split Unit 02",null,null,null,null,null,null,null,null,null,"Row 853"]
[null,"ER Split Unit 02",null,null,null,null,null,null,null,null,null,"Row 854"]
[null,"ER Split Unit 02",null,null,null,null,null,null,null,null,null,"Row 855"]
[null,"ER Split Unit 02",null,null,null,null,null,null,null,null,null,"Row 856"]
[null,"ER Split Unit 02",null,null,null,null,null,null,null,null,null,"Row 857"]
[null,"ER Split Unit 02",null,null,null,null,null,null,null,null,null,"Row 858"]
[null,"ER Split Unit 02",null,null,null,null,null,null,null,null,null,"Row 859"]
[null,"ER Split Unit 02",null,null,null,null,null,null,null,null,null,"Row 860"]
[null,"ER Split Unit 02",null,null,null,null,null,null,null,null,null,"Row 861"]
[null,"ER Split Unit 02",null,null,null,null,null,null,null,null,null,"Row 862"]
[null,"ER Split Unit 02",null,null,null,null,null,null,null,null,null,"Row 863"]
[null,"ER Split Unit 02",null,null,null,null,null,null,null,null,null,"Row 864"]
[null,"ER Split Unit 02",null,null,null,null,null,null,null,null,null,"Row 865"]
[null,"ER Split Unit 02",null,null,null,null,null,null,null,null,null,"Row 866"]
[null,"ER Split Unit 02",null,null,null,null,null,null,null,null,null,"Row 867"]
[null,"ER Split Unit 02",null,null,null,null,null,null,null,null,null,"Row 868"]
[null,"ER Split Unit 02",null,null,null,null,null,null,null,null,null,"Row 869"]
[null,"ER Split Unit 02",null,null,null,null,null,null,null,null,null,"Row 870"]
[null,"ER Split Unit 02",null,null,null,null,null,null,null,null,null,"Row 871"]
[null,"ER Split Unit 02",null,null,null,null,null,null,null,null,null,"Row 872"]
[null,"ER Split Unit 02",null,null,null,null,null,null,null,null,null,"Row 873"]
[null,"ER Split Unit 02",null,null,null,null,null,null,null,null,null,"Row 874"]
[null,"ER Split Unit 02",null,null,null,null,null,null,null,null,null,"Row 875"]
[null,"ER Split Unit 02",null,null,null,null,null,null,null,null,null,"Row 876"]
[null,"ER Split Unit 02",null,null,null,null,null,null,null,null,null,"Row 877"]
[null,"ER Split Unit 02",null,null,null,null,null,null,null,null,null,"Row 878"]
[null,"ER Split Unit 02",null,null,null,null,null,null,null,null,null,"Row 879"]
[null,"ER Split Unit 02",null,null,null,null,null,null,null,null,null,"Row 880"]
[null,"ER Split Unit 02",null,null,null,null,null,null,null,null,null,"Row 881"]
[null,"ER Split Unit 02",null,null,null,null,null,null,null,null,null,"Row 882"]
[null,"ER Split Unit 02",null,null,null,null,null,null,null,null,null,"Row 883"]
[null,"ER Split Unit 02",null,null,null,null,null,null,null,null,null,"Row 884"]
[null,"ER Split Unit 02",null,null,null,null,null,null,null,null,null,"Row 885"]
[null,"ER Split Unit 02",null,null,null,null,null,null,null,null,null,"Row 886"]
[null,"ER Split Unit 02",null,null,null,null,null,null,null,null,null,"Row 887"]
[null,"ER Split Unit 02",null,null,null,null,null,null,null,null,null,"Row 888"]
[null,"ER Split Unit 02",null,null,null,null,null,null,null,null,null,"Row 889"]
[null,"ER Split Unit 02",null,null,null,null,null,null,null,null,null,"Row 890"]
[null,"ER Split Unit 02",null,null,null,null,null,null,null,null,null,"Row 891"]
[null,"ER Split Unit 02",null,null,null,null,null,null,null,null,null,"Row 892"]
[null,"ER Split Unit 02",null,null,null,null,null,null,null,null,null,"Row 893"]
[null,"ER Split Unit 02",null,null,null,null,null,null,null,null,null,"Row 894"]
[null,"ER Split Unit 02",null,null,null,null,null,null,null,null,null,"Row 895"]
[null,"ER Split Unit 02",null,null,null,null,null,null,null,null,null,"Row 896"]
[null,"ER Split Unit 02",null,null,null,null,null,null,null,null,null,"Row 897"]
[null,"ER Split Unit 02",null,null,null,null,null,null,null,null,null,"Row 898"]
[null,"ER Split Unit 02",null,null,null,null,null,null,null,null,null,"Row 899"]
[null,"ER Split Unit 02",null,null,null,null,null,null,null,null,null,"Row 900"]
[null,"ER Split Unit 02",null,null,null,null,null,null,null,null,null,"Row 901"]
[null,"ER Split Unit 02",null,null,null,null,null,null,null,null,null,"Row 902"]
[null,"ER Split Unit 02",null,null,null,null,null,null,null,null,null,"Row 903"]
[null,"ER Split Unit 02",null,null,null,null,null,null,null,null,null,"Row 904"]
[null,"ER Split Unit 02",null,null,null,null,null,null,null,null,null,"Row 905"]
[null,"ER Split Unit 02",null,null,null,null,null,null,null,null,null,"Row 906"]
[null,"ER Split Unit 02",null,null,null,null,null,null,null,null,null,"Row 907"]
[null,"ER Split Unit 02",null,null,null,null,null,null,null,null,null,"Row 908"]
[null,"ER Split Unit 02",null,null,null,null,null,null,null,null,null,"Row 909"]
[null,"ER Split Unit 02",null,null,null,null,null,null,null,null,null,"Row 910"]
[null,"ER Split Unit 02",null,null,null,null,null,null,null,null,null,"Row 911"]
[null,"ER Split Unit 02",null,null,null,null,null,null,null,null,null,"Row 912"]
[null,"ER Split Unit 02",null,null,null,null,null,null,null,null,null,"Row 913"]
[null,"ER Split Unit 02",null,null,null,null,null,null,null,null,null,"Row 914"]
[null,"ER Split Unit 02",null,null,null,null,null,null,null,null,null,"Row 915"]
[null,"ER Split Unit 02",null,null,null,null,null,null,null,null,null,"Row 916"]
[null,"ER Split Unit 02",null,null,null,null,null,null,null,null,null,"Row 917"]
[null,"ER Split Unit 02",null,null,null,null,null,null,null,null,null,"Row 918"]
[null,"ER Split Unit 02",null,null,null,null,null,null,null,null,null,"Row 919"]
[null,"ER Split Unit 02",null,null,null,null,null,null,null,null,null,"Row 920"]
[null,"ER Split Unit 02",null,null,null,null,null,null,null,null,null,"Row 921"]
[null,"ER Split Unit 02",null,null,null,null,null,null,null,null,null,"Row 922"]
[null,"ER Split Unit 02",null,null,null,null,null,null,null,null,null,"Row 923"]
[null,"ER Split Unit 02",null,null,null,null,null,null,null,null,null,"Row 924"]
[null,"ER Split Unit 02",null,null,null,null,null,null,null,null,null,"Row 925"]
[null,"ER Split Unit 02",null,null,null,null,null,null,null,null,null,"Row 926"]
[null,"ER Split Unit 02",null,null,null,null,null,null,null,null,null,"Row 927"]
[null,"ER Split Unit 02",null,null,null,null,null,null,null,null,null,"Row 928"]
[null,"ER Split Unit 02",null,null,null,null,null,null,null,null,null,"Row 929"]
[null,"ER Split Unit 02",null,null,null,null,null,null,null,null,null,"Row 930"]
[null,"ER Split Unit 02",null,null,null,null,null,null,null,null,null,"Row 931"]
[null,"ER Split Unit 02",null,null,null,null,null,null,null,null,null,"Row 932"]
[null,"ER Split Unit 02",null,null,null,null,null,null,null,null,null,"Row 933"]
[null,"ER Split Unit 02",null,null,null,null,null,null,null,null,null,"Row 934"]
[null,"ER Split Unit 02",null,null,null,null,null,null,null,null,null,"Row 935"]
[null,"ER Split Unit 02",null,null,null,null,null,null,null,null,null,"Row 936"]
[null,"ER Split Unit 02",null,null,null,null,null,null,null,null,null,"Row 937"]
[null,"ER Split Unit 02",null,null,null,null,null,null,null,null,null,"Row 938"]
[null,"ER Split Unit 02",null,null,null,null,null,null,null,null,null,"Row 939"]
[null,"ER Split Unit 02",null,null,null,null,null,null,null,null,null,"Row 940"]
[null,"ER Split Unit 02",null,null,null,null,null,null,null,null,null,"Row 941"]
[null,"ER Split Unit 02",null,null,null,null,null,null,null,null,null,"Row 942"]
[null,"ER Split Unit 02",null,null,null,null,null,null,null,null,null,"Row 943"]
[null,"ER Split Unit 02",null,null,null,null,null,null,null,null,null,"Row 944"]
[null,"ER Split Unit 02",null,null,null,null,null,null,null,null,null,"Row 945"]
[null,"ER Split Unit 02",null,null,null,null,null,null,null,null,null,"Row 946"]
[null,"ER Split Unit 02",null,null,null,null,null,null,null,null,null,"Row 947"]
[null,"ER Split Unit 02",null,null,null,null,null,null,null,null,null,"Row 948"]
[null,"ER Split Unit 02",null,null,null,null,null,null,null,null,null,"Row 949"]
[null,"ER Split Unit 02",null,null,null,null,null,null,null,null,null,"Row 950"]
[null,"ER Split Unit 02",null,null,null,null,null,null,null,null,null,"Row 951"]
[null,"ER Split Unit 02",null,null,null,null,null,null,null,null,null,"Row 952"]
[null,"ER Split Unit 02",null,null,null,null,null,null,null,null,null,"Row 953"]
[null,"ER Split Unit 02",null,null,null,null,null,null,null,null,null,"Row 954"]
[null,"ER Split Unit 02",null,null,null,null,null,null,null,null,null,"Row 955"]
[null,"ER Split Unit 02",null,null,null,null,null,null,null,null,null,"Row 956"]
[null,"ER Split Unit 02",null,null,null,null,null,null,null,null,null,"Row 957"]
[null,"ER Split Unit 02",null,null,null,null,null,null,null,null,null,"Row 958"]
[null,"ER Split Unit 02",null,null,null,null,null,null,null,null,null,"Row 959"]
[null,"ER Split Unit 02",null,null,null,null,null,null,null,null,null,"Row 960"]
[null,"ER Split Unit 02",null,null,null,null,null,null,null,null,null,"Row 961"]
[null,"ER Split Unit 02",null,null,null,null,null,null,null,null,null,"Row 962"]
[null,"ER Split Unit 02",null,null,null,null,null,null,null,null,null,"Row 963"]
[null,"ER Split Unit 02",null,null,null,null,null,null,null,null,null,"Row 964"]
[null,"ER Split Unit 02",null,null,null,null,null,null,null,null,null,"Row 965"]
[null,"ER Split Unit 02",null,null,null,null,null,null,null,null,null,"Row 966"]
[null,"ER Split Unit 02",null,null,null,null,null,null,null,null,null,"Row 967"]
[null,"ER Split Unit 02",null,null,null,null,null,null,null,null,null,"Row 968"]
[null,"ER Split Unit 02",null,null,null,null,null,null,null,null,null,"Row 969"]
[null,"ER Split Unit 02",null,null,null,null,null,null,null,null,null,"Row 970"]
[null,"ER Split Unit 02",null,null,null,null,null,null,null,null,null,"Row 971"]
[null,"ER Split Unit 02",null,null,null,null,null,null,null,null,null,"Row 972"]
[null,"ER Split Unit 02",null,null,null,null,null,null,null,null,null,"Row 973"]
[null,"ER Split Unit 02",null,null,null,null,null,null,null,null,null,"Row 974"]
[null,"ER Split Unit 02",null,null,null,null,null,null,null,null,null,"Row 975"]
[null,"ER Split Unit 02",null,null,null,null,null,null,null,null,null,"Row 976"]
[null,"ER Split Unit 02",null,null,null,null,null,null,null,null,null,"Row 977"]
[null,"ER Split Unit 02",null,null,null,null,null,null,null,null,null,"Row 982"]
[null,"ER Split Unit 02",null,null,null,null,null,null,null,null,null,"Row 987"]
[null,"ER Split Unit 02",null,null,null,null,null,null,null,null,null,"Row 988"]
[null,"ER Split Unit 02",null,null,null,null,null,null,null,null,null,"Row 993"]
[null,"ER Split Unit 02",null,null,null,null,null,null,null,null,null,"Row 998"]
[null,"ER Split Unit 02"]
[null,"ER Split Unit 02"]
[null,"ER Split Unit 03",null,null,null,null,null,null,"Report Type:",null,null,null,null,null,null,null,null,null,null,null,null,null,null,"Top"]
[null,"ER Split Unit 03",null,null,null,null,null,null,null,"Exposure State:",null,"Row 3"]
[null,"ER Split Unit 03",null,null,null,{"$f":"IF(J2032=\"Delete\",\"Header Record 1\",\"Header Record 1, Name Record 2, & Address Record 3\")","v":"Header Record 1, Name Record 2, & Address Record 3"},null,null,null,null,null,"Row 6"]
[null,"ER Split Unit 03",null,null,null,null,null,null,null,"Name of Insured:",null,"Row 8"]
[null,"ER Split Unit 03",null,null,null,null,null,null,null,null,null,"Row 13"]
[null,"ER Split Unit 03",null,null,null,null,null,null,null,null,null,"Row 18"]
[null,"ER Split Unit 03",null,null,null,null,null,null,null,null,null,"Row 23"]
[null,"ER Split Unit 03",null,null,null,null,null,null,null,null,null,"Row 24"]
[null,"ER Split Unit 03",null,null,null,null,null,null,null,null,null,"Row 28"]
[null,"ER Split Unit 03",null,null,null,null,null,null,null,null,null,"Row 33"]
[null,"ER Split Unit 03",null,null,null,null,null,null,null,null,null,"Row 38"]
[null,"ER Split Unit 03",null,null,null,null,null,null,null,null,null,"Row 39"]
[null,"ER Split Unit 03",null,null,null,null,null,null,null,null,null,"Row 45"]
[null,"ER Split Unit 03",null,null,null,null,null,null,null,null,null,"Row 48"]
[null,"ER Split Unit 03",null,null,null,null,null,null,null,null,null,"Row 53"]
[null,"ER Split Unit 03",null,null,null,null,null,null,null,null,null,"Row 54"]
[null,"ER Split Unit 03",null,null,null,null,null,null,null,null,null,"Row 59"]
[null,"ER Split Unit 03",null,null,null,null,null,null,null,null,null,"Row 63"]
[null,"ER Split Unit 03",null,null,null,null,null,null,null,null,null,"Row 68"]
[null,"ER Split Unit 03",null,null,null,null,null,null,null,null,null,"Row 69"]
[null,"ER Split Unit 03",null,null,null,null,null,null,null,null,null,"Row 74"]
[null,"ER Split Unit 03",null,null,null,null,null,null,null,null,null,"Row 79"]
[null,"ER Split Unit 03",null,null,null,null,null,null,null,null,null,"Row 81"]
[null,"ER Split Unit 03",null,null,null,null,null,null,null,null,null,"Row 84"]
[null,"ER Split Unit 03",null,null,null,null,null,null,null,null,null,"Row 89"]
[null,"ER Split Unit 03",null,null,null,null,null,null,null,null,null,"Row 94"]
[null,"ER Split Unit 03",null,null,null,null,null,null,null,null,null,"Row 99"]
[null,"ER Split Unit 03",null,null,null,null,null,null,null,null,null,"Row 102"]
[null,"ER Split Unit 03",null,null,null,null,null,null,null,null,null,"Row 104"]
[null,"ER Split Unit 03",null,null,null,null,null,null,null,null,null,"Row 109"]
[null,"ER Split Unit 03",null,null,null,null,null,null,null,null,null,"Row 114"]
[null,"ER Split Unit 03",null,null,null,null,null,null,null,null,null,"Row 115"]
[null,"ER Split Unit 03",null,null,null,null,null,null,null,null,null,"Row 120"]
[null,"ER Split Unit 03",null,null,null,null,null,null,null,null,null,"Row 124"]
[null,"ER Split Unit 03",null,null,null,null,null,null,null,null,null,"Row 129"]
[null,"ER Split Unit 03",null,null,null,null,null,null,null,null,null,"Row 130"]
[null,"ER Split Unit 03",null,null,null,null,null,null,null,null,null,"Row 135"]
[null,"ER Split Unit 03",null,null,null,null,null,null,null,null,null,"Row 140"]
[null,"ER Split Unit 03",null,null,null,null,null,null,null,null,null,"Row 142"]
[null,"ER Split Unit 03",null,null,null,null,null,null,null,null,null,"Row 145"]
[null,"ER Split Unit 03",null,null,null,null,null,null,null,null,null,"Row 150"]
[null,"ER Split Unit 03",null,null,null,null,null,null,null,null,null,"Row 155"]
[null,"ER Split Unit 03",null,null,null,null,null,null,null,null,null,"Row 160"]
[null,"ER Split Unit 03",null,null,null,null,null,null,null,null,null,"Row 163"]
[null,"ER Split Unit 03",null,null,null,null,null,null,null,null,null,"Row 165"]
[null,"ER Split Unit 03",null,null,null,null,null,null,null,null,null,"Row 170"]
[null,"ER Split Unit 03",null,null,null,null,null,null,null,null,null,"Row 175"]
[null,"ER Split Unit 03",null,null,null,null,null,null,null,null,null,"Row 176"]
[null,"ER Split Unit 03",null,null,null,null,null,null,null,null,null,"Row 181"]
[null,"ER Split Unit 03",null,null,null,null,null,null,null,null,null,"Row 185"]
[null,"ER Split Unit 03",null,null,null,null,null,null,null,null,null,"Row 190"]
[null,"ER Split Unit 03",null,null,null,null,null,null,null,null,null,"Row 191"]
[null,"ER Split Unit 03",null,null,null,null,null,null,null,null,null,"Row 196"]
[null,"ER Split Unit 03",null,null,null,null,null,null,null,null,null,"Row 199"]
[null,"ER Split Unit 03",null,null,null,null,null,null,null,null,null,"Row 205"]
[null,"ER Split Unit 03",null,null,null,null,null,null,null,null,null,"Row 206"]
[null,"ER Split Unit 03",null,null,null,null,null,null,null,null,null,"Row 211"]
[null,"ER Split Unit 03",null,null,null,null,null,null,null,null,null,"Row 216"]
[null,"ER Split Unit 03",null,null,null,null,null,null,null,null,null,"Row 220"]
[null,"ER Split Unit 03",null,null,null,null,null,null,null,null,null,"Row 221"]
[null,"ER Split Unit 03",null,null,null,null,null,null,null,null,null,"Row 226"]
[null,"ER Split Unit 03",null,null,null,null,null,null,null,null,null,"Row 231"]
[null,"ER Split Unit 03",null,null,null,null,null,null,null,null,null,"Row 236"]
[null,"ER Split Unit 03",null,null,null,null,null,null,null,null,null,"Row 238"]
[null,"ER Split Unit 03",null,null,null,null,null,null,null,null,null,"Row 241"]
[null,"ER Split Unit 03",null,null,null,null,null,null,null,null,null,"Row 246"]
[null,"ER Split Unit 03",null,null,null,null,null,null,null,null,null,"Row 251"]
[null,"ER Split Unit 03",null,null,null,null,null,null,null,null,null,"Row 252"]
[null,"ER Split Unit 03",null,null,null,null,null,null,null,null,null,"Row 257"]
[null,"ER Split Unit 03",null,null,null,null,null,null,null,null,null,"Row 260"]
[null,"ER Split Unit 03",null,null,null,null,null,null,null,null,null,"Row 266"]
[null,"ER Split Unit 03",null,null,null,null,null,null,null,null,null,"Row 267"]
[null,"ER Split Unit 03",null,null,null,null,null,null,null,null,null,"Row 272"]
[null,"ER Split Unit 03",null,null,null,null,null,null,null,null,null,"Row 277"]
[null,"ER Split Unit 03",null,null,null,null,null,null,null,null,null,"Row 281"]
[null,"ER Split Unit 03",null,null,null,null,null,null,null,null,null,"Row 282"]
[null,"ER Split Unit 03",null,null,null,null,null,null,null,null,null,"Row 287"]
[null,"ER Split Unit 03",null,null,null,null,null,null,null,null,null,"Row 292"]
[null,"ER Split Unit 03",null,null,null,null,null,null,null,null,null,"Row 297"]
[null,"ER Split Unit 03",null,null,null,null,null,null,null,null,null,"Row 299"]
[null,"ER Split Unit 03",null,null,null,null,null,null,null,null,null,"Row 302"]
[null,"ER Split Unit 03",null,null,null,null,null,null,null,null,null,"Row 307"]
[null,"ER Split Unit 03",null,null,null,null,null,null,null,null,null,"Row 312"]
[null,"ER Split Unit 03",null,null,null,null,null,null,null,null,null,"Row 313"]
[null,"ER Split Unit 03",null,null,null,null,null,null,null,null,null,"Row 317"]
[null,"ER Split Unit 03",null,null,null,null,null,null,null,null,null,"Row 322"]
[null,"ER Split Unit 03",null,null,null,null,null,null,null,null,null,"Row 327"]
[null,"ER Split Unit 03",null,null,null,null,null,null,null,null,null,"Row 328"]
[null,"ER Split Unit 03",null,null,null,null,null,null,null,null,null,"Row 333"]
[null,"ER Split Unit 03",null,null,null,null,null,null,null,null,null,"Row 338"]
[null,"ER Split Unit 03",null,null,null,null,null,null,null,null,null,"Row 342"]
[null,"ER Split Unit 03",null,null,null,null,null,null,null,null,null,"Row 343"]
[null,"ER Split Unit 03",null,null,null,null,null,null,null,null,null,"Row 348"]
[null,"ER Split Unit 03",null,null,null,null,null,null,null,null,null,"Row 353"]
[null,"ER Split Unit 03",null,null,null,null,null,null,null,null,null,"Row 355"]
[null,"ER Split Unit 03",null,null,null,null,null,null,null,null,null,"Row 358"]
[null,"ER Split Unit 03",null,null,null,null,null,null,null,null,null,"Row 363"]
[null,"ER Split Unit 03",null,null,null,null,null,null,null,null,null,"Row 368"]
[null,"ER Split Unit 03",null,null,null,null,null,null,null,null,null,"Row 373"]
[null,"ER Split Unit 03",null,null,null,null,null,null,null,null,null,"Row 376"]
[null,"ER Split Unit 03",null,null,null,null,null,null,null,null,null,"Row 378"]
[null,"ER Split Unit 03",null,null,null,null,null,null,null,null,null,"Row 383"]
[null,"ER Split Unit 03",null,null,null,null,null,null,null,null,null,"Row 388"]
[null,"ER Split Unit 03",null,null,null,null,null,null,null,null,null,"Row 389"]
[null,"ER Split Unit 03",null,null,null,null,null,null,null,null,null,"Row 394"]
[null,"ER Split Unit 03",null,null,null,null,null,null,null,null,null,"Row 399"]
[null,"ER Split Unit 03",null,null,null,null,null,null,null,null,null,"Row 403"]
[null,"ER Split Unit 03",null,null,null,null,null,null,null,null,null,"Row 404"]
[null,"ER Split Unit 03",null,null,null,null,null,null,null,null,null,"Row 409"]
[null,"ER Split Unit 03",null,null,null,null,null,null,null,null,null,"Row 414"]
[null,"ER Split Unit 03",null,null,null,null,null,null,null,null,null,"Row 417"]
[null,"ER Split Unit 03",null,null,null,null,null,null,null,null,null,"Row 419"]
[null,"ER Split Unit 03",null,null,null,null,null,null,null,null,null,"Row 424"]
[null,"ER Split Unit 03",null,null,null,null,null,null,null,null,null,"Row 429"]
[null,"ER Split Unit 03",null,null,null,null,null,null,null,null,null,"Row 434"]
[null,"ER Split Unit 03",null,null,null,null,null,null,null,null,null,"Row 437"]
[null,"ER Split Unit 03",null,null,null,null,null,null,null,null,null,"Row 439"]
[null,"ER Split Unit 03",null,null,null,null,null,null,null,null,null,"Row 444"]
[null,"ER Split Unit 03",null,null,null,null,null,null,null,null,null,"Row 449"]
[null,"ER Split Unit 03",null,null,null,null,null,null,null,null,null,"Row 450"]
[null,"ER Split Unit 03",null,null,null,null,null,null,null,null,null,"Row 455"]
[null,"ER Split Unit 03",null,null,null,null,null,null,null,null,null,"Row 459"]
[null,"ER Split Unit 03",null,null,null,null,null,null,null,null,null,"Row 464"]
[null,"ER Split Unit 03",null,null,null,null,null,null,null,null,null,"Row 465"]
[null,"ER Split Unit 03",null,null,null,null,null,null,null,null,null,"Row 470"]
[null,"ER Split Unit 03",null,null,null,null,null,null,null,null,null,"Row 473"]
[null,"ER Split Unit 03",null,null,null,null,null,null,null,null,null,"Row 479"]
[null,"ER Split Unit 03",null,null,null,null,null,null,null,null,null,"Row 480"]
[null,"ER Split Unit 03",null,null,null,null,null,null,null,null,null,"Row 485"]
[null,"ER Split Unit 03",null,null,null,null,null,null,null,null,null,"Row 490"]
[null,"ER Split Unit 03",null,null,null,null,null,null,null,null,null,"Row 494"]
[null,"ER Split Unit 03",null,null,null,null,null,null,null,null,null,"Row 495"]
[null,"ER Split Unit 03",null,null,null,null,null,null,null,null,null,"Row 500"]
[null,"ER Split Unit 03",null,null,null,null,null,null,null,null,null,"Row 505"]
[null,"ER Split Unit 03",null,null,null,null,null,null,null,null,null,"Row 510"]
[null,"ER Split Unit 03",null,null,null,null,null,null,null,null,null,"Row 512"]
[null,"ER Split Unit 03",null,null,null,null,null,null,null,null,null,"Row 515"]
[null,"ER Split Unit 03",null,null,null,null,null,null,null,null,null,"Row 520"]
[null,"ER Split Unit 03",null,null,null,null,null,null,null,null,null,"Row 525"]
[null,"ER Split Unit 03",null,null,null,null,null,null,null,null,null,"Row 526"]
[null,"ER Split Unit 03",null,null,null,null,null,null,null,null,null,"Row 531"]
[null,"ER Split Unit 03",null,null,null,null,null,null,null,null,null,"Row 534"]
[null,"ER Split Unit 03",null,null,null,null,null,null,null,null,null,"Row 540"]
[null,"ER Split Unit 03",null,null,null,null,null,null,null,null,null,"Row 541"]
[null,"ER Split Unit 03",null,null,null,null,null,null,null,null,null,"Row 546"]
[null,"ER Split Unit 03",null,null,null,null,null,null,null,null,null,"Row 551"]
[null,"ER Split Unit 03",null,null,null,null,null,null,null,null,null,"Row 555"]
[null,"ER Split Unit 03",null,null,null,null,null,null,null,null,null,"Row 556"]
[null,"ER Split Unit 03",null,null,null,null,null,null,null,null,null,"Row 561"]
[null,"ER Split Unit 03",null,null,null,null,null,null,null,null,null,"Row 566"]
[null,"ER Split Unit 03",null,null,null,null,null,null,null,null,null,"Row 571"]
[null,"ER Split Unit 03",null,null,null,null,null,null,null,null,null,"Row 573"]
[null,"ER Split Unit 03",null,null,null,null,null,null,null,null,null,"Row 576"]
[null,"ER Split Unit 03",null,null,null,null,null,null,null,null,null,"Row 581"]
[null,"ER Split Unit 03",null,null,null,null,null,null,null,null,null,"Row 586"]
[null,"ER Split Unit 03",null,null,null,null,null,null,null,null,null,"Row 587"]
[null,"ER Split Unit 03",null,null,null,null,null,null,null,null,null,"Row 591"]
[null,"ER Split Unit 03",null,null,null,null,null,null,null,null,null,"Row 596"]
[null,"ER Split Unit 03",null,null,null,null,null,null,null,null,null,"Row 601"]
[null,"ER Split Unit 03",null,null,null,null,null,null,null,null,null,"Row 602"]
[null,"ER Split Unit 03",null,null,null,null,null,null,null,null,null,"Row 607"]
[null,"ER Split Unit 03",null,null,null,null,null,null,null,null,null,"Row 612"]
[null,"ER Split Unit 03",null,null,null,null,null,null,null,null,null,"Row 616"]
[null,"ER Split Unit 03",null,null,null,null,null,null,null,null,null,"Row 617"]
[null,"ER Split Unit 03",null,null,null,null,null,null,null,null,null,"Row 622"]
[null,"ER Split Unit 03",null,null,null,null,null,null,null,null,null,"Row 627"]
[null,"ER Split Unit 03",null,null,null,null,null,null,null,null,null,"Row 630"]
[null,"ER Split Unit 03",null,null,null,null,null,null,null,null,null,"Row 632"]
[null,"ER Split Unit 03",null,null,null,null,null,null,null,null,null,"Row 637"]
[null,"ER Split Unit 03",null,null,null,null,null,null,null,null,null,"Row 642"]
[null,"ER Split Unit 03",null,null,null,null,null,null,null,null,null,"Row 647"]
[null,"ER Split Unit 03",null,null,null,null,null,null,null,null,null,"Row 648"]
[null,"ER Split Unit 03",null,null,null,null,null,null,null,null,null,"Row 652"]
[null,"ER Split Unit 03",null,null,null,null,null,null,null,null,null,"Row 657"]
[null,"ER Split Unit 03",null,null,null,null,null,null,null,null,null,"Row 662"]
[null,"ER Split Unit 03",null,null,null,null,null,null,null,null,null,"Row 663"]
[null,"ER Split Unit 03",null,null,null,null,null,null,null,null,null,"Row 668"]
[null,"ER Split Unit 03",null,null,null,null,null,null,null,null,null,"Row 673"]
[null,"ER Split Unit 03",null,null,null,null,null,null,null,null,null,"Row 677"]
[null,"ER Split Unit 03",null,null,null,null,null,null,null,null,null,"Row 678"]
[null,"ER Split Unit 03",null,null,null,null,null,null,null,null,null,"Row 683"]
[null,"ER Split Unit 03",null,null,null,null,null,null,null,null,null,"Row 688"]
[null,"ER Split Unit 03",null,null,null,null,null,null,null,null,null,"Row 691"]
[null,"ER Split Unit 03",null,null,null,null,null,null,null,null,null,"Row 693"]
[null,"ER Split Unit 03",null,null,null,null,null,null,null,null,null,"Row 698"]
[null,"ER Split Unit 03",null,null,null,null,null,null,null,null,null,"Row 703"]
[null,"ER Split Unit 03",null,null,null,null,null,null,null,null,null,"Row 708"]
[null,"ER Split Unit 03",null,null,null,null,null,null,null,null,null,"Row 709"]
[null,"ER Split Unit 03",null,null,null,null,null,null,null,null,null,"Row 713"]
[null,"ER Split Unit 03",null,null,null,null,null,null,null,null,null,"Row 718"]
[null,"ER Split Unit 03",null,null,null,null,null,null,null,null,null,"Row 723"]
[null,"ER Split Unit 03",null,null,null,null,null,null,null,null,null,"Row 724"]
[null,"ER Split Unit 03",null,null,null,null,null,null,null,null,null,"Row 730"]
[null,"ER Split Unit 03",null,null,null,null,null,null,null,null,null,"Row 733"]
[null,"ER Split Unit 03",null,null,null,null,null,null,null,null,null,"Row 738"]
[null,"ER Split Unit 03",null,null,null,null,null,null,null,null,null,"Row 739"]
[null,"ER Split Unit 03",null,null,null,null,null,null,null,null,null,"Row 744"]
[null,"ER Split Unit 03",null,null,null,null,null,null,null,null,null,"Row 748"]
[null,"ER Split Unit 03",null,null,null,null,null,null,null,null,null,"Row 753"]
[null,"ER Split Unit 03",null,null,null,null,null,null,null,null,null,"Row 754"]
[null,"ER Split Unit 03",null,null,null,null,null,null,null,null,null,"Row 759"]
[null,"ER Split Unit 03",null,null,null,null,null,null,null,null,null,"Row 764"]
[null,"ER Split Unit 03",null,null,null,null,null,null,null,null,null,"Row 766"]
[null,"ER Split Unit 03",null,null,null,null,null,null,null,null,null,"Row 769"]
[null,"ER Split Unit 03",null,null,null,null,null,null,null,null,null,"Row 774"]
[null,"ER Split Unit 03",null,null,null,null,null,null,null,null,null,"Row 779"]
[null,"ER Split Unit 03",null,null,null,null,null,null,null,null,null,"Row 784"]
[null,"ER Split Unit 03",null,null,null,null,null,null,null,null,null,"Row 787"]
[null,"ER Split Unit 03",null,null,null,null,null,null,null,null,null,"Row 789"]
[null,"ER Split Unit 03",null,null,null,null,null,null,null,null,null,"Row 794"]
[null,"ER Split Unit 03",null,null,null,null,null,null,null,null,null,"Row 799"]
[null,"ER Split Unit 03",null,null,null,null,null,null,null,null,null,"Row 800"]
[null,"ER Split Unit 03",null,null,null,null,null,null,null,null,null,"Row 805"]
[null,"ER Split Unit 03",null,null,null,null,null,null,null,null,null,"Row 809"]
[null,"ER Split Unit 03",null,null,null,null,null,null,null,null,null,"Row 814"]
[null,"ER Split Unit 03",null,null,null,null,null,null,null,null,null,"Row 815"]
[null,"ER Split Unit 03",null,null,null,null,null,null,null,null,null,"Row 820"]
[null,"ER Split Unit 03",null,null,null,null,null,null,null,null,null,"Row 825"]
[null,"ER Split Unit 03",null,null,null,null,null,null,null,null,null,"Row 827"]
[null,"ER Split Unit 03",null,null,null,null,null,null,null,null,null,"Row 830"]
[null,"ER Split Unit 03",null,null,null,null,null,null,null,null,null,"Row 835"]
[null,"ER Split Unit 03",null,null,null,null,null,null,null,null,null,"Row 840"]
[null,"ER Split Unit 03",null,null,null,null,null,null,null,null,null,"Row 845"]
[null,"ER Split Unit 03",null,null,null,null,null,null,null,null,null,"Row 848"]
[null,"ER Split Unit 03",null,null,null,null,null,null,null,null,null,"Row 850"]
[null,"ER Split Unit 03",null,null,null,null,null,null,null,null,null,"Row 855"]
[null,"ER Split Unit 03",null,null,null,null,null,null,null,null,null,"Row 860"]
[null,"ER Split Unit 03",null,null,null,null,null,null,null,null,null,"Row 861"]
[null,"ER Split Unit 03",null,null,null,null,null,null,null,null,null,"Row 866"]
[null,"ER Split Unit 03",null,null,null,null,null,null,null,null,null,"Row 870"]
[null,"ER Split Unit 03",null,null,null,null,null,null,null,null,null,"Row 875"]
[null,"ER Split Unit 03",null,null,null,null,null,null,null,null,null,"Row 876"]
[null,"ER Split Unit 03",null,null,null,null,null,null,null,null,null,"Row 881"]
[null,"ER Split Unit 03",null,null,null,null,null,null,null,null,null,"Row 884"]
[null,"ER Split Unit 03",null,null,null,null,null,null,null,null,null,"Row 890"]
[null,"ER Split Unit 03",null,null,null,null,null,null,null,null,null,"Row 891"]
[null,"ER Split Unit 03",null,null,null,null,null,null,null,null,null,"Row 896"]
[null,"ER Split Unit 03",null,null,null,null,null,null,null,null,null,"Row 901"]
[null,"ER Split Unit 03",null,null,null,null,null,null,null,null,null,"Row 904"]
[null,"ER Split Unit 03",null,null,null,null,null,null,null,null,null,"Row 906"]
[null,"ER Split Unit 03",null,null,null,null,null,null,null,null,null,"Row 911"]
[null,"ER Split Unit 03",null,null,null,null,null,null,null,null,null,"Row 916"]
[null,"ER Split Unit 03",null,null,null,null,null,null,null,null,null,"Row 921"]
[null,"ER Split Unit 03",null,null,null,null,null,null,null,null,null,"Row 922"]
[null,"ER Split Unit 03",null,null,null,null,null,null,null,null,null,"Row 926"]
[null,"ER Split Unit 03",null,null,null,null,null,null,null,null,null,"Row 931"]
[null,"ER Split Unit 03",null,null,null,null,null,null,null,null,null,"Row 936"]
[null,"ER Split Unit 03",null,null,null,null,null,null,null,null,null,"Row 937"]
[null,"ER Split Unit 03",null,null,null,null,null,null,null,null,null,"Row 942"]
[null,"ER Split Unit 03",null,null,null,null,null,null,null,null,null,"Row 945"]
[null,"ER Split Unit 03",null,null,null,null,null,null,null,null,null,"Row 951"]
[null,"ER Split Unit 03",null,null,null,null,null,null,null,null,null,"Row 952"]
[null,"ER Split Unit 03",null,null,null,null,null,null,null,null,null,"Row 957"]
[null,"ER Split Unit 03",null,null,null,null,null,null,null,null,null,"Row 962"]
[null,"ER Split Unit 03",null,null,null,null,null,null,null,null,null,"Row 966"]
[null,"ER Split Unit 03",null,null,null,null,null,null,null,null,null,"Row 967"]
[null,"ER Split Unit 03",null,null,null,null,null,null,null,null,null,"Row 972"]
[null,"ER Split Unit 03",null,null,null,null,null,null,null,null,null,"Row 977"]
[null,"ER Split Unit 03",null,null,null,null,null,null,null,null,null,"Row 982"]
[null,"ER Split Unit 03",null,null,null,null,null,null,null,null,null,"Row 983"]
[null,"ER Split Unit 03",null,null,null,null,null,null,null,null,null,"Row 987"]
[null,"ER Split Unit 03",null,null,null,null,null,null,null,null,null,"Row 992"]
[null,"ER Split Unit 03",null,null,null,null,null,null,null,null,null,"Row 997"]
[null,"ER Split Unit 03",null,null,null,null,null,null,null,null,null,"Row 998"]
[null,"ER Split Unit 04"]
[null,"ER Split Unit 04"]
[null,"ER Split Unit 04",null,null,null,null,null,null,null,"Policy Effective Date:",null,"Row 2"]
[null,"ER Split Unit 04",null,null,null,null,null,null,null,"Exposure State:",null,"Row 3"]
[null,"ER Split Unit 04",null,null,null,null,null,null,null,"Name of Insured:",null,"Row 8"]
[null,"ER Split Unit 04",null,null,null,null,null,null,null,"Zip Code:",null,"Row 12"]
[null,"ER Split Unit 04",null,null,null,null,null,null,null,null,null,"Row 17"]
[null,"ER Split Unit 04",null,null,null,null,null,null,null,null,null,"Row 18"]
[null,"ER Split Unit 04",null,null,null,null,null,null,null,null,null,"Row 23"]
[null,"ER Split Unit 04",null,null,null,null,null,null,null,null,null,"Row 28"]
[null,"ER Split Unit 04",null,null,null,null,null,null,null,null,null,"Row 30"]
[null,"ER Split Unit 04",null,null,null,null,null,null,null,null,null,"Row 33"]
[null,"ER Split Unit 04",null,null,null,null,null,null,null,null,null,"Row 38"]
[null,"ER Split Unit 04",null,null,null,null,null,null,null,null,null,"Row 43"]
[null,"ER Split Unit 04",null,null,null,null,null,null,null,null,null,"Row 48"]
[null,"ER Split Unit 04",null,null,null,null,null,null,null,null,null,"Row 51"]
[null,"ER Split Unit 04",null,null,null,null,null,null,null,null,null,"Row 53"]
[null,"ER Split Unit 04",null,null,null,null,null,null,null,null,null,"Row 58"]
[null,"ER Split Unit 04",null,null,null,null,null,null,null,null,null,"Row 63"]
[null,"ER Split Unit 04",null,null,null,null,null,null,null,null,null,"Row 64"]
[null,"ER Split Unit 04",null,null,null,null,null,null,null,null,null,"Row 69"]
[null,"ER Split Unit 04",null,null,null,null,null,null,null,null,null,"Row 73"]
[null,"ER Split Unit 04",null,null,null,null,null,null,null,null,null,"Row 78"]
[null,"ER Split Unit 04",null,null,null,null,null,null,null,null,null,"Row 79"]
[null,"ER Split Unit 04",null,null,null,null,null,null,null,null,null,"Row 84"]
[null,"ER Split Unit 04",null,null,null,null,null,null,null,null,null,"Row 89"]
[null,"ER Split Unit 04",null,null,null,null,null,null,null,null,null,"Row 91"]
[null,"ER Split Unit 04",null,null,null,null,null,null,null,null,null,"Row 94"]
[null,"ER Split Unit 04",null,null,null,null,null,null,null,null,null,"Row 99"]
[null,"ER Split Unit 04",null,null,null,null,null,null,null,null,null,"Row 104"]
[null,"ER Split Unit 04",null,null,null,null,null,null,null,null,null,"Row 109"]
[null,"ER Split Unit 04",null,null,null,null,null,null,null,null,null,"Row 112"]
[null,"ER Split Unit 04",null,null,null,null,null,null,null,null,null,"Row 114"]
[null,"ER Split Unit 04",null,null,null,null,null,null,null,null,null,"Row 119"]
[null,"ER Split Unit 04",null,null,null,null,null,null,null,null,null,"Row 124"]
[null,"ER Split Unit 04",null,null,null,null,null,null,null,null,null,"Row 125"]
[null,"ER Split Unit 04",null,null,null,null,null,null,null,null,null,"Row 130"]
[null,"ER Split Unit 04",null,null,null,null,null,null,null,null,null,"Row 134"]
[null,"ER Split Unit 04",null,null,null,null,null,null,null,null,null,"Row 139"]
[null,"ER Split Unit 04",null,null,null,null,null,null,null,null,null,"Row 140"]
[null,"ER Split Unit 04",null,null,null,null,null,null,null,null,null,"Row 145"]
[null,"ER Split Unit 04",null,null,null,null,null,null,null,null,null,"Row 148"]
[null,"ER Split Unit 04",null,null,null,null,null,null,null,null,null,"Row 154"]
[null,"ER Split Unit 04",null,null,null,null,null,null,null,null,null,"Row 155"]
[null,"ER Split Unit 04",null,null,null,null,null,null,null,null,null,"Row 160"]
[null,"ER Split Unit 04",null,null,null,null,null,null,null,null,null,"Row 165"]
[null,"ER Split Unit 04",null,null,null,null,null,null,null,null,null,"Row 169"]
[null,"ER Split Unit 04",null,null,null,null,null,null,null,null,null,"Row 170"]
[null,"ER Split Unit 04",null,null,null,null,null,null,null,null,null,"Row 175"]
[null,"ER Split Unit 04",null,null,null,null,null,null,null,null,null,"Row 180"]
[null,"ER Split Unit 04",null,null,null,null,null,null,null,null,null,"Row 185"]
[null,"ER Split Unit 04",null,null,null,null,null,null,null,null,null,"Row 187"]
[null,"ER Split Unit 04",null,null,null,null,null,null,null,null,null,"Row 190"]
[null,"ER Split Unit 04",null,null,null,null,null,null,null,null,null,"Row 195"]
[null,"ER Split Unit 04",null,null,null,null,null,null,null,null,null,"Row 200"]
[null,"ER Split Unit 04",null,null,null,null,null,null,null,null,null,"Row 201"]
[null,"ER Split Unit 04",null,null,null,null,null,null,null,null,null,"Row 206"]
[null,"ER Split Unit 04",null,null,null,null,null,null,null,null,null,"Row 209"]
[null,"ER Split Unit 04",null,null,null,null,null,null,null,null,null,"Row 215"]
[null,"ER Split Unit 04",null,null,null,null,null,null,null,null,null,"Row 216"]
[null,"ER Split Unit 04",null,null,null,null,null,null,null,null,null,"Row 221"]
[null,"ER Split Unit 04",null,null,null,null,null,null,null,null,null,"Row 226"]
[null,"ER Split Unit 04",null,null,null,null,null,null,null,null,null,"Row 230"]
[null,"ER Split Unit 04",null,null,null,null,null,null,null,null,null,"Row 231"]
[null,"ER Split Unit 04",null,null,null,null,null,null,null,null,null,"Row 236"]
[null,"ER Split Unit 04",null,null,null,null,null,null,null,null,null,"Row 241"]
[null,"ER Split Unit 04",null,null,null,null,null,null,null,null,null,"Row 246"]
[null,"ER Split Unit 04",null,null,null,null,null,null,null,null,null,"Row 248"]
[null,"ER Split Unit 04",null,null,null,null,null,null,null,null,null,"Row 251"]
[null,"ER Split Unit 04",null,null,null,null,null,null,null,null,null,"Row 256"]
[null,"ER Split Unit 04",null,null,null,null,null,null,null,null,null,"Row 261"]
[null,"ER Split Unit 04",null,null,null,null,null,null,null,null,null,"Row 262"]
[null,"ER Split Unit 04",null,null,null,null,null,null,null,null,null,"Row 266"]
[null,"ER Split Unit 04",null,null,null,null,null,null,null,null,null,"Row 271"]
[null,"ER Split Unit 04",null,null,null,null,null,null,null,null,null,"Row 276"]
[null,"ER Split Unit 04",null,null,null,null,null,null,null,null,null,"Row 277"]
[null,"ER Split Unit 04",null,null,null,null,null,null,null,null,null,"Row 282"]
[null,"ER Split Unit 04",null,null,null,null,null,null,null,null,null,"Row 287"]
[null,"ER Split Unit 04",null,null,null,null,null,null,null,null,null,"Row 291"]
[null,"ER Split Unit 04",null,null,null,null,null,null,null,null,null,"Row 292"]
[null,"ER Split Unit 04",null,null,null,null,null,null,null,null,null,"Row 297"]
[null,"ER Split Unit 04",null,null,null,null,null,null,null,null,null,"Row 302"]
[null,"ER Split Unit 04",null,null,null,null,null,null,null,null,null,"Row 305"]
[null,"ER Split Unit 04",null,null,null,null,null,null,null,null,null,"Row 307"]
[null,"ER Split Unit 04",null,null,null,null,null,null,null,null,null,"Row 312"]
[null,"ER Split Unit 04",null,null,null,null,null,null,null,null,null,"Row 317"]
[null,"ER Split Unit 04",null,null,null,null,null,null,null,null,null,"Row 322"]
[null,"ER Split Unit 04",null,null,null,null,null,null,null,null,null,"Row 323"]
[null,"ER Split Unit 04",null,null,null,null,null,null,null,null,null,"Row 327"]
[null,"ER Split Unit 04",null,null,null,null,null,null,null,null,null,"Row 332"]
[null,"ER Split Unit 04",null,null,null,null,null,null,null,null,null,"Row 337"]
[null,"ER Split Unit 04",null,null,null,null,null,null,null,null,null,"Row 338"]
[null,"ER Split Unit 04",null,null,null,null,null,null,null,null,null,"Row 343"]
[null,"ER Split Unit 04",null,null,null,null,null,null,null,null,null,"Row 348"]
[null,"ER Split Unit 04",null,null,null,null,null,null,null,null,null,"Row 352"]
[null,"ER Split Unit 04",null,null,null,null,null,null,null,null,null,"Row 353"]
[null,"ER Split Unit 04",null,null,null,null,null,null,null,null,null,"Row 358"]
[null,"ER Split Unit 04",null,null,null,null,null,null,null,null,null,"Row 363"]
[null,"ER Split Unit 04",null,null,null,null,null,null,null,null,null,"Row 366"]
[null,"ER Split Unit 04",null,null,null,null,null,null,null,null,null,"Row 368"]
[null,"ER Split Unit 04",null,null,null,null,null,null,null,null,null,"Row 373"]
[null,"ER Split Unit 04",null,null,null,null,null,null,null,null,null,"Row 378"]
[null,"ER Split Unit 04",null,null,null,null,null,null,null,null,null,"Row 383"]
[null,"ER Split Unit 04",null,null,null,null,null,null,null,null,null,"Row 384"]
[null,"ER Split Unit 04",null,null,null,null,null,null,null,null,null,"Row 388"]
[null,"ER Split Unit 04",null,null,null,null,null,null,null,null,null,"Row 393"]
[null,"ER Split Unit 04",null,null,null,null,null,null,null,null,null,"Row 398"]
[null,"ER Split Unit 04",null,null,null,null,null,null,null,null,null,"Row 399"]
[null,"ER Split Unit 04",null,null,null,null,null,null,null,null,null,"Row 405"]
[null,"ER Split Unit 04",null,null,null,null,null,null,null,null,null,"Row 408"]
[null,"ER Split Unit 04",null,null,null,null,null,null,null,null,null,"Row 413"]
[null,"ER Split Unit 04",null,null,null,null,null,null,null,null,null,"Row 414"]
[null,"ER Split Unit 04",null,null,null,null,null,null,null,null,null,"Row 419"]
[null,"ER Split Unit 04",null,null,null,null,null,null,null,null,null,"Row 423"]
[null,"ER Split Unit 04",null,null,null,null,null,null,null,null,null,"Row 428"]
[null,"ER Split Unit 04",null,null,null,null,null,null,null,null,null,"Row 429"]
[null,"ER Split Unit 04",null,null,null,null,null,null,null,null,null,"Row 434"]
[null,"ER Split Unit 04",null,null,null,null,null,null,null,null,null,"Row 439"]
[null,"ER Split Unit 04",null,null,null,null,null,null,null,null,null,"Row 443"]
[null,"ER Split Unit 04",null,null,null,null,null,null,null,null,null,"Row 444"]
[null,"ER Split Unit 04",null,null,null,null,null,null,null,null,null,"Row 449"]
[null,"ER Split Unit 04",null,null,null,null,null,null,null,null,null,"Row 454"]
[null,"ER Split Unit 04",null,null,null,null,null,null,null,null,null,"Row 459"]
[null,"ER Split Unit 04",null,null,null,null,null,null,null,null,null,"Row 461"]
[null,"ER Split Unit 04",null,null,null,null,null,null,null,null,null,"Row 464"]
[null,"ER Split Unit 04",null,null,null,null,null,null,null,null,null,"Row 469"]
[null,"ER Split Unit 04",null,null,null,null,null,null,null,null,null,"Row 474"]
[null,"ER Split Unit 04",null,null,null,null,null,null,null,null,null,"Row 475"]
[null,"ER Split Unit 04",null,null,null,null,null,null,null,null,null,"Row 480"]
[null,"ER Split Unit 04",null,null,null,null,null,null,null,null,null,"Row 484"]
[null,"ER Split Unit 04",null,null,null,null,null,null,null,null,null,"Row 489"]
[null,"ER Split Unit 04",null,null,null,null,null,null,null,null,null,"Row 490"]
[null,"ER Split Unit 04",null,null,null,null,null,null,null,null,null,"Row 495"]
[null,"ER Split Unit 04",null,null,null,null,null,null,null,null,null,"Row 500"]
[null,"ER Split Unit 04",null,null,null,null,null,null,null,null,null,"Row 502"]
[null,"ER Split Unit 04",null,null,null,null,null,null,null,null,null,"Row 505"]
[null,"ER Split Unit 04",null,null,null,null,null,null,null,null,null,"Row 510"]
[null,"ER Split Unit 04",null,null,null,null,null,null,null,null,null,"Row 515"]
[null,"ER Split Unit 04",null,null,null,null,null,null,null,null,null,"Row 520"]
[null,"ER Split Unit 04",null,null,null,null,null,null,null,null,null,"Row 522"]
[null,"ER Split Unit 04",null,null,null,null,null,null,null,null,null,"Row 525"]
[null,"ER Split Unit 04",null,null,null,null,null,null,null,null,null,"Row 530"]
[null,"ER Split Unit 04",null,null,null,null,null,null,null,null,null,"Row 535"]
[null,"ER Split Unit 04",null,null,null,null,null,null,null,null,null,"Row 536"]
[null,"ER Split Unit 04",null,null,null,null,null,null,null,null,null,"Row 540"]
[null,"ER Split Unit 04",null,null,null,null,null,null,null,null,null,"Row 545"]
[null,"ER Split Unit 04",null,null,null,null,null,null,null,null,null,"Row 550"]
[null,"ER Split Unit 04",null,null,null,null,null,null,null,null,null,"Row 551"]
[null,"ER Split Unit 04",null,null,null,null,null,null,null,null,null,"Row 556"]
[null,"ER Split Unit 04",null,null,null,null,null,null,null,null,null,"Row 561"]
[null,"ER Split Unit 04",null,null,null,null,null,null,null,null,null,"Row 565"]
[null,"ER Split Unit 04",null,null,null,null,null,null,null,null,null,"Row 566"]
[null,"ER Split Unit 04",null,null,null,null,null,null,null,null,null,"Row 571"]
[null,"ER Split Unit 04",null,null,null,null,null,null,null,null,null,"Row 576"]
[null,"ER Split Unit 04",null,null,null,null,null,null,null,null,null,"Row 579"]
[null,"ER Split Unit 04",null,null,null,null,null,null,null,null,null,"Row 581"]
[null,"ER Split Unit 04",null,null,null,null,null,null,null,null,null,"Row 586"]
[null,"ER Split Unit 04",null,null,null,null,null,null,null,null,null,"Row 591"]
[null,"ER Split Unit 04",null,null,null,null,null,null,null,null,null,"Row 596"]
[null,"ER Split Unit 04",null,null,null,null,null,null,null,null,null,"Row 597"]
[null,"ER Split Unit 04",null,null,null,null,null,null,null,null,null,"Row 601"]
[null,"ER Split Unit 04",null,null,null,null,null,null,null,null,null,"Row 606"]
[null,"ER Split Unit 04",null,null,null,null,null,null,null,null,null,"Row 611"]
[null,"ER Split Unit 04",null,null,null,null,null,null,null,null,null,"Row 612"]
[null,"ER Split Unit 04",null,null,null,null,null,null,null,null,null,"Row 617"]
[null,"ER Split Unit 04",null,null,null,null,null,null,null,null,null,"Row 622"]
[null,"ER Split Unit 04",null,null,null,null,null,null,null,null,null,"Row 626"]
[null,"ER Split Unit 04",null,null,null,null,null,null,null,null,null,"Row 627"]
[null,"ER Split Unit 04",null,null,null,null,null,null,null,null,null,"Row 632"]
[null,"ER Split Unit 04",null,null,null,null,null,null,null,null,null,"Row 637"]
[null,"ER Split Unit 04",null,null,null,null,null,null,null,null,null,"Row 640"]
[null,"ER Split Unit 04",null,null,null,null,null,null,null,null,null,"Row 642"]
[null,"ER Split Unit 04",null,null,null,null,null,null,null,null,null,"Row 647"]
[null,"ER Split Unit 04",null,null,null,null,null,null,null,null,null,"Row 652"]
[null,"ER Split Unit 04",null,null,null,null,null,null,null,null,null,"Row 657"]
[null,"ER Split Unit 04",null,null,null,null,null,null,null,null,null,"Row 658"]
[null,"ER Split Unit 04",null,null,null,null,null,null,null,null,null,"Row 662"]
[null,"ER Split Unit 04",null,null,null,null,null,null,null,null,null,"Row 667"]
[null,"ER Split Unit 04",null,null,null,null,null,null,null,null,null,"Row 672"]
[null,"ER Split Unit 04",null,null,null,null,null,null,null,null,null,"Row 673"]
[null,"ER Split Unit 04",null,null,null,null,null,null,null,null,null,"Row 679"]
[null,"ER Split Unit 04",null,null,null,null,null,null,null,null,null,"Row 682"]
[null,"ER Split Unit 04",null,null,null,null,null,null,null,null,null,"Row 687"]
[null,"ER Split Unit 04",null,null,null,null,null,null,null,null,null,"Row 688"]
[null,"ER Split Unit 04",null,null,null,null,null,null,null,null,null,"Row 693"]
[null,"ER Split Unit 04",null,null,null,null,null,null,null,null,null,"Row 697"]
[null,"ER Split Unit 04",null,null,null,null,null,null,null,null,null,"Row 702"]
[null,"ER Split Unit 04",null,null,null,null,null,null,null,null,null,"Row 703"]
[null,"ER Split Unit 04",null,null,null,null,null,null,null,null,null,"Row 708"]
[null,"ER Split Unit 04",null,null,null,null,null,null,null,null,null,"Row 713"]
[null,"ER Split Unit 04",null,null,null,null,null,null,null,null,null,"Row 715"]
[null,"ER Split Unit 04",null,null,null,null,null,null,null,null,null,"Row 718"]
[null,"ER Split Unit 04",null,null,null,null,null,null,null,null,null,"Row 723"]
[null,"ER Split Unit 04",null,null,null,null,null,null,null,null,null,"Row 728"]
[null,"ER Split Unit 04",null,null,null,null,null,null,null,null,null,"Row 733"]
[null,"ER Split Unit 04",null,null,null,null,null,null,null,null,null,"Row 736"]
[null,"ER Split Unit 04",null,null,null,null,null,null,null,null,null,"Row 738"]
[null,"ER Split Unit 04",null,null,null,null,null,null,null,null,null,"Row 743"]
[null,"ER Split Unit 04",null,null,null,null,null,null,null,null,null,"Row 748"]
[null,"ER Split Unit 04",null,null,null,null,null,null,null,null,null,"Row 749"]
[null,"ER Split Unit 04",null,null,null,null,null,null,null,null,null,"Row 754"]
[null,"ER Split Unit 04",null,null,null,null,null,null,null,null,null,"Row 758"]
[null,"ER Split Unit 04",null,null,null,null,null,null,null,null,null,"Row 763"]
[null,"ER Split Unit 04",null,null,null,null,null,null,null,null,null,"Row 764"]
[null,"ER Split Unit 04",null,null,null,null,null,null,null,null,null,"Row 769"]
[null,"ER Split Unit 04",null,null,null,null,null,null,null,null,null,"Row 774"]
[null,"ER Split Unit 04",null,null,null,null,null,null,null,null,null,"Row 776"]
[null,"ER Split Unit 04",null,null,null,null,null,null,null,null,null,"Row 779"]
[null,"ER Split Unit 04",null,null,null,null,null,null,null,null,null,"Row 784"]
[null,"ER Split Unit 04",null,null,null,null,null,null,null,null,null,"Row 789"]
[null,"ER Split Unit 04",null,null,null,null,null,null,null,null,null,"Row 794"]
[null,"ER Split Unit 04",null,null,null,null,null,null,null,null,null,"Row 797"]
[null,"ER Split Unit 04",null,null,null,null,null,null,null,null,null,"Row 799"]
[null,"ER Split Unit 04",null,null,null,null,null,null,null,null,null,"Row 804"]
[null,"ER Split Unit 04",null,null,null,null,null,null,null,null,null,"Row 809"]
[null,"ER Split Unit 04",null,null,null,null,null,null,null,null,null,"Row 810"]
[null,"ER Split Unit 04",null,null,null,null,null,null,null,null,null,"Row 815"]
[null,"ER Split Unit 04",null,null,null,null,null,null,null,null,null,"Row 819"]
[null,"ER Split Unit 04",null,null,null,null,null,null,null,null,null,"Row 824"]
[null,"ER Split Unit 04",null,null,null,null,null,null,null,null,null,"Row 825"]
[null,"ER Split Unit 04",null,null,null,null,null,null,null,null,null,"Row 830"]
[null,"ER Split Unit 04",null,null,null,null,null,null,null,null,null,"Row 833"]
[null,"ER Split Unit 04",null,null,null,null,null,null,null,null,null,"Row 839"]
[null,"ER Split Unit 04",null,null,null,null,null,null,null,null,null,"Row 840"]
[null,"ER Split Unit 04",null,null,null,null,null,null,null,null,null,"Row 845"]
[null,"ER Split Unit 04",null,null,null,null,null,null,null,null,null,"Row 850"]
[null,"ER Split Unit 04",null,null,null,null,null,null,null,null,null,"Row 854"]
[null,"ER Split Unit 04",null,null,null,null,null,null,null,null,null,"Row 855"]
[null,"ER Split Unit 04",null,null,null,null,null,null,null,null,null,"Row 860"]
[null,"ER Split Unit 04",null,null,null,null,null,null,null,null,null,"Row 865"]
[null,"ER Split Unit 04",null,null,null,null,null,null,null,null,null,"Row 870"]
[null,"ER Split Unit 04",null,null,null,null,null,null,null,null,null,"Row 872"]
[null,"ER Split Unit 04",null,null,null,null,null,null,null,null,null,"Row 875"]
[null,"ER Split Unit 04",null,null,null,null,null,null,null,null,null,"Row 880"]
[null,"ER Split Unit 04",null,null,null,null,null,null,null,null,null,"Row 885"]
[null,"ER Split Unit 04",null,null,null,null,null,null,null,null,null,"Row 886"]
[null,"ER Split Unit 04",null,null,null,null,null,null,null,null,null,"Row 890"]
[null,"ER Split Unit 04",null,null,null,null,null,null,null,null,null,"Row 895"]
[null,"ER Split Unit 04",null,null,null,null,null,null,null,null,null,"Row 900"]
[null,"ER Split Unit 04",null,null,null,null,null,null,null,null,null,"Row 901"]
[null,"ER Split Unit 04",null,null,null,null,null,null,null,null,null,"Row 906"]
[null,"ER Split Unit 04",null,null,null,null,null,null,null,null,null,"Row 911"]
[null,"ER Split Unit 04",null,null,null,null,null,null,null,null,null,"Row 915"]
[null,"ER Split Unit 04",null,null,null,null,null,null,null,null,null,"Row 916"]
[null,"ER Split Unit 04",null,null,null,null,null,null,null,null,null,"Row 921"]
[null,"ER Split Unit 04",null,null,null,null,null,null,null,null,null,"Row 926"]
[null,"ER Split Unit 04",null,null,null,null,null,null,null,null,null,"Row 931"]
[null,"ER Split Unit 04",null,null,null,null,null,null,null,null,null,"Row 933"]
[null,"ER Split Unit 04",null,null,null,null,null,null,null,null,null,"Row 936"]
[null,"ER Split Unit 04",null,null,null,null,null,null,null,null,null,"Row 941"]
[null,"ER Split Unit 04",null,null,null,null,null,null,null,null,null,"Row 946"]
[null,"ER Split Unit 04",null,null,null,null,null,null,null,null,null,"Row 947"]
[null,"ER Split Unit 04",null,null,null,null,null,null,null,null,null,"Row 951"]
[null,"ER Split Unit 04",null,null,null,null,null,null,null,null,null,"Row 956"]
[null,"ER Split Unit 04",null,null,null,null,null,null,null,null,null,"Row 961"]
[null,"ER Split Unit 04",null,null,null,null,null,null,null,null,null,"Row 962"]
[null,"ER Split Unit 04",null,null,null,null,null,null,null,null,null,"Row 967"]
[null,"ER Split Unit 04",null,null,null,null,null,null,null,null,null,"Row 972"]
[null,"ER Split Unit 04",null,null,null,null,null,null,null,null,null,"Row 976"]
[null,"ER Split Unit 04",null,null,null,null,null,null,null,null,null,"Row 977"]
[null,"ER Split Unit 04",null,null,null,null,null,null,null,null,null,"Row 982"]
[null,"ER Split Unit 04",null,null,null,null,null,null,null,null,null,"Row 987"]
[null,"ER Split Unit 04",null,null,null,null,null,null,null,null,null,"Row 989"]
[null,"ER Split Unit 04",null,null,null,null,null,null,null,null,null,"Row 992"]
[null,"ER Split Unit 04",null,null,null,null,null,null,null,null,null,"Row 997"]
[null,"ER Split Unit 04"]
[null,"ER Split Unit 05"]
[null,"ER Split Unit 05",null,null,null,null,null,null,null,"Carrier Code:",null,null,null,"Class Code","Exposure Act","Exposure Amt","Mod Effective Date","Rate Effective Date","Manual Rate",null,"Claim Number","Accident Date","Type of Claim"]
[null,"ER Split Unit 05",null,null,null,null,null,null,null,"Policy Effective Date:",null,"Row 2"]
[null,"ER Split Unit 05",null,null,null,null,null,null,null,{"$f":"IF(uipU05LD_TT=\"01 PEO Client Information\",\"Client Termination Date\",\"Ownership Change Date\")","v":"Ownership Change Date"},null,"Row 7"]
[null,"ER Split Unit 05",null,null,null,null,null,null,null,"Zip Code:",null,"Row 12"]
[null,"ER Split Unit 05",null,null,null,null,null,null,null,null,null,"Row 13"]
[null,"ER Split Unit 05",null,null,null,null,null,null,null,null,null,"Row 18"]
[null,"ER Split Unit 05",null,null,null,null,null,null,null,null,null,"Row 22"]
[null,"ER Split Unit 05",null,null,null,null,null,null,null,null,null,"Row 27"]
[null,"ER Split Unit 05",null,null,null,null,null,null,null,null,null,"Row 28"]
[null,"ER Split Unit 05",null,null,null,null,null,null,null,null,null,"Row 33"]
[null,"ER Split Unit 05",null,null,null,null,null,null,null,null,null,"Row 38"]
[null,"ER Split Unit 05",null,null,null,null,null,null,null,null,null,"Row 41"]
[null,"ER Split Unit 05",null,null,null,null,null,null,null,null,null,"Row 43"]
[null,"ER Split Unit 05",null,null,null,null,null,null,null,null,null,"Row 48"]
[null,"ER Split Unit 05",null,null,null,null,null,null,null,null,null,"Row 53"]
[null,"ER Split Unit 05",null,null,null,null,null,null,null,null,null,"Row 58"]
[null,"ER Split Unit 05",null,null,null,null,null,null,null,null,null,"Row 61"]
[null,"ER Split Unit 05",null,null,null,null,null,null,null,null,null,"Row 63"]
[null,"ER Split Unit 05",null,null,null,null,null,null,null,null,null,"Row 68"]
[null,"ER Split Unit 05",null,null,null,null,null,null,null,null,null,"Row 73"]
[null,"ER Split Unit 05",null,null,null,null,null,null,null,null,null,"Row 74"]
[null,"ER Split Unit 05",null,null,null,null,null,null,null,null,null,"Row 79"]
[null,"ER Split Unit 05",null,null,null,null,null,null,null,null,null,"Row 83"]
[null,"ER Split Unit 05",null,null,null,null,null,null,null,null,null,"Row 88"]
[null,"ER Split Unit 05",null,null,null,null,null,null,null,null,null,"Row 89"]
[null,"ER Split Unit 05",null,null,null,null,null,null,null,null,null,"Row 94"]
[null,"ER Split Unit 05",null,null,null,null,null,null,null,null,null,"Row 97"]
[null,"ER Split Unit 05",null,null,null,null,null,null,null,null,null,"Row 103"]
[null,"ER Split Unit 05",null,null,null,null,null,null,null,null,null,"Row 104"]
[null,"ER Split Unit 05",null,null,null,null,null,null,null,null,null,"Row 109"]
[null,"ER Split Unit 05",null,null,null,null,null,null,null,null,null,"Row 114"]
[null,"ER Split Unit 05",null,null,null,null,null,null,null,null,null,"Row 118"]
[null,"ER Split Unit 05",null,null,null,null,null,null,null,null,null,"Row 119"]
[null,"ER Split Unit 05",null,null,null,null,null,null,null,null,null,"Row 124"]
[null,"ER Split Unit 05",null,null,null,null,null,null,null,null,null,"Row 129"]
[null,"ER Split Unit 05",null,null,null,null,null,null,null,null,null,"Row 134"]
[null,"ER Split Unit 05",null,null,null,null,null,null,null,null,null,"Row 136"]
[null,"ER Split Unit 05",null,null,null,null,null,null,null,null,null,"Row 139"]
[null,"ER Split Unit 05",null,null,null,null,null,null,null,null,null,"Row 144"]
[null,"ER Split Unit 05",null,null,null,null,null,null,null,null,null,"Row 149"]
[null,"ER Split Unit 05",null,null,null,null,null,null,null,null,null,"Row 150"]
[null,"ER Split Unit 05",null,null,null,null,null,null,null,null,null,"Row 154"]
[null,"ER Split Unit 05",null,null,null,null,null,null,null,null,null,"Row 159"]
[null,"ER Split Unit 05",null,null,null,null,null,null,null,null,null,"Row 164"]
[null,"ER Split Unit 05",null,null,null,null,null,null,null,null,null,"Row 165"]
[null,"ER Split Unit 05",null,null,null,null,null,null,null,null,null,"Row 170"]
[null,"ER Split Unit 05",null,null,null,null,null,null,null,null,null,"Row 175"]
[null,"ER Split Unit 05",null,null,null,null,null,null,null,null,null,"Row 179"]
[null,"ER Split Unit 05",null,null,null,null,null,null,null,null,null,"Row 180"]
[null,"ER Split Unit 05",null,null,null,null,null,null,null,null,null,"Row 185"]
[null,"ER Split Unit 05",null,null,null,null,null,null,null,null,null,"Row 190"]
[null,"ER Split Unit 05",null,null,null,null,null,null,null,null,null,"Row 195"]
[null,"ER Split Unit 05",null,null,null,null,null,null,null,null,null,"Row 197"]
[null,"ER Split Unit 05",null,null,null,null,null,null,null,null,null,"Row 200"]
[null,"ER Split Unit 05",null,null,null,null,null,null,null,null,null,"Row 205"]
[null,"ER Split Unit 05",null,null,null,null,null,null,null,null,null,"Row 210"]
[null,"ER Split Unit 05",null,null,null,null,null,null,null,null,null,"Row 211"]
[null,"ER Split Unit 05",null,null,null,null,null,null,null,null,null,"Row 215"]
[null,"ER Split Unit 05",null,null,null,null,null,null,null,null,null,"Row 220"]
[null,"ER Split Unit 05",null,null,null,null,null,null,null,null,null,"Row 225"]
[null,"ER Split Unit 05",null,null,null,null,null,null,null,null,null,"Row 226"]
[null,"ER Split Unit 05",null,null,null,null,null,null,null,null,null,"Row 231"]
[null,"ER Split Unit 05",null,null,null,null,null,null,null,null,null,"Row 236"]
[null,"ER Split Unit 05",null,null,null,null,null,null,null,null,null,"Row 240"]
[null,"ER Split Unit 05",null,null,null,null,null,null,null,null,null,"Row 241"]
[null,"ER Split Unit 05",null,null,null,null,null,null,null,null,null,"Row 246"]
[null,"ER Split Unit 05",null,null,null,null,null,null,null,null,null,"Row 251"]
[null,"ER Split Unit 05",null,null,null,null,null,null,null,null,null,"Row 254"]
[null,"ER Split Unit 05",null,null,null,null,null,null,null,null,null,"Row 256"]
[null,"ER Split Unit 05",null,null,null,null,null,null,null,null,null,"Row 261"]
[null,"ER Split Unit 05",null,null,null,null,null,null,null,null,null,"Row 266"]
[null,"ER Split Unit 05",null,null,null,null,null,null,null,null,null,"Row 271"]
[null,"ER Split Unit 05",null,null,null,null,null,null,null,null,null,"Row 272"]
[null,"ER Split Unit 05",null,null,null,null,null,null,null,null,null,"Row 276"]
[null,"ER Split Unit 05",null,null,null,null,null,null,null,null,null,"Row 281"]
[null,"ER Split Unit 05",null,null,null,null,null,null,null,null,null,"Row 286"]
[null,"ER Split Unit 05",null,null,null,null,null,null,null,null,null,"Row 287"]
[null,"ER Split Unit 05",null,null,null,null,null,null,null,null,null,"Row 293"]
[null,"ER Split Unit 05",null,null,null,null,null,null,null,null,null,"Row 296"]
[null,"ER Split Unit 05",null,null,null,null,null,null,null,null,null,"Row 301"]
[null,"ER Split Unit 05",null,null,null,null,null,null,null,null,null,"Row 302"]
[null,"ER Split Unit 05",null,null,null,null,null,null,null,null,null,"Row 307"]
[null,"ER Split Unit 05",null,null,null,null,null,null,null,null,null,"Row 312"]
[null,"ER Split Unit 05",null,null,null,null,null,null,null,null,null,"Row 315"]
[null,"ER Split Unit 05",null,null,null,null,null,null,null,null,null,"Row 317"]
[null,"ER Split Unit 05",null,null,null,null,null,null,null,null,null,"Row 322"]
[null,"ER Split Unit 05",null,null,null,null,null,null,null,null,null,"Row 327"]
[null,"ER Split Unit 05",null,null,null,null,null,null,null,null,null,"Row 332"]
[null,"ER Split Unit 05",null,null,null,null,null,null,null,null,null,"Row 333"]
[null,"ER Split Unit 05",null,null,null,null,null,null,null,null,null,"Row 337"]
[null,"ER Split Unit 05",null,null,null,null,null,null,null,null,null,"Row 342"]
[null,"ER Split Unit 05",null,null,null,null,null,null,null,null,null,"Row 347"]
[null,"ER Split Unit 05",null,null,null,null,null,null,null,null,null,"Row 348"]
[null,"ER Split Unit 05",null,null,null,null,null,null,null,null,null,"Row 354"]
[null,"ER Split Unit 05",null,null,null,null,null,null,null,null,null,"Row 357"]
[null,"ER Split Unit 05",null,null,null,null,null,null,null,null,null,"Row 362"]
[null,"ER Split Unit 05",null,null,null,null,null,null,null,null,null,"Row 363"]
[null,"ER Split Unit 05",null,null,null,null,null,null,null,null,null,"Row 368"]
[null,"ER Split Unit 05",null,null,null,null,null,null,null,null,null,"Row 372"]
[null,"ER Split Unit 05",null,null,null,null,null,null,null,null,null,"Row 377"]
[null,"ER Split Unit 05",null,null,null,null,null,null,null,null,null,"Row 378"]
[null,"ER Split Unit 05",null,null,null,null,null,null,null,null,null,"Row 383"]
[null,"ER Split Unit 05",null,null,null,null,null,null,null,null,null,"Row 388"]
[null,"ER Split Unit 05",null,null,null,null,null,null,null,null,null,"Row 390"]
[null,"ER Split Unit 05",null,null,null,null,null,null,null,null,null,"Row 393"]
[null,"ER Split Unit 05",null,null,null,null,null,null,null,null,null,"Row 398"]
[null,"ER Split Unit 05",null,null,null,null,null,null,null,null,null,"Row 403"]
[null,"ER Split Unit 05",null,null,null,null,null,null,null,null,null,"Row 408"]
[null,"ER Split Unit 05",null,null,null,null,null,null,null,null,null,"Row 411"]
[null,"ER Split Unit 05",null,null,null,null,null,null,null,null,null,"Row 413"]
[null,"ER Split Unit 05",null,null,null,null,null,null,null,null,null,"Row 418"]
[null,"ER Split Unit 05",null,null,null,null,null,null,null,null,null,"Row 423"]
[null,"ER Split Unit 05",null,null,null,null,null,null,null,null,null,"Row 424"]
[null,"ER Split Unit 05",null,null,null,null,null,null,null,null,null,"Row 429"]
[null,"ER Split Unit 05",null,null,null,null,null,null,null,null,null,"Row 433"]
[null,"ER Split Unit 05",null,null,null,null,null,null,null,null,null,"Row 438"]
[null,"ER Split Unit 05",null,null,null,null,null,null,null,null,null,"Row 439"]
[null,"ER Split Unit 05",null,null,null,null,null,null,null,null,null,"Row 444"]
[null,"ER Split Unit 05",null,null,null,null,null,null,null,null,null,"Row 449"]
[null,"ER Split Unit 05",null,null,null,null,null,null,null,null,null,"Row 451"]
[null,"ER Split Unit 05",null,null,null,null,null,null,null,null,null,"Row 454"]
[null,"ER Split Unit 05",null,null,null,null,null,null,null,null,null,"Row 459"]
[null,"ER Split Unit 05",null,null,null,null,null,null,null,null,null,"Row 464"]
[null,"ER Split Unit 05",null,null,null,null,null,null,null,null,null,"Row 469"]
[null,"ER Split Unit 05",null,null,null,null,null,null,null,null,null,"Row 472"]
[null,"ER Split Unit 05",null,null,null,null,null,null,null,null,null,"Row 474"]
[null,"ER Split Unit 05",null,null,null,null,null,null,null,null,null,"Row 479"]
[null,"ER Split Unit 05",null,null,null,null,null,null,null,null,null,"Row 484"]
[null,"ER Split Unit 05",null,null,null,null,null,null,null,null,null,"Row 485"]
[null,"ER Split Unit 05",null,null,null,null,null,null,null,null,null,"Row 490"]
[null,"ER Split Unit 05",null,null,null,null,null,null,null,null,null,"Row 494"]
[null,"ER Split Unit 05",null,null,null,null,null,null,null,null,null,"Row 499"]
[null,"ER Split Unit 05",null,null,null,null,null,null,null,null,null,"Row 500"]
[null,"ER Split Unit 05",null,null,null,null,null,null,null,null,null,"Row 505"]
[null,"ER Split Unit 05",null,null,null,null,null,null,null,null,null,"Row 508"]
[null,"ER Split Unit 05",null,null,null,null,null,null,null,null,null,"Row 514"]
[null,"ER Split Unit 05",null,null,null,null,null,null,null,null,null,"Row 515"]
[null,"ER Split Unit 05",null,null,null,null,null,null,null,null,null,"Row 520"]
[null,"ER Split Unit 05",null,null,null,null,null,null,null,null,null,"Row 525"]
[null,"ER Split Unit 05",null,null,null,null,null,null,null,null,null,"Row 528"]
[null,"ER Split Unit 05",null,null,null,null,null,null,null,null,null,"Row 530"]
[null,"ER Split Unit 05",null,null,null,null,null,null,null,null,null,"Row 535"]
[null,"ER Split Unit 05",null,null,null,null,null,null,null,null,null,"Row 540"]
[null,"ER Split Unit 05",null,null,null,null,null,null,null,null,null,"Row 545"]
[null,"ER Split Unit 05",null,null,null,null,null,null,null,null,null,"Row 546"]
[null,"ER Split Unit 05",null,null,null,null,null,null,null,null,null,"Row 550"]
[null,"ER Split Unit 05",null,null,null,null,null,null,null,null,null,"Row 555"]
[null,"ER Split Unit 05",null,null,null,null,null,null,null,null,null,"Row 560"]
[null,"ER Split Unit 05",null,null,null,null,null,null,null,null,null,"Row 561"]
[null,"ER Split Unit 05",null,null,null,null,null,null,null,null,null,"Row 567"]
[null,"ER Split Unit 05",null,null,null,null,null,null,null,null,null,"Row 570"]
[null,"ER Split Unit 05",null,null,null,null,null,null,null,null,null,"Row 575"]
[null,"ER Split Unit 05",null,null,null,null,null,null,null,null,null,"Row 576"]
[null,"ER Split Unit 05",null,null,null,null,null,null,null,null,null,"Row 581"]
[null,"ER Split Unit 05",null,null,null,null,null,null,null,null,null,"Row 586"]
[null,"ER Split Unit 05",null,null,null,null,null,null,null,null,null,"Row 590"]
[null,"ER Split Unit 05",null,null,null,null,null,null,null,null,null,"Row 591"]
[null,"ER Split Unit 05",null,null,null,null,null,null,null,null,null,"Row 596"]
[null,"ER Split Unit 05",null,null,null,null,null,null,null,null,null,"Row 601"]
[null,"ER Split Unit 05",null,null,null,null,null,null,null,null,null,"Row 606"]
[null,"ER Split Unit 05",null,null,null,null,null,null,null,null,null,"Row 607"]
[null,"ER Split Unit 05",null,null,null,null,null,null,null,null,null,"Row 611"]
[null,"ER Split Unit 05",null,null,null,null,null,null,null,null,null,"Row 616"]
[null,"ER Split Unit 05",null,null,null,null,null,null,null,null,null,"Row 621"]
[null,"ER Split Unit 05",null,null,null,null,null,null,null,null,null,"Row 622"]
[null,"ER Split Unit 05",null,null,null,null,null,null,null,null,null,"Row 628"]
[null,"ER Split Unit 05",null,null,null,null,null,null,null,null,null,"Row 631"]
[null,"ER Split Unit 05",null,null,null,null,null,null,null,null,null,"Row 636"]
[null,"ER Split Unit 05",null,null,null,null,null,null,null,null,null,"Row 637"]
[null,"ER Split Unit 05",null,null,null,null,null,null,null,null,null,"Row 642"]
[null,"ER Split Unit 05",null,null,null,null,null,null,null,null,null,"Row 646"]
[null,"ER Split Unit 05",null,null,null,null,null,null,null,null,null,"Row 651"]
[null,"ER Split Unit 05",null,null,null,null,null,null,null,null,null,"Row 652"]
[null,"ER Split Unit 05",null,null,null,null,null,null,null,null,null,"Row 657"]
[null,"ER Split Unit 05",null,null,null,null,null,null,null,null,null,"Row 662"]
[null,"ER Split Unit 05",null,null,null,null,null,null,null,null,null,"Row 664"]
[null,"ER Split Unit 05",null,null,null,null,null,null,null,null,null,"Row 667"]
[null,"ER Split Unit 05",null,null,null,null,null,null,null,null,null,"Row 672"]
[null,"ER Split Unit 05",null,null,null,null,null,null,null,null,null,"Row 677"]
[null,"ER Split Unit 05",null,null,null,null,null,null,null,null,null,"Row 682"]
[null,"ER Split Unit 05",null,null,null,null,null,null,null,null,null,"Row 685"]
[null,"ER Split Unit 05",null,null,null,null,null,null,null,null,null,"Row 687"]
[null,"ER Split Unit 05",null,null,null,null,null,null,null,null,null,"Row 692"]
[null,"ER Split Unit 05",null,null,null,null,null,null,null,null,null,"Row 697"]
[null,"ER Split Unit 05",null,null,null,null,null,null,null,null,null,"Row 698"]
[null,"ER Split Unit 05",null,null,null,null,null,null,null,null,null,"Row 703"]
[null,"ER Split Unit 05",null,null,null,null,null,null,null,null,null,"Row 707"]
[null,"ER Split Unit 05",null,null,null,null,null,null,null,null,null,"Row 712"]
[null,"ER Split Unit 05",null,null,null,null,null,null,null,null,null,"Row 713"]
[null,"ER Split Unit 05",null,null,null,null,null,null,null,null,null,"Row 718"]
[null,"ER Split Unit 05",null,null,null,null,null,null,null,null,null,"Row 723"]
[null,"ER Split Unit 05",null,null,null,null,null,null,null,null,null,"Row 725"]
[null,"ER Split Unit 05",null,null,null,null,null,null,null,null,null,"Row 728"]
[null,"ER Split Unit 05",null,null,null,null,null,null,null,null,null,"Row 733"]
[null,"ER Split Unit 05",null,null,null,null,null,null,null,null,null,"Row 738"]
[null,"ER Split Unit 05",null,null,null,null,null,null,null,null,null,"Row 743"]
[null,"ER Split Unit 05",null,null,null,null,null,null,null,null,null,"Row 746"]
[null,"ER Split Unit 05",null,null,null,null,null,null,null,null,null,"Row 748"]
[null,"ER Split Unit 05",null,null,null,null,null,null,null,null,null,"Row 753"]
[null,"ER Split Unit 05",null,null,null,null,null,null,null,null,null,"Row 758"]
[null,"ER Split Unit 05",null,null,null,null,null,null,null,null,null,"Row 759"]
[null,"ER Split Unit 05",null,null,null,null,null,null,null,null,null,"Row 764"]
[null,"ER Split Unit 05",null,null,null,null,null,null,null,null,null,"Row 768"]
[null,"ER Split Unit 05",null,null,null,null,null,null,null,null,null,"Row 773"]
[null,"ER Split Unit 05",null,null,null,null,null,null,null,null,null,"Row 774"]
[null,"ER Split Unit 05",null,null,null,null,null,null,null,null,null,"Row 779"]
[null,"ER Split Unit 05",null,null,null,null,null,null,null,null,null,"Row 782"]
[null,"ER Split Unit 05",null,null,null,null,null,null,null,null,null,"Row 788"]
[null,"ER Split Unit 05",null,null,null,null,null,null,null,null,null,"Row 789"]
[null,"ER Split Unit 05",null,null,null,null,null,null,null,null,null,"Row 794"]
[null,"ER Split Unit 05",null,null,null,null,null,null,null,null,null,"Row 799"]
[null,"ER Split Unit 05",null,null,null,null,null,null,null,null,null,"Row 803"]
[null,"ER Split Unit 05",null,null,null,null,null,null,null,null,null,"Row 804"]
[null,"ER Split Unit 05",null,null,null,null,null,null,null,null,null,"Row 809"]
[null,"ER Split Unit 05",null,null,null,null,null,null,null,null,null,"Row 814"]
[null,"ER Split Unit 05",null,null,null,null,null,null,null,null,null,"Row 819"]
[null,"ER Split Unit 05",null,null,null,null,null,null,null,null,null,"Row 821"]
[null,"ER Split Unit 05",null,null,null,null,null,null,null,null,null,"Row 824"]
[null,"ER Split Unit 05",null,null,null,null,null,null,null,null,null,"Row 829"]
[null,"ER Split Unit 05",null,null,null,null,null,null,null,null,null,"Row 834"]
[null,"ER Split Unit 05",null,null,null,null,null,null,null,null,null,"Row 835"]
[null,"ER Split Unit 05",null,null,null,null,null,null,null,null,null,"Row 839"]
[null,"ER Split Unit 05",null,null,null,null,null,null,null,null,null,"Row 844"]
[null,"ER Split Unit 05",null,null,null,null,null,null,null,null,null,"Row 849"]
[null,"ER Split Unit 05",null,null,null,null,null,null,null,null,null,"Row 850"]
[null,"ER Split Unit 05",null,null,null,null,null,null,null,null,null,"Row 855"]
[null,"ER Split Unit 05",null,null,null,null,null,null,null,null,null,"Row 860"]
[null,"ER Split Unit 05",null,null,null,null,null,null,null,null,null,"Row 864"]
[null,"ER Split Unit 05",null,null,null,null,null,null,null,null,null,"Row 865"]
[null,"ER Split Unit 05",null,null,null,null,null,null,null,null,null,"Row 870"]
[null,"ER Split Unit 05",null,null,null,null,null,null,null,null,null,"Row 875"]
[null,"ER Split Unit 05",null,null,null,null,null,null,null,null,null,"Row 880"]
[null,"ER Split Unit 05",null,null,null,null,null,null,null,null,null,"Row 882"]
[null,"ER Split Unit 05",null,null,null,null,null,null,null,null,null,"Row 885"]
[null,"ER Split Unit 05",null,null,null,null,null,null,null,null,null,"Row 890"]
[null,"ER Split Unit 05",null,null,null,null,null,null,null,null,null,"Row 895"]
[null,"ER Split Unit 05",null,null,null,null,null,null,null,null,null,"Row 896"]
[null,"ER Split Unit 05",null,null,null,null,null,null,null,null,null,"Row 900"]
[null,"ER Split Unit 05",null,null,null,null,null,null,null,null,null,"Row 905"]
[null,"ER Split Unit 05",null,null,null,null,null,null,null,null,null,"Row 910"]
[null,"ER Split Unit 05",null,null,null,null,null,null,null,null,null,"Row 911"]
[null,"ER Split Unit 05",null,null,null,null,null,null,null,null,null,"Row 916"]
[null,"ER Split Unit 05",null,null,null,null,null,null,null,null,null,"Row 921"]
[null,"ER Split Unit 05",null,null,null,null,null,null,null,null,null,"Row 925"]
[null,"ER Split Unit 05",null,null,null,null,null,null,null,null,null,"Row 926"]
[null,"ER Split Unit 05",null,null,null,null,null,null,null,null,null,"Row 931"]
[null,"ER Split Unit 05",null,null,null,null,null,null,null,null,null,"Row 936"]
[null,"ER Split Unit 05",null,null,null,null,null,null,null,null,null,"Row 939"]
[null,"ER Split Unit 05",null,null,null,null,null,null,null,null,null,"Row 941"]
[null,"ER Split Unit 05",null,null,null,null,null,null,null,null,null,"Row 946"]
[null,"ER Split Unit 05",null,null,null,null,null,null,null,null,null,"Row 951"]
[null,"ER Split Unit 05",null,null,null,null,null,null,null,null,null,"Row 956"]
[null,"ER Split Unit 05",null,null,null,null,null,null,null,null,null,"Row 957"]
[null,"ER Split Unit 05",null,null,null,null,null,null,null,null,null,"Row 961"]
[null,"ER Split Unit 05",null,null,null,null,null,null,null,null,null,"Row 966"]
[null,"ER Split Unit 05",null,null,null,null,null,null,null,null,null,"Row 971"]
[null,"ER Split Unit 05",null,null,null,null,null,null,null,null,null,"Row 972"]
[null,"ER Split Unit 05",null,null,null,null,null,null,null,null,null,"Row 978"]
[null,"ER Split Unit 05",null,null,null,null,null,null,null,null,null,"Row 981"]
[null,"ER Split Unit 05",null,null,null,null,null,null,null,null,null,"Row 986"]
[null,"ER Split Unit 05",null,null,null,null,null,null,null,null,null,"Row 987"]
[null,"ER Split Unit 05",null,null,null,null,null,null,null,null,null,"Row 992"]
[null,"ER Split Unit 05",null,null,null,null,null,null,null,null,null,"Row 997"]
[null,"ER Split Unit 05",null,null,null,null,null,null,null,null,null,"Row 1000"]
[null,"ER Split Unit 05"]
[null,"ER Split Unit 06"]
[null,"ER Split Unit 06",null,null,null,null,null,null,null,"Policy Effective Date:",null,"Row 2"]
[null,"ER Split Unit 06",null,null,null,null,null,null,null,{"$f":"IF(uipU06LD_TT=\"01 PEO Client Information\",\"Client Termination Date\",\"Ownership Change Date\")","v":"Ownership Change Date"},null,"Row 7"]
[null,"ER Split Unit 06",null,null,null,null,null,null,null,"Name of Insured:",null,"Row 8"]
[null,"ER Split Unit 06",null,null,null,null,null,null,null,"Zip Code:",null,"Row 12"]
[null,"ER Split Unit 06",null,null,null,null,null,null,null,null,null,"Row 17"]
[null,"ER Split Unit 06",null,null,null,null,null,null,null,null,null,"Row 22"]
[null,"ER Split Unit 06",null,null,null,null,null,null,null,null,null,"Row 23"]
[null,"ER Split Unit 06",null,null,null,null,null,null,null,null,null,"Row 29"]
[null,"ER Split Unit 06",null,null,null,null,null,null,null,null,null,"Row 32"]
[null,"ER Split Unit 06",null,null,null,null,null,null,null,null,null,"Row 37"]
[null,"ER Split Unit 06",null,null,null,null,null,null,null,null,null,"Row 38"]
[null,"ER Split Unit 06",null,null,null,null,null,null,null,null,null,"Row 43"]
[null,"ER Split Unit 06",null,null,null,null,null,null,null,null,null,"Row 47"]
[null,"ER Split Unit 06",null,null,null,null,null,null,null,null,null,"Row 52"]
[null,"ER Split Unit 06",null,null,null,null,null,null,null,null,null,"Row 53"]
[null,"ER Split Unit 06",null,null,null,null,null,null,null,null,null,"Row 58"]
[null,"ER Split Unit 06",null,null,null,null,null,null,null,null,null,"Row 63"]
[null,"ER Split Unit 06",null,null,null,null,null,null,null,null,null,"Row 67"]
[null,"ER Split Unit 06",null,null,null,null,null,null,null,null,null,"Row 68"]
[null,"ER Split Unit 06",null,null,null,null,null,null,null,null,null,"Row 73"]
[null,"ER Split Unit 06",null,null,null,null,null,null,null,null,null,"Row 78"]
[null,"ER Split Unit 06",null,null,null,null,null,null,null,null,null,"Row 83"]
[null,"ER Split Unit 06",null,null,null,null,null,null,null,null,null,"Row 85"]
[null,"ER Split Unit 06",null,null,null,null,null,null,null,null,null,"Row 88"]
[null,"ER Split Unit 06",null,null,null,null,null,null,null,null,null,"Row 93"]
[null,"ER Split Unit 06",null,null,null,null,null,null,null,null,null,"Row 98"]
[null,"ER Split Unit 06",null,null,null,null,null,null,null,null,null,"Row 99"]
[null,"ER Split Unit 06",null,null,null,null,null,null,null,null,null,"Row 103"]
[null,"ER Split Unit 06",null,null,null,null,null,null,null,null,null,"Row 108"]
[null,"ER Split Unit 06",null,null,null,null,null,null,null,null,null,"Row 113"]
[null,"ER Split Unit 06",null,null,null,null,null,null,null,null,null,"Row 114"]
[null,"ER Split Unit 06",null,null,null,null,null,null,null,null,null,"Row 119"]
[null,"ER Split Unit 06",null,null,null,null,null,null,null,null,null,"Row 124"]
[null,"ER Split Unit 06",null,null,null,null,null,null,null,null,null,"Row 126"]
[null,"ER Split Unit 06",null,null,null,null,null,null,null,null,null,"Row 129"]
[null,"ER Split Unit 06",null,null,null,null,null,null,null,null,null,"Row 134"]
[null,"ER Split Unit 06",null,null,null,null,null,null,null,null,null,"Row 139"]
[null,"ER Split Unit 06",null,null,null,null,null,null,null,null,null,"Row 144"]
[null,"ER Split Unit 06",null,null,null,null,null,null,null,null,null,"Row 146"]
[null,"ER Split Unit 06",null,null,null,null,null,null,null,null,null,"Row 149"]
[null,"ER Split Unit 06",null,null,null,null,null,null,null,null,null,"Row 154"]
[null,"ER Split Unit 06",null,null,null,null,null,null,null,null,null,"Row 159"]
[null,"ER Split Unit 06",null,null,null,null,null,null,null,null,null,"Row 160"]
[null,"ER Split Unit 06",null,null,null,null,null,null,null,null,null,"Row 164"]
[null,"ER Split Unit 06",null,null,null,null,null,null,null,null,null,"Row 169"]
[null,"ER Split Unit 06",null,null,null,null,null,null,null,null,null,"Row 174"]
[null,"ER Split Unit 06",null,null,null,null,null,null,null,null,null,"Row 175"]
[null,"ER Split Unit 06",null,null,null,null,null,null,null,null,null,"Row 180"]
[null,"ER Split Unit 06",null,null,null,null,null,null,null,null,null,"Row 185"]
[null,"ER Split Unit 06",null,null,null,null,null,null,null,null,null,"Row 189"]
[null,"ER Split Unit 06",null,null,null,null,null,null,null,null,null,"Row 190"]
[null,"ER Split Unit 06",null,null,null,null,null,null,null,null,null,"Row 195"]
[null,"ER Split Unit 06",null,null,null,null,null,null,null,null,null,"Row 200"]
[null,"ER Split Unit 06",null,null,null,null,null,null,null,null,null,"Row 203"]
[null,"ER Split Unit 06",null,null,null,null,null,null,null,null,null,"Row 205"]
[null,"ER Split Unit 06",null,null,null,null,null,null,null,null,null,"Row 210"]
[null,"ER Split Unit 06",null,null,null,null,null,null,null,null,null,"Row 215"]
[null,"ER Split Unit 06",null,null,null,null,null,null,null,null,null,"Row 220"]
[null,"ER Split Unit 06",null,null,null,null,null,null,null,null,null,"Row 221"]
[null,"ER Split Unit 06",null,null,null,null,null,null,null,null,null,"Row 225"]
[null,"ER Split Unit 06",null,null,null,null,null,null,null,null,null,"Row 230"]
[null,"ER Split Unit 06",null,null,null,null,null,null,null,null,null,"Row 235"]
[null,"ER Split Unit 06",null,null,null,null,null,null,null,null,null,"Row 236"]
[null,"ER Split Unit 06",null,null,null,null,null,null,null,null,null,"Row 242"]
[null,"ER Split Unit 06",null,null,null,null,null,null,null,null,null,"Row 245"]
[null,"ER Split Unit 06",null,null,null,null,null,null,null,null,null,"Row 250"]
[null,"ER Split Unit 06",null,null,null,null,null,null,null,null,null,"Row 251"]
[null,"ER Split Unit 06",null,null,null,null,null,null,null,null,null,"Row 256"]
[null,"ER Split Unit 06",null,null,null,null,null,null,null,null,null,"Row 261"]
[null,"ER Split Unit 06",null,null,null,null,null,null,null,null,null,"Row 264"]
[null,"ER Split Unit 06",null,null,null,null,null,null,null,null,null,"Row 266"]
[null,"ER Split Unit 06",null,null,null,null,null,null,null,null,null,"Row 271"]
[null,"ER Split Unit 06",null,null,null,null,null,null,null,null,null,"Row 276"]
[null,"ER Split Unit 06",null,null,null,null,null,null,null,null,null,"Row 281"]
[null,"ER Split Unit 06",null,null,null,null,null,null,null,null,null,"Row 282"]
[null,"ER Split Unit 06",null,null,null,null,null,null,null,null,null,"Row 286"]
[null,"ER Split Unit 06",null,null,null,null,null,null,null,null,null,"Row 291"]
[null,"ER Split Unit 06",null,null,null,null,null,null,null,null,null,"Row 296"]
[null,"ER Split Unit 06",null,null,null,null,null,null,null,null,null,"Row 297"]
[null,"ER Split Unit 06",null,null,null,null,null,null,null,null,null,"Row 303"]
[null,"ER Split Unit 06",null,null,null,null,null,null,null,null,null,"Row 306"]
[null,"ER Split Unit 06",null,null,null,null,null,null,null,null,null,"Row 311"]
[null,"ER Split Unit 06",null,null,null,null,null,null,null,null,null,"Row 312"]
[null,"ER Split Unit 06",null,null,null,null,null,null,null,null,null,"Row 317"]
[null,"ER Split Unit 06",null,null,null,null,null,null,null,null,null,"Row 321"]
[null,"ER Split Unit 06",null,null,null,null,null,null,null,null,null,"Row 326"]
[null,"ER Split Unit 06",null,null,null,null,null,null,null,null,null,"Row 327"]
[null,"ER Split Unit 06",null,null,null,null,null,null,null,null,null,"Row 332"]
[null,"ER Split Unit 06",null,null,null,null,null,null,null,null,null,"Row 337"]
[null,"ER Split Unit 06",null,null,null,null,null,null,null,null,null,"Row 339"]
[null,"ER Split Unit 06",null,null,null,null,null,null,null,null,null,"Row 342"]
[null,"ER Split Unit 06",null,null,null,null,null,null,null,null,null,"Row 347"]
[null,"ER Split Unit 06",null,null,null,null,null,null,null,null,null,"Row 352"]
[null,"ER Split Unit 06",null,null,null,null,null,null,null,null,null,"Row 357"]
[null,"ER Split Unit 06",null,null,null,null,null,null,null,null,null,"Row 360"]
[null,"ER Split Unit 06",null,null,null,null,null,null,null,null,null,"Row 362"]
[null,"ER Split Unit 06",null,null,null,null,null,null,null,null,null,"Row 367"]
[null,"ER Split Unit 06",null,null,null,null,null,null,null,null,null,"Row 372"]
[null,"ER Split Unit 06",null,null,null,null,null,null,null,null,null,"Row 373"]
[null,"ER Split Unit 06",null,null,null,null,null,null,null,null,null,"Row 378"]
[null,"ER Split Unit 06",null,null,null,null,null,null,null,null,null,"Row 382"]
[null,"ER Split Unit 06",null,null,null,null,null,null,null,null,null,"Row 387"]
[null,"ER Split Unit 06",null,null,null,null,null,null,null,null,null,"Row 388"]
[null,"ER Split Unit 06",null,null,null,null,null,null,null,null,null,"Row 393"]
[null,"ER Split Unit 06",null,null,null,null,null,null,null,null,null,"Row 398"]
[null,"ER Split Unit 06",null,null,null,null,null,null,null,null,null,"Row 400"]
[null,"ER Split Unit 06",null,null,null,null,null,null,null,null,null,"Row 403"]
[null,"ER Split Unit 06",null,null,null,null,null,null,null,null,null,"Row 408"]
[null,"ER Split Unit 06",null,null,null,null,null,null,null,null,null,"Row 413"]
[null,"ER Split Unit 06",null,null,null,null,null,null,null,null,null,"Row 418"]
[null,"ER Split Unit 06",null,null,null,null,null,null,null,null,null,"Row 421"]
[null,"ER Split Unit 06",null,null,null,null,null,null,null,null,null,"Row 423"]
[null,"ER Split Unit 06",null,null,null,null,null,null,null,null,null,"Row 428"]
[null,"ER Split Unit 06",null,null,null,null,null,null,null,null,null,"Row 433"]
[null,"ER Split Unit 06",null,null,null,null,null,null,null,null,null,"Row 434"]
[null,"ER Split Unit 06",null,null,null,null,null,null,null,null,null,"Row 439"]
[null,"ER Split Unit 06",null,null,null,null,null,null,null,null,null,"Row 443"]
[null,"ER Split Unit 06",null,null,null,null,null,null,null,null,null,"Row 448"]
[null,"ER Split Unit 06",null,null,null,null,null,null,null,null,null,"Row 449"]
[null,"ER Split Unit 06",null,null,null,null,null,null,null,null,null,"Row 454"]
[null,"ER Split Unit 06",null,null,null,null,null,null,null,null,null,"Row 457"]
[null,"ER Split Unit 06",null,null,null,null,null,null,null,null,null,"Row 463"]
[null,"ER Split Unit 06",null,null,null,null,null,null,null,null,null,"Row 464"]
[null,"ER Split Unit 06",null,null,null,null,null,null,null,null,null,"Row 469"]
[null,"ER Split Unit 06",null,null,null,null,null,null,null,null,null,"Row 474"]
[null,"ER Split Unit 06",null,null,null,null,null,null,null,null,null,"Row 478"]
[null,"ER Split Unit 06",null,null,null,null,null,null,null,null,null,"Row 479"]
[null,"ER Split Unit 06",null,null,null,null,null,null,null,null,null,"Row 484"]
[null,"ER Split Unit 06",null,null,null,null,null,null,null,null,null,"Row 489"]
[null,"ER Split Unit 06",null,null,null,null,null,null,null,null,null,"Row 494"]
[null,"ER Split Unit 06",null,null,null,null,null,null,null,null,null,"Row 496"]
[null,"ER Split Unit 06",null,null,null,null,null,null,null,null,null,"Row 499"]
[null,"ER Split Unit 06",null,null,null,null,null,null,null,null,null,"Row 504"]
[null,"ER Split Unit 06",null,null,null,null,null,null,null,null,null,"Row 509"]
[null,"ER Split Unit 06",null,null,null,null,null,null,null,null,null,"Row 510"]
[null,"ER Split Unit 06",null,null,null,null,null,null,null,null,null,"Row 514"]
[null,"ER Split Unit 06",null,null,null,null,null,null,null,null,null,"Row 519"]
[null,"ER Split Unit 06",null,null,null,null,null,null,null,null,null,"Row 524"]
[null,"ER Split Unit 06",null,null,null,null,null,null,null,null,null,"Row 525"]
[null,"ER Split Unit 06",null,null,null,null,null,null,null,null,null,"Row 530"]
[null,"ER Split Unit 06",null,null,null,null,null,null,null,null,null,"Row 535"]
[null,"ER Split Unit 06",null,null,null,null,null,null,null,null,null,"Row 539"]
[null,"ER Split Unit 06",null,null,null,null,null,null,null,null,null,"Row 540"]
[null,"ER Split Unit 06",null,null,null,null,null,null,null,null,null,"Row 545"]
[null,"ER Split Unit 06",null,null,null,null,null,null,null,null,null,"Row 550"]
[null,"ER Split Unit 06",null,null,null,null,null,null,null,null,null,"Row 555"]
[null,"ER Split Unit 06",null,null,null,null,null,null,null,null,null,"Row 557"]
[null,"ER Split Unit 06",null,null,null,null,null,null,null,null,null,"Row 560"]
[null,"ER Split Unit 06",null,null,null,null,null,null,null,null,null,"Row 565"]
[null,"ER Split Unit 06",null,null,null,null,null,null,null,null,null,"Row 570"]
[null,"ER Split Unit 06",null,null,null,null,null,null,null,null,null,"Row 571"]
[null,"ER Split Unit 06",null,null,null,null,null,null,null,null,null,"Row 575"]
[null,"ER Split Unit 06",null,null,null,null,null,null,null,null,null,"Row 580"]
[null,"ER Split Unit 06",null,null,null,null,null,null,null,null,null,"Row 585"]
[null,"ER Split Unit 06",null,null,null,null,null,null,null,null,null,"Row 586"]
[null,"ER Split Unit 06",null,null,null,null,null,null,null,null,null,"Row 591"]
[null,"ER Split Unit 06",null,null,null,null,null,null,null,null,null,"Row 596"]
[null,"ER Split Unit 06",null,null,null,null,null,null,null,null,null,"Row 600"]
[null,"ER Split Unit 06",null,null,null,null,null,null,null,null,null,"Row 601"]
[null,"ER Split Unit 06",null,null,null,null,null,null,null,null,null,"Row 606"]
[null,"ER Split Unit 06",null,null,null,null,null,null,null,null,null,"Row 611"]
[null,"ER Split Unit 06",null,null,null,null,null,null,null,null,null,"Row 613"]
[null,"ER Split Unit 06",null,null,null,null,null,null,null,null,null,"Row 616"]
[null,"ER Split Unit 06",null,null,null,null,null,null,null,null,null,"Row 621"]
[null,"ER Split Unit 06",null,null,null,null,null,null,null,null,null,"Row 626"]
[null,"ER Split Unit 06",null,null,null,null,null,null,null,null,null,"Row 631"]
[null,"ER Split Unit 06",null,null,null,null,null,null,null,null,null,"Row 634"]
[null,"ER Split Unit 06",null,null,null,null,null,null,null,null,null,"Row 636"]
[null,"ER Split Unit 06",null,null,null,null,null,null,null,null,null,"Row 641"]
[null,"ER Split Unit 06",null,null,null,null,null,null,null,null,null,"Row 646"]
[null,"ER Split Unit 06",null,null,null,null,null,null,null,null,null,"Row 647"]
[null,"ER Split Unit 06",null,null,null,null,null,null,null,null,null,"Row 652"]
[null,"ER Split Unit 06",null,null,null,null,null,null,null,null,null,"Row 656"]
[null,"ER Split Unit 06",null,null,null,null,null,null,null,null,null,"Row 661"]
[null,"ER Split Unit 06",null,null,null,null,null,null,null,null,null,"Row 662"]
[null,"ER Split Unit 06",null,null,null,null,null,null,null,null,null,"Row 667"]
[null,"ER Split Unit 06",null,null,null,null,null,null,null,null,null,"Row 672"]
[null,"ER Split Unit 06",null,null,null,null,null,null,null,null,null,"Row 675"]
[null,"ER Split Unit 06",null,null,null,null,null,null,null,null,null,"Row 677"]
[null,"ER Split Unit 06",null,null,null,null,null,null,null,null,null,"Row 682"]
[null,"ER Split Unit 06",null,null,null,null,null,null,null,null,null,"Row 687"]
[null,"ER Split Unit 06",null,null,null,null,null,null,null,null,null,"Row 692"]
[null,"ER Split Unit 06",null,null,null,null,null,null,null,null,null,"Row 693"]
[null,"ER Split Unit 06",null,null,null,null,null,null,null,null,null,"Row 697"]
[null,"ER Split Unit 06",null,null,null,null,null,null,null,null,null,"Row 702"]
[null,"ER Split Unit 06",null,null,null,null,null,null,null,null,null,"Row 707"]
[null,"ER Split Unit 06",null,null,null,null,null,null,null,null,null,"Row 708"]
[null,"ER Split Unit 06",null,null,null,null,null,null,null,null,null,"Row 713"]
[null,"ER Split Unit 06",null,null,null,null,null,null,null,null,null,"Row 717"]
[null,"ER Split Unit 06",null,null,null,null,null,null,null,null,null,"Row 722"]
[null,"ER Split Unit 06",null,null,null,null,null,null,null,null,null,"Row 723"]
[null,"ER Split Unit 06",null,null,null,null,null,null,null,null,null,"Row 728"]
[null,"ER Split Unit 06",null,null,null,null,null,null,null,null,null,"Row 731"]
[null,"ER Split Unit 06",null,null,null,null,null,null,null,null,null,"Row 737"]
[null,"ER Split Unit 06",null,null,null,null,null,null,null,null,null,"Row 738"]
[null,"ER Split Unit 06",null,null,null,null,null,null,null,null,null,"Row 743"]
[null,"ER Split Unit 06",null,null,null,null,null,null,null,null,null,"Row 748"]
[null,"ER Split Unit 06",null,null,null,null,null,null,null,null,null,"Row 752"]
[null,"ER Split Unit 06",null,null,null,null,null,null,null,null,null,"Row 753"]
[null,"ER Split Unit 06",null,null,null,null,null,null,null,null,null,"Row 758"]
[null,"ER Split Unit 06",null,null,null,null,null,null,null,null,null,"Row 763"]
[null,"ER Split Unit 06",null,null,null,null,null,null,null,null,null,"Row 768"]
[null,"ER Split Unit 06",null,null,null,null,null,null,null,null,null,"Row 770"]
[null,"ER Split Unit 06",null,null,null,null,null,null,null,null,null,"Row 773"]
[null,"ER Split Unit 06",null,null,null,null,null,null,null,null,null,"Row 778"]
[null,"ER Split Unit 06",null,null,null,null,null,null,null,null,null,"Row 783"]
[null,"ER Split Unit 06",null,null,null,null,null,null,null,null,null,"Row 784"]
[null,"ER Split Unit 06",null,null,null,null,null,null,null,null,null,"Row 788"]
[null,"ER Split Unit 06",null,null,null,null,null,null,null,null,null,"Row 793"]
[null,"ER Split Unit 06",null,null,null,null,null,null,null,null,null,"Row 798"]
[null,"ER Split Unit 06",null,null,null,null,null,null,null,null,null,"Row 799"]
[null,"ER Split Unit 06",null,null,null,null,null,null,null,null,null,"Row 804"]
[null,"ER Split Unit 06",null,null,null,null,null,null,null,null,null,"Row 809"]
[null,"ER Split Unit 06",null,null,null,null,null,null,null,null,null,"Row 813"]
[null,"ER Split Unit 06",null,null,null,null,null,null,null,null,null,"Row 814"]
[null,"ER Split Unit 06",null,null,null,null,null,null,null,null,null,"Row 819"]
[null,"ER Split Unit 06",null,null,null,null,null,null,null,null,null,"Row 824"]
[null,"ER Split Unit 06",null,null,null,null,null,null,null,null,null,"Row 829"]
[null,"ER Split Unit 06",null,null,null,null,null,null,null,null,null,"Row 831"]
[null,"ER Split Unit 06",null,null,null,null,null,null,null,null,null,"Row 834"]
[null,"ER Split Unit 06",null,null,null,null,null,null,null,null,null,"Row 839"]
[null,"ER Split Unit 06",null,null,null,null,null,null,null,null,null,"Row 844"]
[null,"ER Split Unit 06",null,null,null,null,null,null,null,null,null,"Row 845"]
[null,"ER Split Unit 06",null,null,null,null,null,null,null,null,null,"Row 849"]
[null,"ER Split Unit 06",null,null,null,null,null,null,null,null,null,"Row 854"]
[null,"ER Split Unit 06",null,null,null,null,null,null,null,null,null,"Row 859"]
[null,"ER Split Unit 06",null,null,null,null,null,null,null,null,null,"Row 860"]
[null,"ER Split Unit 06",null,null,null,null,null,null,null,null,null,"Row 865"]
[null,"ER Split Unit 06",null,null,null,null,null,null,null,null,null,"Row 870"]
[null,"ER Split Unit 06",null,null,null,null,null,null,null,null,null,"Row 874"]
[null,"ER Split Unit 06",null,null,null,null,null,null,null,null,null,"Row 875"]
[null,"ER Split Unit 06",null,null,null,null,null,null,null,null,null,"Row 880"]
[null,"ER Split Unit 06",null,null,null,null,null,null,null,null,null,"Row 885"]
[null,"ER Split Unit 06",null,null,null,null,null,null,null,null,null,"Row 888"]
[null,"ER Split Unit 06",null,null,null,null,null,null,null,null,null,"Row 890"]
[null,"ER Split Unit 06",null,null,null,null,null,null,null,null,null,"Row 895"]
[null,"ER Split Unit 06",null,null,null,null,null,null,null,null,null,"Row 900"]
[null,"ER Split Unit 06",null,null,null,null,null,null,null,null,null,"Row 905"]
[null,"ER Split Unit 06",null,null,null,null,null,null,null,null,null,"Row 906"]
[null,"ER Split Unit 06",null,null,null,null,null,null,null,null,null,"Row 910"]
[null,"ER Split Unit 06",null,null,null,null,null,null,null,null,null,"Row 915"]
[null,"ER Split Unit 06",null,null,null,null,null,null,null,null,null,"Row 920"]
[null,"ER Split Unit 06",null,null,null,null,null,null,null,null,null,"Row 921"]
[null,"ER Split Unit 06",null,null,null,null,null,null,null,null,null,"Row 927"]
[null,"ER Split Unit 06",null,null,null,null,null,null,null,null,null,"Row 930"]
[null,"ER Split Unit 06",null,null,null,null,null,null,null,null,null,"Row 935"]
[null,"ER Split Unit 06",null,null,null,null,null,null,null,null,null,"Row 936"]
[null,"ER Split Unit 06",null,null,null,null,null,null,null,null,null,"Row 941"]
[null,"ER Split Unit 06",null,null,null,null,null,null,null,null,null,"Row 945"]
[null,"ER Split Unit 06",null,null,null,null,null,null,null,null,null,"Row 950"]
[null,"ER Split Unit 06",null,null,null,null,null,null,null,null,null,"Row 951"]
[null,"ER Split Unit 06",null,null,null,null,null,null,null,null,null,"Row 956"]
[null,"ER Split Unit 06",null,null,null,null,null,null,null,null,null,"Row 961"]
[null,"ER Split Unit 06",null,null,null,null,null,null,null,null,null,"Row 966"]
[null,"ER Split Unit 06",null,null,null,null,null,null,null,null,null,"Row 967"]
[null,"ER Split Unit 06",null,null,null,null,null,null,null,null,null,"Row 971"]
[null,"ER Split Unit 06",null,null,null,null,null,null,null,null,null,"Row 976"]
[null,"ER Split Unit 06",null,null,null,null,null,null,null,null,null,"Row 981"]
[null,"ER Split Unit 06",null,null,null,null,null,null,null,null,null,"Row 982"]
[null,"ER Split Unit 06",null,null,null,null,null,null,null,null,null,"Row 988"]
[null,"ER Split Unit 06",null,null,null,null,null,null,null,null,null,"Row 991"]
[null,"ER Split Unit 06",null,null,null,null,null,null,null,null,null,"Row 996"]
[null,"ER Split Unit 06",null,null,null,null,null,null,null,null,null,"Row 997"]
[null,"ER Split Unit 06"]
[null,"ER Split Unit 07"]
[null,"ER Split Unit 07",null,null,null,null,null,null,null,"Policy Number:",null,"Row 1",null,null,null,null,null,null,null,null,null,null,null,null,null,null,null,null,null,null,null,null,null,null,null,null,null,null,null,null,null,null,null,null,null,null,{"$f":"IFERROR(IF(OR(uipU06LD_RT=\"Delete\",COUNTA(V6075:W6075)<2,LEN(V6075)>12,kyDSLDU06=\"\"),\"\",kyDSLDU06&\"5\"&REPT(\" \",12-LEN(TRIM(V6075)))&TRIM(UPPER(V6075))&TEXT(DATE(YEAR(W6075),MONTH(W6075),DAY(W6075)),\"YYYYMMDD\")&IF(kyU06TOL=\"Y\",TEXT(TRIM(LEFT(X6075,2)),\"00\"),\"00\")&REPT(\" \",117)),\"\")","v":""}]
[null,"ER Split Unit 07",null,null,null,null,null,null,null,"Policy Effective Date:",null,"Row 2",null,null,null,null,null,null,null,null,null,null,null,null,null,null,null,null,null,null,null,null,null,null,null,null,null,null,null,null,null,null,null,null,null,null,{"$f":"IFERROR(IF(OR(uipU06LD_RT=\"Delete\",COUNTA(V6076:W6076)<2,LEN(V6076)>12,kyDSLDU06=\"\"),\"\",kyDSLDU06&\"5\"&REPT(\" \",12-LEN(TRIM(V6076)))&TRIM(UPPER(V6076))&TEXT(DATE(YEAR(W6076),MONTH(W6076),DAY(W6076)),\"YYYYMMDD\")&IF(kyU06TOL=\"Y\",TEXT(TRIM(LEFT(X6076,2)),\"00\"),\"00\")&REPT(\" \",117)),\"\")","v":""}]
[null,"ER Split Unit 07",null,null,null,null,null,null,null,{"$f":"IF(uipU07LD_TT=\"01 PEO Client Information\",\"Client Termination Date\",\"Ownership Change Date\")","v":"Ownership Change Date"},null,"Row 7"]
[null,"ER Split Unit 07",null,null,null,null,null,null,null,"Zip Code:",null,"Row 12"]
[null,"ER Split Unit 07",null,null,null,null,null,null,null,null,null,"Row 14"]
[null,"ER Split Unit 07",null,null,null,null,null,null,null,null,null,"Row 17"]
[null,"ER Split Unit 07",null,null,null,null,null,null,null,null,null,"Row 22"]
[null,"ER Split Unit 07",null,null,null,null,null,null,null,null,null,"Row 27"]
[null,"ER Split Unit 07",null,null,null,null,null,null,null,null,null,"Row 32"]
[null,"ER Split Unit 07",null,null,null,null,null,null,null,null,null,"Row 35"]
[null,"ER Split Unit 07",null,null,null,null,null,null,null,null,null,"Row 37"]
[null,"ER Split Unit 07",null,null,null,null,null,null,null,null,null,"Row 42"]
[null,"ER Split Unit 07",null,null,null,null,null,null,null,null,null,"Row 47"]
[null,"ER Split Unit 07",null,null,null,null,null,null,null,null,null,"Row 48"]
[null,"ER Split Unit 07",null,null,null,null,null,null,null,null,null,"Row 53"]
[null,"ER Split Unit 07",null,null,null,null,null,null,null,null,null,"Row 57"]
[null,"ER Split Unit 07",null,null,null,null,null,null,null,null,null,"Row 62"]
[null,"ER Split Unit 07",null,null,null,null,null,null,null,null,null,"Row 63"]
[null,"ER Split Unit 07",null,null,null,null,null,null,null,null,null,"Row 68"]
[null,"ER Split Unit 07",null,null,null,null,null,null,null,null,null,"Row 73"]
[null,"ER Split Unit 07",null,null,null,null,null,null,null,null,null,"Row 77"]
[null,"ER Split Unit 07",null,null,null,null,null,null,null,null,null,"Row 78"]
[null,"ER Split Unit 07",null,null,null,null,null,null,null,null,null,"Row 83"]
[null,"ER Split Unit 07",null,null,null,null,null,null,null,null,null,"Row 88"]
[null,"ER Split Unit 07",null,null,null,null,null,null,null,null,null,"Row 93"]
[null,"ER Split Unit 07",null,null,null,null,null,null,null,null,null,"Row 96"]
[null,"ER Split Unit 07",null,null,null,null,null,null,null,null,null,"Row 98"]
[null,"ER Split Unit 07",null,null,null,null,null,null,null,null,null,"Row 103"]
[null,"ER Split Unit 07",null,null,null,null,null,null,null,null,null,"Row 108"]
[null,"ER Split Unit 07",null,null,null,null,null,null,null,null,null,"Row 109"]
[null,"ER Split Unit 07",null,null,null,null,null,null,null,null,null,"Row 114"]
[null,"ER Split Unit 07",null,null,null,null,null,null,null,null,null,"Row 118"]
[null,"ER Split Unit 07",null,null,null,null,null,null,null,null,null,"Row 123"]
[null,"ER Split Unit 07",null,null,null,null,null,null,null,null,null,"Row 124"]
[null,"ER Split Unit 07",null,null,null,null,null,null,null,null,null,"Row 129"]
[null,"ER Split Unit 07",null,null,null,null,null,null,null,null,null,"Row 132"]
[null,"ER Split Unit 07",null,null,null,null,null,null,null,null,null,"Row 138"]
[null,"ER Split Unit 07",null,null,null,null,null,null,null,null,null,"Row 139"]
[null,"ER Split Unit 07",null,null,null,null,null,null,null,null,null,"Row 144"]
[null,"ER Split Unit 07",null,null,null,null,null,null,null,null,null,"Row 149"]
[null,"ER Split Unit 07",null,null,null,null,null,null,null,null,null,"Row 152"]
[null,"ER Split Unit 07",null,null,null,null,null,null,null,null,null,"Row 154"]
[null,"ER Split Unit 07",null,null,null,null,null,null,null,null,null,"Row 159"]
[null,"ER Split Unit 07",null,null,null,null,null,null,null,null,null,"Row 164"]
[null,"ER Split Unit 07",null,null,null,null,null,null,null,null,null,"Row 169"]
[null,"ER Split Unit 07",null,null,null,null,null,null,null,null,null,"Row 170"]
[null,"ER Split Unit 07",null,null,null,null,null,null,null,null,null,"Row 174"]
[null,"ER Split Unit 07",null,null,null,null,null,null,null,null,null,"Row 179"]
[null,"ER Split Unit 07",null,null,null,null,null,null,null,null,null,"Row 184"]
[null,"ER Split Unit 07",null,null,null,null,null,null,null,null,null,"Row 185"]
[null,"ER Split Unit 07",null,null,null,null,null,null,null,null,null,"Row 191"]
[null,"ER Split Unit 07",null,null,null,null,null,null,null,null,null,"Row 194"]
[null,"ER Split Unit 07",null,null,null,null,null,null,null,null,null,"Row 199"]
[null,"ER Split Unit 07",null,null,null,null,null,null,null,null,null,"Row 200"]
[null,"ER Split Unit 07",null,null,null,null,null,null,null,null,null,"Row 205"]
[null,"ER Split Unit 07",null,null,null,null,null,null,null,null,null,"Row 209"]
[null,"ER Split Unit 07",null,null,null,null,null,null,null,null,null,"Row 214"]
[null,"ER Split Unit 07",null,null,null,null,null,null,null,null,null,"Row 215"]
[null,"ER Split Unit 07",null,null,null,null,null,null,null,null,null,"Row 220"]
[null,"ER Split Unit 07",null,null,null,null,null,null,null,null,null,"Row 225"]
[null,"ER Split Unit 07",null,null,null,null,null,null,null,null,null,"Row 230"]
[null,"ER Split Unit 07",null,null,null,null,null,null,null,null,null,"Row 232"]
[null,"ER Split Unit 07",null,null,null,null,null,null,null,null,null,"Row 235"]
[null,"ER Split Unit 07",null,null,null,null,null,null,null,null,null,"Row 240"]
[null,"ER Split Unit 07",null,null,null,null,null,null,null,null,null,"Row 245"]
[null,"ER Split Unit 07",null,null,null,null,null,null,null,null,null,"Row 246"]
[null,"ER Split Unit 07",null,null,null,null,null,null,null,null,null,"Row 252"]
[null,"ER Split Unit 07",null,null,null,null,null,null,null,null,null,"Row 255"]
[null,"ER Split Unit 07",null,null,null,null,null,null,null,null,null,"Row 260"]
[null,"ER Split Unit 07",null,null,null,null,null,null,null,null,null,"Row 261"]
[null,"ER Split Unit 07",null,null,null,null,null,null,null,null,null,"Row 266"]
[null,"ER Split Unit 07",null,null,null,null,null,null,null,null,null,"Row 270"]
[null,"ER Split Unit 07",null,null,null,null,null,null,null,null,null,"Row 275"]
[null,"ER Split Unit 07",null,null,null,null,null,null,null,null,null,"Row 276"]
[null,"ER Split Unit 07",null,null,null,null,null,null,null,null,null,"Row 281"]
[null,"ER Split Unit 07",null,null,null,null,null,null,null,null,null,"Row 286"]
[null,"ER Split Unit 07",null,null,null,null,null,null,null,null,null,"Row 288"]
[null,"ER Split Unit 07",null,null,null,null,null,null,null,null,null,"Row 291"]
[null,"ER Split Unit 07",null,null,null,null,null,null,null,null,null,"Row 296"]
[null,"ER Split Unit 07",null,null,null,null,null,null,null,null,null,"Row 301"]
[null,"ER Split Unit 07",null,null,null,null,null,null,null,null,null,"Row 306"]
[null,"ER Split Unit 07",null,null,null,null,null,null,null,null,null,"Row 309"]
[null,"ER Split Unit 07",null,null,null,null,null,null,null,null,null,"Row 311"]
[null,"ER Split Unit 07",null,null,null,null,null,null,null,null,null,"Row 316"]
[null,"ER Split Unit 07",null,null,null,null,null,null,null,null,null,"Row 321"]
[null,"ER Split Unit 07",null,null,null,null,null,null,null,null,null,"Row 322"]
[null,"ER Split Unit 07",null,null,null,null,null,null,null,null,null,"Row 327"]
[null,"ER Split Unit 07",null,null,null,null,null,null,null,null,null,"Row 331"]
[null,"ER Split Unit 07",null,null,null,null,null,null,null,null,null,"Row 336"]
[null,"ER Split Unit 07",null,null,null,null,null,null,null,null,null,"Row 337"]
[null,"ER Split Unit 07",null,null,null,null,null,null,null,null,null,"Row 342"]
[null,"ER Split Unit 07",null,null,null,null,null,null,null,null,null,"Row 345"]
[null,"ER Split Unit 07",null,null,null,null,null,null,null,null,null,"Row 351"]
[null,"ER Split Unit 07",null,null,null,null,null,null,null,null,null,"Row 352"]
[null,"ER Split Unit 07",null,null,null,null,null,null,null,null,null,"Row 357"]
[null,"ER Split Unit 07",null,null,null,null,null,null,null,null,null,"Row 362"]
[null,"ER Split Unit 07",null,null,null,null,null,null,null,null,null,"Row 367"]
[null,"ER Split Unit 07",null,null,null,null,null,null,null,null,null,"Row 370"]
[null,"ER Split Unit 07",null,null,null,null,null,null,null,null,null,"Row 372"]
[null,"ER Split Unit 07",null,null,null,null,null,null,null,null,null,"Row 377"]
[null,"ER Split Unit 07",null,null,null,null,null,null,null,null,null,"Row 382"]
[null,"ER Split Unit 07",null,null,null,null,null,null,null,null,null,"Row 383"]
[null,"ER Split Unit 07",null,null,null,null,null,null,null,null,null,"Row 388"]
[null,"ER Split Unit 07",null,null,null,null,null,null,null,null,null,"Row 392"]
[null,"ER Split Unit 07",null,null,null,null,null,null,null,null,null,"Row 397"]
[null,"ER Split Unit 07",null,null,null,null,null,null,null,null,null,"Row 398"]
[null,"ER Split Unit 07",null,null,null,null,null,null,null,null,null,"Row 403"]
[null,"ER Split Unit 07",null,null,null,null,null,null,null,null,null,"Row 406"]
[null,"ER Split Unit 07",null,null,null,null,null,null,null,null,null,"Row 412"]
[null,"ER Split Unit 07",null,null,null,null,null,null,null,null,null,"Row 413"]
[null,"ER Split Unit 07",null,null,null,null,null,null,null,null,null,"Row 418"]
[null,"ER Split Unit 07",null,null,null,null,null,null,null,null,null,"Row 423"]
[null,"ER Split Unit 07",null,null,null,null,null,null,null,null,null,"Row 427"]
[null,"ER Split Unit 07",null,null,null,null,null,null,null,null,null,"Row 428"]
[null,"ER Split Unit 07",null,null,null,null,null,null,null,null,null,"Row 433"]
[null,"ER Split Unit 07",null,null,null,null,null,null,null,null,null,"Row 438"]
[null,"ER Split Unit 07",null,null,null,null,null,null,null,null,null,"Row 443"]
[null,"ER Split Unit 07",null,null,null,null,null,null,null,null,null,"Row 445"]
[null,"ER Split Unit 07",null,null,null,null,null,null,null,null,null,"Row 448"]
[null,"ER Split Unit 07",null,null,null,null,null,null,null,null,null,"Row 453"]
[null,"ER Split Unit 07",null,null,null,null,null,null,null,null,null,"Row 458"]
[null,"ER Split Unit 07",null,null,null,null,null,null,null,null,null,"Row 459"]
[null,"ER Split Unit 07",null,null,null,null,null,null,null,null,null,"Row 463"]
[null,"ER Split Unit 07",null,null,null,null,null,null,null,null,null,"Row 468"]
[null,"ER Split Unit 07",null,null,null,null,null,null,null,null,null,"Row 473"]
[null,"ER Split Unit 07",null,null,null,null,null,null,null,null,null,"Row 474"]
[null,"ER Split Unit 07",null,null,null,null,null,null,null,null,null,"Row 479"]
[null,"ER Split Unit 07",null,null,null,null,null,null,null,null,null,"Row 484"]
[null,"ER Split Unit 07",null,null,null,null,null,null,null,null,null,"Row 488"]
[null,"ER Split Unit 07",null,null,null,null,null,null,null,null,null,"Row 489"]
[null,"ER Split Unit 07",null,null,null,null,null,null,null,null,null,"Row 494"]
[null,"ER Split Unit 07",null,null,null,null,null,null,null,null,null,"Row 499"]
[null,"ER Split Unit 07",null,null,null,null,null,null,null,null,null,"Row 504"]
[null,"ER Split Unit 07",null,null,null,null,null,null,null,null,null,"Row 506"]
[null,"ER Split Unit 07",null,null,null,null,null,null,null,null,null,"Row 509"]
[null,"ER Split Unit 07",null,null,null,null,null,null,null,null,null,"Row 514"]
[null,"ER Split Unit 07",null,null,null,null,null,null,null,null,null,"Row 519"]
[null,"ER Split Unit 07",null,null,null,null,null,null,null,null,null,"Row 520"]
[null,"ER Split Unit 07",null,null,null,null,null,null,null,null,null,"Row 524"]
[null,"ER Split Unit 07",null,null,null,null,null,null,null,null,null,"Row 529"]
[null,"ER Split Unit 07",null,null,null,null,null,null,null,null,null,"Row 534"]
[null,"ER Split Unit 07",null,null,null,null,null,null,null,null,null,"Row 535"]
[null,"ER Split Unit 07",null,null,null,null,null,null,null,null,null,"Row 540"]
[null,"ER Split Unit 07",null,null,null,null,null,null,null,null,null,"Row 545"]
[null,"ER Split Unit 07",null,null,null,null,null,null,null,null,null,"Row 549"]
[null,"ER Split Unit 07",null,null,null,null,null,null,null,null,null,"Row 550"]
[null,"ER Split Unit 07",null,null,null,null,null,null,null,null,null,"Row 555"]
[null,"ER Split Unit 07",null,null,null,null,null,null,null,null,null,"Row 560"]
[null,"ER Split Unit 07",null,null,null,null,null,null,null,null,null,"Row 563"]
[null,"ER Split Unit 07",null,null,null,null,null,null,null,null,null,"Row 565"]
[null,"ER Split Unit 07",null,null,null,null,null,null,null,null,null,"Row 570"]
[null,"ER Split Unit 07",null,null,null,null,null,null,null,null,null,"Row 575"]
[null,"ER Split Unit 07",null,null,null,null,null,null,null,null,null,"Row 580"]
[null,"ER Split Unit 07",null,null,null,null,null,null,null,null,null,"Row 581"]
[null,"ER Split Unit 07",null,null,null,null,null,null,null,null,null,"Row 585"]
[null,"ER Split Unit 07",null,null,null,null,null,null,null,null,null,"Row 590"]
[null,"ER Split Unit 07",null,null,null,null,null,null,null,null,null,"Row 595"]
[null,"ER Split Unit 07",null,null,null,null,null,null,null,null,null,"Row 596"]
[null,"ER Split Unit 07",null,null,null,null,null,null,null,null,null,"Row 602"]
[null,"ER Split Unit 07",null,null,null,null,null,null,null,null,null,"Row 605"]
[null,"ER Split Unit 07",null,null,null,null,null,null,null,null,null,"Row 610"]
[null,"ER Split Unit 07",null,null,null,null,null,null,null,null,null,"Row 611"]
[null,"ER Split Unit 07",null,null,null,null,null,null,null,null,null,"Row 616"]
[null,"ER Split Unit 07",null,null,null,null,null,null,null,null,null,"Row 619"]
[null,"ER Split Unit 07",null,null,null,null,null,null,null,null,null,"Row 625"]
[null,"ER Split Unit 07",null,null,null,null,null,null,null,null,null,"Row 626"]
[null,"ER Split Unit 07",null,null,null,null,null,null,null,null,null,"Row 631"]
[null,"ER Split Unit 07",null,null,null,null,null,null,null,null,null,"Row 636"]
[null,"ER Split Unit 07",null,null,null,null,null,null,null,null,null,"Row 641"]
[null,"ER Split Unit 07",null,null,null,null,null,null,null,null,null,"Row 642"]
[null,"ER Split Unit 07",null,null,null,null,null,null,null,null,null,"Row 646"]
[null,"ER Split Unit 07",null,null,null,null,null,null,null,null,null,"Row 651"]
[null,"ER Split Unit 07",null,null,null,null,null,null,null,null,null,"Row 656"]
[null,"ER Split Unit 07",null,null,null,null,null,null,null,null,null,"Row 657"]
[null,"ER Split Unit 07",null,null,null,null,null,null,null,null,null,"Row 663"]
[null,"ER Split Unit 07",null,null,null,null,null,null,null,null,null,"Row 666"]
[null,"ER Split Unit 07",null,null,null,null,null,null,null,null,null,"Row 671"]
[null,"ER Split Unit 07",null,null,null,null,null,null,null,null,null,"Row 672"]
[null,"ER Split Unit 07",null,null,null,null,null,null,null,null,null,"Row 677"]
[null,"ER Split Unit 07",null,null,null,null,null,null,null,null,null,"Row 681"]
[null,"ER Split Unit 07",null,null,null,null,null,null,null,null,null,"Row 686"]
[null,"ER Split Unit 07",null,null,null,null,null,null,null,null,null,"Row 687"]
[null,"ER Split Unit 07",null,null,null,null,null,null,null,null,null,"Row 692"]
[null,"ER Split Unit 07",null,null,null,null,null,null,null,null,null,"Row 697"]
[null,"ER Split Unit 07",null,null,null,null,null,null,null,null,null,"Row 701"]
[null,"ER Split Unit 07",null,null,null,null,null,null,null,null,null,"Row 702"]
[null,"ER Split Unit 07",null,null,null,null,null,null,null,null,null,"Row 707"]
[null,"ER Split Unit 07",null,null,null,null,null,null,null,null,null,"Row 712"]
[null,"ER Split Unit 07",null,null,null,null,null,null,null,null,null,"Row 717"]
[null,"ER Split Unit 07",null,null,null,null,null,null,null,null,null,"Row 719"]
[null,"ER Split Unit 07",null,null,null,null,null,null,null,null,null,"Row 722"]
[null,"ER Split Unit 07",null,null,null,null,null,null,null,null,null,"Row 727"]
[null,"ER Split Unit 07",null,null,null,null,null,null,null,null,null,"Row 732"]
[null,"ER Split Unit 07",null,null,null,null,null,null,null,null,null,"Row 733"]
[null,"ER Split Unit 07",null,null,null,null,null,null,null,null,null,"Row 737"]
[null,"ER Split Unit 07",null,null,null,null,null,null,null,null,null,"Row 742"]
[null,"ER Split Unit 07",null,null,null,null,null,null,null,null,null,"Row 747"]
[null,"ER Split Unit 07",null,null,null,null,null,null,null,null,null,"Row 748"]
[null,"ER Split Unit 07",null,null,null,null,null,null,null,null,null,"Row 753"]
[null,"ER Split Unit 07",null,null,null,null,null,null,null,null,null,"Row 758"]
[null,"ER Split Unit 07",null,null,null,null,null,null,null,null,null,"Row 762"]
[null,"ER Split Unit 07",null,null,null,null,null,null,null,null,null,"Row 763"]
[null,"ER Split Unit 07",null,null,null,null,null,null,null,null,null,"Row 768"]
[null,"ER Split Unit 07",null,null,null,null,null,null,null,null,null,"Row 773"]
[null,"ER Split Unit 07",null,null,null,null,null,null,null,null,null,"Row 778"]
[null,"ER Split Unit 07",null,null,null,null,null,null,null,null,null,"Row 781"]
[null,"ER Split Unit 07",null,null,null,null,null,null,null,null,null,"Row 783"]
[null,"ER Split Unit 07",null,null,null,null,null,null,null,null,null,"Row 788"]
[null,"ER Split Unit 07",null,null,null,null,null,null,null,null,null,"Row 793"]
[null,"ER Split Unit 07",null,null,null,null,null,null,null,null,null,"Row 794"]
[null,"ER Split Unit 07",null,null,null,null,null,null,null,null,null,"Row 798"]
[null,"ER Split Unit 07",null,null,null,null,null,null,null,null,null,"Row 803"]
[null,"ER Split Unit 07",null,null,null,null,null,null,null,null,null,"Row 808"]
[null,"ER Split Unit 07",null,null,null,null,null,null,null,null,null,"Row 809"]
[null,"ER Split Unit 07",null,null,null,null,null,null,null,null,null,"Row 814"]
[null,"ER Split Unit 07",null,null,null,null,null,null,null,null,null,"Row 819"]
[null,"ER Split Unit 07",null,null,null,null,null,null,null,null,null,"Row 823"]
[null,"ER Split Unit 07",null,null,null,null,null,null,null,null,null,"Row 824"]
[null,"ER Split Unit 07",null,null,null,null,null,null,null,null,null,"Row 829"]
[null,"ER Split Unit 07",null,null,null,null,null,null,null,null,null,"Row 834"]
[null,"ER Split Unit 07",null,null,null,null,null,null,null,null,null,"Row 837"]
[null,"ER Split Unit 07",null,null,null,null,null,null,null,null,null,"Row 839"]
[null,"ER Split Unit 07",null,null,null,null,null,null,null,null,null,"Row 844"]
[null,"ER Split Unit 07",null,null,null,null,null,null,null,null,null,"Row 849"]
[null,"ER Split Unit 07",null,null,null,null,null,null,null,null,null,"Row 854"]
[null,"ER Split Unit 07",null,null,null,null,null,null,null,null,null,"Row 855"]
[null,"ER Split Unit 07",null,null,null,null,null,null,null,null,null,"Row 859"]
[null,"ER Split Unit 07",null,null,null,null,null,null,null,null,null,"Row 864"]
[null,"ER Split Unit 07",null,null,null,null,null,null,null,null,null,"Row 869"]
[null,"ER Split Unit 07",null,null,null,null,null,null,null,null,null,"Row 870"]
[null,"ER Split Unit 07",null,null,null,null,null,null,null,null,null,"Row 876"]
[null,"ER Split Unit 07",null,null,null,null,null,null,null,null,null,"Row 879"]
[null,"ER Split Unit 07",null,null,null,null,null,null,null,null,null,"Row 884"]
[null,"ER Split Unit 07",null,null,null,null,null,null,null,null,null,"Row 885"]
[null,"ER Split Unit 07",null,null,null,null,null,null,null,null,null,"Row 890"]
[null,"ER Split Unit 07",null,null,null,null,null,null,null,null,null,"Row 894"]
[null,"ER Split Unit 07",null,null,null,null,null,null,null,null,null,"Row 899"]
[null,"ER Split Unit 07",null,null,null,null,null,null,null,null,null,"Row 900"]
[null,"ER Split Unit 07",null,null,null,null,null,null,null,null,null,"Row 905"]
[null,"ER Split Unit 07",null,null,null,null,null,null,null,null,null,"Row 910"]
[null,"ER Split Unit 07",null,null,null,null,null,null,null,null,null,"Row 915"]
[null,"ER Split Unit 07",null,null,null,null,null,null,null,null,null,"Row 916"]
[null,"ER Split Unit 07",null,null,null,null,null,null,null,null,null,"Row 920"]
[null,"ER Split Unit 07",null,null,null,null,null,null,null,null,null,"Row 925"]
[null,"ER Split Unit 07",null,null,null,null,null,null,null,null,null,"Row 930"]
[null,"ER Split Unit 07",null,null,null,null,null,null,null,null,null,"Row 931"]
[null,"ER Split Unit 07",null,null,null,null,null,null,null,null,null,"Row 937"]
[null,"ER Split Unit 07",null,null,null,null,null,null,null,null,null,"Row 940"]
[null,"ER Split Unit 07",null,null,null,null,null,null,null,null,null,"Row 945"]
[null,"ER Split Unit 07",null,null,null,null,null,null,null,null,null,"Row 946"]
[null,"ER Split Unit 07",null,null,null,null,null,null,null,null,null,"Row 951"]
[null,"ER Split Unit 07",null,null,null,null,null,null,null,null,null,"Row 955"]
[null,"ER Split Unit 07",null,null,null,null,null,null,null,null,null,"Row 960"]
[null,"ER Split Unit 07",null,null,null,null,null,null,null,null,null,"Row 961"]
[null,"ER Split Unit 07",null,null,null,null,null,null,null,null,null,"Row 966"]
[null,"ER Split Unit 07",null,null,null,null,null,null,null,null,null,"Row 971"]
[null,"ER Split Unit 07",null,null,null,null,null,null,null,null,null,"Row 973"]
[null,"ER Split Unit 07",null,null,null,null,null,null,null,null,null,"Row 976"]
[null,"ER Split Unit 07",null,null,null,null,null,null,null,null,null,"Row 981"]
[null,"ER Split Unit 07",null,null,null,null,null,null,null,null,null,"Row 986"]
[null,"ER Split Unit 07",null,null,null,null,null,null,null,null,null,"Row 991"]
[null,"ER Split Unit 07",null,null,null,null,null,null,null,null,null,"Row 994"]
[null,"ER Split Unit 07",null,null,null,null,null,null,null,null,null,"Row 996"]
[null,"ER Split Unit 07",null,null,null,null,null,null,null,null,null,null,null,"Total",{"$f":"IFERROR(SUBTOTAL(3,tblU07_Exp[Exposure Act]),0)","v":0},{"$f":"IFERROR(SUBTOTAL(9,tblU07_Exp[Exposure Amt]),0)","v":0},{"$f":"IFERROR(SUBTOTAL(3,tblU07_Exp[Mod Effective Date]),0)","v":0},{"$f":"IFERROR(SUBTOTAL(3,tblU07_Exp[Rate Effective Date]),0)","v":0},{"$f":"IFERROR(SUBTOTAL(3,tblU07_Exp[Manual Rate]),0)","v":0},null,"Total",{"$f":"IFERROR(SUBTOTAL(103,tblU07_Loss[Accident Date]),0)","v":0},{"$f":"IFERROR(SUBTOTAL(3,tblU07_Loss[Type of Claim]),0)","v":0}]
[null,"ER Split Unit 08"]
[null,"ER Split Unit 08"]
[null,"ER Split Unit 08",null,null,null,null,null,null,null,"Policy Effective Date:",null,"Row 2"]
[null,"ER Split Unit 08",null,null,null,{"$f":"IF(J7082=\"Delete\",\"Header Record 1\",\"Header Record 1, Name Record 2, & Address Record 3\")","v":"Header Record 1, Name Record 2, & Address Record 3"},null,null,null,null,null,"Row 6"]
[null,"ER Split Unit 08",null,null,null,null,null,null,null,"State:",null,"Row 11"]
[null,"ER Split Unit 08",null,null,null,null,null,null,null,"Zip Code:",null,"Row 12"]
[null,"ER Split Unit 08",null,null,null,null,null,null,null,null,null,"Row 17"]
[null,"ER Split Unit 08",null,null,null,null,null,null,null,null,null,"Row 20"]
[null,"ER Split Unit 08",null,null,null,null,null,null,null,null,null,"Row 26"]
[null,"ER Split Unit 08",null,null,null,null,null,null,null,null,null,"Row 27"]
[null,"ER Split Unit 08",null,null,null,null,null,null,null,null,null,"Row 32"]
[null,"ER Split Unit 08",null,null,null,null,null,null,null,null,null,"Row 37"]
[null,"ER Split Unit 08",null,null,null,null,null,null,null,null,null,"Row 42"]
[null,"ER Split Unit 08",null,null,null,null,null,null,null,null,null,"Row 45"]
[null,"ER Split Unit 08",null,null,null,null,null,null,null,null,null,"Row 47"]
[null,"ER Split Unit 08",null,null,null,null,null,null,null,null,null,"Row 52"]
[null,"ER Split Unit 08",null,null,null,null,null,null,null,null,null,"Row 57"]
[null,"ER Split Unit 08",null,null,null,null,null,null,null,null,null,"Row 58"]
[null,"ER Split Unit 08",null,null,null,null,null,null,null,null,null,"Row 63"]
[null,"ER Split Unit 08",null,null,null,null,null,null,null,null,null,"Row 67"]
[null,"ER Split Unit 08",null,null,null,null,null,null,null,null,null,"Row 72"]
[null,"ER Split Unit 08",null,null,null,null,null,null,null,null,null,"Row 73"]
[null,"ER Split Unit 08",null,null,null,null,null,null,null,null,null,"Row 78"]
[null,"ER Split Unit 08",null,null,null,null,null,null,null,null,null,"Row 81"]
[null,"ER Split Unit 08",null,null,null,null,null,null,null,null,null,"Row 87"]
[null,"ER Split Unit 08",null,null,null,null,null,null,null,null,null,"Row 88"]
[null,"ER Split Unit 08",null,null,null,null,null,null,null,null,null,"Row 93"]
[null,"ER Split Unit 08",null,null,null,null,null,null,null,null,null,"Row 98"]
[null,"ER Split Unit 08",null,null,null,null,null,null,null,null,null,"Row 102"]
[null,"ER Split Unit 08",null,null,null,null,null,null,null,null,null,"Row 103"]
[null,"ER Split Unit 08",null,null,null,null,null,null,null,null,null,"Row 108"]
[null,"ER Split Unit 08",null,null,null,null,null,null,null,null,null,"Row 113"]
[null,"ER Split Unit 08",null,null,null,null,null,null,null,null,null,"Row 118"]
[null,"ER Split Unit 08",null,null,null,null,null,null,null,null,null,"Row 120"]
[null,"ER Split Unit 08",null,null,null,null,null,null,null,null,null,"Row 123"]
[null,"ER Split Unit 08",null,null,null,null,null,null,null,null,null,"Row 128"]
[null,"ER Split Unit 08",null,null,null,null,null,null,null,null,null,"Row 133"]
[null,"ER Split Unit 08",null,null,null,null,null,null,null,null,null,"Row 134"]
[null,"ER Split Unit 08",null,null,null,null,null,null,null,null,null,"Row 138"]
[null,"ER Split Unit 08",null,null,null,null,null,null,null,null,null,"Row 143"]
[null,"ER Split Unit 08",null,null,null,null,null,null,null,null,null,"Row 148"]
[null,"ER Split Unit 08",null,null,null,null,null,null,null,null,null,"Row 149"]
[null,"ER Split Unit 08",null,null,null,null,null,null,null,null,null,"Row 154"]
[null,"ER Split Unit 08",null,null,null,null,null,null,null,null,null,"Row 158"]
[null,"ER Split Unit 08",null,null,null,null,null,null,null,null,null,"Row 163"]
[null,"ER Split Unit 08",null,null,null,null,null,null,null,null,null,"Row 164"]
[null,"ER Split Unit 08",null,null,null,null,null,null,null,null,null,"Row 169"]
[null,"ER Split Unit 08",null,null,null,null,null,null,null,null,null,"Row 174"]
[null,"ER Split Unit 08",null,null,null,null,null,null,null,null,null,"Row 179"]
[null,"ER Split Unit 08",null,null,null,null,null,null,null,null,null,"Row 181"]
[null,"ER Split Unit 08",null,null,null,null,null,null,null,null,null,"Row 184"]
[null,"ER Split Unit 08",null,null,null,null,null,null,null,null,null,"Row 189"]
[null,"ER Split Unit 08",null,null,null,null,null,null,null,null,null,"Row 194"]
[null,"ER Split Unit 08",null,null,null,null,null,null,null,null,null,"Row 195"]
[null,"ER Split Unit 08",null,null,null,null,null,null,null,null,null,"Row 199"]
[null,"ER Split Unit 08",null,null,null,null,null,null,null,null,null,"Row 204"]
[null,"ER Split Unit 08",null,null,null,null,null,null,null,null,null,"Row 209"]
[null,"ER Split Unit 08",null,null,null,null,null,null,null,null,null,"Row 210"]
[null,"ER Split Unit 08",null,null,null,null,null,null,null,null,null,"Row 215"]
[null,"ER Split Unit 08",null,null,null,null,null,null,null,null,null,"Row 220"]
[null,"ER Split Unit 08",null,null,null,null,null,null,null,null,null,"Row 224"]
[null,"ER Split Unit 08",null,null,null,null,null,null,null,null,null,"Row 225"]
[null,"ER Split Unit 08",null,null,null,null,null,null,null,null,null,"Row 230"]
[null,"ER Split Unit 08",null,null,null,null,null,null,null,null,null,"Row 235"]
[null,"ER Split Unit 08",null,null,null,null,null,null,null,null,null,"Row 237"]
[null,"ER Split Unit 08",null,null,null,null,null,null,null,null,null,"Row 240"]
[null,"ER Split Unit 08",null,null,null,null,null,null,null,null,null,"Row 245"]
[null,"ER Split Unit 08",null,null,null,null,null,null,null,null,null,"Row 250"]
[null,"ER Split Unit 08",null,null,null,null,null,null,null,null,null,"Row 255"]
[null,"ER Split Unit 08",null,null,null,null,null,null,null,null,null,"Row 258"]
[null,"ER Split Unit 08",null,null,null,null,null,null,null,null,null,"Row 260"]
[null,"ER Split Unit 08",null,null,null,null,null,null,null,null,null,"Row 265"]
[null,"ER Split Unit 08",null,null,null,null,null,null,null,null,null,"Row 270"]
[null,"ER Split Unit 08",null,null,null,null,null,null,null,null,null,"Row 271"]
[null,"ER Split Unit 08",null,null,null,null,null,null,null,null,null,"Row 276"]
[null,"ER Split Unit 08",null,null,null,null,null,null,null,null,null,"Row 280"]
[null,"ER Split Unit 08",null,null,null,null,null,null,null,null,null,"Row 285"]
[null,"ER Split Unit 08",null,null,null,null,null,null,null,null,null,"Row 286"]
[null,"ER Split Unit 08",null,null,null,null,null,null,null,null,null,"Row 291"]
[null,"ER Split Unit 08",null,null,null,null,null,null,null,null,null,"Row 294"]
[null,"ER Split Unit 08",null,null,null,null,null,null,null,null,null,"Row 300"]
[null,"ER Split Unit 08",null,null,null,null,null,null,null,null,null,"Row 301"]
[null,"ER Split Unit 08",null,null,null,null,null,null,null,null,null,"Row 306"]
[null,"ER Split Unit 08",null,null,null,null,null,null,null,null,null,"Row 311"]
[null,"ER Split Unit 08",null,null,null,null,null,null,null,null,null,"Row 316"]
[null,"ER Split Unit 08",null,null,null,null,null,null,null,null,null,"Row 317"]
[null,"ER Split Unit 08",null,null,null,null,null,null,null,null,null,"Row 321"]
[null,"ER Split Unit 08",null,null,null,null,null,null,null,null,null,"Row 326"]
[null,"ER Split Unit 08",null,null,null,null,null,null,null,null,null,"Row 331"]
[null,"ER Split Unit 08",null,null,null,null,null,null,null,null,null,"Row 332"]
[null,"ER Split Unit 08",null,null,null,null,null,null,null,null,null,"Row 337"]
[null,"ER Split Unit 08",null,null,null,null,null,null,null,null,null,"Row 341"]
[null,"ER Split Unit 08",null,null,null,null,null,null,null,null,null,"Row 346"]
[null,"ER Split Unit 08",null,null,null,null,null,null,null,null,null,"Row 347"]
[null,"ER Split Unit 08",null,null,null,null,null,null,null,null,null,"Row 352"]
[null,"ER Split Unit 08",null,null,null,null,null,null,null,null,null,"Row 355"]
[null,"ER Split Unit 08",null,null,null,null,null,null,null,null,null,"Row 361"]
[null,"ER Split Unit 08",null,null,null,null,null,null,null,null,null,"Row 362"]
[null,"ER Split Unit 08",null,null,null,null,null,null,null,null,null,"Row 367"]
[null,"ER Split Unit 08",null,null,null,null,null,null,null,null,null,"Row 372"]
[null,"ER Split Unit 08",null,null,null,null,null,null,null,null,null,"Row 376"]
[null,"ER Split Unit 08",null,null,null,null,null,null,null,null,null,"Row 377"]
[null,"ER Split Unit 08",null,null,null,null,null,null,null,null,null,"Row 382"]
[null,"ER Split Unit 08",null,null,null,null,null,null,null,null,null,"Row 387"]
[null,"ER Split Unit 08",null,null,null,null,null,null,null,null,null,"Row 392"]
[null,"ER Split Unit 08",null,null,null,null,null,null,null,null,null,"Row 394"]
[null,"ER Split Unit 08",null,null,null,null,null,null,null,null,null,"Row 397"]
[null,"ER Split Unit 08",null,null,null,null,null,null,null,null,null,"Row 402"]
[null,"ER Split Unit 08",null,null,null,null,null,null,null,null,null,"Row 407"]
[null,"ER Split Unit 08",null,null,null,null,null,null,null,null,null,"Row 408"]
[null,"ER Split Unit 08",null,null,null,null,null,null,null,null,null,"Row 412"]
[null,"ER Split Unit 08",null,null,null,null,null,null,null,null,null,"Row 417"]
[null,"ER Split Unit 08",null,null,null,null,null,null,null,null,null,"Row 422"]
[null,"ER Split Unit 08",null,null,null,null,null,null,null,null,null,"Row 423"]
[null,"ER Split Unit 08",null,null,null,null,null,null,null,null,null,"Row 428"]
[null,"ER Split Unit 08",null,null,null,null,null,null,null,null,null,"Row 433"]
[null,"ER Split Unit 08",null,null,null,null,null,null,null,null,null,"Row 437"]
[null,"ER Split Unit 08",null,null,null,null,null,null,null,null,null,"Row 438"]
[null,"ER Split Unit 08",null,null,null,null,null,null,null,null,null,"Row 443"]
[null,"ER Split Unit 08",null,null,null,null,null,null,null,null,null,"Row 448"]
[null,"ER Split Unit 08",null,null,null,null,null,null,null,null,null,"Row 453"]
[null,"ER Split Unit 08",null,null,null,null,null,null,null,null,null,"Row 455"]
[null,"ER Split Unit 08",null,null,null,null,null,null,null,null,null,"Row 458"]
[null,"ER Split Unit 08",null,null,null,null,null,null,null,null,null,"Row 463"]
[null,"ER Split Unit 08",null,null,null,null,null,null,null,null,null,"Row 468"]
[null,"ER Split Unit 08",null,null,null,null,null,null,null,null,null,"Row 469"]
[null,"ER Split Unit 08",null,null,null,null,null,null,null,null,null,"Row 473"]
[null,"ER Split Unit 08",null,null,null,null,null,null,null,null,null,"Row 478"]
[null,"ER Split Unit 08",null,null,null,null,null,null,null,null,null,"Row 483"]
[null,"ER Split Unit 08",null,null,null,null,null,null,null,null,null,"Row 484"]
[null,"ER Split Unit 08",null,null,null,null,null,null,null,null,null,"Row 489"]
[null,"ER Split Unit 08",null,null,null,null,null,null,null,null,null,"Row 494"]
[null,"ER Split Unit 08",null,null,null,null,null,null,null,null,null,"Row 498"]
[null,"ER Split Unit 08",null,null,null,null,null,null,null,null,null,"Row 499"]
[null,"ER Split Unit 08",null,null,null,null,null,null,null,null,null,"Row 504"]
[null,"ER Split Unit 08",null,null,null,null,null,null,null,null,null,"Row 509"]
[null,"ER Split Unit 08",null,null,null,null,null,null,null,null,null,"Row 512"]
[null,"ER Split Unit 08",null,null,null,null,null,null,null,null,null,"Row 514"]
[null,"ER Split Unit 08",null,null,null,null,null,null,null,null,null,"Row 519"]
[null,"ER Split Unit 08",null,null,null,null,null,null,null,null,null,"Row 524"]
[null,"ER Split Unit 08",null,null,null,null,null,null,null,null,null,"Row 529"]
[null,"ER Split Unit 08",null,null,null,null,null,null,null,null,null,"Row 530"]
[null,"ER Split Unit 08",null,null,null,null,null,null,null,null,null,"Row 534"]
[null,"ER Split Unit 08",null,null,null,null,null,null,null,null,null,"Row 539"]
[null,"ER Split Unit 08",null,null,null,null,null,null,null,null,null,"Row 544"]
[null,"ER Split Unit 08",null,null,null,null,null,null,null,null,null,"Row 545"]
[null,"ER Split Unit 08",null,null,null,null,null,null,null,null,null,"Row 551"]
[null,"ER Split Unit 08",null,null,null,null,null,null,null,null,null,"Row 554"]
[null,"ER Split Unit 08",null,null,null,null,null,null,null,null,null,"Row 559"]
[null,"ER Split Unit 08",null,null,null,null,null,null,null,null,null,"Row 560"]
[null,"ER Split Unit 08",null,null,null,null,null,null,null,null,null,"Row 565"]
[null,"ER Split Unit 08",null,null,null,null,null,null,null,null,null,"Row 569"]
[null,"ER Split Unit 08",null,null,null,null,null,null,null,null,null,"Row 574"]
[null,"ER Split Unit 08",null,null,null,null,null,null,null,null,null,"Row 575"]
[null,"ER Split Unit 08",null,null,null,null,null,null,null,null,null,"Row 580"]
[null,"ER Split Unit 08",null,null,null,null,null,null,null,null,null,"Row 585"]
[null,"ER Split Unit 08",null,null,null,null,null,null,null,null,null,"Row 590"]
[null,"ER Split Unit 08",null,null,null,null,null,null,null,null,null,"Row 591"]
[null,"ER Split Unit 08",null,null,null,null,null,null,null,null,null,"Row 595"]
[null,"ER Split Unit 08",null,null,null,null,null,null,null,null,null,"Row 600"]
[null,"ER Split Unit 08",null,null,null,null,null,null,null,null,null,"Row 605"]
[null,"ER Split Unit 08",null,null,null,null,null,null,null,null,null,"Row 606"]
[null,"ER Split Unit 08",null,null,null,null,null,null,null,null,null,"Row 612"]
[null,"ER Split Unit 08",null,null,null,null,null,null,null,null,null,"Row 615"]
[null,"ER Split Unit 08",null,null,null,null,null,null,null,null,null,"Row 620"]
[null,"ER Split Unit 08",null,null,null,null,null,null,null,null,null,"Row 621"]
[null,"ER Split Unit 08",null,null,null,null,null,null,null,null,null,"Row 626"]
[null,"ER Split Unit 08",null,null,null,null,null,null,null,null,null,"Row 630"]
[null,"ER Split Unit 08",null,null,null,null,null,null,null,null,null,"Row 635"]
[null,"ER Split Unit 08",null,null,null,null,null,null,null,null,null,"Row 636"]
[null,"ER Split Unit 08",null,null,null,null,null,null,null,null,null,"Row 641"]
[null,"ER Split Unit 08",null,null,null,null,null,null,null,null,null,"Row 646"]
[null,"ER Split Unit 08",null,null,null,null,null,null,null,null,null,"Row 648"]
[null,"ER Split Unit 08",null,null,null,null,null,null,null,null,null,"Row 651"]
[null,"ER Split Unit 08",null,null,null,null,null,null,null,null,null,"Row 656"]
[null,"ER Split Unit 08",null,null,null,null,null,null,null,null,null,"Row 661"]
[null,"ER Split Unit 08",null,null,null,null,null,null,null,null,null,"Row 666"]
[null,"ER Split Unit 08",null,null,null,null,null,null,null,null,null,"Row 669"]
[null,"ER Split Unit 08",null,null,null,null,null,null,null,null,null,"Row 671"]
[null,"ER Split Unit 08",null,null,null,null,null,null,null,null,null,"Row 676"]
[null,"ER Split Unit 08",null,null,null,null,null,null,null,null,null,"Row 681"]
[null,"ER Split Unit 08",null,null,null,null,null,null,null,null,null,"Row 682"]
[null,"ER Split Unit 08",null,null,null,null,null,null,null,null,null,"Row 687"]
[null,"ER Split Unit 08",null,null,null,null,null,null,null,null,null,"Row 691"]
[null,"ER Split Unit 08",null,null,null,null,null,null,null,null,null,"Row 696"]
[null,"ER Split Unit 08",null,null,null,null,null,null,null,null,null,"Row 697"]
[null,"ER Split Unit 08",null,null,null,null,null,null,null,null,null,"Row 702"]
[null,"ER Split Unit 08",null,null,null,null,null,null,null,null,null,"Row 707"]
[null,"ER Split Unit 08",null,null,null,null,null,null,null,null,null,"Row 711"]
[null,"ER Split Unit 08",null,null,null,null,null,null,null,null,null,"Row 712"]
[null,"ER Split Unit 08",null,null,null,null,null,null,null,null,null,"Row 717"]
[null,"ER Split Unit 08",null,null,null,null,null,null,null,null,null,"Row 722"]
[null,"ER Split Unit 08",null,null,null,null,null,null,null,null,null,"Row 725"]
[null,"ER Split Unit 08",null,null,null,null,null,null,null,null,null,"Row 727"]
[null,"ER Split Unit 08",null,null,null,null,null,null,null,null,null,"Row 732"]
[null,"ER Split Unit 08",null,null,null,null,null,null,null,null,null,"Row 737"]
[null,"ER Split Unit 08",null,null,null,null,null,null,null,null,null,"Row 742"]
[null,"ER Split Unit 08",null,null,null,null,null,null,null,null,null,"Row 743"]
[null,"ER Split Unit 08",null,null,null,null,null,null,null,null,null,"Row 748"]
[null,"ER Split Unit 08",null,null,null,null,null,null,null,null,null,"Row 752"]
[null,"ER Split Unit 08",null,null,null,null,null,null,null,null,null,"Row 757"]
[null,"ER Split Unit 08",null,null,null,null,null,null,null,null,null,"Row 758"]
[null,"ER Split Unit 08",null,null,null,null,null,null,null,null,null,"Row 763"]
[null,"ER Split Unit 08",null,null,null,null,null,null,null,null,null,"Row 766"]
[null,"ER Split Unit 08",null,null,null,null,null,null,null,null,null,"Row 772"]
[null,"ER Split Unit 08",null,null,null,null,null,null,null,null,null,"Row 773"]
[null,"ER Split Unit 08",null,null,null,null,null,null,null,null,null,"Row 778"]
[null,"ER Split Unit 08",null,null,null,null,null,null,null,null,null,"Row 783"]
[null,"ER Split Unit 08",null,null,null,null,null,null,null,null,null,"Row 786"]
[null,"ER Split Unit 08",null,null,null,null,null,null,null,null,null,"Row 788"]
[null,"ER Split Unit 08",null,null,null,null,null,null,null,null,null,"Row 793"]
[null,"ER Split Unit 08",null,null,null,null,null,null,null,null,null,"Row 798"]
[null,"ER Split Unit 08",null,null,null,null,null,null,null,null,null,"Row 803"]
[null,"ER Split Unit 08",null,null,null,null,null,null,null,null,null,"Row 804"]
[null,"ER Split Unit 08",null,null,null,null,null,null,null,null,null,"Row 808"]
[null,"ER Split Unit 08",null,null,null,null,null,null,null,null,null,"Row 813"]
[null,"ER Split Unit 08",null,null,null,null,null,null,null,null,null,"Row 818"]
[null,"ER Split Unit 08",null,null,null,null,null,null,null,null,null,"Row 819"]
[null,"ER Split Unit 08",null,null,null,null,null,null,null,null,null,"Row 825"]
[null,"ER Split Unit 08",null,null,null,null,null,null,null,null,null,"Row 828"]
[null,"ER Split Unit 08",null,null,null,null,null,null,null,null,null,"Row 833"]
[null,"ER Split Unit 08",null,null,null,null,null,null,null,null,null,"Row 834"]
[null,"ER Split Unit 08",null,null,null,null,null,null,null,null,null,"Row 839"]
[null,"ER Split Unit 08",null,null,null,null,null,null,null,null,null,"Row 843"]
[null,"ER Split Unit 08",null,null,null,null,null,null,null,null,null,"Row 848"]
[null,"ER Split Unit 08",null,null,null,null,null,null,null,null,null,"Row 849"]
[null,"ER Split Unit 08",null,null,null,null,null,null,null,null,null,"Row 854"]
[null,"ER Split Unit 08",null,null,null,null,null,null,null,null,null,"Row 859"]
[null,"ER Split Unit 08",null,null,null,null,null,null,null,null,null,"Row 861"]
[null,"ER Split Unit 08",null,null,null,null,null,null,null,null,null,"Row 864"]
[null,"ER Split Unit 08",null,null,null,null,null,null,null,null,null,"Row 869"]
[null,"ER Split Unit 08",null,null,null,null,null,null,null,null,null,"Row 874"]
[null,"ER Split Unit 08",null,null,null,null,null,null,null,null,null,"Row 879"]
[null,"ER Split Unit 08",null,null,null,null,null,null,null,null,null,"Row 880"]
[null,"ER Split Unit 08",null,null,null,null,null,null,null,null,null,"Row 886"]
[null,"ER Split Unit 08",null,null,null,null,null,null,null,null,null,"Row 889"]
[null,"ER Split Unit 08",null,null,null,null,null,null,null,null,null,"Row 894"]
[null,"ER Split Unit 08",null,null,null,null,null,null,null,null,null,"Row 895"]
[null,"ER Split Unit 08",null,null,null,null,null,null,null,null,null,"Row 900"]
[null,"ER Split Unit 08",null,null,null,null,null,null,null,null,null,"Row 904"]
[null,"ER Split Unit 08",null,null,null,null,null,null,null,null,null,"Row 909"]
[null,"ER Split Unit 08",null,null,null,null,null,null,null,null,null,"Row 910"]
[null,"ER Split Unit 08",null,null,null,null,null,null,null,null,null,"Row 915"]
[null,"ER Split Unit 08",null,null,null,null,null,null,null,null,null,"Row 920"]
[null,"ER Split Unit 08",null,null,null,null,null,null,null,null,null,"Row 922"]
[null,"ER Split Unit 08",null,null,null,null,null,null,null,null,null,"Row 925"]
[null,"ER Split Unit 08",null,null,null,null,null,null,null,null,null,"Row 930"]
[null,"ER Split Unit 08",null,null,null,null,null,null,null,null,null,"Row 935"]
[null,"ER Split Unit 08",null,null,null,null,null,null,null,null,null,"Row 940"]
[null,"ER Split Unit 08",null,null,null,null,null,null,null,null,null,"Row 943"]
[null,"ER Split Unit 08",null,null,null,null,null,null,null,null,null,"Row 945"]
[null,"ER Split Unit 08",null,null,null,null,null,null,null,null,null,"Row 950"]
[null,"ER Split Unit 08",null,null,null,null,null,null,null,null,null,"Row 955"]
[null,"ER Split Unit 08",null,null,null,null,null,null,null,null,null,"Row 956"]
[null,"ER Split Unit 08",null,null,null,null,null,null,null,null,null,"Row 961"]
[null,"ER Split Unit 08",null,null,null,null,null,null,null,null,null,"Row 965"]
[null,"ER Split Unit 08",null,null,null,null,null,null,null,null,null,"Row 970"]
[null,"ER Split Unit 08",null,null,null,null,null,null,null,null,null,"Row 971"]
[null,"ER Split Unit 08",null,null,null,null,null,null,null,null,null,"Row 976"]
[null,"ER Split Unit 08",null,null,null,null,null,null,null,null,null,"Row 979"]
[null,"ER Split Unit 08",null,null,null,null,null,null,null,null,null,"Row 985"]
[null,"ER Split Unit 08",null,null,null,null,null,null,null,null,null,"Row 986"]
[null,"ER Split Unit 08",null,null,null,null,null,null,null,null,null,"Row 991"]
[null,"ER Split Unit 08",null,null,null,null,null,null,null,null,null,"Row 996"]
[null,"ER Split Unit 08",null,null,null,null,null,null,null,null,null,"Row 1000"]
[null,"ER Split Unit 08",null,null,null,null,null,null,null,null,null,null,null,"Total",{"$f":"IFERROR(SUBTOTAL(3,tblU08_Exp[Exposure Act]),0)","v":0},{"$f":"IFERROR(SUBTOTAL(9,tblU08_Exp[Exposure Amt]),0)","v":0},{"$f":"IFERROR(SUBTOTAL(3,tblU08_Exp[Mod Effective Date]),0)","v":0},{"$f":"IFERROR(SUBTOTAL(3,tblU08_Exp[Manual Rate]),0)","v":0},{"$f":"IFERROR(SUBTOTAL(3,tblU08_Exp[Manual Rate]),0)","v":0},null,"Total",{"$f":"IFERROR(SUBTOTAL(103,tblU08_Loss[Accident Date]),0)","v":0},{"$f":"IFERROR(SUBTOTAL(3,tblU08_Loss[Type of Claim]),0)","v":0}]
[null,"ER Split Unit 09"]
[null,"ER Split Unit 09",null,null,null,null,null,null,null,"Policy Number:",null,"Row 1"]
[null,"ER Split Unit 09",null,null,null,{"$f":"IF(J8092=\"Delete\",\"Header Record 1\",\"Header Record 1, Name Record 2, & Address Record 3\")","v":"Header Record 1, Name Record 2, & Address Record 3"},null,null,null,null,null,"Row 6"]
[null,"ER Split Unit 09",null,null,null,null,null,null,null,{"$f":"IF(uipU09LD_TT=\"01 PEO Client Information\",\"Client Termination Date\",\"Ownership Change Date\")","v":"Ownership Change Date"},null,"Row 7"]
[null,"ER Split Unit 09",null,null,null,null,null,null,null,"Zip Code:",null,"Row 12"]
[null,"ER Split Unit 09",null,null,null,null,null,null,null,null,null,"Row 16"]
[null,"ER Split Unit 09",null,null,null,null,null,null,null,null,null,"Row 21"]
[null,"ER Split Unit 09",null,null,null,null,null,null,null,null,null,"Row 22"]
[null,"ER Split Unit 09",null,null,null,null,null,null,null,null,null,"Row 27"]
[null,"ER Split Unit 09",null,null,null,null,null,null,null,null,null,"Row 30"]
[null,"ER Split Unit 09",null,null,null,null,null,null,null,null,null,"Row 36"]
[null,"ER Split Unit 09",null,null,null,null,null,null,null,null,null,"Row 37"]
[null,"ER Split Unit 09",null,null,null,null,null,null,null,null,null,"Row 42"]
[null,"ER Split Unit 09",null,null,null,null,null,null,null,null,null,"Row 47"]
[null,"ER Split Unit 09",null,null,null,null,null,null,null,null,null,"Row 51"]
[null,"ER Split Unit 09",null,null,null,null,null,null,null,null,null,"Row 52"]
[null,"ER Split Unit 09",null,null,null,null,null,null,null,null,null,"Row 57"]
[null,"ER Split Unit 09",null,null,null,null,null,null,null,null,null,"Row 62"]
[null,"ER Split Unit 09",null,null,null,null,null,null,null,null,null,"Row 67"]
[null,"ER Split Unit 09",null,null,null,null,null,null,null,null,null,"Row 69"]
[null,"ER Split Unit 09",null,null,null,null,null,null,null,null,null,"Row 72"]
[null,"ER Split Unit 09",null,null,null,null,null,null,null,null,null,"Row 77"]
[null,"ER Split Unit 09",null,null,null,null,null,null,null,null,null,"Row 82"]
[null,"ER Split Unit 09",null,null,null,null,null,null,null,null,null,"Row 83"]
[null,"ER Split Unit 09",null,null,null,null,null,null,null,null,null,"Row 87"]
[null,"ER Split Unit 09",null,null,null,null,null,null,null,null,null,"Row 92"]
[null,"ER Split Unit 09",null,null,null,null,null,null,null,null,null,"Row 97"]
[null,"ER Split Unit 09",null,null,null,null,null,null,null,null,null,"Row 98"]
[null,"ER Split Unit 09",null,null,null,null,null,null,null,null,null,"Row 103"]
[null,"ER Split Unit 09",null,null,null,null,null,null,null,null,null,"Row 108"]
[null,"ER Split Unit 09",null,null,null,null,null,null,null,null,null,"Row 112"]
[null,"ER Split Unit 09",null,null,null,null,null,null,null,null,null,"Row 113"]
[null,"ER Split Unit 09",null,null,null,null,null,null,null,null,null,"Row 118"]
[null,"ER Split Unit 09",null,null,null,null,null,null,null,null,null,"Row 123"]
[null,"ER Split Unit 09",null,null,null,null,null,null,null,null,null,"Row 126"]
[null,"ER Split Unit 09",null,null,null,null,null,null,null,null,null,"Row 128"]
[null,"ER Split Unit 09",null,null,null,null,null,null,null,null,null,"Row 133"]
[null,"ER Split Unit 09",null,null,null,null,null,null,null,null,null,"Row 138"]
[null,"ER Split Unit 09",null,null,null,null,null,null,null,null,null,"Row 143"]
[null,"ER Split Unit 09",null,null,null,null,null,null,null,null,null,"Row 144"]
[null,"ER Split Unit 09",null,null,null,null,null,null,null,null,null,"Row 148"]
[null,"ER Split Unit 09",null,null,null,null,null,null,null,null,null,"Row 153"]
[null,"ER Split Unit 09",null,null,null,null,null,null,null,null,null,"Row 158"]
[null,"ER Split Unit 09",null,null,null,null,null,null,null,null,null,"Row 159"]
[null,"ER Split Unit 09",null,null,null,null,null,null,null,null,null,"Row 164"]
[null,"ER Split Unit 09",null,null,null,null,null,null,null,null,null,"Row 169"]
[null,"ER Split Unit 09",null,null,null,null,null,null,null,null,null,"Row 173"]
[null,"ER Split Unit 09",null,null,null,null,null,null,null,null,null,"Row 174"]
[null,"ER Split Unit 09",null,null,null,null,null,null,null,null,null,"Row 179"]
[null,"ER Split Unit 09",null,null,null,null,null,null,null,null,null,"Row 184"]
[null,"ER Split Unit 09",null,null,null,null,null,null,null,null,null,"Row 187"]
[null,"ER Split Unit 09",null,null,null,null,null,null,null,null,null,"Row 189"]
[null,"ER Split Unit 09",null,null,null,null,null,null,null,null,null,"Row 194"]
[null,"ER Split Unit 09",null,null,null,null,null,null,null,null,null,"Row 199"]
[null,"ER Split Unit 09",null,null,null,null,null,null,null,null,null,"Row 204"]
[null,"ER Split Unit 09",null,null,null,null,null,null,null,null,null,"Row 205"]
[null,"ER Split Unit 09",null,null,null,null,null,null,null,null,null,"Row 209"]
[null,"ER Split Unit 09",null,null,null,null,null,null,null,null,null,"Row 214"]
[null,"ER Split Unit 09",null,null,null,null,null,null,null,null,null,"Row 219"]
[null,"ER Split Unit 09",null,null,null,null,null,null,null,null,null,"Row 220"]
[null,"ER Split Unit 09",null,null,null,null,null,null,null,null,null,"Row 226"]
[null,"ER Split Unit 09",null,null,null,null,null,null,null,null,null,"Row 229"]
[null,"ER Split Unit 09",null,null,null,null,null,null,null,null,null,"Row 234"]
[null,"ER Split Unit 09",null,null,null,null,null,null,null,null,null,"Row 235"]
[null,"ER Split Unit 09",null,null,null,null,null,null,null,null,null,"Row 240"]
[null,"ER Split Unit 09",null,null,null,null,null,null,null,null,null,"Row 243"]
[null,"ER Split Unit 09",null,null,null,null,null,null,null,null,null,"Row 249"]
[null,"ER Split Unit 09",null,null,null,null,null,null,null,null,null,"Row 250"]
[null,"ER Split Unit 09",null,null,null,null,null,null,null,null,null,"Row 255"]
[null,"ER Split Unit 09",null,null,null,null,null,null,null,null,null,"Row 260"]
[null,"ER Split Unit 09",null,null,null,null,null,null,null,null,null,"Row 264"]
[null,"ER Split Unit 09",null,null,null,null,null,null,null,null,null,"Row 265"]
[null,"ER Split Unit 09",null,null,null,null,null,null,null,null,null,"Row 270"]
[null,"ER Split Unit 09",null,null,null,null,null,null,null,null,null,"Row 275"]
[null,"ER Split Unit 09",null,null,null,null,null,null,null,null,null,"Row 280"]
[null,"ER Split Unit 09",null,null,null,null,null,null,null,null,null,"Row 281"]
[null,"ER Split Unit 09",null,null,null,null,null,null,null,null,null,"Row 287"]
[null,"ER Split Unit 09",null,null,null,null,null,null,null,null,null,"Row 290"]
[null,"ER Split Unit 09",null,null,null,null,null,null,null,null,null,"Row 295"]
[null,"ER Split Unit 09",null,null,null,null,null,null,null,null,null,"Row 296"]
[null,"ER Split Unit 09",null,null,null,null,null,null,null,null,null,"Row 301"]
[null,"ER Split Unit 09",null,null,null,null,null,null,null,null,null,"Row 305"]
[null,"ER Split Unit 09",null,null,null,null,null,null,null,null,null,"Row 310"]
[null,"ER Split Unit 09",null,null,null,null,null,null,null,null,null,"Row 311"]
[null,"ER Split Unit 09",null,null,null,null,null,null,null,null,null,"Row 316"]
[null,"ER Split Unit 09",null,null,null,null,null,null,null,null,null,"Row 321"]
[null,"ER Split Unit 09",null,null,null,null,null,null,null,null,null,"Row 325"]
[null,"ER Split Unit 09",null,null,null,null,null,null,null,null,null,"Row 326"]
[null,"ER Split Unit 09",null,null,null,null,null,null,null,null,null,"Row 331"]
[null,"ER Split Unit 09",null,null,null,null,null,null,null,null,null,"Row 336"]
[null,"ER Split Unit 09",null,null,null,null,null,null,null,null,null,"Row 341"]
[null,"ER Split Unit 09",null,null,null,null,null,null,null,null,null,"Row 343"]
[null,"ER Split Unit 09",null,null,null,null,null,null,null,null,null,"Row 346"]
[null,"ER Split Unit 09",null,null,null,null,null,null,null,null,null,"Row 351"]
[null,"ER Split Unit 09",null,null,null,null,null,null,null,null,null,"Row 356"]
[null,"ER Split Unit 09",null,null,null,null,null,null,null,null,null,"Row 357"]
[null,"ER Split Unit 09",null,null,null,null,null,null,null,null,null,"Row 361"]
[null,"ER Split Unit 09",null,null,null,null,null,null,null,null,null,"Row 366"]
[null,"ER Split Unit 09",null,null,null,null,null,null,null,null,null,"Row 371"]
[null,"ER Split Unit 09",null,null,null,null,null,null,null,null,null,"Row 372"]
[null,"ER Split Unit 09",null,null,null,null,null,null,null,null,null,"Row 377"]
[null,"ER Split Unit 09",null,null,null,null,null,null,null,null,null,"Row 382"]
[null,"ER Split Unit 09",null,null,null,null,null,null,null,null,null,"Row 386"]
[null,"ER Split Unit 09",null,null,null,null,null,null,null,null,null,"Row 387"]
[null,"ER Split Unit 09",null,null,null,null,null,null,null,null,null,"Row 392"]
[null,"ER Split Unit 09",null,null,null,null,null,null,null,null,null,"Row 397"]
[null,"ER Split Unit 09",null,null,null,null,null,null,null,null,null,"Row 400"]
[null,"ER Split Unit 09",null,null,null,null,null,null,null,null,null,"Row 402"]
[null,"ER Split Unit 09",null,null,null,null,null,null,null,null,null,"Row 407"]
[null,"ER Split Unit 09",null,null,null,null,null,null,null,null,null,"Row 412"]
[null,"ER Split Unit 09",null,null,null,null,null,null,null,null,null,"Row 417"]
[null,"ER Split Unit 09",null,null,null,null,null,null,null,null,null,"Row 418"]
[null,"ER Split Unit 09",null,null,null,null,null,null,null,null,null,"Row 422"]
[null,"ER Split Unit 09",null,null,null,null,null,null,null,null,null,"Row 427"]
[null,"ER Split Unit 09",null,null,null,null,null,null,null,null,null,"Row 432"]
[null,"ER Split Unit 09",null,null,null,null,null,null,null,null,null,"Row 433"]
[null,"ER Split Unit 09",null,null,null,null,null,null,null,null,null,"Row 438"]
[null,"ER Split Unit 09",null,null,null,null,null,null,null,null,null,"Row 443"]
[null,"ER Split Unit 09",null,null,null,null,null,null,null,null,null,"Row 447"]
[null,"ER Split Unit 09",null,null,null,null,null,null,null,null,null,"Row 448"]
[null,"ER Split Unit 09",null,null,null,null,null,null,null,null,null,"Row 453"]
[null,"ER Split Unit 09",null,null,null,null,null,null,null,null,null,"Row 458"]
[null,"ER Split Unit 09",null,null,null,null,null,null,null,null,null,"Row 461"]
[null,"ER Split Unit 09",null,null,null,null,null,null,null,null,null,"Row 463"]
[null,"ER Split Unit 09",null,null,null,null,null,null,null,null,null,"Row 468"]
[null,"ER Split Unit 09",null,null,null,null,null,null,null,null,null,"Row 473"]
[null,"ER Split Unit 09",null,null,null,null,null,null,null,null,null,"Row 478"]
[null,"ER Split Unit 09",null,null,null,null,null,null,null,null,null,"Row 479"]
[null,"ER Split Unit 09",null,null,null,null,null,null,null,null,null,"Row 483"]
[null,"ER Split Unit 09",null,null,null,null,null,null,null,null,null,"Row 488"]
[null,"ER Split Unit 09",null,null,null,null,null,null,null,null,null,"Row 493"]
[null,"ER Split Unit 09",null,null,null,null,null,null,null,null,null,"Row 494"]
[null,"ER Split Unit 09",null,null,null,null,null,null,null,null,null,"Row 500"]
[null,"ER Split Unit 09",null,null,null,null,null,null,null,null,null,"Row 503"]
[null,"ER Split Unit 09",null,null,null,null,null,null,null,null,null,"Row 508"]
[null,"ER Split Unit 09",null,null,null,null,null,null,null,null,null,"Row 509"]
[null,"ER Split Unit 09",null,null,null,null,null,null,null,null,null,"Row 514"]
[null,"ER Split Unit 09",null,null,null,null,null,null,null,null,null,"Row 518"]
[null,"ER Split Unit 09",null,null,null,null,null,null,null,null,null,"Row 523"]
[null,"ER Split Unit 09",null,null,null,null,null,null,null,null,null,"Row 524"]
[null,"ER Split Unit 09",null,null,null,null,null,null,null,null,null,"Row 529"]
[null,"ER Split Unit 09",null,null,null,null,null,null,null,null,null,"Row 534"]
[null,"ER Split Unit 09",null,null,null,null,null,null,null,null,null,"Row 536"]
[null,"ER Split Unit 09",null,null,null,null,null,null,null,null,null,"Row 539"]
[null,"ER Split Unit 09",null,null,null,null,null,null,null,null,null,"Row 544"]
[null,"ER Split Unit 09",null,null,null,null,null,null,null,null,null,"Row 549"]
[null,"ER Split Unit 09",null,null,null,null,null,null,null,null,null,"Row 554"]
[null,"ER Split Unit 09",null,null,null,null,null,null,null,null,null,"Row 555"]
[null,"ER Split Unit 09",null,null,null,null,null,null,null,null,null,"Row 561"]
[null,"ER Split Unit 09",null,null,null,null,null,null,null,null,null,"Row 564"]
[null,"ER Split Unit 09",null,null,null,null,null,null,null,null,null,"Row 569"]
[null,"ER Split Unit 09",null,null,null,null,null,null,null,null,null,"Row 570"]
[null,"ER Split Unit 09",null,null,null,null,null,null,null,null,null,"Row 575"]
[null,"ER Split Unit 09",null,null,null,null,null,null,null,null,null,"Row 579"]
[null,"ER Split Unit 09",null,null,null,null,null,null,null,null,null,"Row 584"]
[null,"ER Split Unit 09",null,null,null,null,null,null,null,null,null,"Row 585"]
[null,"ER Split Unit 09",null,null,null,null,null,null,null,null,null,"Row 590"]
[null,"ER Split Unit 09",null,null,null,null,null,null,null,null,null,"Row 595"]
[null,"ER Split Unit 09",null,null,null,null,null,null,null,null,null,"Row 597"]
[null,"ER Split Unit 09",null,null,null,null,null,null,null,null,null,"Row 600"]
[null,"ER Split Unit 09",null,null,null,null,null,null,null,null,null,"Row 605"]
[null,"ER Split Unit 09",null,null,null,null,null,null,null,null,null,"Row 610"]
[null,"ER Split Unit 09",null,null,null,null,null,null,null,null,null,"Row 615"]
[null,"ER Split Unit 09",null,null,null,null,null,null,null,null,null,"Row 618"]
[null,"ER Split Unit 09",null,null,null,null,null,null,null,null,null,"Row 620"]
[null,"ER Split Unit 09",null,null,null,null,null,null,null,null,null,"Row 625"]
[null,"ER Split Unit 09",null,null,null,null,null,null,null,null,null,"Row 630"]
[null,"ER Split Unit 09",null,null,null,null,null,null,null,null,null,"Row 631"]
[null,"ER Split Unit 09",null,null,null,null,null,null,null,null,null,"Row 636"]
[null,"ER Split Unit 09",null,null,null,null,null,null,null,null,null,"Row 640"]
[null,"ER Split Unit 09",null,null,null,null,null,null,null,null,null,"Row 645"]
[null,"ER Split Unit 09",null,null,null,null,null,null,null,null,null,"Row 646"]
[null,"ER Split Unit 09",null,null,null,null,null,null,null,null,null,"Row 651"]
[null,"ER Split Unit 09",null,null,null,null,null,null,null,null,null,"Row 654"]
[null,"ER Split Unit 09",null,null,null,null,null,null,null,null,null,"Row 660"]
[null,"ER Split Unit 09",null,null,null,null,null,null,null,null,null,"Row 661"]
[null,"ER Split Unit 09",null,null,null,null,null,null,null,null,null,"Row 666"]
[null,"ER Split Unit 09",null,null,null,null,null,null,null,null,null,"Row 671"]
[null,"ER Split Unit 09",null,null,null,null,null,null,null,null,null,"Row 675"]
[null,"ER Split Unit 09",null,null,null,null,null,null,null,null,null,"Row 676"]
[null,"ER Split Unit 09",null,null,null,null,null,null,null,null,null,"Row 681"]
[null,"ER Split Unit 09",null,null,null,null,null,null,null,null,null,"Row 686"]
[null,"ER Split Unit 09",null,null,null,null,null,null,null,null,null,"Row 691"]
[null,"ER Split Unit 09",null,null,null,null,null,null,null,null,null,"Row 692"]
[null,"ER Split Unit 09",null,null,null,null,null,null,null,null,null,"Row 697"]
[null,"ER Split Unit 09",null,null,null,null,null,null,null,null,null,"Row 701"]
[null,"ER Split Unit 09",null,null,null,null,null,null,null,null,null,"Row 706"]
[null,"ER Split Unit 09",null,null,null,null,null,null,null,null,null,"Row 707"]
[null,"ER Split Unit 09",null,null,null,null,null,null,null,null,null,"Row 712"]
[null,"ER Split Unit 09",null,null,null,null,null,null,null,null,null,"Row 715"]
[null,"ER Split Unit 09",null,null,null,null,null,null,null,null,null,"Row 721"]
[null,"ER Split Unit 09",null,null,null,null,null,null,null,null,null,"Row 722"]
[null,"ER Split Unit 09",null,null,null,null,null,null,null,null,null,"Row 727"]
[null,"ER Split Unit 09",null,null,null,null,null,null,null,null,null,"Row 732"]
[null,"ER Split Unit 09",null,null,null,null,null,null,null,null,null,"Row 736"]
[null,"ER Split Unit 09",null,null,null,null,null,null,null,null,null,"Row 737"]
[null,"ER Split Unit 09",null,null,null,null,null,null,null,null,null,"Row 742"]
[null,"ER Split Unit 09",null,null,null,null,null,null,null,null,null,"Row 747"]
[null,"ER Split Unit 09",null,null,null,null,null,null,null,null,null,"Row 752"]
[null,"ER Split Unit 09",null,null,null,null,null,null,null,null,null,"Row 754"]
[null,"ER Split Unit 09",null,null,null,null,null,null,null,null,null,"Row 757"]
[null,"ER Split Unit 09",null,null,null,null,null,null,null,null,null,"Row 762"]
[null,"ER Split Unit 09",null,null,null,null,null,null,null,null,null,"Row 767"]
[null,"ER Split Unit 09",null,null,null,null,null,null,null,null,null,"Row 768"]
[null,"ER Split Unit 09",null,null,null,null,null,null,null,null,null,"Row 772"]
[null,"ER Split Unit 09",null,null,null,null,null,null,null,null,null,"Row 777"]
[null,"ER Split Unit 09",null,null,null,null,null,null,null,null,null,"Row 782"]
[null,"ER Split Unit 09",null,null,null,null,null,null,null,null,null,"Row 783"]
[null,"ER Split Unit 09",null,null,null,null,null,null,null,null,null,"Row 788"]
[null,"ER Split Unit 09",null,null,null,null,null,null,null,null,null,"Row 792"]
[null,"ER Split Unit 09",null,null,null,null,null,null,null,null,null,"Row 797"]
[null,"ER Split Unit 09",null,null,null,null,null,null,null,null,null,"Row 798"]
[null,"ER Split Unit 09",null,null,null,null,null,null,null,null,null,"Row 803"]
[null,"ER Split Unit 09",null,null,null,null,null,null,null,null,null,"Row 808"]
[null,"ER Split Unit 09",null,null,null,null,null,null,null,null,null,"Row 810"]
[null,"ER Split Unit 09",null,null,null,null,null,null,null,null,null,"Row 813"]
[null,"ER Split Unit 09",null,null,null,null,null,null,null,null,null,"Row 818"]
[null,"ER Split Unit 09",null,null,null,null,null,null,null,null,null,"Row 823"]
[null,"ER Split Unit 09",null,null,null,null,null,null,null,null,null,"Row 828"]
[null,"ER Split Unit 09",null,null,null,null,null,null,null,null,null,"Row 829"]
[null,"ER Split Unit 09",null,null,null,null,null,null,null,null,null,"Row 833"]
[null,"ER Split Unit 09",null,null,null,null,null,null,null,null,null,"Row 838"]
[null,"ER Split Unit 09",null,null,null,null,null,null,null,null,null,"Row 843"]
[null,"ER Split Unit 09",null,null,null,null,null,null,null,null,null,"Row 844"]
[null,"ER Split Unit 09",null,null,null,null,null,null,null,null,null,"Row 849"]
[null,"ER Split Unit 09",null,null,null,null,null,null,null,null,null,"Row 854"]
[null,"ER Split Unit 09",null,null,null,null,null,null,null,null,null,"Row 858"]
[null,"ER Split Unit 09",null,null,null,null,null,null,null,null,null,"Row 859"]
[null,"ER Split Unit 09",null,null,null,null,null,null,null,null,null,"Row 864"]
[null,"ER Split Unit 09",null,null,null,null,null,null,null,null,null,"Row 869"]
[null,"ER Split Unit 09",null,null,null,null,null,null,null,null,null,"Row 871"]
[null,"ER Split Unit 09",null,null,null,null,null,null,null,null,null,"Row 874"]
[null,"ER Split Unit 09",null,null,null,null,null,null,null,null,null,"Row 879"]
[null,"ER Split Unit 09",null,null,null,null,null,null,null,null,null,"Row 884"]
[null,"ER Split Unit 09",null,null,null,null,null,null,null,null,null,"Row 889"]
[null,"ER Split Unit 09",null,null,null,null,null,null,null,null,null,"Row 892"]
[null,"ER Split Unit 09",null,null,null,null,null,null,null,null,null,"Row 894"]
[null,"ER Split Unit 09",null,null,null,null,null,null,null,null,null,"Row 899"]
[null,"ER Split Unit 09",null,null,null,null,null,null,null,null,null,"Row 904"]
[null,"ER Split Unit 09",null,null,null,null,null,null,null,null,null,"Row 905"]
[null,"ER Split Unit 09",null,null,null,null,null,null,null,null,null,"Row 910"]
[null,"ER Split Unit 09",null,null,null,null,null,null,null,null,null,"Row 914"]
[null,"ER Split Unit 09",null,null,null,null,null,null,null,null,null,"Row 919"]
[null,"ER Split Unit 09",null,null,null,null,null,null,null,null,null,"Row 920"]
[null,"ER Split Unit 09",null,null,null,null,null,null,null,null,null,"Row 925"]
[null,"ER Split Unit 09",null,null,null,null,null,null,null,null,null,"Row 928"]
[null,"ER Split Unit 09",null,null,null,null,null,null,null,null,null,"Row 934"]
[null,"ER Split Unit 09",null,null,null,null,null,null,null,null,null,"Row 935"]
[null,"ER Split Unit 09",null,null,null,null,null,null,null,null,null,"Row 940"]
[null,"ER Split Unit 09",null,null,null,null,null,null,null,null,null,"Row 945"]
[null,"ER Split Unit 09",null,null,null,null,null,null,null,null,null,"Row 949"]
[null,"ER Split Unit 09",null,null,null,null,null,null,null,null,null,"Row 950"]
[null,"ER Split Unit 09",null,null,null,null,null,null,null,null,null,"Row 955"]
[null,"ER Split Unit 09",null,null,null,null,null,null,null,null,null,"Row 960"]
[null,"ER Split Unit 09",null,null,null,null,null,null,null,null,null,"Row 965"]
[null,"ER Split Unit 09",null,null,null,null,null,null,null,null,null,"Row 966"]
[null,"ER Split Unit 09",null,null,null,null,null,null,null,null,null,"Row 971"]
[null,"ER Split Unit 09",null,null,null,null,null,null,null,null,null,"Row 975"]
[null,"ER Split Unit 09",null,null,null,null,null,null,null,null,null,"Row 980"]
[null,"ER Split Unit 09",null,null,null,null,null,null,null,null,null,"Row 981"]
[null,"ER Split Unit 09",null,null,null,null,null,null,null,null,null,"Row 986"]
[null,"ER Split Unit 09",null,null,null,null,null,null,null,null,null,"Row 989"]
[null,"ER Split Unit 09",null,null,null,null,null,null,null,null,null,"Row 995"]
[null,"ER Split Unit 09",null,null,null,null,null,null,null,null,null,"Row 996"]
[null,"ER Split Unit 09",null,null,null,null,null,null,null,null,null,null,null,"Total",{"$f":"IFERROR(SUBTOTAL(3,tblU09_Exp[Exposure Act]),0)","v":0},{"$f":"IFERROR(SUBTOTAL(9,tblU09_Exp[Exposure Amt]),0)","v":0},{"$f":"IFERROR(SUBTOTAL(3,tblU09_Exp[Mod Effective Date]),0)","v":0},{"$f":"IFERROR(SUBTOTAL(3,tblU09_Exp[Manual Rate]),0)","v":0},{"$f":"IFERROR(SUBTOTAL(3,tblU09_Exp[Manual Rate]),0)","v":0},null,"Total",{"$f":"IFERROR(SUBTOTAL(103,tblU09_Loss[Accident Date]),0)","v":0},{"$f":"IFERROR(SUBTOTAL(3,tblU09_Loss[Type of Claim]),0)","v":0}]
[null,"ER Split Unit 10"]
[null,"ER Split Unit 10",null,null,null,null,null,null,null,"Carrier Code:",null,null,null,"Class Code","Exposure Act","Exposure Amt","Mod Effective Date","Rate Effective Date","Manual Rate",null,"Claim Number","Accident Date","Type of Claim"]
[null,"ER Split Unit 10",null,null,null,null,null,null,null,"Policy Number:",null,"Row 1"]
[null,"ER Split Unit 10",null,null,null,{"$f":"IF(J9102=\"Delete\",\"Header Record 1\",\"Header Record 1, Name Record 2, & Address Record 3\")","v":"Header Record 1, Name Record 2, & Address Record 3"},null,null,null,null,null,"Row 6"]
[null,"ER Split Unit 10",null,null,null,null,null,null,null,"State:",null,"Row 11"]
[null,"ER Split Unit 10",null,null,null,null,null,null,null,null,null,"Row 16"]
[null,"ER Split Unit 10",null,null,null,null,null,null,null,null,null,"Row 18"]
[null,"ER Split Unit 10",null,null,null,null,null,null,null,null,null,"Row 21"]
[null,"ER Split Unit 10",null,null,null,null,null,null,null,null,null,"Row 26"]
[null,"ER Split Unit 10",null,null,null,null,null,null,null,null,null,"Row 31"]
[null,"ER Split Unit 10",null,null,null,null,null,null,null,null,null,"Row 32"]
[null,"ER Split Unit 10",null,null,null,null,null,null,null,null,null,"Row 36"]
[null,"ER Split Unit 10",null,null,null,null,null,null,null,null,null,"Row 41"]
[null,"ER Split Unit 10",null,null,null,null,null,null,null,null,null,"Row 46"]
[null,"ER Split Unit 10",null,null,null,null,null,null,null,null,null,"Row 47"]
[null,"ER Split Unit 10",null,null,null,null,null,null,null,null,null,"Row 52"]
[null,"ER Split Unit 10",null,null,null,null,null,null,null,null,null,"Row 57"]
[null,"ER Split Unit 10",null,null,null,null,null,null,null,null,null,"Row 61"]
[null,"ER Split Unit 10",null,null,null,null,null,null,null,null,null,"Row 62"]
[null,"ER Split Unit 10",null,null,null,null,null,null,null,null,null,"Row 67"]
[null,"ER Split Unit 10",null,null,null,null,null,null,null,null,null,"Row 72"]
[null,"ER Split Unit 10",null,null,null,null,null,null,null,null,null,"Row 75"]
[null,"ER Split Unit 10",null,null,null,null,null,null,null,null,null,"Row 77"]
[null,"ER Split Unit 10",null,null,null,null,null,null,null,null,null,"Row 82"]
[null,"ER Split Unit 10",null,null,null,null,null,null,null,null,null,"Row 87"]
[null,"ER Split Unit 10",null,null,null,null,null,null,null,null,null,"Row 92"]
[null,"ER Split Unit 10",null,null,null,null,null,null,null,null,null,"Row 93"]
[null,"ER Split Unit 10",null,null,null,null,null,null,null,null,null,"Row 97"]
[null,"ER Split Unit 10",null,null,null,null,null,null,null,null,null,"Row 102"]
[null,"ER Split Unit 10",null,null,null,null,null,null,null,null,null,"Row 107"]
[null,"ER Split Unit 10",null,null,null,null,null,null,null,null,null,"Row 108"]
[null,"ER Split Unit 10",null,null,null,null,null,null,null,null,null,"Row 113"]
[null,"ER Split Unit 10",null,null,null,null,null,null,null,null,null,"Row 118"]
[null,"ER Split Unit 10",null,null,null,null,null,null,null,null,null,"Row 122"]
[null,"ER Split Unit 10",null,null,null,null,null,null,null,null,null,"Row 123"]
[null,"ER Split Unit 10",null,null,null,null,null,null,null,null,null,"Row 128"]
[null,"ER Split Unit 10",null,null,null,null,null,null,null,null,null,"Row 133"]
[null,"ER Split Unit 10",null,null,null,null,null,null,null,null,null,"Row 136"]
[null,"ER Split Unit 10",null,null,null,null,null,null,null,null,null,"Row 138"]
[null,"ER Split Unit 10",null,null,null,null,null,null,null,null,null,"Row 143"]
[null,"ER Split Unit 10",null,null,null,null,null,null,null,null,null,"Row 148"]
[null,"ER Split Unit 10",null,null,null,null,null,null,null,null,null,"Row 153"]
[null,"ER Split Unit 10",null,null,null,null,null,null,null,null,null,"Row 154"]
[null,"ER Split Unit 10",null,null,null,null,null,null,null,null,null,"Row 158"]
[null,"ER Split Unit 10",null,null,null,null,null,null,null,null,null,"Row 163"]
[null,"ER Split Unit 10",null,null,null,null,null,null,null,null,null,"Row 168"]
[null,"ER Split Unit 10",null,null,null,null,null,null,null,null,null,"Row 169"]
[null,"ER Split Unit 10",null,null,null,null,null,null,null,null,null,"Row 175"]
[null,"ER Split Unit 10",null,null,null,null,null,null,null,null,null,"Row 178"]
[null,"ER Split Unit 10",null,null,null,null,null,null,null,null,null,"Row 183"]
[null,"ER Split Unit 10",null,null,null,null,null,null,null,null,null,"Row 184"]
[null,"ER Split Unit 10",null,null,null,null,null,null,null,null,null,"Row 189"]
[null,"ER Split Unit 10",null,null,null,null,null,null,null,null,null,"Row 193"]
[null,"ER Split Unit 10",null,null,null,null,null,null,null,null,null,"Row 198"]
[null,"ER Split Unit 10",null,null,null,null,null,null,null,null,null,"Row 199"]
[null,"ER Split Unit 10",null,null,null,null,null,null,null,null,null,"Row 204"]
[null,"ER Split Unit 10",null,null,null,null,null,null,null,null,null,"Row 209"]
[null,"ER Split Unit 10",null,null,null,null,null,null,null,null,null,"Row 211"]
[null,"ER Split Unit 10",null,null,null,null,null,null,null,null,null,"Row 214"]
[null,"ER Split Unit 10",null,null,null,null,null,null,null,null,null,"Row 219"]
[null,"ER Split Unit 10",null,null,null,null,null,null,null,null,null,"Row 224"]
[null,"ER Split Unit 10",null,null,null,null,null,null,null,null,null,"Row 229"]
[null,"ER Split Unit 10",null,null,null,null,null,null,null,null,null,"Row 230"]
[null,"ER Split Unit 10",null,null,null,null,null,null,null,null,null,"Row 236"]
[null,"ER Split Unit 10",null,null,null,null,null,null,null,null,null,"Row 239"]
[null,"ER Split Unit 10",null,null,null,null,null,null,null,null,null,"Row 244"]
[null,"ER Split Unit 10",null,null,null,null,null,null,null,null,null,"Row 245"]
[null,"ER Split Unit 10",null,null,null,null,null,null,null,null,null,"Row 250"]
[null,"ER Split Unit 10",null,null,null,null,null,null,null,null,null,"Row 254"]
[null,"ER Split Unit 10",null,null,null,null,null,null,null,null,null,"Row 259"]
[null,"ER Split Unit 10",null,null,null,null,null,null,null,null,null,"Row 260"]
[null,"ER Split Unit 10",null,null,null,null,null,null,null,null,null,"Row 265"]
[null,"ER Split Unit 10",null,null,null,null,null,null,null,null,null,"Row 270"]
[null,"ER Split Unit 10",null,null,null,null,null,null,null,null,null,"Row 272"]
[null,"ER Split Unit 10",null,null,null,null,null,null,null,null,null,"Row 275"]
[null,"ER Split Unit 10",null,null,null,null,null,null,null,null,null,"Row 280"]
[null,"ER Split Unit 10",null,null,null,null,null,null,null,null,null,"Row 285"]
[null,"ER Split Unit 10",null,null,null,null,null,null,null,null,null,"Row 290"]
[null,"ER Split Unit 10",null,null,null,null,null,null,null,null,null,"Row 293"]
[null,"ER Split Unit 10",null,null,null,null,null,null,null,null,null,"Row 295"]
[null,"ER Split Unit 10",null,null,null,null,null,null,null,null,null,"Row 300"]
[null,"ER Split Unit 10",null,null,null,null,null,null,null,null,null,"Row 305"]
[null,"ER Split Unit 10",null,null,null,null,null,null,null,null,null,"Row 306"]
[null,"ER Split Unit 10",null,null,null,null,null,null,null,null,null,"Row 311"]
[null,"ER Split Unit 10",null,null,null,null,null,null,null,null,null,"Row 315"]
[null,"ER Split Unit 10",null,null,null,null,null,null,null,null,null,"Row 320"]
[null,"ER Split Unit 10",null,null,null,null,null,null,null,null,null,"Row 321"]
[null,"ER Split Unit 10",null,null,null,null,null,null,null,null,null,"Row 326"]
[null,"ER Split Unit 10",null,null,null,null,null,null,null,null,null,"Row 331"]
[null,"ER Split Unit 10",null,null,null,null,null,null,null,null,null,"Row 335"]
[null,"ER Split Unit 10",null,null,null,null,null,null,null,null,null,"Row 336"]
[null,"ER Split Unit 10",null,null,null,null,null,null,null,null,null,"Row 341"]
[null,"ER Split Unit 10",null,null,null,null,null,null,null,null,null,"Row 346"]
[null,"ER Split Unit 10",null,null,null,null,null,null,null,null,null,"Row 349"]
[null,"ER Split Unit 10",null,null,null,null,null,null,null,null,null,"Row 351"]
[null,"ER Split Unit 10",null,null,null,null,null,null,null,null,null,"Row 356"]
[null,"ER Split Unit 10",null,null,null,null,null,null,null,null,null,"Row 361"]
[null,"ER Split Unit 10",null,null,null,null,null,null,null,null,null,"Row 366"]
[null,"ER Split Unit 10",null,null,null,null,null,null,null,null,null,"Row 367"]
[null,"ER Split Unit 10",null,null,null,null,null,null,null,null,null,"Row 372"]
[null,"ER Split Unit 10",null,null,null,null,null,null,null,null,null,"Row 376"]
[null,"ER Split Unit 10",null,null,null,null,null,null,null,null,null,"Row 381"]
[null,"ER Split Unit 10",null,null,null,null,null,null,null,null,null,"Row 382"]
[null,"ER Split Unit 10",null,null,null,null,null,null,null,null,null,"Row 387"]
[null,"ER Split Unit 10",null,null,null,null,null,null,null,null,null,"Row 390"]
[null,"ER Split Unit 10",null,null,null,null,null,null,null,null,null,"Row 396"]
[null,"ER Split Unit 10",null,null,null,null,null,null,null,null,null,"Row 397"]
[null,"ER Split Unit 10",null,null,null,null,null,null,null,null,null,"Row 402"]
[null,"ER Split Unit 10",null,null,null,null,null,null,null,null,null,"Row 407"]
[null,"ER Split Unit 10",null,null,null,null,null,null,null,null,null,"Row 411"]
[null,"ER Split Unit 10",null,null,null,null,null,null,null,null,null,"Row 412"]
[null,"ER Split Unit 10",null,null,null,null,null,null,null,null,null,"Row 417"]
[null,"ER Split Unit 10",null,null,null,null,null,null,null,null,null,"Row 422"]
[null,"ER Split Unit 10",null,null,null,null,null,null,null,null,null,"Row 427"]
[null,"ER Split Unit 10",null,null,null,null,null,null,null,null,null,"Row 428"]
[null,"ER Split Unit 10",null,null,null,null,null,null,null,null,null,"Row 432"]
[null,"ER Split Unit 10",null,null,null,null,null,null,null,null,null,"Row 437"]
[null,"ER Split Unit 10",null,null,null,null,null,null,null,null,null,"Row 442"]
[null,"ER Split Unit 10",null,null,null,null,null,null,null,null,null,"Row 443"]
[null,"ER Split Unit 10",null,null,null,null,null,null,null,null,null,"Row 449"]
[null,"ER Split Unit 10",null,null,null,null,null,null,null,null,null,"Row 452"]
[null,"ER Split Unit 10",null,null,null,null,null,null,null,null,null,"Row 457"]
[null,"ER Split Unit 10",null,null,null,null,null,null,null,null,null,"Row 458"]
[null,"ER Split Unit 10",null,null,null,null,null,null,null,null,null,"Row 463"]
[null,"ER Split Unit 10",null,null,null,null,null,null,null,null,null,"Row 467"]
[null,"ER Split Unit 10",null,null,null,null,null,null,null,null,null,"Row 472"]
[null,"ER Split Unit 10",null,null,null,null,null,null,null,null,null,"Row 473"]
[null,"ER Split Unit 10",null,null,null,null,null,null,null,null,null,"Row 478"]
[null,"ER Split Unit 10",null,null,null,null,null,null,null,null,null,"Row 483"]
[null,"ER Split Unit 10",null,null,null,null,null,null,null,null,null,"Row 485"]
[null,"ER Split Unit 10",null,null,null,null,null,null,null,null,null,"Row 488"]
[null,"ER Split Unit 10",null,null,null,null,null,null,null,null,null,"Row 493"]
[null,"ER Split Unit 10",null,null,null,null,null,null,null,null,null,"Row 498"]
[null,"ER Split Unit 10",null,null,null,null,null,null,null,null,null,"Row 503"]
[null,"ER Split Unit 10",null,null,null,null,null,null,null,null,null,"Row 504"]
[null,"ER Split Unit 10",null,null,null,null,null,null,null,null,null,"Row 508"]
[null,"ER Split Unit 10",null,null,null,null,null,null,null,null,null,"Row 509"]
[null,"ER Split Unit 10",null,null,null,null,null,null,null,null,null,"Row 510"]
[null,"ER Split Unit 10",null,null,null,null,null,null,null,null,null,"Row 511"]
[null,"ER Split Unit 10",null,null,null,null,null,null,null,null,null,"Row 512"]
[null,"ER Split Unit 10",null,null,null,null,null,null,null,null,null,"Row 513"]
[null,"ER Split Unit 10",null,null,null,null,null,null,null,null,null,"Row 514"]
[null,"ER Split Unit 10",null,null,null,null,null,null,null,null,null,"Row 515"]
[null,"ER Split Unit 10",null,null,null,null,null,null,null,null,null,"Row 516"]
[null,"ER Split Unit 10",null,null,null,null,null,null,null,null,null,"Row 517"]
[null,"ER Split Unit 10",null,null,null,null,null,null,null,null,null,"Row 518"]
[null,"ER Split Unit 10",null,null,null,null,null,null,null,null,null,"Row 519"]
[null,"ER Split Unit 10",null,null,null,null,null,null,null,null,null,"Row 520"]
[null,"ER Split Unit 10",null,null,null,null,null,null,null,null,null,"Row 521"]
[null,"ER Split Unit 10",null,null,null,null,null,null,null,null,null,"Row 522"]
[null,"ER Split Unit 10",null,null,null,null,null,null,null,null,null,"Row 523"]
[null,"ER Split Unit 10",null,null,null,null,null,null,null,null,null,"Row 524"]
[null,"ER Split Unit 10",null,null,null,null,null,null,null,null,null,"Row 525"]
[null,"ER Split Unit 10",null,null,null,null,null,null,null,null,null,"Row 526"]
[null,"ER Split Unit 10",null,null,null,null,null,null,null,null,null,"Row 527"]
[null,"ER Split Unit 10",null,null,null,null,null,null,null,null,null,"Row 528"]
[null,"ER Split Unit 10",null,null,null,null,null,null,null,null,null,"Row 529"]
[null,"ER Split Unit 10",null,null,null,null,null,null,null,null,null,"Row 530"]
[null,"ER Split Unit 10",null,null,null,null,null,null,null,null,null,"Row 531"]
[null,"ER Split Unit 10",null,null,null,null,null,null,null,null,null,"Row 532"]
[null,"ER Split Unit 10",null,null,null,null,null,null,null,null,null,"Row 533"]
[null,"ER Split Unit 10",null,null,null,null,null,null,null,null,null,"Row 534"]
[null,"ER Split Unit 10",null,null,null,null,null,null,null,null,null,"Row 535"]
[null,"ER Split Unit 10",null,null,null,null,null,null,null,null,null,"Row 536"]
[null,"ER Split Unit 10",null,null,null,null,null,null,null,null,null,"Row 537"]
[null,"ER Split Unit 10",null,null,null,null,null,null,null,null,null,"Row 538"]
[null,"ER Split Unit 10",null,null,null,null,null,null,null,null,null,"Row 539"]
[null,"ER Split Unit 10",null,null,null,null,null,null,null,null,null,"Row 540"]
[null,"ER Split Unit 10",null,null,null,null,null,null,null,null,null,"Row 541"]
[null,"ER Split Unit 10",null,null,null,null,null,null,null,null,null,"Row 542"]
[null,"ER Split Unit 10",null,null,null,null,null,null,null,null,null,"Row 543"]
[null,"ER Split Unit 10",null,null,null,null,null,null,null,null,null,"Row 544"]
[null,"ER Split Unit 10",null,null,null,null,null,null,null,null,null,"Row 545"]
[null,"ER Split Unit 10",null,null,null,null,null,null,null,null,null,"Row 546"]
[null,"ER Split Unit 10",null,null,null,null,null,null,null,null,null,"Row 547"]
[null,"ER Split Unit 10",null,null,null,null,null,null,null,null,null,"Row 548"]
[null,"ER Split Unit 10",null,null,null,null,null,null,null,null,null,"Row 549"]
[null,"ER Split Unit 10",null,null,null,null,null,null,null,null,null,"Row 550"]
[null,"ER Split Unit 10",null,null,null,null,null,null,null,null,null,"Row 551"]
[null,"ER Split Unit 10",null,null,null,null,null,null,null,null,null,"Row 552"]
[null,"ER Split Unit 10",null,null,null,null,null,null,null,null,null,"Row 553"]
[null,"ER Split Unit 10",null,null,null,null,null,null,null,null,null,"Row 554"]
[null,"ER Split Unit 10",null,null,null,null,null,null,null,null,null,"Row 555"]
[null,"ER Split Unit 10",null,null,null,null,null,null,null,null,null,"Row 556"]
[null,"ER Split Unit 10",null,null,null,null,null,null,null,null,null,"Row 557"]
[null,"ER Split Unit 10",null,null,null,null,null,null,null,null,null,"Row 558"]
[null,"ER Split Unit 10",null,null,null,null,null,null,null,null,null,"Row 559"]
[null,"ER Split Unit 10",null,null,null,null,null,null,null,null,null,"Row 560"]
[null,"ER Split Unit 10",null,null,null,null,null,null,null,null,null,"Row 561"]
[null,"ER Split Unit 10",null,null,null,null,null,null,null,null,null,"Row 562"]
[null,"ER Split Unit 10",null,null,null,null,null,null,null,null,null,"Row 563"]
[null,"ER Split Unit 10",null,null,null,null,null,null,null,null,null,"Row 564"]
[null,"ER Split Unit 10",null,null,null,null,null,null,null,null,null,"Row 565"]
[null,"ER Split Unit 10",null,null,null,null,null,null,null,null,null,"Row 566"]
[null,"ER Split Unit 10",null,null,null,null,null,null,null,null,null,"Row 567"]
[null,"ER Split Unit 10",null,null,null,null,null,null,null,null,null,"Row 568"]
[null,"ER Split Unit 10",null,null,null,null,null,null,null,null,null,"Row 569"]
[null,"ER Split Unit 10",null,null,null,null,null,null,null,null,null,"Row 570"]
[null,"ER Split Unit 10",null,null,null,null,null,null,null,null,null,"Row 571"]
[null,"ER Split Unit 10",null,null,null,null,null,null,null,null,null,"Row 572"]
[null,"ER Split Unit 10",null,null,null,null,null,null,null,null,null,"Row 573"]
[null,"ER Split Unit 10",null,null,null,null,null,null,null,null,null,"Row 574"]
[null,"ER Split Unit 10",null,null,null,null,null,null,null,null,null,"Row 575"]
[null,"ER Split Unit 10",null,null,null,null,null,null,null,null,null,"Row 576"]
[null,"ER Split Unit 10",null,null,null,null,null,null,null,null,null,"Row 577"]
[null,"ER Split Unit 10",null,null,null,null,null,null,null,null,null,"Row 578"]
[null,"ER Split Unit 10",null,null,null,null,null,null,null,null,null,"Row 579"]
[null,"ER Split Unit 10",null,null,null,null,null,null,null,null,null,"Row 580"]
[null,"ER Split Unit 10",null,null,null,null,null,null,null,null,null,"Row 581"]
[null,"ER Split Unit 10",null,null,null,null,null,null,null,null,null,"Row 582"]
[null,"ER Split Unit 10",null,null,null,null,null,null,null,null,null,"Row 583"]
[null,"ER Split Unit 10",null,null,null,null,null,null,null,null,null,"Row 584"]
[null,"ER Split Unit 10",null,null,null,null,null,null,null,null,null,"Row 585"]
[null,"ER Split Unit 10",null,null,null,null,null,null,null,null,null,"Row 586"]
[null,"ER Split Unit 10",null,null,null,null,null,null,null,null,null,"Row 587"]
[null,"ER Split Unit 10",null,null,null,null,null,null,null,null,null,"Row 588"]
[null,"ER Split Unit 10",null,null,null,null,null,null,null,null,null,"Row 589"]
[null,"ER Split Unit 10",null,null,null,null,null,null,null,null,null,"Row 590"]
[null,"ER Split Unit 10",null,null,null,null,null,null,null,null,null,"Row 591"]
[null,"ER Split Unit 10",null,null,null,null,null,null,null,null,null,"Row 592"]
[null,"ER Split Unit 10",null,null,null,null,null,null,null,null,null,"Row 593"]
[null,"ER Split Unit 10",null,null,null,null,null,null,null,null,null,"Row 594"]
[null,"ER Split Unit 10",null,null,null,null,null,null,null,null,null,"Row 595"]
[null,"ER Split Unit 10",null,null,null,null,null,null,null,null,null,"Row 596"]
[null,"ER Split Unit 10",null,null,null,null,null,null,null,null,null,"Row 597"]
[null,"ER Split Unit 10",null,null,null,null,null,null,null,null,null,"Row 598"]
[null,"ER Split Unit 10",null,null,null,null,null,null,null,null,null,"Row 599"]
[null,"ER Split Unit 10",null,null,null,null,null,null,null,null,null,"Row 600"]
[null,"ER Split Unit 10",null,null,null,null,null,null,null,null,null,"Row 601"]
[null,"ER Split Unit 10",null,null,null,null,null,null,null,null,null,"Row 602"]
[null,"ER Split Unit 10",null,null,null,null,null,null,null,null,null,"Row 603"]
[null,"ER Split Unit 10",null,null,null,null,null,null,null,null,null,"Row 604"]
[null,"ER Split Unit 10",null,null,null,null,null,null,null,null,null,"Row 605"]
[null,"ER Split Unit 10",null,null,null,null,null,null,null,null,null,"Row 606"]
[null,"ER Split Unit 10",null,null,null,null,null,null,null,null,null,"Row 607"]
[null,"ER Split Unit 10",null,null,null,null,null,null,null,null,null,"Row 608"]
[null,"ER Split Unit 10",null,null,null,null,null,null,null,null,null,"Row 609"]
[null,"ER Split Unit 10",null,null,null,null,null,null,null,null,null,"Row 610"]
[null,"ER Split Unit 10",null,null,null,null,null,null,null,null,null,"Row 611"]
[null,"ER Split Unit 10",null,null,null,null,null,null,null,null,null,"Row 612"]
[null,"ER Split Unit 10",null,null,null,null,null,null,null,null,null,"Row 613"]
[null,"ER Split Unit 10",null,null,null,null,null,null,null,null,null,"Row 614"]
[null,"ER Split Unit 10",null,null,null,null,null,null,null,null,null,"Row 615"]
[null,"ER Split Unit 10",null,null,null,null,null,null,null,null,null,"Row 616"]
[null,"ER Split Unit 10",null,null,null,null,null,null,null,null,null,"Row 617"]
[null,"ER Split Unit 10",null,null,null,null,null,null,null,null,null,"Row 618"]
[null,"ER Split Unit 10",null,null,null,null,null,null,null,null,null,"Row 619"]
[null,"ER Split Unit 10",null,null,null,null,null,null,null,null,null,"Row 620"]
[null,"ER Split Unit 10",null,null,null,null,null,null,null,null,null,"Row 621"]
[null,"ER Split Unit 10",null,null,null,null,null,null,null,null,null,"Row 622"]
[null,"ER Split Unit 10",null,null,null,null,null,null,null,null,null,"Row 623"]
[null,"ER Split Unit 10",null,null,null,null,null,null,null,null,null,"Row 624"]
[null,"ER Split Unit 10",null,null,null,null,null,null,null,null,null,"Row 625"]
[null,"ER Split Unit 10",null,null,null,null,null,null,null,null,null,"Row 626"]
[null,"ER Split Unit 10",null,null,null,null,null,null,null,null,null,"Row 627"]
[null,"ER Split Unit 10",null,null,null,null,null,null,null,null,null,"Row 628"]
[null,"ER Split Unit 10",null,null,null,null,null,null,null,null,null,"Row 629"]
[null,"ER Split Unit 10",null,null,null,null,null,null,null,null,null,"Row 630"]
[null,"ER Split Unit 10",null,null,null,null,null,null,null,null,null,"Row 631"]
[null,"ER Split Unit 10",null,null,null,null,null,null,null,null,null,"Row 632"]
[null,"ER Split Unit 10",null,null,null,null,null,null,null,null,null,"Row 633"]
[null,"ER Split Unit 10",null,null,null,null,null,null,null,null,null,"Row 634"]
[null,"ER Split Unit 10",null,null,null,null,null,null,null,null,null,"Row 635"]
[null,"ER Split Unit 10",null,null,null,null,null,null,null,null,null,"Row 636"]
[null,"ER Split Unit 10",null,null,null,null,null,null,null,null,null,"Row 637"]
[null,"ER Split Unit 10",null,null,null,null,null,null,null,null,null,"Row 638"]
[null,"ER Split Unit 10",null,null,null,null,null,null,null,null,null,"Row 639"]
[null,"ER Split Unit 10",null,null,null,null,null,null,null,null,null,"Row 640"]
[null,"ER Split Unit 10",null,null,null,null,null,null,null,null,null,"Row 641"]
[null,"ER Split Unit 10",null,null,null,null,null,null,null,null,null,"Row 642"]
[null,"ER Split Unit 10",null,null,null,null,null,null,null,null,null,"Row 643"]
[null,"ER Split Unit 10",null,null,null,null,null,null,null,null,null,"Row 644"]
[null,"ER Split Unit 10",null,null,null,null,null,null,null,null,null,"Row 645"]
[null,"ER Split Unit 10",null,null,null,null,null,null,null,null,null,"Row 646"]
[null,"ER Split Unit 10",null,null,null,null,null,null,null,null,null,"Row 647"]
[null,"ER Split Unit 10",null,null,null,null,null,null,null,null,null,"Row 648"]
[null,"ER Split Unit 10",null,null,null,null,null,null,null,null,null,"Row 649"]
[null,"ER Split Unit 10",null,null,null,null,null,null,null,null,null,"Row 650"]
[null,"ER Split Unit 10",null,null,null,null,null,null,null,null,null,"Row 651"]
[null,"ER Split Unit 10",null,null,null,null,null,null,null,null,null,"Row 652"]
[null,"ER Split Unit 10",null,null,null,null,null,null,null,null,null,"Row 653"]
[null,"ER Split Unit 10",null,null,null,null,null,null,null,null,null,"Row 654"]
[null,"ER Split Unit 10",null,null,null,null,null,null,null,null,null,"Row 655"]
[null,"ER Split Unit 10",null,null,null,null,null,null,null,null,null,"Row 656"]
[null,"ER Split Unit 10",null,null,null,null,null,null,null,null,null,"Row 657"]
[null,"ER Split Unit 10",null,null,null,null,null,null,null,null,null,"Row 658"]
[null,"ER Split Unit 10",null,null,null,null,null,null,null,null,null,"Row 659"]
[null,"ER Split Unit 10",null,null,null,null,null,null,null,null,null,"Row 660"]
[null,"ER Split Unit 10",null,null,null,null,null,null,null,null,null,"Row 661"]
[null,"ER Split Unit 10",null,null,null,null,null,null,null,null,null,"Row 662"]
[null,"ER Split Unit 10",null,null,null,null,null,null,null,null,null,"Row 663"]
[null,"ER Split Unit 10",null,null,null,null,null,null,null,null,null,"Row 664"]
[null,"ER Split Unit 10",null,null,null,null,null,null,null,null,null,"Row 665"]
[null,"ER Split Unit 10",null,null,null,null,null,null,null,null,null,"Row 666"]
[null,"ER Split Unit 10",null,null,null,null,null,null,null,null,null,"Row 667"]
[null,"ER Split Unit 10",null,null,null,null,null,null,null,null,null,"Row 668"]
[null,"ER Split Unit 10",null,null,null,null,null,null,null,null,null,"Row 669"]
[null,"ER Split Unit 10",null,null,null,null,null,null,null,null,null,"Row 670"]
[null,"ER Split Unit 10",null,null,null,null,null,null,null,null,null,"Row 671"]
[null,"ER Split Unit 10",null,null,null,null,null,null,null,null,null,"Row 672"]
[null,"ER Split Unit 10",null,null,null,null,null,null,null,null,null,"Row 673"]
[null,"ER Split Unit 10",null,null,null,null,null,null,null,null,null,"Row 674"]
[null,"ER Split Unit 10",null,null,null,null,null,null,null,null,null,"Row 675"]
[null,"ER Split Unit 10",null,null,null,null,null,null,null,null,null,"Row 676"]
[null,"ER Split Unit 10",null,null,null,null,null,null,null,null,null,"Row 677"]
[null,"ER Split Unit 10",null,null,null,null,null,null,null,null,null,"Row 678"]
[null,"ER Split Unit 10",null,null,null,null,null,null,null,null,null,"Row 679"]
[null,"ER Split Unit 10",null,null,null,null,null,null,null,null,null,"Row 680"]
[null,"ER Split Unit 10",null,null,null,null,null,null,null,null,null,"Row 681"]
[null,"ER Split Unit 10",null,null,null,null,null,null,null,null,null,"Row 682"]
[null,"ER Split Unit 10",null,null,null,null,null,null,null,null,null,"Row 683"]
[null,"ER Split Unit 10",null,null,null,null,null,null,null,null,null,"Row 684"]
[null,"ER Split Unit 10",null,null,null,null,null,null,null,null,null,"Row 685"]
[null,"ER Split Unit 10",null,null,null,null,null,null,null,null,null,"Row 686"]
[null,"ER Split Unit 10",null,null,null,null,null,null,null,null,null,"Row 687"]
[null,"ER Split Unit 10",null,null,null,null,null,null,null,null,null,"Row 688"]
[null,"ER Split Unit 10",null,null,null,null,null,null,null,null,null,"Row 689"]
[null,"ER Split Unit 10",null,null,null,null,null,null,null,null,null,"Row 690"]
[null,"ER Split Unit 10",null,null,null,null,null,null,null,null,null,"Row 691"]
[null,"ER Split Unit 10",null,null,null,null,null,null,null,null,null,"Row 692"]
[null,"ER Split Unit 10",null,null,null,null,null,null,null,null,null,"Row 693"]
[null,"ER Split Unit 10",null,null,null,null,null,null,null,null,null,"Row 694"]
[null,"ER Split Unit 10",null,null,null,null,null,null,null,null,null,"Row 695"]
[null,"ER Split Unit 10",null,null,null,null,null,null,null,null,null,"Row 696"]
[null,"ER Split Unit 10",null,null,null,null,null,null,null,null,null,"Row 697"]
[null,"ER Split Unit 10",null,null,null,null,null,null,null,null,null,"Row 698"]
[null,"ER Split Unit 10",null,null,null,null,null,null,null,null,null,"Row 699"]
[null,"ER Split Unit 10",null,null,null,null,null,null,null,null,null,"Row 700"]
[null,"ER Split Unit 10",null,null,null,null,null,null,null,null,null,"Row 701"]
[null,"ER Split Unit 10",null,null,null,null,null,null,null,null,null,"Row 702"]
[null,"ER Split Unit 10",null,null,null,null,null,null,null,null,null,"Row 703"]
[null,"ER Split Unit 10",null,null,null,null,null,null,null,null,null,"Row 704"]
[null,"ER Split Unit 10",null,null,null,null,null,null,null,null,null,"Row 705"]
[null,"ER Split Unit 10",null,null,null,null,null,null,null,null,null,"Row 706"]
[null,"ER Split Unit 10",null,null,null,null,null,null,null,null,null,"Row 707"]
[null,"ER Split Unit 10",null,null,null,null,null,null,null,null,null,"Row 708"]
[null,"ER Split Unit 10",null,null,null,null,null,null,null,null,null,"Row 709"]
[null,"ER Split Unit 10",null,null,null,null,null,null,null,null,null,"Row 710"]
[null,"ER Split Unit 10",null,null,null,null,null,null,null,null,null,"Row 711"]
[null,"ER Split Unit 10",null,null,null,null,null,null,null,null,null,"Row 712"]
[null,"ER Split Unit 10",null,null,null,null,null,null,null,null,null,"Row 713"]
[null,"ER Split Unit 10",null,null,null,null,null,null,null,null,null,"Row 714"]
[null,"ER Split Unit 10",null,null,null,null,null,null,null,null,null,"Row 715"]
[null,"ER Split Unit 10",null,null,null,null,null,null,null,null,null,"Row 716"]
[null,"ER Split Unit 10",null,null,null,null,null,null,null,null,null,"Row 717"]
[null,"ER Split Unit 10",null,null,null,null,null,null,null,null,null,"Row 718"]
[null,"ER Split Unit 10",null,null,null,null,null,null,null,null,null,"Row 719"]
[null,"ER Split Unit 10",null,null,null,null,null,null,null,null,null,"Row 720"]
[null,"ER Split Unit 10",null,null,null,null,null,null,null,null,null,"Row 721"]
[null,"ER Split Unit 10",null,null,null,null,null,null,null,null,null,"Row 722"]
[null,"ER Split Unit 10",null,null,null,null,null,null,null,null,null,"Row 723"]
[null,"ER Split Unit 10",null,null,null,null,null,null,null,null,null,"Row 724"]
[null,"ER Split Unit 10",null,null,null,null,null,null,null,null,null,"Row 725"]
[null,"ER Split Unit 10",null,null,null,null,null,null,null,null,null,"Row 726"]
[null,"ER Split Unit 10",null,null,null,null,null,null,null,null,null,"Row 727"]
[null,"ER Split Unit 10",null,null,null,null,null,null,null,null,null,"Row 728"]
[null,"ER Split Unit 10",null,null,null,null,null,null,null,null,null,"Row 729"]
[null,"ER Split Unit 10",null,null,null,null,null,null,null,null,null,"Row 730"]
[null,"ER Split Unit 10",null,null,null,null,null,null,null,null,null,"Row 731"]
[null,"ER Split Unit 10",null,null,null,null,null,null,null,null,null,"Row 732"]
[null,"ER Split Unit 10",null,null,null,null,null,null,null,null,null,"Row 733"]
[null,"ER Split Unit 10",null,null,null,null,null,null,null,null,null,"Row 734"]
[null,"ER Split Unit 10",null,null,null,null,null,null,null,null,null,"Row 735"]
[null,"ER Split Unit 10",null,null,null,null,null,null,null,null,null,"Row 736"]
[null,"ER Split Unit 10",null,null,null,null,null,null,null,null,null,"Row 737"]
[null,"ER Split Unit 10",null,null,null,null,null,null,null,null,null,"Row 738"]
[null,"ER Split Unit 10",null,null,null,null,null,null,null,null,null,"Row 739"]
[null,"ER Split Unit 10",null,null,null,null,null,null,null,null,null,"Row 740"]
[null,"ER Split Unit 10",null,null,null,null,null,null,null,null,null,"Row 741"]
[null,"ER Split Unit 10",null,null,null,null,null,null,null,null,null,"Row 742"]
[null,"ER Split Unit 10",null,null,null,null,null,null,null,null,null,"Row 743"]
[null,"ER Split Unit 10",null,null,null,null,null,null,null,null,null,"Row 744"]
[null,"ER Split Unit 10",null,null,null,null,null,null,null,null,null,"Row 745"]
[null,"ER Split Unit 10",null,null,null,null,null,null,null,null,null,"Row 746"]
[null,"ER Split Unit 10",null,null,null,null,null,null,null,null,null,"Row 747"]
[null,"ER Split Unit 10",null,null,null,null,null,null,null,null,null,"Row 748"]
[null,"ER Split Unit 10",null,null,null,null,null,null,null,null,null,"Row 749"]
[null,"ER Split Unit 10",null,null,null,null,null,null,null,null,null,"Row 750"]
[null,"ER Split Unit 10",null,null,null,null,null,null,null,null,null,"Row 751"]
[null,"ER Split Unit 10",null,null,null,null,null,null,null,null,null,"Row 752"]
[null,"ER Split Unit 10",null,null,null,null,null,null,null,null,null,"Row 753"]
[null,"ER Split Unit 10",null,null,null,null,null,null,null,null,null,"Row 754"]
[null,"ER Split Unit 10",null,null,null,null,null,null,null,null,null,"Row 755"]
[null,"ER Split Unit 10",null,null,null,null,null,null,null,null,null,"Row 756"]
[null,"ER Split Unit 10",null,null,null,null,null,null,null,null,null,"Row 757"]
[null,"ER Split Unit 10",null,null,null,null,null,null,null,null,null,"Row 758"]
[null,"ER Split Unit 10",null,null,null,null,null,null,null,null,null,"Row 759"]
[null,"ER Split Unit 10",null,null,null,null,null,null,null,null,null,"Row 760"]
[null,"ER Split Unit 10",null,null,null,null,null,null,null,null,null,"Row 761"]
[null,"ER Split Unit 10",null,null,null,null,null,null,null,null,null,"Row 762"]
[null,"ER Split Unit 10",null,null,null,null,null,null,null,null,null,"Row 763"]
[null,"ER Split Unit 10",null,null,null,null,null,null,null,null,null,"Row 764"]
[null,"ER Split Unit 10",null,null,null,null,null,null,null,null,null,"Row 765"]
[null,"ER Split Unit 10",null,null,null,null,null,null,null,null,null,"Row 766"]
[null,"ER Split Unit 10",null,null,null,null,null,null,null,null,null,"Row 767"]
[null,"ER Split Unit 10",null,null,null,null,null,null,null,null,null,"Row 768"]
[null,"ER Split Unit 10",null,null,null,null,null,null,null,null,null,"Row 769"]
[null,"ER Split Unit 10",null,null,null,null,null,null,null,null,null,"Row 770"]
[null,"ER Split Unit 10",null,null,null,null,null,null,null,null,null,"Row 771"]
[null,"ER Split Unit 10",null,null,null,null,null,null,null,null,null,"Row 772"]
[null,"ER Split Unit 10",null,null,null,null,null,null,null,null,null,"Row 773"]
[null,"ER Split Unit 10",null,null,null,null,null,null,null,null,null,"Row 774"]
[null,"ER Split Unit 10",null,null,null,null,null,null,null,null,null,"Row 775"]
[null,"ER Split Unit 10",null,null,null,null,null,null,null,null,null,"Row 776"]
[null,"ER Split Unit 10",null,null,null,null,null,null,null,null,null,"Row 777"]
[null,"ER Split Unit 10",null,null,null,null,null,null,null,null,null,"Row 778"]
[null,"ER Split Unit 10",null,null,null,null,null,null,null,null,null,"Row 779"]
[null,"ER Split Unit 10",null,null,null,null,null,null,null,null,null,"Row 780"]
[null,"ER Split Unit 10",null,null,null,null,null,null,null,null,null,"Row 781"]
[null,"ER Split Unit 10",null,null,null,null,null,null,null,null,null,"Row 782"]
[null,"ER Split Unit 10",null,null,null,null,null,null,null,null,null,"Row 783"]
[null,"ER Split Unit 10",null,null,null,null,null,null,null,null,null,"Row 784"]
[null,"ER Split Unit 10",null,null,null,null,null,null,null,null,null,"Row 785"]
[null,"ER Split Unit 10",null,null,null,null,null,null,null,null,null,"Row 786"]
[null,"ER Split Unit 10",null,null,null,null,null,null,null,null,null,"Row 787"]
[null,"ER Split Unit 10",null,null,null,null,null,null,null,null,null,"Row 788"]
[null,"ER Split Unit 10",null,null,null,null,null,null,null,null,null,"Row 789"]
[null,"ER Split Unit 10",null,null,null,null,null,null,null,null,null,"Row 790"]
[null,"ER Split Unit 10",null,null,null,null,null,null,null,null,null,"Row 791"]
[null,"ER Split Unit 10",null,null,null,null,null,null,null,null,null,"Row 792"]
[null,"ER Split Unit 10",null,null,null,null,null,null,null,null,null,"Row 793"]
[null,"ER Split Unit 10",null,null,null,null,null,null,null,null,null,"Row 794"]
[null,"ER Split Unit 10",null,null,null,null,null,null,null,null,null,"Row 795"]
[null,"ER Split Unit 10",null,null,null,null,null,null,null,null,null,"Row 796"]
[null,"ER Split Unit 10",null,null,null,null,null,null,null,null,null,"Row 797"]
[null,"ER Split Unit 10",null,null,null,null,null,null,null,null,null,"Row 798"]
[null,"ER Split Unit 10",null,null,null,null,null,null,null,null,null,"Row 799"]
[null,"ER Split Unit 10",null,null,null,null,null,null,null,null,null,"Row 800"]
[null,"ER Split Unit 10",null,null,null,null,null,null,null,null,null,"Row 801"]
[null,"ER Split Unit 10",null,null,null,null,null,null,null,null,null,"Row 802"]
[null,"ER Split Unit 10",null,null,null,null,null,null,null,null,null,"Row 803"]
[null,"ER Split Unit 10",null,null,null,null,null,null,null,null,null,"Row 804"]
[null,"ER Split Unit 10",null,null,null,null,null,null,null,null,null,"Row 805"]
[null,"ER Split Unit 10",null,null,null,null,null,null,null,null,null,"Row 806"]
[null,"ER Split Unit 10",null,null,null,null,null,null,null,null,null,"Row 807"]
[null,"ER Split Unit 10",null,null,null,null,null,null,null,null,null,"Row 808"]
[null,"ER Split Unit 10",null,null,null,null,null,null,null,null,null,"Row 809"]
[null,"ER Split Unit 10",null,null,null,null,null,null,null,null,null,"Row 810"]
[null,"ER Split Unit 10",null,null,null,null,null,null,null,null,null,"Row 811"]
[null,"ER Split Unit 10",null,null,null,null,null,null,null,null,null,"Row 812"]
[null,"ER Split Unit 10",null,null,null,null,null,null,null,null,null,"Row 813"]
[null,"ER Split Unit 10",null,null,null,null,null,null,null,null,null,"Row 814"]
[null,"ER Split Unit 10",null,null,null,null,null,null,null,null,null,"Row 815"]
[null,"ER Split Unit 10",null,null,null,null,null,null,null,null,null,"Row 816"]
[null,"ER Split Unit 10",null,null,null,null,null,null,null,null,null,"Row 817"]
[null,"ER Split Unit 10",null,null,null,null,null,null,null,null,null,"Row 818"]
[null,"ER Split Unit 10",null,null,null,null,null,null,null,null,null,"Row 819"]
[null,"ER Split Unit 10",null,null,null,null,null,null,null,null,null,"Row 820"]
[null,"ER Split Unit 10",null,null,null,null,null,null,null,null,null,"Row 821"]
[null,"ER Split Unit 10",null,null,null,null,null,null,null,null,null,"Row 822"]
[null,"ER Split Unit 10",null,null,null,null,null,null,null,null,null,"Row 823"]
[null,"ER Split Unit 10",null,null,null,null,null,null,null,null,null,"Row 824"]
[null,"ER Split Unit 10",null,null,null,null,null,null,null,null,null,"Row 825"]
[null,"ER Split Unit 10",null,null,null,null,null,null,null,null,null,"Row 826"]
[null,"ER Split Unit 10",null,null,null,null,null,null,null,null,null,"Row 827"]
[null,"ER Split Unit 10",null,null,null,null,null,null,null,null,null,"Row 828"]
[null,"ER Split Unit 10",null,null,null,null,null,null,null,null,null,"Row 829"]
[null,"ER Split Unit 10",null,null,null,null,null,null,null,null,null,"Row 830"]
[null,"ER Split Unit 10",null,null,null,null,null,null,null,null,null,"Row 831"]
[null,"ER Split Unit 10",null,null,null,null,null,null,null,null,null,"Row 832"]
[null,"ER Split Unit 10",null,null,null,null,null,null,null,null,null,"Row 833"]
[null,"ER Split Unit 10",null,null,null,null,null,null,null,null,null,"Row 834"]
[null,"ER Split Unit 10",null,null,null,null,null,null,null,null,null,"Row 835"]
[null,"ER Split Unit 10",null,null,null,null,null,null,null,null,null,"Row 836"]
[null,"ER Split Unit 10",null,null,null,null,null,null,null,null,null,"Row 837"]
[null,"ER Split Unit 10",null,null,null,null,null,null,null,null,null,"Row 838"]
[null,"ER Split Unit 10",null,null,null,null,null,null,null,null,null,"Row 839"]
[null,"ER Split Unit 10",null,null,null,null,null,null,null,null,null,"Row 840"]
[null,"ER Split Unit 10",null,null,null,null,null,null,null,null,null,"Row 841"]
[null,"ER Split Unit 10",null,null,null,null,null,null,null,null,null,"Row 842"]
[null,"ER Split Unit 10",null,null,null,null,null,null,null,null,null,"Row 843"]
[null,"ER Split Unit 10",null,null,null,null,null,null,null,null,null,"Row 844"]
[null,"ER Split Unit 10",null,null,null,null,null,null,null,null,null,"Row 845"]
[null,"ER Split Unit 10",null,null,null,null,null,null,null,null,null,"Row 846"]
[null,"ER Split Unit 10",null,null,null,null,null,null,null,null,null,"Row 847"]
[null,"ER Split Unit 10",null,null,null,null,null,null,null,null,null,"Row 848"]
[null,"ER Split Unit 10",null,null,null,null,null,null,null,null,null,"Row 849"]
[null,"ER Split Unit 10",null,null,null,null,null,null,null,null,null,"Row 850"]
[null,"ER Split Unit 10",null,null,null,null,null,null,null,null,null,"Row 851"]
[null,"ER Split Unit 10",null,null,null,null,null,null,null,null,null,"Row 852"]
[null,"ER Split Unit 10",null,null,null,null,null,null,null,null,null,"Row 853"]
[null,"ER Split Unit 10",null,null,null,null,null,null,null,null,null,"Row 854"]
[null,"ER Split Unit 10",null,null,null,null,null,null,null,null,null,"Row 855"]
[null,"ER Split Unit 10",null,null,null,null,null,null,null,null,null,"Row 856"]
[null,"ER Split Unit 10",null,null,null,null,null,null,null,null,null,"Row 857"]
[null,"ER Split Unit 10",null,null,null,null,null,null,null,null,null,"Row 858"]
[null,"ER Split Unit 10",null,null,null,null,null,null,null,null,null,"Row 859"]
[null,"ER Split Unit 10",null,null,null,null,null,null,null,null,null,"Row 860"]
[null,"ER Split Unit 10",null,null,null,null,null,null,null,null,null,"Row 861"]
[null,"ER Split Unit 10",null,null,null,null,null,null,null,null,null,"Row 862"]
[null,"ER Split Unit 10",null,null,null,null,null,null,null,null,null,"Row 863"]
[null,"ER Split Unit 10",null,null,null,null,null,null,null,null,null,"Row 864"]
[null,"ER Split Unit 10",null,null,null,null,null,null,null,null,null,"Row 865"]
[null,"ER Split Unit 10",null,null,null,null,null,null,null,null,null,"Row 866"]
[null,"ER Split Unit 10",null,null,null,null,null,null,null,null,null,"Row 867"]
[null,"ER Split Unit 10",null,null,null,null,null,null,null,null,null,"Row 868"]
[null,"ER Split Unit 10",null,null,null,null,null,null,null,null,null,"Row 869"]
[null,"ER Split Unit 10",null,null,null,null,null,null,null,null,null,"Row 870"]
[null,"ER Split Unit 10",null,null,null,null,null,null,null,null,null,"Row 871"]
[null,"ER Split Unit 10",null,null,null,null,null,null,null,null,null,"Row 872"]
[null,"ER Split Unit 10",null,null,null,null,null,null,null,null,null,"Row 873"]
[null,"ER Split Unit 10",null,null,null,null,null,null,null,null,null,"Row 874"]
[null,"ER Split Unit 10",null,null,null,null,null,null,null,null,null,"Row 875"]
[null,"ER Split Unit 10",null,null,null,null,null,null,null,null,null,"Row 876"]
[null,"ER Split Unit 10",null,null,null,null,null,null,null,null,null,"Row 877"]
[null,"ER Split Unit 10",null,null,null,null,null,null,null,null,null,"Row 878"]
[null,"ER Split Unit 10",null,null,null,null,null,null,null,null,null,"Row 879"]
[null,"ER Split Unit 10",null,null,null,null,null,null,null,null,null,"Row 880"]
[null,"ER Split Unit 10",null,null,null,null,null,null,null,null,null,"Row 881"]
[null,"ER Split Unit 10",null,null,null,null,null,null,null,null,null,"Row 882"]
[null,"ER Split Unit 10",null,null,null,null,null,null,null,null,null,"Row 883"]
[null,"ER Split Unit 10",null,null,null,null,null,null,null,null,null,"Row 884"]
[null,"ER Split Unit 10",null,null,null,null,null,null,null,null,null,"Row 885"]
[null,"ER Split Unit 10",null,null,null,null,null,null,null,null,null,"Row 886"]
[null,"ER Split Unit 10",null,null,null,null,null,null,null,null,null,"Row 887"]
[null,"ER Split Unit 10",null,null,null,null,null,null,null,null,null,"Row 888"]
[null,"ER Split Unit 10",null,null,null,null,null,null,null,null,null,"Row 889"]
[null,"ER Split Unit 10",null,null,null,null,null,null,null,null,null,"Row 890"]
[null,"ER Split Unit 10",null,null,null,null,null,null,null,null,null,"Row 891"]
[null,"ER Split Unit 10",null,null,null,null,null,null,null,null,null,"Row 892"]
[null,"ER Split Unit 10",null,null,null,null,null,null,null,null,null,"Row 893"]
[null,"ER Split Unit 10",null,null,null,null,null,null,null,null,null,"Row 894"]
[null,"ER Split Unit 10",null,null,null,null,null,null,null,null,null,"Row 895"]
[null,"ER Split Unit 10",null,null,null,null,null,null,null,null,null,"Row 896"]
[null,"ER Split Unit 10",null,null,null,null,null,null,null,null,null,"Row 897"]
[null,"ER Split Unit 10",null,null,null,null,null,null,null,null,null,"Row 898"]
[null,"ER Split Unit 10",null,null,null,null,null,null,null,null,null,"Row 899"]
[null,"ER Split Unit 10",null,null,null,null,null,null,null,null,null,"Row 900"]
[null,"ER Split Unit 10",null,null,null,null,null,null,null,null,null,"Row 901"]
[null,"ER Split Unit 10",null,null,null,null,null,null,null,null,null,"Row 902"]
[null,"ER Split Unit 10",null,null,null,null,null,null,null,null,null,"Row 903"]
[null,"ER Split Unit 10",null,null,null,null,null,null,null,null,null,"Row 904"]
[null,"ER Split Unit 10",null,null,null,null,null,null,null,null,null,"Row 905"]
[null,"ER Split Unit 10",null,null,null,null,null,null,null,null,null,"Row 906"]
[null,"ER Split Unit 10",null,null,null,null,null,null,null,null,null,"Row 907"]
[null,"ER Split Unit 10",null,null,null,null,null,null,null,null,null,"Row 908"]
[null,"ER Split Unit 10",null,null,null,null,null,null,null,null,null,"Row 909"]
[null,"ER Split Unit 10",null,null,null,null,null,null,null,null,null,"Row 910"]
[null,"ER Split Unit 10",null,null,null,null,null,null,null,null,null,"Row 911"]
[null,"ER Split Unit 10",null,null,null,null,null,null,null,null,null,"Row 912"]
[null,"ER Split Unit 10",null,null,null,null,null,null,null,null,null,"Row 913"]
[null,"ER Split Unit 10",null,null,null,null,null,null,null,null,null,"Row 914"]
[null,"ER Split Unit 10",null,null,null,null,null,null,null,null,null,"Row 915"]
[null,"ER Split Unit 10",null,null,null,null,null,null,null,null,null,"Row 916"]
[null,"ER Split Unit 10",null,null,null,null,null,null,null,null,null,"Row 917"]
[null,"ER Split Unit 10",null,null,null,null,null,null,null,null,null,"Row 918"]
[null,"ER Split Unit 10",null,null,null,null,null,null,null,null,null,"Row 919"]
[null,"ER Split Unit 10",null,null,null,null,null,null,null,null,null,"Row 920"]
[null,"ER Split Unit 10",null,null,null,null,null,null,null,null,null,"Row 921"]
[null,"ER Split Unit 10",null,null,null,null,null,null,null,null,null,"Row 922"]
[null,"ER Split Unit 10",null,null,null,null,null,null,null,null,null,"Row 923"]
[null,"ER Split Unit 10",null,null,null,null,null,null,null,null,null,"Row 924"]
[null,"ER Split Unit 10",null,null,null,null,null,null,null,null,null,"Row 925"]
[null,"ER Split Unit 10",null,null,null,null,null,null,null,null,null,"Row 926"]
[null,"ER Split Unit 10",null,null,null,null,null,null,null,null,null,"Row 927"]
[null,"ER Split Unit 10",null,null,null,null,null,null,null,null,null,"Row 928"]
[null,"ER Split Unit 10",null,null,null,null,null,null,null,null,null,"Row 929"]
[null,"ER Split Unit 10",null,null,null,null,null,null,null,null,null,"Row 930"]
[null,"ER Split Unit 10",null,null,null,null,null,null,null,null,null,"Row 931"]
[null,"ER Split Unit 10",null,null,null,null,null,null,null,null,null,"Row 932"]
[null,"ER Split Unit 10",null,null,null,null,null,null,null,null,null,"Row 933"]
[null,"ER Split Unit 10",null,null,null,null,null,null,null,null,null,"Row 934"]
[null,"ER Split Unit 10",null,null,null,null,null,null,null,null,null,"Row 935"]
[null,"ER Split Unit 10",null,null,null,null,null,null,null,null,null,"Row 936"]
[null,"ER Split Unit 10",null,null,null,null,null,null,null,null,null,"Row 937"]
[null,"ER Split Unit 10",null,null,null,null,null,null,null,null,null,"Row 938"]
[null,"ER Split Unit 10",null,null,null,null,null,null,null,null,null,"Row 939"]
[null,"ER Split Unit 10",null,null,null,null,null,null,null,null,null,"Row 940"]
[null,"ER Split Unit 10",null,null,null,null,null,null,null,null,null,"Row 941"]
[null,"ER Split Unit 10",null,null,null,null,null,null,null,null,null,"Row 942"]
[null,"ER Split Unit 10",null,null,null,null,null,null,null,null,null,"Row 943"]
[null,"ER Split Unit 10",null,null,null,null,null,null,null,null,null,"Row 944"]
[null,"ER Split Unit 10",null,null,null,null,null,null,null,null,null,"Row 945"]
[null,"ER Split Unit 10",null,null,null,null,null,null,null,null,null,"Row 946"]
[null,"ER Split Unit 10",null,null,null,null,null,null,null,null,null,"Row 947"]
[null,"ER Split Unit 10",null,null,null,null,null,null,null,null,null,"Row 948"]
[null,"ER Split Unit 10",null,null,null,null,null,null,null,null,null,"Row 949"]
[null,"ER Split Unit 10",null,null,null,null,null,null,null,null,null,"Row 950"]
[null,"ER Split Unit 10",null,null,null,null,null,null,null,null,null,"Row 951"]
[null,"ER Split Unit 10",null,null,null,null,null,null,null,null,null,"Row 952"]
[null,"ER Split Unit 10",null,null,null,null,null,null,null,null,null,"Row 953"]
[null,"ER Split Unit 10",null,null,null,null,null,null,null,null,null,"Row 954"]
[null,"ER Split Unit 10",null,null,null,null,null,null,null,null,null,"Row 955"]
[null,"ER Split Unit 10",null,null,null,null,null,null,null,null,null,"Row 956"]
[null,"ER Split Unit 10",null,null,null,null,null,null,null,null,null,"Row 957"]
[null,"ER Split Unit 10",null,null,null,null,null,null,null,null,null,"Row 958"]
[null,"ER Split Unit 10",null,null,null,null,null,null,null,null,null,"Row 959"]
[null,"ER Split Unit 10",null,null,null,null,null,null,null,null,null,"Row 960"]
[null,"ER Split Unit 10",null,null,null,null,null,null,null,null,null,"Row 961"]
[null,"ER Split Unit 10",null,null,null,null,null,null,null,null,null,"Row 962"]
[null,"ER Split Unit 10",null,null,null,null,null,null,null,null,null,"Row 963"]
[null,"ER Split Unit 10",null,null,null,null,null,null,null,null,null,"Row 964"]
[null,"ER Split Unit 10",null,null,null,null,null,null,null,null,null,"Row 965"]
[null,"ER Split Unit 10",null,null,null,null,null,null,null,null,null,"Row 966"]
[null,"ER Split Unit 10",null,null,null,null,null,null,null,null,null,"Row 967"]
[null,"ER Split Unit 10",null,null,null,null,null,null,null,null,null,"Row 968"]
[null,"ER Split Unit 10",null,null,null,null,null,null,null,null,null,"Row 969"]
[null,"ER Split Unit 10",null,null,null,null,null,null,null,null,null,"Row 970"]
[null,"ER Split Unit 10",null,null,null,null,null,null,null,null,null,"Row 971"]
[null,"ER Split Unit 10",null,null,null,null,null,null,null,null,null,"Row 972"]
[null,"ER Split Unit 10",null,null,null,null,null,null,null,null,null,"Row 973"]
[null,"ER Split Unit 10",null,null,null,null,null,null,null,null,null,"Row 974"]
[null,"ER Split Unit 10",null,null,null,null,null,null,null,null,null,"Row 975"]
[null,"ER Split Unit 10",null,null,null,null,null,null,null,null,null,"Row 976"]
[null,"ER Split Unit 10",null,null,null,null,null,null,null,null,null,"Row 977"]
[null,"ER Split Unit 10",null,null,null,null,null,null,null,null,null,"Row 978"]
[null,"ER Split Unit 10",null,null,null,null,null,null,null,null,null,"Row 979"]
[null,"ER Split Unit 10",null,null,null,null,null,null,null,null,null,"Row 980"]
[null,"ER Split Unit 10",null,null,null,null,null,null,null,null,null,"Row 981"]
[null,"ER Split Unit 10",null,null,null,null,null,null,null,null,null,"Row 982"]
[null,"ER Split Unit 10",null,null,null,null,null,null,null,null,null,"Row 983"]
[null,"ER Split Unit 10",null,null,null,null,null,null,null,null,null,"Row 984"]
[null,"ER Split Unit 10",null,null,null,null,null,null,null,null,null,"Row 985"]
[null,"ER Split Unit 10",null,null,null,null,null,null,null,null,null,"Row 986"]
[null,"ER Split Unit 10",null,null,null,null,null,null,null,null,null,"Row 987"]
[null,"ER Split Unit 10",null,null,null,null,null,null,null,null,null,"Row 988"]
[null,"ER Split Unit 10",null,null,null,null,null,null,null,null,null,"Row 989"]
[null,"ER Split Unit 10",null,null,null,null,null,null,null,null,null,"Row 990"]
[null,"ER Split Unit 10",null,null,null,null,null,null,null,null,null,"Row 991"]
[null,"ER Split Unit 10",null,null,null,null,null,null,null,null,null,"Row 992"]
[null,"ER Split Unit 10",null,null,null,null,null,null,null,null,null,"Row 993"]
[null,"ER Split Unit 10",null,null,null,null,null,null,null,null,null,"Row 994"]
[null,"ER Split Unit 10",null,null,null,null,null,null,null,null,null,"Row 995"]
[null,"ER Split Unit 10",null,null,null,null,null,null,null,null,null,"Row 996"]
[null,"ER Split Unit 10",null,null,null,null,null,null,null,null,null,"Row 997"]
[null,"ER Split Unit 10",null,null,null,null,null,null,null,null,null,"Row 998"]
[null,"ER Split Unit 10",null,null,null,null,null,null,null,null,null,"Row 999"]
[null,"ER Split Unit 10",null,null,null,null,null,null,null,null,null,"Row 1000"]
[null,"ER Split Unit 10",null,null,null,null,null,null,null,null,null,null,null,"Total",{"$f":"IFERROR(SUBTOTAL(3,tblU10_Exp[Exposure Act]),0)","v":0},{"$f":"IFERROR(SUBTOTAL(9,tblU10_Exp[Exposure Amt]),0)","v":0},{"$f":"IFERROR(SUBTOTAL(3,tblU10_Exp[Mod Effective Date]),0)","v":0},{"$f":"IFERROR(SUBTOTAL(3,tblU10_Exp[Manual Rate]),0)","v":0},{"$f":"IFERROR(SUBTOTAL(3,tblU10_Exp[Manual Rate]),0)","v":0},null,"Total",{"$f":"IFERROR(SUBTOTAL(103,tblU10_Loss[Accident Date]),0)","v":0},{"$f":"IFERROR(SUBTOTAL(3,tblU10_Loss[Type of Claim]),0)","v":0}]
[null,"ER Split Unit 10"]
[null,"ER Split Unit 10"]
[null,"ER Split Unit 10"]
[null,"ER Split Unit 10"]
[null,"ER Split Unit 10",null,null,"© Copyright 2005-2023 NCCI Holdings, Inc. All Rights Reserved.",null,null,null,null,null,null,null,null,null,null,null,null,null,null,null,null,null,null,"Top"]
[null,"ER Split Unit 10"]

{"sheet":"User's Guide","index":1,"n_rows":32,"n_cols":4,"rows_kept":32,"cut":false,"hidden":false,"merged":[[7,2,7,3],[25,2,25,3]]}
[null,null,null,"Guide to Split Data File Creator Data Input"]
[null,null,null,"This guide provides general instructions for entering information into the Split Data File Creator. The template provides the required data elements and record layouts as defined in the Experience Rating (ER) Split Data Reporting Guide. The template allows entry of up to 10 separate ER Split Data reports, and each report can have up to 1,000 rows. "]
[]
[null,"General Input Instructions"]
[null,null,"· Multiple users cannot access the same spreadsheet file at the same time. However, multiple copies of the spreadsheet can be downloaded from ncci.com.  "]
[null,null,"· Use the drop-down menus to select values for: Report Type, Exposure State, Type of Transaction, Address State, Exposure Act, and Type of Claim."]
[null,null,"· The field name for Client Termination Date or Ownership Change Date is dynamic and will change based on the selected Type of Transaction."]
[null,null,"· Manual Rate and Type of Claim fields are applicable only for specific states. For state-specific reporting requirements, refer to Part 4—Data Dictionary of the ER Split Data Reporting Guide. The Manual Rate field must be entered with a decimal (e.g., 10.55). For any other states, enter a zero (0) in these fields. Do not leave this field blank."]
[]
[null,"Note: For the Exposure State, the drop-down menu includes selections for all states. Not all states can be submitted for ER Split Data reporting. "]
[null,null,"Refer to Part 2-B—Applicable States of the ER Split Data Reporting Guide for a list of applicable states for PEO Client and Separate Ownership data."]
[null,null,"· All date fields must be entered in the following format: m/d/yyyy."]
[null,"Original and Replacement Report Type—Requires a Link, Header, Name, Address, and Exposure Record"]
[null,null,"· All data elements located in the Link Data, Header, Name, and Address fields are required. In addition, at least Row 1 of the Exposure is required. "]
[null,"Delete Report Type—Only Require a Link Data and Header Record"]
[null,null,"·  When the Report Type is \"Delete only,\" the data elements for Link Data and the Header Fields are required."]
[]
[null,"Each ERSD Unit located on the UserInput sheet has 2 grouped levels—Level 1 or Level 2  "]
[null,null,"Located in the upper left corner is the display for grouped levels for the sheet:"]
[null,null,"· Level 1—Displays the inputs for 25 rows of Exposure and Loss information for all ER Split Data Reports"]
[null,null,"· Level 2—Displays the inputs for 1,000 rows of Exposure and Loss information for all ER Split Data Reports"]
[null,null,null,"Each ERSD has 2 grouped levels as well. Use the                  buttons located at the bottom of each ERSD Unit to display the additional 975 exposure and loss input fields."]
[]
[]
[null,"Create File Button"]
[null,null,"· After your data has been entered, select the Create File button. You will be prompted to save your ER Split Data file to your computer with a default file extension of .txt. To change your file to a .tst for certification, you must first save it as a .txt and then update the file extension to .tst after the file is saved on your computer. Refer to the ER Split Data Reporting Guide for the required file naming convention and file submission process. When your file is ready, go to Data Transfer via the Internet to select and send your file to NCCI for processing."]
[]
[null,"Clear Fields Button"]
[null,null,"· If you are using a previously saved version of this spreadsheet, it is important to create a new ER Split Data file. All previously entered data needs to be removed to avoid errors."]
[null,null,"· The Clear All Data button, located in the upper right corner of the spreadsheet, clears the spreadsheet of all entered data"]
[]
[null,"© Copyright 2021 National Council on Compensation Insurance, Inc. All Rights Reserved."]

{"sheet":"LU","index":2,"n_rows":52,"n_cols":45,"rows_kept":52,"cut":false,"hidden":true,"merged":[]}
["O","PEO Client Information",null,"State","St_Abbr","St_Cd",null,"Record Type","Record Number",null,"Report Type O, R, & D (Original, Replacement, & Delete) - Must have a Header Record.","Report Type O, R, & D (Original, Replacement, & Delete) - Must have a Header Record.",null,"ipLD_TTC","luLD_TT",null,null,"LU_VAL","Code","Type of Loss","Description","Additional Rules and/or Exceptions(If Applicable)",null,"LU_VAL","Code","Type of Exposure Coverage","Description","Additional Rules and/or Exceptions (If Applicable)",null,null,null,null,null,null,1]
["R","Separate Ownership Information",null,"Alabama","AL","01",null,"Header",1,null,"O","Original",null,"01","01 PEO Client Information",null,null,"01 Trauma","01","Trauma","An injury resulting in disability or death that is traceable to a definite compensable accident occurring during the employee’s present or past employment.\n\nA traumatic injury cannot be classified as either a Cumulative Injury or an Occupational Disease Loss as defined below.",null,null,null,null,"For Use With Statistical Codes Only",null,null,null,"Statistical codes are listed in Part 6, Item E—Statistical Codes.  Not applicable for Black Lung Disease statistical codes; refer to Part 1, Item L—Coal Mine and Black Lung Disease Experience.",null,null,null,null,1]
["D",null,{"$f":"B6=D2","v":true},"Alaska","AK","54",null,"Name",2,null,"R","Replacement",null,"02","02 Separate Ownership Information",null,null,"02 Occupational Disease","02","Occupational Disease","Any abnormal condition or disorder other than a workplace injury resulting in a disability or death that is not traceable to a definite compensable accident occurring during the employee’s present or past employment. Any injury caused by repetitive exposure extending over time to a disease-producing agent or agents present in the worker’s occupational environment. For example, a granite worker presents a claim for the occupational disease of silicosis due to exposure to the disease agent silica.\n\nIn order for a claim to be coded as an occupational disease case, it must have resulted from repetitive exposure extending over time. Claims that arise from single identifiable incidents should be coded as Trauma even though they may have been caused by inhalation, absorption, ingestion, or other environmental factors.",null,null,"00 For Use With Statistical Codes Only","00","State Act or Federal Act Excluding USL&HW and Federal Mine Safety and Health Act","Coverage for benefits paid to employees injured as the result of a workplace accident under the state workers compensation law or federal compensation laws, excluding coverage under the United States Longshore and Harbor Workers’ Compensation Act and the Federal Mine Safety and Health Act.",null,null,null,null,null,null,null,1]
[null,null,null,"Arizona","AZ","02",null,"Address",3,null,"D","Delete",null,null,null,null,null,"03 Cumulative Injury Other Than Disease","03","Cumulative Injury Other Than Disease","An injury that results in a disability or death and is not traceable to a definite compensable accident occurring during the employee’s present and past employment. The injury is understood to have occurred from, and has been aggravated by, a repetitive employment-related activity. For example, a cement mason or carpet or tile installer presents a claim for injury to the knee caused by repetitive bending and kneeling on the job.","Not applicable in Oregon.",null,"01 State Act or Federal Act Excluding USL&HW and Federal Mine Safety and Health Act","01","USL&HW F-Classes or USL&HW Coverage on Non-F-Classes","Coverage for benefits paid to employees injured as the result of a workplace accident under the USL&HW Act.   Extension of the USL&HW Act to non-F-class operations, which involve some employees subject to the USL&HW Act for an additional premium charge.",null,null,null,null,null,null,null,1]
[null,null,null,"Arkansas","AR","03",null,"Exposure",4,null,null,null,null,null,null,null,null,null,null,null,null,null,null,"02 USL&HW F-Classes or USL&HW Coverage on Non-F-Classes","02","Coverage Under the Federal Mine Safety and Health Act Only","Coverage by endorsement for benefits paid to employees injured as the result of a workplace accident under the Federal Mine Safety and Health Act, excluding the state act for coal mine class codes. Disease is covered under the Federal Mine Safety and Health Act only.  Coverage by endorsement for benefits paid to employees injured as the result of a workplace accident under the Federal Mine Safety and Health Act for non-coal mine class codes.",null,null,null,null,null,null,null,1]
[null,"Alabama",null,"California","CA","04",null,"Loss",5,null,null,null,null,null,null,null,null,null,null,null,null,null,null,"03 Coverage Under the Federal Mine Safety and Health Act Only","03","Coverage Under the Federal Mine Safety and Health Act and the State Act","Coverage by endorsement for benefits paid to employees injured as the result of a workplace accident under the Federal Mine Safety and Health Act in addition to the state act for coal mine class codes. Coverage for disease is provided under both the state act and the Federal Mine Safety and Health Act.  Coverage by endorsement for benefits paid to employees injured as the result of a workplace accident under the Federal Mine Safety and Health Act in addition to the state act for non-coal mine class codes.",null,null,null,null,null,null,null,1]
[null,null,null,"Colorado","CO","05",null,"Control",9,null,null,null,null,null,null,null,null,null,null,null,null,null,null,"04 Coverage Under the Federal Mine Safety and Health Act and the State Act","04","Coverage Under State Act for Oil, Gas, or Other Mineral Operations On or Over Water","Coverage for benefits paid to employees injured as the result of a workplace accident under the state workers compensation law, excluding coverage under the United States Longshore and Harbor Workers’ Compensation Act and the Federal Mine Safety and Health Act.",null,null,"Applicable in Texas only effective 06/01/2014.",null,null,null,null,1,null,null,null,"PRIOR LU TABLE FORMULAS"]
[null,null,null,"Connecticut","CT","06",null,null,null,null,null,null,null,null,null,null,null,null,null,null,null,null,null,"05 (TX Only Eff 6/1/14) Coverage Under State Act for Oil, Gas, or Other Mineral Operations On or Over Water","05","Coverage Under State Act Excluding Medical Coverage","Coverage described under the Standard Workers Compensation Including Employers Liability Policy, except that the insured pays for all medical and hospital services as required by workers compensation law.",null,null,"This code was discontinued with the approval of Item B-1423 for all states except Texas, based on the states’ rate effective date in 2012.  Not applicable in Texas.",null,null,null,null,1,null,null,"ERSS0328","IF(OR(AN19=$AK$45,AN19=$AK$46,AND(AN19=$AK$47,AM19<$AL$47)),\"Y\",\"N\")"]
[null,null,null,"Delaware","DE","07",null,null,null,null,null,null,null,null,null,null,null,"01 State Act or Federal Act Excluding USL&HW and Federal Mine Safety and Health Act",null,{"$f":"R9=X4","v":true},null,null,null,"06 (NA in TX) Coverage Under State Act Excluding Medical Coverage","06","Excess Benefits Coverage","Maryland: Coverage described under the Standard Workers Compensation Including Employers Liability Policy, except coverage that was endorsed by the Excess Special Endorsement. When excess benefits coverage is provided, the following rules govern the reporting of loss data:•Each loss must be valued separately under the Maryland Workers Compensation Law•The valuation on the basis of the Maryland law must be reported according to the rules of this Plan•The valuation under the excess benefits (e.g., Maryland law subcontracted from the valuation under the District of Columbia law) must be reportedVirginia: Coverage described under the Standard Workers Compensation Including Employers Liability Policy, except coverage that was endorsed by the Excess Special Endorsement.West Virginia: Applies in connection with Deliberate Intent (Mandolidis) Coverage only, when endorsed on a workers compensation/employers liability policy or when provided as an excess policy.",null,null,"Applicable in Maryland, Virginia, and West Virginia only.",null,null,null,null,1,null,null,null,"IF(OR(AN19=$AK$45,AN19=$AK$46,AND(AN19=$AK$47,AM19<$AL$47)),\"Y\",\"N\")"]
[null,null,null,"Dist. Of Columbia","DC","08",null,null,null,null,null,null,null,null,null,null,null,"01 State Act or Federal Act Excluding USL&HW and Federal Mine Safety and Health Act",null,null,null,null,null,"07 (MD, VA & WV Only) Excess Benefits Coverage","07","Coverage Under USL&HW Act for Oil, Gas, or Other Mineral Operations On or Over Water","Coverage for benefits paid under the United States Longshore and Harbor Workers’ Compensation Act or extension of the USL&HW Act.",null,null,"Applicable in Texas only effective 06/01/2014.",null,null,null,null,1,null,null,null,"IF(IFERROR(OR(INDEX(tblU01_Exp[Class Code],MATCH($AM$34,tblU01_Exp[Class Code],0))=$AM$34,INDEX(tblU01_Exp[Class Code],MATCH(\"5708\",tblU01_Exp[Class Code],0))=\"5708\",INDEX(tblU01_Exp[Class Code],MATCH(\"5709\",tblU01_Exp[Class Code],0))=\"5709\"),FALSE),\"Y\",\"N\")"]
[null,null,null,"Florida","FL","09",null,null,null,null,null,null,null,null,null,null,null,null,null,null,null,null,null,"08 (TX Only Eff 6/1/14) Coverage Under USL&HW Act for Oil, Gas, or Other Mineral Operations On or Over Water","08","Endorsed Maritime Coverage","Coverage described under the Standard Workers Compensation Including Employers Liability Policy, which is endorsed to provide coverage for bodily injury to a master or member of the crew of any vessel.",null,null,"Applicable in Louisiana only.",null,null,null,null,1,null,null,null,"IF(OR(AND(AN19=$AK$34,AM19<$AL$34,AP19=\"Y\"),AND(AN19=$AK$37,AM19<$AL$37,AP19=\"Y\"),AND(AN19=$AK$41,AO19=\"Y\"),AND(AN19=$AK$36)),\"Y\",\"N\")"]
[null,null,null,"Georgia","GA","10",null,null,null,null,null,null,null,null,null,null,null,null,null,null,null,null,null,"09 (LA Only) Endorsed Maritime Coverage","09",null,null,null,null,null,null,null,null,null,1,null,null,null,"IF(uipU01LD_PED=\"\",\"\",TEXT(uipU01LD_PED,\"YYYYMMDD\"))"]
[null,null,null,"Hawaii","HI","52",null,null,null,null,null,null,null,null,null,null,null,null,null,null,null,null,null,null,null,null,null,null,null,null,null,null,null,null,1]
[null,null,null,"Idaho","ID","11",null,null,null,null,null,null,null,null,null,null,null,null,null,null,null,null,null,null,null,null,null,null,null,null,null,null,null,null,1]
[null,null,null,"Illinois","IL","12"]
[null,null,"For ICRB*","Indiana","IN","13",null,null,null,null,null,null,null,null,null,null,null,null,null,null,null,null,null,null,null,null,null,null,null,null,null,null,null,null,null,null,null,null,null,null,null,null,null,"Determins if the Manual Rate field is displayed.  Y=Field is displayed & N=field is not displayed."]
[null,null,null,"Iowa","IA","14",null,null,null,null,null,null,null,null,null,null,null,null,null,null,null,null,null,null,null,null,null,null,null,null,null,null,null,null,null,null,null,null,null,null,null,null,null,null,"Determins if the Type of Claim field is displayed.  Y=Field is displayed & N=field is not displayed."]
[null,null,null,"Kansas","KS","15",null,null,null,null,null,null,null,null,null,null,null,null,null,null,null,null,null,null,null,null,null,null,null,null,null,null,null,null,null,null,null,null,"PED","STATE","PEO","CLASS",null,"MR_LU","L_LU"]
[null,null,null,"Kentucky","KY","16",null,null,null,null,null,null,null,null,null,null,null,null,null,null,null,null,null,null,null,null,null,null,null,null,null,null,null,null,null,null,{"$f":"IF(uipU01LD_PED=\"\",\"\",\"UNIT\")","v":""},1,{"$f":"IF(uipU01LD_PED=\"\",\"20101010\",TEXT(uipU01LD_PED,\"YYYYMMDD\"))","v":"20101010"},{"$f":"IF(uipU01LD_ES=\"\",\"\",uipU01LD_ES)","v":""},{"$f":"IF(IFERROR(LEFT(uipU01LD_TT,2)=\"01\",FALSE),\"Y\",\"N\")","v":"N"},{"$f":"IF(OR(IFERROR(INDEX(tblU01_Exp[Class Code],MATCH($AM$34,tblU01_Exp[Class Code],0))=$AM$34,FALSE),IFERROR(INDEX(tblU01_Exp[Class Code],MATCH($AM$37,tblU01_Exp[Class Code],0))=$AM$37,FALSE),IFERROR(INDEX(tblU01_Exp[Class Code],MATCH($AM$39,tblU01_Exp[Class Code],0))=$AM$39,FALSE)),\"Y\",\"N\")","v":"N"},null,{"$f":"IF(OR(AND(AN19=$AK$34,AM19<$AL$34,AP19=\"Y\",AM19<$AL$34),AND(AN19=$AK$37,AM19<$AL$37,AP19=\"Y\",AM19<$AL$37),AND(AN19=$AK$41,AO19=\"Y\"),AND(AN19=$AK$36)),\"Y\",\"N\")","v":"N"},{"$f":"IF(AND(AN19=$AK$47,AM19=\"\"),\"N\",IF(OR(AN19=$AK$45,AN19=$AK$46,AND(AN19=$AK$47,AM19<$AL$47)),\"Y\",\"N\"))","v":"N"}]
[null,null,null,"Louisiana","LA","17",null,null,null,null,null,null,null,null,null,null,null,null,null,null,null,null,null,null,null,null,null,null,null,null,null,null,null,null,null,null,{"$f":"IF(uipU02LD_PED=\"\",\"\",\"UNIT\")","v":""},2,{"$f":"IF(uipU02LD_PED=\"\",\"20101010\",TEXT(uipU02LD_PED,\"YYYYMMDD\"))","v":"20101010"},{"$f":"IF(uipU02LD_ES=\"\",\"\",uipU02LD_ES)","v":""},{"$f":"IF(IFERROR(LEFT(uipU02LD_TT,2)=\"01\",FALSE),\"Y\",\"N\")","v":"N"},{"$f":"IF(OR(IFERROR(INDEX(tblU02_Exp[Class Code],MATCH($AM$34,tblU02_Exp[Class Code],0))=$AM$34,FALSE),IFERROR(INDEX(tblU02_Exp[Class Code],MATCH($AM$37,tblU02_Exp[Class Code],0))=$AM$37,FALSE),IFERROR(INDEX(tblU02_Exp[Class Code],MATCH($AM$39,tblU02_Exp[Class Code],0))=$AM$39,FALSE)),\"Y\",\"N\")","v":"N"},null,"N",{"$f":"IF(AND(AN20=$AK$47,AM20=\"\"),\"N\",IF(OR(AN20=$AK$45,AN20=$AK$46,AND(AN20=$AK$47,AM20<$AL$47)),\"Y\",\"N\"))","v":"N"}]
[null,null,null,"Maine","ME","18",null,null,null,null,null,null,null,null,null,null,null,null,null,null,null,null,null,null,null,null,null,null,null,null,null,null,null,null,null,null,{"$f":"IF(uipU03LD_PED=\"\",\"\",\"UNIT\")","v":""},3,{"$f":"IF(uipU03LD_PED=\"\",\"20101010\",TEXT(uipU03LD_PED,\"YYYYMMDD\"))","v":"20101010"},{"$f":"IF(uipU03LD_ES=\"\",\"\",uipU03LD_ES)","v":""},{"$f":"IF(IFERROR(LEFT(uipU03LD_TT,2)=\"01\",FALSE),\"Y\",\"N\")","v":"N"},{"$f":"IF(OR(IFERROR(INDEX(tblU03_Exp[Class Code],MATCH($AM$34,tblU03_Exp[Class Code],0))=$AM$34,FALSE),IFERROR(INDEX(tblU03_Exp[Class Code],MATCH($AM$37,tblU03_Exp[Class Code],0))=$AM$37,FALSE),IFERROR(INDEX(tblU03_Exp[Class Code],MATCH($AM$39,tblU03_Exp[Class Code],0))=$AM$39,FALSE)),\"Y\",\"N\")","v":"N"},null,"N","N"]
[null,null,null,"Maryland","MD","19",null,null,null,null,null,null,null,null,null,null,null,null,null,null,null,null,null,null,null,null,null,null,null,null,null,null,null,null,null,null,{"$f":"IF(uipU04LD_PED=\"\",\"\",\"UNIT\")","v":""},4,{"$f":"IF(uipU04LD_PED=\"\",\"20101010\",TEXT(uipU04LD_PED,\"YYYYMMDD\"))","v":"20101010"},{"$f":"IF(uipU04LD_ES=\"\",\"\",uipU04LD_ES)","v":""},{"$f":"IF(IFERROR(LEFT(uipU04LD_TT,2)=\"01\",FALSE),\"Y\",\"N\")","v":"N"},{"$f":"IF(OR(IFERROR(INDEX(tblU04_Exp[Class Code],MATCH($AM$34,tblU04_Exp[Class Code],0))=$AM$34,FALSE),IFERROR(INDEX(tblU04_Exp[Class Code],MATCH($AM$37,tblU04_Exp[Class Code],0))=$AM$37,FALSE),IFERROR(INDEX(tblU04_Exp[Class Code],MATCH($AM$39,tblU04_Exp[Class Code],0))=$AM$39,FALSE)),\"Y\",\"N\")","v":"N"},null,"N","N"]
[null,null,null,"Massachusetts","MA","20",null,null,null,null,null,null,null,null,null,null,null,null,null,null,null,null,null,null,null,null,null,null,null,null,null,null,null,null,null,null,{"$f":"IF(uipU05LD_PED=\"\",\"\",\"UNIT\")","v":""},5,{"$f":"IF(uipU05LD_PED=\"\",\"20101010\",TEXT(uipU05LD_PED,\"YYYYMMDD\"))","v":"20101010"},{"$f":"IF(uipU05LD_ES=\"\",\"\",uipU05LD_ES)","v":""},{"$f":"IF(IFERROR(LEFT(uipU05LD_TT,2)=\"01\",FALSE),\"Y\",\"N\")","v":"N"},{"$f":"IF(OR(IFERROR(INDEX(tblU05_Exp[Class Code],MATCH($AM$34,tblU05_Exp[Class Code],0))=$AM$34,FALSE),IFERROR(INDEX(tblU05_Exp[Class Code],MATCH($AM$37,tblU05_Exp[Class Code],0))=$AM$37,FALSE),IFERROR(INDEX(tblU05_Exp[Class Code],MATCH($AM$39,tblU05_Exp[Class Code],0))=$AM$39,FALSE)),\"Y\",\"N\")","v":"N"},null,"N","N"]
[null,null,null,"Michigan","MI","21",null,null,null,null,null,null,null,null,null,null,null,null,null,null,null,null,null,null,null,null,null,null,null,null,null,null,null,null,null,null,{"$f":"IF(uipU06LD_PED=\"\",\"\",\"UNIT\")","v":""},6,{"$f":"IF(uipU06LD_PED=\"\",\"20101010\",TEXT(uipU06LD_PED,\"YYYYMMDD\"))","v":"20101010"},{"$f":"IF(uipU06LD_ES=\"\",\"\",uipU06LD_ES)","v":""},{"$f":"IF(IFERROR(LEFT(uipU06LD_TT,2)=\"01\",FALSE),\"Y\",\"N\")","v":"N"},{"$f":"IF(OR(IFERROR(INDEX(tblU06_Exp[Class Code],MATCH($AM$34,tblU06_Exp[Class Code],0))=$AM$34,FALSE),IFERROR(INDEX(tblU06_Exp[Class Code],MATCH($AM$37,tblU06_Exp[Class Code],0))=$AM$37,FALSE),IFERROR(INDEX(tblU06_Exp[Class Code],MATCH($AM$39,tblU06_Exp[Class Code],0))=$AM$39,FALSE)),\"Y\",\"N\")","v":"N"},null,"N","N"]
[null,null,null,"Minnesota","MN","22",null,null,null,null,null,null,null,null,null,null,null,null,null,null,null,null,null,null,null,null,null,null,null,null,null,null,null,null,null,null,{"$f":"IF(uipU07LD_PED=\"\",\"\",\"UNIT\")","v":""},7,{"$f":"IF(uipU07LD_PED=\"\",\"20101010\",TEXT(uipU07LD_PED,\"YYYYMMDD\"))","v":"20101010"},{"$f":"IF(uipU07LD_ES=\"\",\"\",uipU07LD_ES)","v":""},{"$f":"IF(IFERROR(LEFT(uipU07LD_TT,2)=\"01\",FALSE),\"Y\",\"N\")","v":"N"},{"$f":"IF(OR(IFERROR(INDEX(tblU07_Exp[Class Code],MATCH($AM$34,tblU07_Exp[Class Code],0))=$AM$34,FALSE),IFERROR(INDEX(tblU07_Exp[Class Code],MATCH($AM$37,tblU07_Exp[Class Code],0))=$AM$37,FALSE),IFERROR(INDEX(tblU07_Exp[Class Code],MATCH($AM$39,tblU07_Exp[Class Code],0))=$AM$39,FALSE)),\"Y\",\"N\")","v":"N"},null,"N","N"]
[null,null,null,"Mississippi","MS","23",null,null,null,null,null,null,null,null,null,null,null,null,null,null,null,null,null,null,null,null,null,null,null,null,null,null,null,null,null,null,{"$f":"IF(uipU08LD_PED=\"\",\"\",\"UNIT\")","v":""},8,{"$f":"IF(uipU08LD_PED=\"\",\"20101010\",TEXT(uipU08LD_PED,\"YYYYMMDD\"))","v":"20101010"},{"$f":"IF(uipU08LD_ES=\"\",\"\",uipU08LD_ES)","v":""},{"$f":"IF(IFERROR(LEFT(uipU08LD_TT,2)=\"01\",FALSE),\"Y\",\"N\")","v":"N"},{"$f":"IF(OR(IFERROR(INDEX(tblU08_Exp[Class Code],MATCH($AM$34,tblU08_Exp[Class Code],0))=$AM$34,FALSE),IFERROR(INDEX(tblU08_Exp[Class Code],MATCH($AM$37,tblU08_Exp[Class Code],0))=$AM$37,FALSE),IFERROR(INDEX(tblU08_Exp[Class Code],MATCH($AM$39,tblU08_Exp[Class Code],0))=$AM$39,FALSE)),\"Y\",\"N\")","v":"N"},null,"N","N"]
[null,null,null,"Missouri","MO","24",null,null,null,null,null,null,null,null,null,null,null,null,null,null,null,null,null,null,null,null,null,null,null,null,null,null,null,null,null,null,{"$f":"IF(uipU09LD_PED=\"\",\"\",\"UNIT\")","v":""},9,{"$f":"IF(uipU09LD_PED=\"\",\"20101010\",TEXT(uipU09LD_PED,\"YYYYMMDD\"))","v":"20101010"},{"$f":"IF(uipU09LD_ES=\"\",\"\",uipU09LD_ES)","v":""},{"$f":"IF(IFERROR(LEFT(uipU09LD_TT,2)=\"01\",FALSE),\"Y\",\"N\")","v":"N"},{"$f":"IF(OR(IFERROR(INDEX(tblU09_Exp[Class Code],MATCH($AM$34,tblU09_Exp[Class Code],0))=$AM$34,FALSE),IFERROR(INDEX(tblU09_Exp[Class Code],MATCH($AM$37,tblU09_Exp[Class Code],0))=$AM$37,FALSE),IFERROR(INDEX(tblU09_Exp[Class Code],MATCH($AM$39,tblU09_Exp[Class Code],0))=$AM$39,FALSE)),\"Y\",\"N\")","v":"N"},null,"N","N"]
[null,null,null,"Montana","MT","25",null,null,null,null,null,null,null,null,null,null,null,null,null,null,null,null,null,null,null,null,null,null,null,null,null,null,null,null,null,null,{"$f":"IF(uipU10LD_PED=\"\",\"\",\"UNIT\")","v":""},10,{"$f":"IF(uipU10LD_PED=\"\",\"20101010\",TEXT(uipU10LD_PED,\"YYYYMMDD\"))","v":"20101010"},{"$f":"IF(uipU10LD_ES=\"\",\"\",uipU10LD_ES)","v":""},{"$f":"IF(IFERROR(LEFT(uipU10LD_TT,2)=\"01\",FALSE),\"Y\",\"N\")","v":"N"},{"$f":"IF(OR(IFERROR(INDEX(tblU10_Exp[Class Code],MATCH($AM$34,tblU10_Exp[Class Code],0))=$AM$34,FALSE),IFERROR(INDEX(tblU10_Exp[Class Code],MATCH($AM$37,tblU10_Exp[Class Code],0))=$AM$37,FALSE),IFERROR(INDEX(tblU10_Exp[Class Code],MATCH($AM$39,tblU10_Exp[Class Code],0))=$AM$39,FALSE)),\"Y\",\"N\")","v":"N"},null,"N","N"]
[null,null,null,"Nebraska","NE","26"]
[null,null,null,"Nevada","NV","27"]
[null,null,null,"New Hampshire","NH","28"]
[null,null,null,"New Jersey","NJ","29",null,null,"MA, NC, NY, and TX",null,null,null,null,null,null,null,null,null,null,null,null,null,null,null,null,null,null,null,null,null,null,null,null,null,null,null,"MANUAL RATE REQUIRED WHEN:"]
[null,null,null,"New Mexico","NM","30",null,null,null,null,null,null,null,null,null,null,null,null,null,null,null,null,null,null,null,null,null,null,null,null,null,null,null,null,null,null,"STATE","PED<","CLASS","PEO"]
[null,null,null,"New York","NY","31",null,null,null,null,null,null,null,null,null,null,null,null,null,null,null,null,null,null,null,null,null,null,null,null,null,null,null,null,null,null,"Massachusetts","20020601","9529","Y"]
[null,null,"IRB*","North Carolina","NC","32",null,null,null,null,null,null,null,null,null,null,null,null,null,null,null,null,null,null,null,null,null,null,null,null,null,null,null,null,null,null,"Massachusetts","20020601","9529","N"]
[null,null,null,"North Dakota","ND","33",null,null,null,null,null,null,null,null,null,null,null,null,null,null,null,null,null,null,null,null,null,null,null,null,null,null,null,null,null,null,"North Carolina"]
[null,null,null,"Ohio","OH","34",null,null,null,null,null,null,null,null,null,null,null,null,null,null,null,null,null,null,null,null,null,null,null,null,null,null,null,null,null,null,"New York","20031001","5708","Y"]
[null,null,null,"Oklahoma","OK","35",null,null,null,null,null,null,null,null,null,null,null,null,null,null,null,null,null,null,null,null,null,null,null,null,null,null,null,null,null,null,"New York","20031001","5708","N"]
[null,null,null,"Oregon","OR","36",null,null,null,null,null,null,null,null,null,null,null,null,null,null,null,null,null,null,null,null,null,null,null,null,null,null,null,null,null,null,"New York","20031001","5709","Y"]
[null,null,null,"Pennsylvania","PA","37",null,null,null,null,null,null,null,null,null,null,null,null,null,null,null,null,null,null,null,null,null,null,null,null,null,null,null,null,null,null,"New York","20031001","5709","N"]
[null,null,null,"Puerto Rico","PR","58",null,null,null,null,null,null,null,null,null,null,null,null,null,null,null,null,null,null,null,null,null,null,null,null,null,null,null,null,null,null,"Texas",null,null,"Y"]
[null,null,null,"Rhode Island","RI","38"]
[null,null,null,"South Carolina","SC","39",null,null,null,null,null,null,null,null,null,null,null,null,null,null,null,null,null,null,null,null,null,null,null,null,null,null,null,null,null,null,"Loss Condition Code: Type of Claim"]
[null,null,null,"South Dakota","SD","40",null,null,null,null,null,null,null,null,null,null,null,null,null,null,null,null,null,null,null,null,null,null,null,null,null,null,null,null,null,null,"STATE","PED<"]
[null,null,null,"Tennessee","TN","41",null,null,null,null,null,null,null,null,null,null,null,null,null,null,null,null,null,null,null,null,null,null,null,null,null,null,null,null,null,null,"Maryland"]
[null,null,null,"Texas","TX","42",null,null,null,null,null,null,null,null,null,null,null,null,null,null,null,null,null,null,null,null,null,null,null,null,null,null,null,null,null,null,"Virginia"]
[null,null,null,"Utah","UT","43",null,null,null,null,null,null,null,null,null,null,null,null,null,null,null,null,null,null,null,null,null,null,null,null,null,null,null,null,null,null,"Texas","20150101"]
[null,null,null,"Vermont","VT","44"]
[null,null,null,"Virginia","VA","45"]
[null,null,null,"Washington","WA","46"]
[null,null,null,"West Virginia","WV","47"]
[null,null,null,"Wisconsin","WI","48"]

{"sheet":"DATASTRING","index":3,"n_rows":0,"n_cols":0,"rows_kept":0,"cut":false,"hidden":true,"merged":[]}